{"text_format":"1","workbook":"xlsx","n_sheets":7,"sheets":["Cover","Notes","Summary of judgements","Pivot FE&S","Inspection data","Pivot SSA","Sector subject area data"],"not_rendered":{"charts":4,"images":1,"macros":1,"external_links":1,"defined_names":9,"comments":0,"pivot_tables":10},"unopened":[],"bounds":{"document_bytes":16777216,"sheet_cells":100000,"rows_first":2000,"rows_last":500,"rows_between":2000,"halvings":0,"cell_chars":16384,"cell_head_chars":4096},"cells_cut":0,"cells_raw":0,"read":"whole","date_system":"1900"}

{"sheet":"Cover","index":0,"n_rows":28,"n_cols":3,"rows_kept":28,"cut":false,"hidden":false,"merged":[[5,1,5,2]]}
[]
[]
[]
[]
[]
[null,"Management information"]
[null,"Policy area:","Further education and skills inspections and outcomes"]
[null,"Theme:","Education, children's services and skills"]
[null,"Published on:","8 October 2015"]
[null,"Coverage:","England"]
[null,"Period covered:","Inspections from 1 September 2014 to 31 August 2015 (published by 1 October 2015)"]
[null,"Status:","Provisional: Management Information"]
[null,"Statistician:","Sarah Pearce"]
[null,"Public enquiries:","enquiries@ofsted.gov.uk"]
[null,"Press enquiries:","pressenquiries@ofsted.gov.uk"]
[null,"Link to FE and Skills management information web page including publication schedule:","https://www.gov.uk/government/statistical-data-sets/monthly-management-information-ofsteds-further-education-and-skills-inspections-outcomes"]
[null,"Link to official statistics release web page:","https://www.gov.uk/government/collections/further-education-and-skills-inspection-outcomes"]
[]
[]
[null,"© Crown copyright 2015"]
[]
[null,"You may use and re-use this information (not including logos) free of charge in any format or medium, "]
[null,"under the terms of the Open Government Licence. "]
[null,"To view this licence, visit:"]
[null,"http://www.nationalarchives.gov.uk/doc/open-government-licence/"]
[null,"Or write to the Information Policy Team, The National Archives, Kew, London, TW9 4DU"]
[null,"Or email:"]
[null,"psi@nationalarchives.gsi.gov.uk"]

{"sheet":"Notes","index":1,"n_rows":16,"n_cols":4,"rows_kept":16,"cut":false,"hidden":false,"merged":[[6,1,6,3],[7,1,7,3],[5,1,5,3],[0,1,0,3],[1,1,1,3],[2,1,2,3],[3,1,3,3],[4,1,4,3]]}
[null,"MANAGEMENT INFORMATION - INSPECTION OUTCOMES"]
[null,"Data show inspection judgements for further education and skills providers for the reporting year 2014/15."]
[null,"The data cover outcomes for inspections which have taken place between 1 September 2014 and 31 August 2015, and where the inspection report has been published by 1 October 2015."]
[null,"This is the final set of data for 2014/15 and represents the complete picture of inspections this reporting year."]
[null,"Adult and community learning providers are now known as community learning and skills providers. "]
[]
[null,"INDEX OF TABLES"]
[null,"To access the tables you can either click on the links below or on the tabs at the bottom of the spreadsheet:"]
[]
[null,"Summary of  judgements",null,"Summary of latest inspection judgements for providers"]
[null,"Inspection data",null,"Inspection data at provider level"]
[null,"Sector subject area data",null,"Sector subject area data at provider level"]
[]
[]
[null,"Key to judgements: grade 1 is outstanding, grade 2 good, grade 3 satisfactory/requires improvement, and grade 4 inadequate."]
[null,"The 2014/15 reporting year refers to the dates between 01/09/2014 - 31/08/2015 inclusive."]

{"sheet":"Summary of judgements","index":2,"n_rows":170,"n_cols":20,"rows_kept":170,"cut":false,"hidden":false,"merged":[[28,1,29,1],[28,2,29,2],[28,3,28,6],[4,1,5,1],[4,2,5,2],[4,3,4,6],[101,3,101,6],[53,1,54,1],[53,2,54,2],[53,3,53,6],[77,1,78,1],[77,2,78,2],[77,3,77,6],[101,1,102,1],[101,2,102,2]]}
["Summary of latest judgements"]
[]
[null,"Overall effectiveness of providers inspected since 1 September 2014"]
[null,null,null,1,2,3,4]
[null,"Provider type","Total number of inspections","Overall effectiveness"]
[null,null,null,"Outstanding","Good","Requires improvement","Inadequate",null,null,"Outstanding","Good","Requires improvement","Inadequate"]
[null,"Academy Converter",{"$f":"SUM(D7:G7)","v":1},{"$f":"IFERROR(GETPIVOTDATA(\"Provider Name\",'Pivot FE&S'!$A$5,\"Provider type\",$B7,\"Overall Effectiveness\",D$4),0)","v":0},{"$f":"IFERROR(GETPIVOTDATA(\"Provider Name\",'Pivot FE&S'!$A$5,\"Provider type\",$B7,\"Overall Effectiveness\",E$4),0)","v":0},{"$f":"IFERROR(GETPIVOTDATA(\"Provider Name\",'Pivot FE&S'!$A$5,\"Provider type\",$B7,\"Overall Effectiveness\",F$4),0)","v":1},{"$f":"IFERROR(GETPIVOTDATA(\"Provider Name\",'Pivot FE&S'!$A$5,\"Provider type\",$B7,\"Overall Effectiveness\",G$4),0)","v":0},null,{"$f":"B7&\" \"&\"(\"&C7&\")\"","v":"Academy Converter (1)"},{"$f":"D7/$C7*100","v":0},{"$f":"E7/$C7*100","v":0},100,0]
[null,"Community Learning and Skills",{"$f":"SUM(D8:G8)","v":60},{"$f":"IFERROR(GETPIVOTDATA(\"Provider Name\",'Pivot FE&S'!$A$5,\"Provider type\",\"Community Learning and Skills\",\"Overall Effectiveness\",1),0)","v":2},{"$f":"IFERROR(GETPIVOTDATA(\"Provider Name\",'Pivot FE&S'!$A$5,\"Provider type\",\"Community Learning and Skills\",\"Overall Effectiveness\",2),0)","v":32},{"$f":"IFERROR(GETPIVOTDATA(\"Provider Name\",'Pivot FE&S'!$A$5,\"Provider type\",\"Community Learning and Skills\",\"Overall Effectiveness\",3),0)","v":19},{"$f":"IFERROR(GETPIVOTDATA(\"Provider Name\",'Pivot FE&S'!$A$5,\"Provider type\",\"Community Learning and Skills\",\"Overall Effectiveness\",4),0)","v":7},null,{"$f":"B8&\" \"&\"(\"&C8&\")\"","v":"Community Learning and Skills (60)"},{"$f":"D8/$C8*100","v":3.3333333333333335},53.333333333333336,31.666666666666664,11.666666666666666]
[null,"Employer",{"$f":"SUM(D9:G9)","v":13},{"$f":"IFERROR(GETPIVOTDATA(\"Provider Name\",'Pivot FE&S'!$A$5,\"Provider type\",\"Employer\",\"Overall Effectiveness\",1),0)","v":3},{"$f":"IFERROR(GETPIVOTDATA(\"Provider Name\",'Pivot FE&S'!$A$5,\"Provider type\",\"Employer\",\"Overall Effectiveness\",2),0)","v":4},{"$f":"IFERROR(GETPIVOTDATA(\"Provider Name\",'Pivot FE&S'!$A$5,\"Provider type\",\"Employer\",\"Overall Effectiveness\",3),0)","v":4},{"$f":"IFERROR(GETPIVOTDATA(\"Provider Name\",'Pivot FE&S'!$A$5,\"Provider type\",\"Employer\",\"Overall Effectiveness\",4),0)","v":2},null,{"$f":"B9&\" \"&\"(\"&C9&\")\"","v":"Employer (13)"},23.076923076923077,30.76923076923077,30.76923076923077,15.384615384615385]
[null,"Free School - 16-19",{"$f":"SUM(D10:G10)","v":5},{"$f":"IFERROR(GETPIVOTDATA(\"Provider Name\",'Pivot FE&S'!$A$5,\"Provider type\",$B10,\"Overall Effectiveness\",D$4),0)","v":0},{"$f":"IFERROR(GETPIVOTDATA(\"Provider Name\",'Pivot FE&S'!$A$5,\"Provider type\",\"Free School - 16-19\",\"Overall Effectiveness\",2),0)","v":1},{"$f":"IFERROR(GETPIVOTDATA(\"Provider Name\",'Pivot FE&S'!$A$5,\"Provider type\",\"Free School - 16-19\",\"Overall Effectiveness\",3),0)","v":2},{"$f":"IFERROR(GETPIVOTDATA(\"Provider Name\",'Pivot FE&S'!$A$5,\"Provider type\",\"Free School - 16-19\",\"Overall Effectiveness\",4),0)","v":2},null,{"$f":"B10&\" \"&\"(\"&C10&\")\"","v":"Free School - 16-19 (5)"},0,20,40,40]
[null,"General Further Education/Tertiary College",{"$f":"SUM(D11:G11)","v":48},{"$f":"IFERROR(GETPIVOTDATA(\"Provider Name\",'Pivot FE&S'!$A$5,\"Provider type\",\"General Further Education/Tertiary College\",\"Overall Effectiveness\",1),0)","v":2},{"$f":"IFERROR(GETPIVOTDATA(\"Provider Name\",'Pivot FE&S'!$A$5,\"Provider type\",\"General Further Education/Tertiary College\",\"Overall Effectiveness\",2),0)","v":15},{"$f":"IFERROR(GETPIVOTDATA(\"Provider Name\",'Pivot FE&S'!$A$5,\"Provider type\",\"General Further Education/Tertiary College\",\"Overall Effectiveness\",3),0)","v":26},{"$f":"IFERROR(GETPIVOTDATA(\"Provider Name\",'Pivot FE&S'!$A$5,\"Provider type\",\"General Further Education/Tertiary College\",\"Overall Effectiveness\",4),0)","v":5},null,"General Further Education/Tertiary College (48)",{"$f":"D11/$C11*100","v":4.1666666666666661},{"$f":"E11/$C11*100","v":31.25},{"$f":"F11/$C11*100","v":54.166666666666664},{"$f":"G11/$C11*100","v":10.416666666666668}]
[null,"Specialist Further Education",{"$f":"SUM(D12:G12)","v":3},{"$f":"IFERROR(GETPIVOTDATA(\"Provider Name\",'Pivot FE&S'!$A$5,\"Provider type\",$B12,\"Overall Effectiveness\",D$4),0)","v":0},{"$f":"IFERROR(GETPIVOTDATA(\"Provider Name\",'Pivot FE&S'!$A$5,\"Provider type\",\"Specialist Further Education\",\"Overall Effectiveness\",2),0)","v":3},{"$f":"IFERROR(GETPIVOTDATA(\"Provider Name\",'Pivot FE&S'!$A$5,\"Provider type\",$B12,\"Overall Effectiveness\",F$6),0)","v":0},{"$f":"IFERROR(GETPIVOTDATA(\"Provider Name\",'Pivot FE&S'!$A$5,\"Provider type\",$B12,\"Overall Effectiveness\",G$4),0)","v":0},null,{"$f":"B12&\" \"&\"(\"&C12&\")\"","v":"Specialist Further Education (3)"},{"$f":"D12/$C12*100","v":0},{"$f":"E12/$C12*100","v":100},{"$f":"F12/$C12*100","v":0},{"$f":"G12/$C12*100","v":0}]
[null,"Higher Education Institution",2,{"$f":"IFERROR(GETPIVOTDATA(\"Provider Name\",'Pivot FE&S'!$A$5,\"Provider type\",\"Higher Education Institution\",\"Overall Effectiveness\",1),0)","v":2},{"$f":"IFERROR(GETPIVOTDATA(\"Provider Name\",'Pivot FE&S'!$A$5,\"Provider type\",$B13,\"Overall Effectiveness\",E$6),0)","v":0},{"$f":"IFERROR(GETPIVOTDATA(\"Provider Name\",'Pivot FE&S'!$A$5,\"Provider type\",$B13,\"Overall Effectiveness\",F$6),0)","v":0},{"$f":"IFERROR(GETPIVOTDATA(\"Provider Name\",'Pivot FE&S'!$A$5,\"Provider type\",$B13,\"Overall Effectiveness\",G$4),0)","v":0},null,{"$f":"B13&\" \"&\"(\"&C13&\")\"","v":"Higher Education Institution (2)"},{"$f":"D13/$C13*100","v":100},{"$f":"E13/$C13*100","v":0},{"$f":"F13/$C13*100","v":0},{"$f":"G13/$C13*100","v":0}]
[null,"Independent Learning Provider",114,{"$f":"IFERROR(GETPIVOTDATA(\"Provider Name\",'Pivot FE&S'!$A$5,\"Provider type\",\"Independent Learning Provider\",\"Overall Effectiveness\",1),0)","v":4},{"$f":"IFERROR(GETPIVOTDATA(\"Provider Name\",'Pivot FE&S'!$A$5,\"Provider type\",\"Independent Learning Provider\",\"Overall Effectiveness\",2),0)","v":53},{"$f":"IFERROR(GETPIVOTDATA(\"Provider Name\",'Pivot FE&S'!$A$5,\"Provider type\",\"Independent Learning Provider\",\"Overall Effectiveness\",3),0)","v":45},{"$f":"IFERROR(GETPIVOTDATA(\"Provider Name\",'Pivot FE&S'!$A$5,\"Provider type\",\"Independent Learning Provider\",\"Overall Effectiveness\",4),0)","v":12},null,"Independent Learning Provider (114)",3.5087719298245612,46.491228070175438,39.473684210526315,10.526315789473683]
[null,"National Careers Service",0,{"$f":"IFERROR(GETPIVOTDATA(\"Provider Name\",'Pivot FE&S'!$A$5,\"Provider type\",$B15,\"Overall Effectiveness\",D$4),0)","v":0},{"$f":"IFERROR(GETPIVOTDATA(\"Provider Name\",'Pivot FE&S'!$A$5,\"Provider type\",$B15,\"Overall Effectiveness\",E$6),0)","v":0},{"$f":"IFERROR(GETPIVOTDATA(\"Provider Name\",'Pivot FE&S'!$A$5,\"Provider type\",$B15,\"Overall Effectiveness\",F$6),0)","v":0},{"$f":"IFERROR(GETPIVOTDATA(\"Provider Name\",'Pivot FE&S'!$A$5,\"Provider type\",$B15,\"Overall Effectiveness\",G$4),0)","v":0},null,{"$f":"B15&\" \"&\"(\"&C15&\")\"","v":"National Careers Service (0)"},{"$f":"D15/$C15*100","v":{"$error":"#DIV/0!"}},{"$f":"E15/$C15*100","v":{"$error":"#DIV/0!"}},{"$f":"F15/$C15*100","v":{"$error":"#DIV/0!"}},{"$f":"G15/$C15*100","v":{"$error":"#DIV/0!"}}]
[null,"Independent Specialist College",11,{"$f":"IFERROR(GETPIVOTDATA(\"Provider Name\",'Pivot FE&S'!$A$5,\"Provider type\",$B16,\"Overall Effectiveness\",D$4),0)","v":0},{"$f":"IFERROR(GETPIVOTDATA(\"Provider Name\",'Pivot FE&S'!$A$5,\"Provider type\",\"Independent Specialist College\",\"Overall Effectiveness\",2),0)","v":5},{"$f":"IFERROR(GETPIVOTDATA(\"Provider Name\",'Pivot FE&S'!$A$5,\"Provider type\",\"Independent Specialist College\",\"Overall Effectiveness\",3),0)","v":4},{"$f":"IFERROR(GETPIVOTDATA(\"Provider Name\",'Pivot FE&S'!$A$5,\"Provider type\",\"Independent Specialist College\",\"Overall Effectiveness\",4),0)","v":2},null,"Independent Specialist College (11)",0,45.454545454545453,36.363636363636367,18.181818181818183]
[null,"Sixth Form College",15,{"$f":"IFERROR(GETPIVOTDATA(\"Provider Name\",'Pivot FE&S'!$A$5,\"Provider type\",$B17,\"Overall Effectiveness\",D$4),0)","v":0},{"$f":"IFERROR(GETPIVOTDATA(\"Provider Name\",'Pivot FE&S'!$A$5,\"Provider type\",\"Sixth Form College\",\"Overall Effectiveness\",2),0)","v":7},{"$f":"IFERROR(GETPIVOTDATA(\"Provider Name\",'Pivot FE&S'!$A$5,\"Provider type\",\"Sixth Form College\",\"Overall Effectiveness\",3),0)","v":5},{"$f":"IFERROR(GETPIVOTDATA(\"Provider Name\",'Pivot FE&S'!$A$5,\"Provider type\",\"Sixth Form College\",\"Overall Effectiveness\",4),0)","v":3},null,"Sixth Form College (15)",0,46.666666666666664,33.333333333333329,20]
[null,"Total",{"$f":"SUM(C7:C17)","v":272},{"$f":"SUM(D7:D17)","v":13},{"$f":"SUM(E7:E17)","v":120},{"$f":"SUM(F7:F17)","v":106},{"$f":"SUM(G7:G17)","v":33},null,{"$f":"B18&\" \"&\"(\"&C18&\")\"","v":"Total (272)"},{"$f":"D18/$C18*100","v":4.7794117647058822},{"$f":"E18/$C18*100","v":44.117647058823529},{"$f":"F18/$C18*100","v":38.970588235294116},{"$f":"G18/$C18*100","v":12.132352941176471}]
[]
[]
[null,null,null,null,null,null,null,null,null,null,null,null,null,"Where the number of inspections is small, percentages should be viewed with caution. "]
[null,null,null,null,null,null,null,null,null,null,null,null,null,"Percentages are rounded and may not add to 100."]
[null,null,null,null,null,null,null,null,null,null,null,null,null,null,null,null,null,null,null,"Source: Ofsted inspection data"]
[]
[]
[]
[null,"Outcomes for learners for providers inspected since 1 September 2014"]
[]
[null,"Provider type","Total number of inspections","Outcomes for learners"]
[null,null,null,"Outstanding","Good","Requires improvement","Inadequate",null,null,"Outstanding","Good","Requires improvement","Inadequate"]
[null,"Academy Converter",{"$f":"SUM(D31:G31)","v":1},{"$f":"IFERROR(GETPIVOTDATA(\"Provider Name\",'Pivot FE&S'!$A$23,\"Provider type\",$B31,\"Outcome for learners\",D$4),0)","v":0},{"$f":"IFERROR(GETPIVOTDATA(\"Provider Name\",'Pivot FE&S'!$A$23,\"Provider type\",$B31,\"Outcome for learners\",E$4),0)","v":0},{"$f":"IFERROR(GETPIVOTDATA(\"Provider Name\",'Pivot FE&S'!$A$23,\"Provider type\",$B31,\"Outcome for learners\",F$4),0)","v":1},{"$f":"IFERROR(GETPIVOTDATA(\"Provider Name\",'Pivot FE&S'!$A$23,\"Provider type\",$B31,\"Outcome for learners\",G$4),0)","v":0},null,{"$f":"B31&\" \"&\"(\"&C31&\")\"","v":"Academy Converter (1)"},{"$f":"D31/$C31*100","v":0},{"$f":"E31/$C31*100","v":0},100,0]
[null,"Community Learning and Skills",{"$f":"SUM(D32:G32)","v":60},{"$f":"IFERROR(GETPIVOTDATA(\"Provider Name\",'Pivot FE&S'!$A$21,\"Provider type\",\"Community Learning and Skills\",\"Outcome for Learners\",1),0)","v":2},{"$f":"IFERROR(GETPIVOTDATA(\"Provider Name\",'Pivot FE&S'!$A$21,\"Provider type\",\"Community Learning and Skills\",\"Outcome for Learners\",2),0)","v":32},{"$f":"IFERROR(GETPIVOTDATA(\"Provider Name\",'Pivot FE&S'!$A$21,\"Provider type\",\"Community Learning and Skills\",\"Outcome for Learners\",3),0)","v":22},{"$f":"IFERROR(GETPIVOTDATA(\"Provider Name\",'Pivot FE&S'!$A$21,\"Provider type\",\"Community Learning and Skills\",\"Outcome for Learners\",4),0)","v":4},null,{"$f":"B32&\" \"&\"(\"&C32&\")\"","v":"Community Learning and Skills (60)"},{"$f":"D32/$C32*100","v":3.3333333333333335},53.333333333333336,36.666666666666664,6.666666666666667]
[null,"Employer",{"$f":"SUM(D33:G33)","v":13},{"$f":"IFERROR(GETPIVOTDATA(\"Provider Name\",'Pivot FE&S'!$A$21,\"Provider type\",\"Employer\",\"Outcome for Learners\",1),0)","v":3},{"$f":"IFERROR(GETPIVOTDATA(\"Provider Name\",'Pivot FE&S'!$A$21,\"Provider type\",\"Employer\",\"Outcome for Learners\",2),0)","v":2},{"$f":"IFERROR(GETPIVOTDATA(\"Provider Name\",'Pivot FE&S'!$A$21,\"Provider type\",\"Employer\",\"Outcome for Learners\",3),0)","v":6},{"$f":"IFERROR(GETPIVOTDATA(\"Provider Name\",'Pivot FE&S'!$A$21,\"Provider type\",\"Employer\",\"Outcome for Learners\",4),0)","v":2},null,{"$f":"B33&\" \"&\"(\"&C33&\")\"","v":"Employer (13)"},23.076923076923077,15.384615384615385,46.153846153846153,15.384615384615385]
[null,"Free School - 16-19",{"$f":"SUM(D34:G34)","v":5},{"$f":"IFERROR(GETPIVOTDATA(\"Provider Name\",'Pivot FE&S'!$A$21,\"Provider type\",B$32,\"Outcome for Learners\",D$6),0)","v":0},{"$f":"IFERROR(GETPIVOTDATA(\"Provider Name\",'Pivot FE&S'!$A$21,\"Provider type\",\"Free School - 16-19\",\"Outcome for Learners\",2),0)","v":1},{"$f":"IFERROR(GETPIVOTDATA(\"Provider Name\",'Pivot FE&S'!$A$21,\"Provider type\",\"Free School - 16-19\",\"Outcome for Learners\",3),0)","v":2},{"$f":"IFERROR(GETPIVOTDATA(\"Provider Name\",'Pivot FE&S'!$A$21,\"Provider type\",\"Free School - 16-19\",\"Outcome for Learners\",4),0)","v":2},null,{"$f":"B34&\" \"&\"(\"&C34&\")\"","v":"Free School - 16-19 (5)"},0,20,40,40]
[null,"General Further Education/Tertiary College",48,{"$f":"IFERROR(GETPIVOTDATA(\"Provider Name\",'Pivot FE&S'!$A$21,\"Provider type\",\"General Further Education/Tertiary College\",\"Outcome for Learners\",1),0)","v":2},{"$f":"IFERROR(GETPIVOTDATA(\"Provider Name\",'Pivot FE&S'!$A$21,\"Provider type\",\"General Further Education/Tertiary College\",\"Outcome for Learners\",2),0)","v":11},{"$f":"IFERROR(GETPIVOTDATA(\"Provider Name\",'Pivot FE&S'!$A$21,\"Provider type\",\"General Further Education/Tertiary College\",\"Outcome for Learners\",3),0)","v":30},{"$f":"IFERROR(GETPIVOTDATA(\"Provider Name\",'Pivot FE&S'!$A$21,\"Provider type\",\"General Further Education/Tertiary College\",\"Outcome for Learners\",4),0)","v":5},null,"General Further Education/Tertiary College (48)",{"$f":"D35/$C35*100","v":4.1666666666666661},{"$f":"E35/$C35*100","v":22.916666666666664},{"$f":"F35/$C35*100","v":62.5},{"$f":"G35/$C35*100","v":10.416666666666668}]
[null,"Specialist Further Education",3,{"$f":"IFERROR(GETPIVOTDATA(\"Provider Name\",'Pivot FE&S'!$A$23,\"Provider type\",$B36,\"Outcome for learners\",D$4),0)","v":0},{"$f":"IFERROR(GETPIVOTDATA(\"Provider Name\",'Pivot FE&S'!$A$21,\"Provider type\",\"Specialist Further Education\",\"Outcome for Learners\",2),0)","v":3},{"$f":"IFERROR(GETPIVOTDATA(\"Provider Name\",'Pivot FE&S'!$A$23,\"Provider type\",$B36,\"Outcome for learners\",F$4),0)","v":0},{"$f":"IFERROR(GETPIVOTDATA(\"Provider Name\",'Pivot FE&S'!$A$23,\"Provider type\",$B36,\"Outcome for learners\",G$4),0)","v":0},null,{"$f":"B36&\" \"&\"(\"&C36&\")\"","v":"Specialist Further Education (3)"},{"$f":"D36/$C36*100","v":0},{"$f":"E36/$C36*100","v":100},{"$f":"F36/$C36*100","v":0},{"$f":"G36/$C36*100","v":0}]
[null,"Higher Education Institution",2,{"$f":"IFERROR(GETPIVOTDATA(\"Provider Name\",'Pivot FE&S'!$A$21,\"Provider type\",\"Higher Education Institution\",\"Outcome for Learners\",1),0)","v":2},{"$f":"IFERROR(GETPIVOTDATA(\"Provider Name\",'Pivot FE&S'!$A$23,\"Provider type\",$B37,\"Outcome for learners\",E$4),0)","v":0},{"$f":"IFERROR(GETPIVOTDATA(\"Provider Name\",'Pivot FE&S'!$A$23,\"Provider type\",$B37,\"Outcome for learners\",F$4),0)","v":0},{"$f":"IFERROR(GETPIVOTDATA(\"Provider Name\",'Pivot FE&S'!$A$23,\"Provider type\",$B37,\"Outcome for learners\",G$4),0)","v":0},null,{"$f":"B37&\" \"&\"(\"&C37&\")\"","v":"Higher Education Institution (2)"},{"$f":"D37/$C37*100","v":100},{"$f":"E37/$C37*100","v":0},{"$f":"F37/$C37*100","v":0},{"$f":"G37/$C37*100","v":0}]
[null,"Independent Learning Provider",114,{"$f":"IFERROR(GETPIVOTDATA(\"Provider Name\",'Pivot FE&S'!$A$21,\"Provider type\",\"Independent Learning Provider\",\"Outcome for Learners\",1),0)","v":4},{"$f":"IFERROR(GETPIVOTDATA(\"Provider Name\",'Pivot FE&S'!$A$21,\"Provider type\",\"Independent Learning Provider\",\"Outcome for Learners\",2),0)","v":58},{"$f":"IFERROR(GETPIVOTDATA(\"Provider Name\",'Pivot FE&S'!$A$21,\"Provider type\",\"Independent Learning Provider\",\"Outcome for Learners\",3),0)","v":41},{"$f":"IFERROR(GETPIVOTDATA(\"Provider Name\",'Pivot FE&S'!$A$21,\"Provider type\",\"Independent Learning Provider\",\"Outcome for Learners\",4),0)","v":11},null,"Independent Learning Provider (114)",3.5087719298245612,50.877192982456144,35.964912280701753,9.6491228070175428]
[null,"National Careers Service",0,{"$f":"IFERROR(GETPIVOTDATA(\"Provider Name\",'Pivot FE&S'!$A$23,\"Provider type\",$B39,\"Outcome for learners\",D$4),0)","v":0},{"$f":"IFERROR(GETPIVOTDATA(\"Provider Name\",'Pivot FE&S'!$A$23,\"Provider type\",$B39,\"Outcome for learners\",E$4),0)","v":0},{"$f":"IFERROR(GETPIVOTDATA(\"Provider Name\",'Pivot FE&S'!$A$23,\"Provider type\",$B39,\"Outcome for learners\",F$4),0)","v":0},{"$f":"IFERROR(GETPIVOTDATA(\"Provider Name\",'Pivot FE&S'!$A$23,\"Provider type\",$B39,\"Outcome for learners\",G$4),0)","v":0},null,{"$f":"B39&\" \"&\"(\"&C39&\")\"","v":"National Careers Service (0)"},{"$f":"D39/$C39*100","v":{"$error":"#DIV/0!"}},{"$f":"E39/$C39*100","v":{"$error":"#DIV/0!"}},{"$f":"F39/$C39*100","v":{"$error":"#DIV/0!"}},{"$f":"G39/$C39*100","v":{"$error":"#DIV/0!"}}]
[null,"Independent Specialist College",11,{"$f":"IFERROR(GETPIVOTDATA(\"Provider Name\",'Pivot FE&S'!$A$23,\"Provider type\",\"Independent Specialist College\",\"Outcome for learners\",D$4),0)","v":1},{"$f":"IFERROR(GETPIVOTDATA(\"Provider Name\",'Pivot FE&S'!$A$21,\"Provider type\",\"Independent Specialist College\",\"Outcome for Learners\",2),0)","v":5},{"$f":"IFERROR(GETPIVOTDATA(\"Provider Name\",'Pivot FE&S'!$A$21,\"Provider type\",\"Independent Specialist College\",\"Outcome for Learners\",3),0)","v":4},{"$f":"IFERROR(GETPIVOTDATA(\"Provider Name\",'Pivot FE&S'!$A$23,\"Provider type\",$B40,\"Outcome for learners\",G$4),0)","v":1},null,"Independent Specialist College (11)",9.0909090909090917,45.454545454545453,36.363636363636367,9.0909090909090917]
[null,"Sixth Form College",{"$f":"SUM(D41:G41)","v":15},{"$f":"IFERROR(GETPIVOTDATA(\"Provider Name\",'Pivot FE&S'!$A$23,\"Provider type\",$B41,\"Outcome for learners\",D$4),0)","v":0},{"$f":"IFERROR(GETPIVOTDATA(\"Provider Name\",'Pivot FE&S'!$A$21,\"Provider type\",\"Sixth Form College\",\"Outcome for Learners\",2),0)","v":7},{"$f":"IFERROR(GETPIVOTDATA(\"Provider Name\",'Pivot FE&S'!$A$21,\"Provider type\",\"Sixth Form College\",\"Outcome for Learners\",3),0)","v":5},{"$f":"IFERROR(GETPIVOTDATA(\"Provider Name\",'Pivot FE&S'!$A$21,\"Provider type\",\"Sixth Form College\",\"Outcome for Learners\",4),0)","v":3},null,"Sixth Form College (15)",{"$f":"D41/$C41*100","v":0},{"$f":"E41/$C41*100","v":46.666666666666664},33.333333333333329,20]
[null,"Total",{"$f":"SUM(C31:C41)","v":272},{"$f":"SUM(D31:D41)","v":14},{"$f":"SUM(E31:E41)","v":119},111,28,null,{"$f":"B42&\" \"&\"(\"&C42&\")\"","v":"Total (272)"},{"$f":"D42/$C42*100","v":5.1470588235294112},{"$f":"E42/$C42*100","v":43.75},{"$f":"F42/$C42*100","v":40.808823529411761},{"$f":"G42/$C42*100","v":10.294117647058822}]
[]
[]
[]
[null,null,null,null,null,null,null,null,null,null,null,null,null,"Where the number of inspections is small, percentages should be viewed with caution. "]
[null,null,null,null,null,null,null,null,null,null,null,null,null,"Percentages are rounded and may not add to 100."]
[null,null,null,null,null,null,null,null,null,null,null,null,null,null,null,null,null,null,null,"Source: Ofsted inspection data"]
[]
[]
[]
[null,"Teaching, learning and assessment for providers inspected since 1 September 2014"]
[]
[null,"Provider type","Total number of inspections","Teaching, learning and assessment "]
[null,null,null,"Outstanding","Good","Requires improvement","Inadequate",null,null,"Outstanding","Good","Requires improvement","Inadequate"]
[null,"Academy Converter",{"$f":"SUM(D56:G56)","v":1},{"$f":"IFERROR(GETPIVOTDATA(\"Provider Name\",'Pivot FE&S'!$A$45,\"Provider type\",$B56,\"Teaching\",D$4),0)","v":0},{"$f":"IFERROR(GETPIVOTDATA(\"Provider Name\",'Pivot FE&S'!$A$45,\"Provider type\",$B56,\"Teaching\",E$4),0)","v":0},{"$f":"IFERROR(GETPIVOTDATA(\"Provider Name\",'Pivot FE&S'!$A$45,\"Provider type\",$B56,\"Teaching\",F$4),0)","v":1},{"$f":"IFERROR(GETPIVOTDATA(\"Provider Name\",'Pivot FE&S'!$A$45,\"Provider type\",$B56,\"Teaching\",G$4),0)","v":0},null,{"$f":"B56&\" \"&\"(\"&C56&\")\"","v":"Academy Converter (1)"},{"$f":"D56/$C56*100","v":0},{"$f":"E56/$C56*100","v":0},100,0]
[null,"Community Learning and Skills",{"$f":"SUM(D57:G57)","v":60},{"$f":"IFERROR(GETPIVOTDATA(\"Provider Name\",'Pivot FE&S'!$A$42,\"Provider type\",\"Community Learning and Skills\",\"Teaching\",1),0)","v":2},{"$f":"IFERROR(GETPIVOTDATA(\"Provider Name\",'Pivot FE&S'!$A$42,\"Provider type\",\"Community Learning and Skills\",\"Teaching\",2),0)","v":35},{"$f":"IFERROR(GETPIVOTDATA(\"Provider Name\",'Pivot FE&S'!$A$42,\"Provider type\",\"Community Learning and Skills\",\"Teaching\",3),0)","v":20},{"$f":"IFERROR(GETPIVOTDATA(\"Provider Name\",'Pivot FE&S'!$A$42,\"Provider type\",\"Community Learning and Skills\",\"Teaching\",4),0)","v":3},null,"Community Learning and Skills (60)",{"$f":"D57/$C57*100","v":3.3333333333333335},58.333333333333336,33.333333333333329,5]
[null,"Employer",{"$f":"SUM(D58:G58)","v":13},{"$f":"IFERROR(GETPIVOTDATA(\"Provider Name\",'Pivot FE&S'!$A$42,\"Provider type\",\"Employer\",\"Teaching\",1),0)","v":3},{"$f":"IFERROR(GETPIVOTDATA(\"Provider Name\",'Pivot FE&S'!$A$42,\"Provider type\",\"Employer\",\"Teaching\",2),0)","v":4},{"$f":"IFERROR(GETPIVOTDATA(\"Provider Name\",'Pivot FE&S'!$A$42,\"Provider type\",\"Employer\",\"Teaching\",3),0)","v":4},{"$f":"IFERROR(GETPIVOTDATA(\"Provider Name\",'Pivot FE&S'!$A$42,\"Provider type\",\"Employer\",\"Teaching\",4),0)","v":2},null,"Employer (13)",23.076923076923077,30.76923076923077,30.76923076923077,15.384615384615385]
[null,"Free School - 16-19",{"$f":"SUM(D59:G59)","v":5},{"$f":"IFERROR(GETPIVOTDATA(\"Provider Name\",'Pivot FE&S'!$A$45,\"Provider type\",$B59,\"Teaching\",D$4),0)","v":0},{"$f":"IFERROR(GETPIVOTDATA(\"Provider Name\",'Pivot FE&S'!$A$42,\"Provider type\",\"Free School - 16-19\",\"Teaching\",2),0)","v":1},{"$f":"IFERROR(GETPIVOTDATA(\"Provider Name\",'Pivot FE&S'!$A$42,\"Provider type\",\"Free School - 16-19\",\"Teaching\",3),0)","v":2},{"$f":"IFERROR(GETPIVOTDATA(\"Provider Name\",'Pivot FE&S'!$A$42,\"Provider type\",\"Free School - 16-19\",\"Teaching\",4),0)","v":2},null,"Free School - 16-19 (5)",0,20,40,40]
[null,"General Further Education/Tertiary College",48,{"$f":"IFERROR(GETPIVOTDATA(\"Provider Name\",'Pivot FE&S'!$A$42,\"Provider type\",\"General Further Education/Tertiary College\",\"Teaching\",1),0)","v":2},{"$f":"IFERROR(GETPIVOTDATA(\"Provider Name\",'Pivot FE&S'!$A$42,\"Provider type\",\"General Further Education/Tertiary College\",\"Teaching\",2),0)","v":17},{"$f":"IFERROR(GETPIVOTDATA(\"Provider Name\",'Pivot FE&S'!$A$42,\"Provider type\",\"General Further Education/Tertiary College\",\"Teaching\",3),0)","v":25},{"$f":"IFERROR(GETPIVOTDATA(\"Provider Name\",'Pivot FE&S'!$A$42,\"Provider type\",\"General Further Education/Tertiary College\",\"Teaching\",4),0)","v":4},null,"General Further Education/Tertiary College (48)",{"$f":"D60/$C60*100","v":4.1666666666666661},35.416666666666671,{"$f":"F60/$C60*100","v":52.083333333333336},8.3333333333333321]
[null,"Specialist Further Education",3,{"$f":"IFERROR(GETPIVOTDATA(\"Provider Name\",'Pivot FE&S'!$A$45,\"Provider type\",$B61,\"Teaching\",D$4),0)","v":0},{"$f":"IFERROR(GETPIVOTDATA(\"Provider Name\",'Pivot FE&S'!$A$42,\"Provider type\",\"Specialist Further Education\",\"Teaching\",2),0)","v":3},{"$f":"IFERROR(GETPIVOTDATA(\"Provider Name\",'Pivot FE&S'!$A$45,\"Provider type\",$B61,\"Teaching\",F$4),0)","v":0},{"$f":"IFERROR(GETPIVOTDATA(\"Provider Name\",'Pivot FE&S'!$A$45,\"Provider type\",$B61,\"Teaching\",G$4),0)","v":0},null,{"$f":"B61&\" \"&\"(\"&C61&\")\"","v":"Specialist Further Education (3)"},{"$f":"D61/$C61*100","v":0},{"$f":"E61/$C61*100","v":100},{"$f":"F61/$C61*100","v":0},{"$f":"G61/$C61*100","v":0}]
[null,"Higher Education Institution",2,{"$f":"IFERROR(GETPIVOTDATA(\"Provider Name\",'Pivot FE&S'!$A$42,\"Provider type\",\"Higher Education Institution\",\"Teaching\",1),0)","v":2},{"$f":"IFERROR(GETPIVOTDATA(\"Provider Name\",'Pivot FE&S'!$A$45,\"Provider type\",$B62,\"Teaching\",E$4),0)","v":0},{"$f":"IFERROR(GETPIVOTDATA(\"Provider Name\",'Pivot FE&S'!$A$45,\"Provider type\",$B62,\"Teaching\",F$4),0)","v":0},{"$f":"IFERROR(GETPIVOTDATA(\"Provider Name\",'Pivot FE&S'!$A$45,\"Provider type\",$B62,\"Teaching\",G$4),0)","v":0},null,{"$f":"B62&\" \"&\"(\"&C62&\")\"","v":"Higher Education Institution (2)"},{"$f":"D62/$C62*100","v":100},{"$f":"E62/$C62*100","v":0},{"$f":"F62/$C62*100","v":0},{"$f":"G62/$C62*100","v":0}]
[null,"Independent Learning Provider",114,{"$f":"IFERROR(GETPIVOTDATA(\"Provider Name\",'Pivot FE&S'!$A$42,\"Provider type\",\"Independent Learning Provider\",\"Teaching\",1),0)","v":4},{"$f":"IFERROR(GETPIVOTDATA(\"Provider Name\",'Pivot FE&S'!$A$42,\"Provider type\",\"Independent Learning Provider\",\"Teaching\",2),0)","v":59},{"$f":"IFERROR(GETPIVOTDATA(\"Provider Name\",'Pivot FE&S'!$A$42,\"Provider type\",\"Independent Learning Provider\",\"Teaching\",3),0)","v":40},{"$f":"IFERROR(GETPIVOTDATA(\"Provider Name\",'Pivot FE&S'!$A$42,\"Provider type\",\"Independent Learning Provider\",\"Teaching\",4),0)","v":11},null,"Independent Learning Provider (114)",3.5087719298245612,51.754385964912288,35.087719298245609,9.6491228070175428]
[null,"National Careers Service",0,{"$f":"IFERROR(GETPIVOTDATA(\"Provider Name\",'Pivot FE&S'!$A$45,\"Provider type\",$B64,\"Teaching\",D$4),0)","v":0},{"$f":"IFERROR(GETPIVOTDATA(\"Provider Name\",'Pivot FE&S'!$A$45,\"Provider type\",$B64,\"Teaching\",E$4),0)","v":0},{"$f":"IFERROR(GETPIVOTDATA(\"Provider Name\",'Pivot FE&S'!$A$45,\"Provider type\",$B64,\"Teaching\",F$4),0)","v":0},{"$f":"IFERROR(GETPIVOTDATA(\"Provider Name\",'Pivot FE&S'!$A$45,\"Provider type\",$B64,\"Teaching\",G$4),0)","v":0},null,{"$f":"B64&\" \"&\"(\"&C64&\")\"","v":"National Careers Service (0)"},{"$f":"D64/$C64*100","v":{"$error":"#DIV/0!"}},{"$f":"E64/$C64*100","v":{"$error":"#DIV/0!"}},{"$f":"F64/$C64*100","v":{"$error":"#DIV/0!"}},{"$f":"G64/$C64*100","v":{"$error":"#DIV/0!"}}]
[null,"Independent Specialist College",11,{"$f":"IFERROR(GETPIVOTDATA(\"Provider Name\",'Pivot FE&S'!$A$45,\"Provider type\",$B65,\"Teaching\",D$4),0)","v":0},{"$f":"IFERROR(GETPIVOTDATA(\"Provider Name\",'Pivot FE&S'!$A$42,\"Provider type\",\"Independent Specialist College\",\"Teaching\",2),0)","v":5},{"$f":"IFERROR(GETPIVOTDATA(\"Provider Name\",'Pivot FE&S'!$A$42,\"Provider type\",\"Independent Specialist College\",\"Teaching\",3),0)","v":4},{"$f":"IFERROR(GETPIVOTDATA(\"Provider Name\",'Pivot FE&S'!$A$42,\"Provider type\",\"Independent Specialist College\",\"Teaching\",4),0)","v":2},null,"Independent Specialist College (11)",0,45.454545454545453,36.363636363636367,18.181818181818183]
[null,"Sixth Form College",15,{"$f":"IFERROR(GETPIVOTDATA(\"Provider Name\",'Pivot FE&S'!$A$45,\"Provider type\",$B66,\"Teaching\",D$4),0)","v":0},{"$f":"IFERROR(GETPIVOTDATA(\"Provider Name\",'Pivot FE&S'!$A$42,\"Provider type\",\"Sixth Form College\",\"Teaching\",2),0)","v":7},{"$f":"IFERROR(GETPIVOTDATA(\"Provider Name\",'Pivot FE&S'!$A$42,\"Provider type\",\"Sixth Form College\",\"Teaching\",3),0)","v":6},{"$f":"IFERROR(GETPIVOTDATA(\"Provider Name\",'Pivot FE&S'!$A$42,\"Provider type\",\"Sixth Form College\",\"Teaching\",4),0)","v":2},null,"Sixth Form College (15)",0,46.666666666666664,40,13.333333333333334]
[null,"Total",{"$f":"SUM(C56:C66)","v":272},{"$f":"SUM(D56:D66)","v":13},131,102,26,null,"Total (272)",{"$f":"D67/$C67*100","v":4.7794117647058822},48.161764705882355,37.5,9.5588235294117645]
[]
[]
[]
[null,null,null,null,null,null,null,null,null,null,null,null,null,"Where the number of inspections is small, percentages should be viewed with caution. "]
[null,null,null,null,null,null,null,null,null,null,null,null,null,"Percentages are rounded and may not add to 100."]
[null,null,null,null,null,null,null,null,null,null,null,null,null,null,null,null,null,null,null,"Source: Ofsted inspection data"]
[]
[]
[null,"Leadership and management for providers inspected since 1 September 2014"]
[]
[null,"Provider type","Total number of inspections","Leadership and management"]
[null,null,null,"Outstanding","Good","Requires improvement","Inadequate",null,null,"Outstanding","Good","Requires improvement","Inadequate"]
[null,"Academy Converter",{"$f":"SUM(D80:G80)","v":1},{"$f":"IFERROR(GETPIVOTDATA(\"Provider Name\",'Pivot FE&S'!$A$63,\"Provider type\",$B80,\"Leadership and management\",D$4),0)","v":0},{"$f":"IFERROR(GETPIVOTDATA(\"Provider Name\",'Pivot FE&S'!$A$63,\"Provider type\",$B80,\"Leadership and management\",E$4),0)","v":0},{"$f":"IFERROR(GETPIVOTDATA(\"Provider Name\",'Pivot FE&S'!$A$63,\"Provider type\",$B80,\"Leadership and management\",F$4),0)","v":1},{"$f":"IFERROR(GETPIVOTDATA(\"Provider Name\",'Pivot FE&S'!$A$63,\"Provider type\",$B80,\"Leadership and management\",G$4),0)","v":0},null,{"$f":"B80&\" \"&\"(\"&C80&\")\"","v":"Academy Converter (1)"},{"$f":"D80/$C80*100","v":0},{"$f":"E80/$C80*100","v":0},{"$f":"F80/$C80*100","v":100},{"$f":"G80/$C80*100","v":0}]
[null,"Community Learning and Skills",{"$f":"SUM(D81:G81)","v":60},{"$f":"IFERROR(GETPIVOTDATA(\"Provider Name\",'Pivot FE&S'!$A$63,\"Provider type\",\"Community Learning and Skills\",\"Leadership and Management\",1),0)","v":4},{"$f":"IFERROR(GETPIVOTDATA(\"Provider Name\",'Pivot FE&S'!$A$63,\"Provider type\",\"Community Learning and Skills\",\"Leadership and Management\",2),0)","v":31},{"$f":"IFERROR(GETPIVOTDATA(\"Provider Name\",'Pivot FE&S'!$A$63,\"Provider type\",\"Community Learning and Skills\",\"Leadership and Management\",3),0)","v":18},{"$f":"IFERROR(GETPIVOTDATA(\"Provider Name\",'Pivot FE&S'!$A$63,\"Provider type\",\"Community Learning and Skills\",\"Leadership and Management\",4),0)","v":7},null,"Community Learning and Skills (60)",6.666666666666667,51.666666666666671,30,11.666666666666666]
[null,"Employer",{"$f":"SUM(D82:G82)","v":13},{"$f":"IFERROR(GETPIVOTDATA(\"Provider Name\",'Pivot FE&S'!$A$63,\"Provider type\",\"Employer\",\"Leadership and Management\",1),0)","v":3},{"$f":"IFERROR(GETPIVOTDATA(\"Provider Name\",'Pivot FE&S'!$A$63,\"Provider type\",\"Employer\",\"Leadership and Management\",2),0)","v":4},{"$f":"IFERROR(GETPIVOTDATA(\"Provider Name\",'Pivot FE&S'!$A$63,\"Provider type\",\"Employer\",\"Leadership and Management\",3),0)","v":4},{"$f":"IFERROR(GETPIVOTDATA(\"Provider Name\",'Pivot FE&S'!$A$63,\"Provider type\",\"Employer\",\"Leadership and Management\",4),0)","v":2},null,"Employer (13)",23.076923076923077,30.76923076923077,30.76923076923077,15.384615384615385]
[null,"Free School - 16-19",{"$f":"SUM(D83:G83)","v":5},{"$f":"IFERROR(GETPIVOTDATA(\"Provider Name\",'Pivot FE&S'!$A$63,\"Provider type\",$B83,\"Leadership and management\",D$4),0)","v":0},{"$f":"IFERROR(GETPIVOTDATA(\"Provider Name\",'Pivot FE&S'!$A$63,\"Provider type\",\"Free School - 16-19\",\"Leadership and Management\",2),0)","v":1},{"$f":"IFERROR(GETPIVOTDATA(\"Provider Name\",'Pivot FE&S'!$A$63,\"Provider type\",\"Free School - 16-19\",\"Leadership and Management\",3),0)","v":2},{"$f":"IFERROR(GETPIVOTDATA(\"Provider Name\",'Pivot FE&S'!$A$63,\"Provider type\",\"Free School - 16-19\",\"Leadership and Management\",4),0)","v":2},null,"Free School - 16-19 (5)",0,20,40,40]
[null,"General Further Education/Tertiary College",48,{"$f":"IFERROR(GETPIVOTDATA(\"Provider Name\",'Pivot FE&S'!$A$63,\"Provider type\",\"General Further Education/Tertiary College\",\"Leadership and Management\",1),0)","v":3},{"$f":"IFERROR(GETPIVOTDATA(\"Provider Name\",'Pivot FE&S'!$A$63,\"Provider type\",\"General Further Education/Tertiary College\",\"Leadership and Management\",2),0)","v":18},{"$f":"IFERROR(GETPIVOTDATA(\"Provider Name\",'Pivot FE&S'!$A$63,\"Provider type\",\"General Further Education/Tertiary College\",\"Leadership and Management\",3),0)","v":22},{"$f":"IFERROR(GETPIVOTDATA(\"Provider Name\",'Pivot FE&S'!$A$63,\"Provider type\",\"General Further Education/Tertiary College\",\"Leadership and Management\",4),0)","v":5},null,"General Further Education/Tertiary College (48)",6.25,37.5,45.833333333333329,10.416666666666668]
[null,"Specialist Further Education",3,{"$f":"IFERROR(GETPIVOTDATA(\"Provider Name\",'Pivot FE&S'!$A$63,\"Provider type\",$B85,\"Leadership and management\",D$4),0)","v":0},{"$f":"IFERROR(GETPIVOTDATA(\"Provider Name\",'Pivot FE&S'!$A$63,\"Provider type\",\"Specialist Further Education\",\"Leadership and Management\",2),0)","v":2},{"$f":"IFERROR(GETPIVOTDATA(\"Provider Name\",'Pivot FE&S'!$A$63,\"Provider type\",\"Specialist Further Education\",\"Leadership and Management\",3),0)","v":1},{"$f":"IFERROR(GETPIVOTDATA(\"Provider Name\",'Pivot FE&S'!$A$63,\"Provider type\",\"Specialist Further Education\",\"Leadership and Management\",4),0)","v":0},null,"Specialist Further Education (3)",0,66.666666666666657,33.333333333333329,0]
[null,"Higher Education Institution",2,{"$f":"IFERROR(GETPIVOTDATA(\"Provider Name\",'Pivot FE&S'!$A$63,\"Provider type\",\"Higher Education Institution\",\"Leadership and Management\",1),0)","v":2},{"$f":"IFERROR(GETPIVOTDATA(\"Provider Name\",'Pivot FE&S'!$A$63,\"Provider type\",$B86,\"Leadership and management\",E$4),0)","v":0},{"$f":"IFERROR(GETPIVOTDATA(\"Provider Name\",'Pivot FE&S'!$A$63,\"Provider type\",$B86,\"Leadership and management\",F$4),0)","v":0},{"$f":"IFERROR(GETPIVOTDATA(\"Provider Name\",'Pivot FE&S'!$A$63,\"Provider type\",$B86,\"Leadership and management\",G$4),0)","v":0},null,"Higher Education Institution (2)",100,0,0,0]
[null,"Independent Learning Provider",114,{"$f":"IFERROR(GETPIVOTDATA(\"Provider Name\",'Pivot FE&S'!$A$63,\"Provider type\",\"Independent Learning Provider\",\"Leadership and Management\",1),0)","v":5},{"$f":"IFERROR(GETPIVOTDATA(\"Provider Name\",'Pivot FE&S'!$A$63,\"Provider type\",\"Independent Learning Provider\",\"Leadership and Management\",2),0)","v":52},{"$f":"IFERROR(GETPIVOTDATA(\"Provider Name\",'Pivot FE&S'!$A$63,\"Provider type\",\"Independent Learning Provider\",\"Leadership and Management\",3),0)","v":45},{"$f":"IFERROR(GETPIVOTDATA(\"Provider Name\",'Pivot FE&S'!$A$63,\"Provider type\",\"Independent Learning Provider\",\"Leadership and Management\",4),0)","v":12},null,"Independent Learning Provider (114)",4.3859649122807012,45.614035087719294,39.473684210526315,10.526315789473683]
[null,"National Careers Service",0,{"$f":"IFERROR(GETPIVOTDATA(\"Provider Name\",'Pivot FE&S'!$A$63,\"Provider type\",$B88,\"Leadership and management\",D$4),0)","v":0},{"$f":"IFERROR(GETPIVOTDATA(\"Provider Name\",'Pivot FE&S'!$A$63,\"Provider type\",$B88,\"Leadership and management\",E$4),0)","v":0},{"$f":"IFERROR(GETPIVOTDATA(\"Provider Name\",'Pivot FE&S'!$A$63,\"Provider type\",$B88,\"Leadership and management\",F$4),0)","v":0},{"$f":"IFERROR(GETPIVOTDATA(\"Provider Name\",'Pivot FE&S'!$A$63,\"Provider type\",$B88,\"Leadership and management\",G$4),0)","v":0},null,{"$f":"B88&\" \"&\"(\"&C88&\")\"","v":"National Careers Service (0)"},{"$f":"D88/$C88*100","v":{"$error":"#DIV/0!"}},{"$error":"#DIV/0!"},{"$error":"#DIV/0!"},{"$error":"#DIV/0!"}]
[null,"Independent Specialist College",11,{"$f":"IFERROR(GETPIVOTDATA(\"Provider Name\",'Pivot FE&S'!$A$63,\"Provider type\",$B89,\"Leadership and management\",D$4),0)","v":0},{"$f":"IFERROR(GETPIVOTDATA(\"Provider Name\",'Pivot FE&S'!$A$63,\"Provider type\",\"Independent Specialist College\",\"Leadership and Management\",2),0)","v":5},{"$f":"IFERROR(GETPIVOTDATA(\"Provider Name\",'Pivot FE&S'!$A$63,\"Provider type\",\"Independent Specialist College\",\"Leadership and Management\",3),0)","v":4},{"$f":"IFERROR(GETPIVOTDATA(\"Provider Name\",'Pivot FE&S'!$A$63,\"Provider type\",\"Independent Specialist College\",\"Leadership and Management\",4),0)","v":2},null,{"$f":"B89&\" \"&\"(\"&C89&\")\"","v":"Independent Specialist College (11)"},0,45.454545454545453,36.363636363636367,18.181818181818183]
[null,"Sixth Form College",15,{"$f":"IFERROR(GETPIVOTDATA(\"Provider Name\",'Pivot FE&S'!$A$63,\"Provider type\",\"Sixth Form College\",\"Leadership and Management\",1),0)","v":1},{"$f":"IFERROR(GETPIVOTDATA(\"Provider Name\",'Pivot FE&S'!$A$63,\"Provider type\",\"Sixth Form College\",\"Leadership and Management\",2),0)","v":6},{"$f":"IFERROR(GETPIVOTDATA(\"Provider Name\",'Pivot FE&S'!$A$63,\"Provider type\",\"Sixth Form College\",\"Leadership and Management\",3),0)","v":5},{"$f":"IFERROR(GETPIVOTDATA(\"Provider Name\",'Pivot FE&S'!$A$63,\"Provider type\",\"Sixth Form College\",\"Leadership and Management\",4),0)","v":3},null,{"$f":"B90&\" \"&\"(\"&C90&\")\"","v":"Sixth Form College (15)"},6.666666666666667,40,33.333333333333329,20]
[null,"Total",{"$f":"SUM(C80:C90)","v":272},{"$f":"SUM(D80:D90)","v":18},{"$f":"SUM(E80:E90)","v":119},{"$f":"SUM(F80:F90)","v":102},{"$f":"SUM(G80:G90)","v":33},null,{"$f":"B91&\" \"&\"(\"&C91&\")\"","v":"Total (272)"},6.6176470588235299,43.75,37.5,12.132352941176471]
[]
[]
[]
[]
[]
[null,null,null,null,null,null,null,null,null,null,null,null,null,"Where the number of inspections is small, percentages should be viewed with caution. "]
[null,null,null,null,null,null,null,null,null,null,null,null,null,"Percentages are rounded and may not add to 100.",null,null,null,null,null,"Source: Ofsted inspection data"]
[]
[null,"Sector subject area judgements for providers inspected since 1 September 2014"]
[]
[null,"Sector subject area","Total number of judgements made","Overall sector subject area judgements"]
[null,null,null,"Outstanding","Good","Requires improvement","Inadequate"]
[null,"Accounting and Finance",{"$f":"SUM(D104:G104)","v":19},{"$f":"IFERROR(GETPIVOTDATA(\"URN\",'Pivot FE&S'!$A$107,\"SSA 2 descriptor\",$B104,\"Outcome\",1),0)","v":2},{"$f":"IFERROR(GETPIVOTDATA(\"URN\",'Pivot FE&S'!$A$107,\"SSA 2 descriptor\",$B104,\"Outcome\",2),0)","v":8},{"$f":"IFERROR(GETPIVOTDATA(\"URN\",'Pivot FE&S'!$A$107,\"SSA 2 descriptor\",$B104,\"Outcome\",3),0)","v":8},{"$f":"IFERROR(GETPIVOTDATA(\"URN\",'Pivot FE&S'!$A$107,\"SSA 2 descriptor\",$B104,\"Outcome\",4),0)","v":1},null,{"$f":"H104-C104","v":-19}]
[null,"Administration",{"$f":"SUM(D105:G105)","v":84},{"$f":"IFERROR(GETPIVOTDATA(\"URN\",'Pivot FE&S'!$A$107,\"SSA 2 descriptor\",$B105,\"Outcome\",1),0)","v":1},{"$f":"IFERROR(GETPIVOTDATA(\"URN\",'Pivot FE&S'!$A$107,\"SSA 2 descriptor\",$B105,\"Outcome\",2),0)","v":47},{"$f":"IFERROR(GETPIVOTDATA(\"URN\",'Pivot FE&S'!$A$107,\"SSA 2 descriptor\",$B105,\"Outcome\",3),0)","v":34},{"$f":"IFERROR(GETPIVOTDATA(\"URN\",'Pivot FE&S'!$A$107,\"SSA 2 descriptor\",$B105,\"Outcome\",4),0)","v":2},null,-84]
[null,"Agriculture",4,{"$f":"IFERROR(GETPIVOTDATA(\"URN\",'Pivot FE&S'!$A$107,\"SSA 2 descriptor\",$B106,\"Outcome\",1),0)","v":0},{"$f":"IFERROR(GETPIVOTDATA(\"URN\",'Pivot FE&S'!$A$107,\"SSA 2 descriptor\",$B106,\"Outcome\",2),0)","v":2},{"$f":"IFERROR(GETPIVOTDATA(\"URN\",'Pivot FE&S'!$A$107,\"SSA 2 descriptor\",$B106,\"Outcome\",3),0)","v":2},{"$f":"IFERROR(GETPIVOTDATA(\"URN\",'Pivot FE&S'!$A$107,\"SSA 2 descriptor\",$B106,\"Outcome\",4),0)","v":0},null,-4]
[null,"Animal care",2,{"$f":"IFERROR(GETPIVOTDATA(\"URN\",'Pivot FE&S'!$A$107,\"SSA 2 descriptor\",$B107,\"Outcome\",1),0)","v":0},{"$f":"IFERROR(GETPIVOTDATA(\"URN\",'Pivot FE&S'!$A$107,\"SSA 2 descriptor\",$B107,\"Outcome\",2),0)","v":2},{"$f":"IFERROR(GETPIVOTDATA(\"URN\",'Pivot FE&S'!$A$107,\"SSA 2 descriptor\",$B107,\"Outcome\",3),0)","v":0},{"$f":"IFERROR(GETPIVOTDATA(\"URN\",'Pivot FE&S'!$A$107,\"SSA 2 descriptor\",$B107,\"Outcome\",4),0)","v":0},null,-2]
[null,"Animal Care and Veterinary Science",5,{"$f":"IFERROR(GETPIVOTDATA(\"URN\",'Pivot FE&S'!$A$107,\"SSA 2 descriptor\",$B108,\"Outcome\",1),0)","v":0},{"$f":"IFERROR(GETPIVOTDATA(\"URN\",'Pivot FE&S'!$A$107,\"SSA 2 descriptor\",$B108,\"Outcome\",2),0)","v":5},{"$f":"IFERROR(GETPIVOTDATA(\"URN\",'Pivot FE&S'!$A$107,\"SSA 2 descriptor\",$B108,\"Outcome\",3),0)","v":0},{"$f":"IFERROR(GETPIVOTDATA(\"URN\",'Pivot FE&S'!$A$107,\"SSA 2 descriptor\",$B108,\"Outcome\",4),0)","v":0},null,-5]
[null,"Beauty Therapy",2,{"$f":"IFERROR(GETPIVOTDATA(\"URN\",'Pivot FE&S'!$A$107,\"SSA 2 descriptor\",$B109,\"Outcome\",1),0)","v":0},{"$f":"IFERROR(GETPIVOTDATA(\"URN\",'Pivot FE&S'!$A$107,\"SSA 2 descriptor\",$B109,\"Outcome\",2),0)","v":2},{"$f":"IFERROR(GETPIVOTDATA(\"URN\",'Pivot FE&S'!$A$107,\"SSA 2 descriptor\",$B109,\"Outcome\",3),0)","v":0},{"$f":"IFERROR(GETPIVOTDATA(\"URN\",'Pivot FE&S'!$A$107,\"SSA 2 descriptor\",$B109,\"Outcome\",4),0)","v":0},null,-2]
[null,"Building and Construction",16,{"$f":"IFERROR(GETPIVOTDATA(\"URN\",'Pivot FE&S'!$A$107,\"SSA 2 descriptor\",$B110,\"Outcome\",1),0)","v":0},{"$f":"IFERROR(GETPIVOTDATA(\"URN\",'Pivot FE&S'!$A$107,\"SSA 2 descriptor\",$B110,\"Outcome\",2),0)","v":6},{"$f":"IFERROR(GETPIVOTDATA(\"URN\",'Pivot FE&S'!$A$107,\"SSA 2 descriptor\",$B110,\"Outcome\",3),0)","v":7},{"$f":"IFERROR(GETPIVOTDATA(\"URN\",'Pivot FE&S'!$A$107,\"SSA 2 descriptor\",$B110,\"Outcome\",4),0)","v":3},null,-16]
[null,"Building Services",6,{"$f":"IFERROR(GETPIVOTDATA(\"URN\",'Pivot FE&S'!$A$107,\"SSA 2 descriptor\",$B111,\"Outcome\",1),0)","v":0},{"$f":"IFERROR(GETPIVOTDATA(\"URN\",'Pivot FE&S'!$A$107,\"SSA 2 descriptor\",$B111,\"Outcome\",2),0)","v":4},{"$f":"IFERROR(GETPIVOTDATA(\"URN\",'Pivot FE&S'!$A$107,\"SSA 2 descriptor\",$B111,\"Outcome\",3),0)","v":1},{"$f":"IFERROR(GETPIVOTDATA(\"URN\",'Pivot FE&S'!$A$107,\"SSA 2 descriptor\",$B111,\"Outcome\",4),0)","v":1},null,-6]
[null,"Business",9,{"$f":"IFERROR(GETPIVOTDATA(\"URN\",'Pivot FE&S'!$A$107,\"SSA 2 descriptor\",$B112,\"Outcome\",1),0)","v":1},{"$f":"IFERROR(GETPIVOTDATA(\"URN\",'Pivot FE&S'!$A$107,\"SSA 2 descriptor\",$B112,\"Outcome\",2),0)","v":4},{"$f":"IFERROR(GETPIVOTDATA(\"URN\",'Pivot FE&S'!$A$107,\"SSA 2 descriptor\",$B112,\"Outcome\",3),0)","v":4},{"$f":"IFERROR(GETPIVOTDATA(\"URN\",'Pivot FE&S'!$A$107,\"SSA 2 descriptor\",$B112,\"Outcome\",4),0)","v":0},null,-9]
[null,"Business Management",56,{"$f":"IFERROR(GETPIVOTDATA(\"URN\",'Pivot FE&S'!$A$107,\"SSA 2 descriptor\",$B113,\"Outcome\",1),0)","v":0},{"$f":"IFERROR(GETPIVOTDATA(\"URN\",'Pivot FE&S'!$A$107,\"SSA 2 descriptor\",$B113,\"Outcome\",2),0)","v":30},{"$f":"IFERROR(GETPIVOTDATA(\"URN\",'Pivot FE&S'!$A$107,\"SSA 2 descriptor\",$B113,\"Outcome\",3),0)","v":23},{"$f":"IFERROR(GETPIVOTDATA(\"URN\",'Pivot FE&S'!$A$107,\"SSA 2 descriptor\",$B113,\"Outcome\",4),0)","v":3},null,-56]
[null,"Call centre operations",1,{"$f":"IFERROR(GETPIVOTDATA(\"URN\",'Pivot FE&S'!$A$107,\"SSA 2 descriptor\",$B114,\"Outcome\",1),0)","v":0},{"$f":"IFERROR(GETPIVOTDATA(\"URN\",'Pivot FE&S'!$A$107,\"SSA 2 descriptor\",$B114,\"Outcome\",2),0)","v":0},{"$f":"IFERROR(GETPIVOTDATA(\"URN\",'Pivot FE&S'!$A$107,\"SSA 2 descriptor\",$B114,\"Outcome\",3),0)","v":0},{"$f":"IFERROR(GETPIVOTDATA(\"URN\",'Pivot FE&S'!$A$107,\"SSA 2 descriptor\",$B114,\"Outcome\",4),0)","v":1},null,-1]
[null,"Communications Technology",1,{"$f":"IFERROR(GETPIVOTDATA(\"URN\",'Pivot FE&S'!$A$107,\"SSA 2 descriptor\",$B115,\"Outcome\",1),0)","v":0},{"$f":"IFERROR(GETPIVOTDATA(\"URN\",'Pivot FE&S'!$A$107,\"SSA 2 descriptor\",$B115,\"Outcome\",2),0)","v":1},{"$f":"IFERROR(GETPIVOTDATA(\"URN\",'Pivot FE&S'!$A$107,\"SSA 2 descriptor\",$B115,\"Outcome\",3),0)","v":0},{"$f":"IFERROR(GETPIVOTDATA(\"URN\",'Pivot FE&S'!$A$107,\"SSA 2 descriptor\",$B115,\"Outcome\",4),0)","v":0},null,-1]
[null,"Community Development",1,{"$f":"IFERROR(GETPIVOTDATA(\"URN\",'Pivot FE&S'!$A$107,\"SSA 2 descriptor\",$B116,\"Outcome\",1),0)","v":0},{"$f":"IFERROR(GETPIVOTDATA(\"URN\",'Pivot FE&S'!$A$107,\"SSA 2 descriptor\",$B116,\"Outcome\",2),0)","v":0},{"$f":"IFERROR(GETPIVOTDATA(\"URN\",'Pivot FE&S'!$A$107,\"SSA 2 descriptor\",$B116,\"Outcome\",3),0)","v":1},{"$f":"IFERROR(GETPIVOTDATA(\"URN\",'Pivot FE&S'!$A$107,\"SSA 2 descriptor\",$B116,\"Outcome\",4),0)","v":0},null,-1]
[null,"Community Learning",11,{"$f":"IFERROR(GETPIVOTDATA(\"URN\",'Pivot FE&S'!$A$107,\"SSA 2 descriptor\",$B117,\"Outcome\",1),0)","v":0},{"$f":"IFERROR(GETPIVOTDATA(\"URN\",'Pivot FE&S'!$A$107,\"SSA 2 descriptor\",$B117,\"Outcome\",2),0)","v":7},{"$f":"IFERROR(GETPIVOTDATA(\"URN\",'Pivot FE&S'!$A$107,\"SSA 2 descriptor\",$B117,\"Outcome\",3),0)","v":3},{"$f":"IFERROR(GETPIVOTDATA(\"URN\",'Pivot FE&S'!$A$107,\"SSA 2 descriptor\",$B117,\"Outcome\",4),0)","v":1},null,-11]
[null,"Construction Crafts",10,{"$f":"IFERROR(GETPIVOTDATA(\"URN\",'Pivot FE&S'!$A$107,\"SSA 2 descriptor\",$B118,\"Outcome\",1),0)","v":0},{"$f":"IFERROR(GETPIVOTDATA(\"URN\",'Pivot FE&S'!$A$107,\"SSA 2 descriptor\",$B118,\"Outcome\",2),0)","v":5},{"$f":"IFERROR(GETPIVOTDATA(\"URN\",'Pivot FE&S'!$A$107,\"SSA 2 descriptor\",$B118,\"Outcome\",3),0)","v":5},{"$f":"IFERROR(GETPIVOTDATA(\"URN\",'Pivot FE&S'!$A$107,\"SSA 2 descriptor\",$B118,\"Outcome\",4),0)","v":0},null,-10]
[null,"Customer service",12,{"$f":"IFERROR(GETPIVOTDATA(\"URN\",'Pivot FE&S'!$A$107,\"SSA 2 descriptor\",$B119,\"Outcome\",1),0)","v":0},{"$f":"IFERROR(GETPIVOTDATA(\"URN\",'Pivot FE&S'!$A$107,\"SSA 2 descriptor\",$B119,\"Outcome\",2),0)","v":6},{"$f":"IFERROR(GETPIVOTDATA(\"URN\",'Pivot FE&S'!$A$107,\"SSA 2 descriptor\",$B119,\"Outcome\",3),0)","v":2},{"$f":"IFERROR(GETPIVOTDATA(\"URN\",'Pivot FE&S'!$A$107,\"SSA 2 descriptor\",$B119,\"Outcome\",4),0)","v":4},null,-12]
[null,"Early Years and Playwork",41,{"$f":"IFERROR(GETPIVOTDATA(\"URN\",'Pivot FE&S'!$A$107,\"SSA 2 descriptor\",$B120,\"Outcome\",1),0)","v":5},{"$f":"IFERROR(GETPIVOTDATA(\"URN\",'Pivot FE&S'!$A$107,\"SSA 2 descriptor\",$B120,\"Outcome\",2),0)","v":20},{"$f":"IFERROR(GETPIVOTDATA(\"URN\",'Pivot FE&S'!$A$107,\"SSA 2 descriptor\",$B120,\"Outcome\",3),0)","v":16},{"$f":"IFERROR(GETPIVOTDATA(\"URN\",'Pivot FE&S'!$A$107,\"SSA 2 descriptor\",$B120,\"Outcome\",4),0)","v":0},null,-41]
[null,"Employability Training",46,{"$f":"IFERROR(GETPIVOTDATA(\"URN\",'Pivot FE&S'!$A$107,\"SSA 2 descriptor\",$B121,\"Outcome\",1),0)","v":2},{"$f":"IFERROR(GETPIVOTDATA(\"URN\",'Pivot FE&S'!$A$107,\"SSA 2 descriptor\",$B121,\"Outcome\",2),0)","v":23},{"$f":"IFERROR(GETPIVOTDATA(\"URN\",'Pivot FE&S'!$A$107,\"SSA 2 descriptor\",$B121,\"Outcome\",3),0)","v":17},{"$f":"IFERROR(GETPIVOTDATA(\"URN\",'Pivot FE&S'!$A$107,\"SSA 2 descriptor\",$B121,\"Outcome\",4),0)","v":4},null,-46]
[null,"Engineering",30,{"$f":"IFERROR(GETPIVOTDATA(\"URN\",'Pivot FE&S'!$A$107,\"SSA 2 descriptor\",$B122,\"Outcome\",1),0)","v":5},{"$f":"IFERROR(GETPIVOTDATA(\"URN\",'Pivot FE&S'!$A$107,\"SSA 2 descriptor\",$B122,\"Outcome\",2),0)","v":13},{"$f":"IFERROR(GETPIVOTDATA(\"URN\",'Pivot FE&S'!$A$107,\"SSA 2 descriptor\",$B122,\"Outcome\",3),0)","v":12},{"$f":"IFERROR(GETPIVOTDATA(\"URN\",'Pivot FE&S'!$A$107,\"SSA 2 descriptor\",$B122,\"Outcome\",4),0)","v":0},null,-30]
[null,"English",16,{"$f":"IFERROR(GETPIVOTDATA(\"URN\",'Pivot FE&S'!$A$107,\"SSA 2 descriptor\",$B123,\"Outcome\",1),0)","v":1},{"$f":"IFERROR(GETPIVOTDATA(\"URN\",'Pivot FE&S'!$A$107,\"SSA 2 descriptor\",$B123,\"Outcome\",2),0)","v":6},{"$f":"IFERROR(GETPIVOTDATA(\"URN\",'Pivot FE&S'!$A$107,\"SSA 2 descriptor\",$B123,\"Outcome\",3),0)","v":8},{"$f":"IFERROR(GETPIVOTDATA(\"URN\",'Pivot FE&S'!$A$107,\"SSA 2 descriptor\",$B123,\"Outcome\",4),0)","v":1},null,-16]
[null,"Environmental Conservation",1,{"$f":"IFERROR(GETPIVOTDATA(\"URN\",'Pivot FE&S'!$A$107,\"SSA 2 descriptor\",$B124,\"Outcome\",1),0)","v":0},{"$f":"IFERROR(GETPIVOTDATA(\"URN\",'Pivot FE&S'!$A$107,\"SSA 2 descriptor\",$B124,\"Outcome\",2),0)","v":0},{"$f":"IFERROR(GETPIVOTDATA(\"URN\",'Pivot FE&S'!$A$107,\"SSA 2 descriptor\",$B124,\"Outcome\",3),0)","v":1},{"$f":"IFERROR(GETPIVOTDATA(\"URN\",'Pivot FE&S'!$A$107,\"SSA 2 descriptor\",$B124,\"Outcome\",4),0)","v":0},null,-1]
[null,"Equine Studies",2,{"$f":"IFERROR(GETPIVOTDATA(\"URN\",'Pivot FE&S'!$A$107,\"SSA 2 descriptor\",$B125,\"Outcome\",1),0)","v":0},{"$f":"IFERROR(GETPIVOTDATA(\"URN\",'Pivot FE&S'!$A$107,\"SSA 2 descriptor\",$B125,\"Outcome\",2),0)","v":1},{"$f":"IFERROR(GETPIVOTDATA(\"URN\",'Pivot FE&S'!$A$107,\"SSA 2 descriptor\",$B125,\"Outcome\",3),0)","v":1},{"$f":"IFERROR(GETPIVOTDATA(\"URN\",'Pivot FE&S'!$A$107,\"SSA 2 descriptor\",$B125,\"Outcome\",4),0)","v":0},null,-2]
[null,"ESOL",15,{"$f":"IFERROR(GETPIVOTDATA(\"URN\",'Pivot FE&S'!$A$107,\"SSA 2 descriptor\",$B126,\"Outcome\",1),0)","v":1},{"$f":"IFERROR(GETPIVOTDATA(\"URN\",'Pivot FE&S'!$A$107,\"SSA 2 descriptor\",$B126,\"Outcome\",2),0)","v":11},{"$f":"IFERROR(GETPIVOTDATA(\"URN\",'Pivot FE&S'!$A$107,\"SSA 2 descriptor\",$B126,\"Outcome\",3),0)","v":2},{"$f":"IFERROR(GETPIVOTDATA(\"URN\",'Pivot FE&S'!$A$107,\"SSA 2 descriptor\",$B126,\"Outcome\",4),0)","v":1},null,-15]
[null,"Family Learning",4,{"$f":"IFERROR(GETPIVOTDATA(\"URN\",'Pivot FE&S'!$A$107,\"SSA 2 descriptor\",$B127,\"Outcome\",1),0)","v":1},{"$f":"IFERROR(GETPIVOTDATA(\"URN\",'Pivot FE&S'!$A$107,\"SSA 2 descriptor\",$B127,\"Outcome\",2),0)","v":2},{"$f":"IFERROR(GETPIVOTDATA(\"URN\",'Pivot FE&S'!$A$107,\"SSA 2 descriptor\",$B127,\"Outcome\",3),0)","v":1},{"$f":"IFERROR(GETPIVOTDATA(\"URN\",'Pivot FE&S'!$A$107,\"SSA 2 descriptor\",$B127,\"Outcome\",4),0)","v":0},null,-4]
[null,"Forestry",1,{"$f":"IFERROR(GETPIVOTDATA(\"URN\",'Pivot FE&S'!$A$107,\"SSA 2 descriptor\",$B128,\"Outcome\",1),0)","v":0},{"$f":"IFERROR(GETPIVOTDATA(\"URN\",'Pivot FE&S'!$A$107,\"SSA 2 descriptor\",$B128,\"Outcome\",2),0)","v":1},{"$f":"IFERROR(GETPIVOTDATA(\"URN\",'Pivot FE&S'!$A$107,\"SSA 2 descriptor\",$B128,\"Outcome\",3),0)","v":0},{"$f":"IFERROR(GETPIVOTDATA(\"URN\",'Pivot FE&S'!$A$107,\"SSA 2 descriptor\",$B128,\"Outcome\",4),0)","v":0},null,-1]
[null,"Foundation English",41,{"$f":"IFERROR(GETPIVOTDATA(\"URN\",'Pivot FE&S'!$A$107,\"SSA 2 descriptor\",$B129,\"Outcome\",1),0)","v":0},{"$f":"IFERROR(GETPIVOTDATA(\"URN\",'Pivot FE&S'!$A$107,\"SSA 2 descriptor\",$B129,\"Outcome\",2),0)","v":15},{"$f":"IFERROR(GETPIVOTDATA(\"URN\",'Pivot FE&S'!$A$107,\"SSA 2 descriptor\",$B129,\"Outcome\",3),0)","v":21},{"$f":"IFERROR(GETPIVOTDATA(\"URN\",'Pivot FE&S'!$A$107,\"SSA 2 descriptor\",$B129,\"Outcome\",4),0)","v":5},null,-41]
[null,"Foundation English and Mathematics",20,{"$f":"IFERROR(GETPIVOTDATA(\"URN\",'Pivot FE&S'!$A$107,\"SSA 2 descriptor\",$B130,\"Outcome\",1),0)","v":0},{"$f":"IFERROR(GETPIVOTDATA(\"URN\",'Pivot FE&S'!$A$107,\"SSA 2 descriptor\",$B130,\"Outcome\",2),0)","v":13},{"$f":"IFERROR(GETPIVOTDATA(\"URN\",'Pivot FE&S'!$A$107,\"SSA 2 descriptor\",$B130,\"Outcome\",3),0)","v":7},{"$f":"IFERROR(GETPIVOTDATA(\"URN\",'Pivot FE&S'!$A$107,\"SSA 2 descriptor\",$B130,\"Outcome\",4),0)","v":0},null,-20]
[null,"Foundation mathematics",32,{"$f":"IFERROR(GETPIVOTDATA(\"URN\",'Pivot FE&S'!$A$107,\"SSA 2 descriptor\",$B131,\"Outcome\",1),0)","v":0},{"$f":"IFERROR(GETPIVOTDATA(\"URN\",'Pivot FE&S'!$A$107,\"SSA 2 descriptor\",$B131,\"Outcome\",2),0)","v":10},{"$f":"IFERROR(GETPIVOTDATA(\"URN\",'Pivot FE&S'!$A$107,\"SSA 2 descriptor\",$B131,\"Outcome\",3),0)","v":17},{"$f":"IFERROR(GETPIVOTDATA(\"URN\",'Pivot FE&S'!$A$107,\"SSA 2 descriptor\",$B131,\"Outcome\",4),0)","v":5},null,-32]
[null,"Hairdressing",11,{"$f":"IFERROR(GETPIVOTDATA(\"URN\",'Pivot FE&S'!$A$107,\"SSA 2 descriptor\",$B132,\"Outcome\",1),0)","v":1},{"$f":"IFERROR(GETPIVOTDATA(\"URN\",'Pivot FE&S'!$A$107,\"SSA 2 descriptor\",$B132,\"Outcome\",2),0)","v":5},{"$f":"IFERROR(GETPIVOTDATA(\"URN\",'Pivot FE&S'!$A$107,\"SSA 2 descriptor\",$B132,\"Outcome\",3),0)","v":2},{"$f":"IFERROR(GETPIVOTDATA(\"URN\",'Pivot FE&S'!$A$107,\"SSA 2 descriptor\",$B132,\"Outcome\",4),0)","v":3},null,-11]
[null,"Hairdressing and beauty therapy",21,{"$f":"IFERROR(GETPIVOTDATA(\"URN\",'Pivot FE&S'!$A$107,\"SSA 2 descriptor\",$B133,\"Outcome\",1),0)","v":1},{"$f":"IFERROR(GETPIVOTDATA(\"URN\",'Pivot FE&S'!$A$107,\"SSA 2 descriptor\",$B133,\"Outcome\",2),0)","v":10},{"$f":"IFERROR(GETPIVOTDATA(\"URN\",'Pivot FE&S'!$A$107,\"SSA 2 descriptor\",$B133,\"Outcome\",3),0)","v":9},{"$f":"IFERROR(GETPIVOTDATA(\"URN\",'Pivot FE&S'!$A$107,\"SSA 2 descriptor\",$B133,\"Outcome\",4),0)","v":1},null,-21]
[null,"Health and Social Care",78,{"$f":"IFERROR(GETPIVOTDATA(\"URN\",'Pivot FE&S'!$A$107,\"SSA 2 descriptor\",$B134,\"Outcome\",1),0)","v":5},{"$f":"IFERROR(GETPIVOTDATA(\"URN\",'Pivot FE&S'!$A$107,\"SSA 2 descriptor\",$B134,\"Outcome\",2),0)","v":41},{"$f":"IFERROR(GETPIVOTDATA(\"URN\",'Pivot FE&S'!$A$107,\"SSA 2 descriptor\",$B134,\"Outcome\",3),0)","v":30},{"$f":"IFERROR(GETPIVOTDATA(\"URN\",'Pivot FE&S'!$A$107,\"SSA 2 descriptor\",$B134,\"Outcome\",4),0)","v":2},null,-78]
[null,"Health, Public Services and Care",1,{"$f":"IFERROR(GETPIVOTDATA(\"URN\",'Pivot FE&S'!$A$107,\"SSA 2 descriptor\",$B135,\"Outcome\",1),0)","v":0},{"$f":"IFERROR(GETPIVOTDATA(\"URN\",'Pivot FE&S'!$A$107,\"SSA 2 descriptor\",$B135,\"Outcome\",2),0)","v":1},{"$f":"IFERROR(GETPIVOTDATA(\"URN\",'Pivot FE&S'!$A$107,\"SSA 2 descriptor\",$B135,\"Outcome\",3),0)","v":0},{"$f":"IFERROR(GETPIVOTDATA(\"URN\",'Pivot FE&S'!$A$107,\"SSA 2 descriptor\",$B135,\"Outcome\",4),0)","v":0},null,-1]
[null,"History",2,{"$f":"IFERROR(GETPIVOTDATA(\"URN\",'Pivot FE&S'!$A$107,\"SSA 2 descriptor\",$B136,\"Outcome\",1),0)","v":1},{"$f":"IFERROR(GETPIVOTDATA(\"URN\",'Pivot FE&S'!$A$107,\"SSA 2 descriptor\",$B136,\"Outcome\",2),0)","v":1},{"$f":"IFERROR(GETPIVOTDATA(\"URN\",'Pivot FE&S'!$A$107,\"SSA 2 descriptor\",$B136,\"Outcome\",3),0)","v":0},{"$f":"IFERROR(GETPIVOTDATA(\"URN\",'Pivot FE&S'!$A$107,\"SSA 2 descriptor\",$B136,\"Outcome\",4),0)","v":0},null,{"$f":"H136-C136","v":-2}]
[null,"Horticulture",1,{"$f":"IFERROR(GETPIVOTDATA(\"URN\",'Pivot FE&S'!$A$107,\"SSA 2 descriptor\",$B137,\"Outcome\",1),0)","v":0},{"$f":"IFERROR(GETPIVOTDATA(\"URN\",'Pivot FE&S'!$A$107,\"SSA 2 descriptor\",$B137,\"Outcome\",2),0)","v":1},{"$f":"IFERROR(GETPIVOTDATA(\"URN\",'Pivot FE&S'!$A$107,\"SSA 2 descriptor\",$B137,\"Outcome\",3),0)","v":0},{"$f":"IFERROR(GETPIVOTDATA(\"URN\",'Pivot FE&S'!$A$107,\"SSA 2 descriptor\",$B137,\"Outcome\",4),0)","v":0},null,-1]
[null,"Horticulture and Forestry",2,{"$f":"IFERROR(GETPIVOTDATA(\"URN\",'Pivot FE&S'!$A$107,\"SSA 2 descriptor\",$B138,\"Outcome\",1),0)","v":0},{"$f":"IFERROR(GETPIVOTDATA(\"URN\",'Pivot FE&S'!$A$107,\"SSA 2 descriptor\",$B138,\"Outcome\",2),0)","v":1},{"$f":"IFERROR(GETPIVOTDATA(\"URN\",'Pivot FE&S'!$A$107,\"SSA 2 descriptor\",$B138,\"Outcome\",3),0)","v":1},{"$f":"IFERROR(GETPIVOTDATA(\"URN\",'Pivot FE&S'!$A$107,\"SSA 2 descriptor\",$B138,\"Outcome\",4),0)","v":0},null,-2]
[null,"Hospitality and Catering",17,{"$f":"IFERROR(GETPIVOTDATA(\"URN\",'Pivot FE&S'!$A$107,\"SSA 2 descriptor\",$B139,\"Outcome\",1),0)","v":0},{"$f":"IFERROR(GETPIVOTDATA(\"URN\",'Pivot FE&S'!$A$107,\"SSA 2 descriptor\",$B139,\"Outcome\",2),0)","v":13},{"$f":"IFERROR(GETPIVOTDATA(\"URN\",'Pivot FE&S'!$A$107,\"SSA 2 descriptor\",$B139,\"Outcome\",3),0)","v":2},{"$f":"IFERROR(GETPIVOTDATA(\"URN\",'Pivot FE&S'!$A$107,\"SSA 2 descriptor\",$B139,\"Outcome\",4),0)","v":2},null,-17]
[null,"ICT for practitioners",21,{"$f":"IFERROR(GETPIVOTDATA(\"URN\",'Pivot FE&S'!$A$107,\"SSA 2 descriptor\",$B140,\"Outcome\",1),0)","v":3},{"$f":"IFERROR(GETPIVOTDATA(\"URN\",'Pivot FE&S'!$A$107,\"SSA 2 descriptor\",$B140,\"Outcome\",2),0)","v":12},{"$f":"IFERROR(GETPIVOTDATA(\"URN\",'Pivot FE&S'!$A$107,\"SSA 2 descriptor\",$B140,\"Outcome\",3),0)","v":3},{"$f":"IFERROR(GETPIVOTDATA(\"URN\",'Pivot FE&S'!$A$107,\"SSA 2 descriptor\",$B140,\"Outcome\",4),0)","v":3},null,-21]
[null,"ICT for Users",22,{"$f":"IFERROR(GETPIVOTDATA(\"URN\",'Pivot FE&S'!$A$107,\"SSA 2 descriptor\",$B141,\"Outcome\",1),0)","v":1},{"$f":"IFERROR(GETPIVOTDATA(\"URN\",'Pivot FE&S'!$A$107,\"SSA 2 descriptor\",$B141,\"Outcome\",2),0)","v":15},{"$f":"IFERROR(GETPIVOTDATA(\"URN\",'Pivot FE&S'!$A$107,\"SSA 2 descriptor\",$B141,\"Outcome\",3),0)","v":4},{"$f":"IFERROR(GETPIVOTDATA(\"URN\",'Pivot FE&S'!$A$107,\"SSA 2 descriptor\",$B141,\"Outcome\",4),0)","v":2},null,-22]
[null,"Independent living and leisure skills",23,{"$f":"IFERROR(GETPIVOTDATA(\"URN\",'Pivot FE&S'!$A$107,\"SSA 2 descriptor\",$B142,\"Outcome\",1),0)","v":3},{"$f":"IFERROR(GETPIVOTDATA(\"URN\",'Pivot FE&S'!$A$107,\"SSA 2 descriptor\",$B142,\"Outcome\",2),0)","v":12},{"$f":"IFERROR(GETPIVOTDATA(\"URN\",'Pivot FE&S'!$A$107,\"SSA 2 descriptor\",$B142,\"Outcome\",3),0)","v":6},{"$f":"IFERROR(GETPIVOTDATA(\"URN\",'Pivot FE&S'!$A$107,\"SSA 2 descriptor\",$B142,\"Outcome\",4),0)","v":2},null,-23]
[null,"Law and Legal Services",8,{"$f":"IFERROR(GETPIVOTDATA(\"URN\",'Pivot FE&S'!$A$107,\"SSA 2 descriptor\",$B143,\"Outcome\",1),0)","v":1},{"$f":"IFERROR(GETPIVOTDATA(\"URN\",'Pivot FE&S'!$A$107,\"SSA 2 descriptor\",$B143,\"Outcome\",2),0)","v":4},{"$f":"IFERROR(GETPIVOTDATA(\"URN\",'Pivot FE&S'!$A$107,\"SSA 2 descriptor\",$B143,\"Outcome\",3),0)","v":2},{"$f":"IFERROR(GETPIVOTDATA(\"URN\",'Pivot FE&S'!$A$107,\"SSA 2 descriptor\",$B143,\"Outcome\",4),0)","v":1},null,-8]
[null,"Leisure, Travel and Tourism",1,{"$f":"IFERROR(GETPIVOTDATA(\"URN\",'Pivot FE&S'!$A$107,\"SSA 2 descriptor\",$B144,\"Outcome\",1),0)","v":1},{"$f":"IFERROR(GETPIVOTDATA(\"URN\",'Pivot FE&S'!$A$107,\"SSA 2 descriptor\",$B144,\"Outcome\",2),0)","v":0},{"$f":"IFERROR(GETPIVOTDATA(\"URN\",'Pivot FE&S'!$A$107,\"SSA 2 descriptor\",$B144,\"Outcome\",3),0)","v":0},{"$f":"IFERROR(GETPIVOTDATA(\"URN\",'Pivot FE&S'!$A$107,\"SSA 2 descriptor\",$B144,\"Outcome\",4),0)","v":0},null,-1]
[null,"Manufacturing Technologies",23,{"$f":"IFERROR(GETPIVOTDATA(\"URN\",'Pivot FE&S'!$A$107,\"SSA 2 descriptor\",$B145,\"Outcome\",1),0)","v":3},{"$f":"IFERROR(GETPIVOTDATA(\"URN\",'Pivot FE&S'!$A$107,\"SSA 2 descriptor\",$B145,\"Outcome\",2),0)","v":13},{"$f":"IFERROR(GETPIVOTDATA(\"URN\",'Pivot FE&S'!$A$107,\"SSA 2 descriptor\",$B145,\"Outcome\",3),0)","v":7},{"$f":"IFERROR(GETPIVOTDATA(\"URN\",'Pivot FE&S'!$A$107,\"SSA 2 descriptor\",$B145,\"Outcome\",4),0)","v":0},null,-23]
[null,"Marketing and Sales",{"$f":"SUM(D146:G146)","v":3},{"$f":"IFERROR(GETPIVOTDATA(\"URN\",'Pivot FE&S'!$A$107,\"SSA 2 descriptor\",$B146,\"Outcome\",1),0)","v":0},{"$f":"IFERROR(GETPIVOTDATA(\"URN\",'Pivot FE&S'!$A$107,\"SSA 2 descriptor\",$B146,\"Outcome\",2),0)","v":2},{"$f":"IFERROR(GETPIVOTDATA(\"URN\",'Pivot FE&S'!$A$107,\"SSA 2 descriptor\",$B146,\"Outcome\",3),0)","v":1},{"$f":"IFERROR(GETPIVOTDATA(\"URN\",'Pivot FE&S'!$A$107,\"SSA 2 descriptor\",$B146,\"Outcome\",4),0)","v":0},null,-3]
[null,"Mathematics and Statistics",21,{"$f":"IFERROR(GETPIVOTDATA(\"URN\",'Pivot FE&S'!$A$107,\"SSA 2 descriptor\",$B147,\"Outcome\",1),0)","v":1},{"$f":"IFERROR(GETPIVOTDATA(\"URN\",'Pivot FE&S'!$A$107,\"SSA 2 descriptor\",$B147,\"Outcome\",2),0)","v":4},{"$f":"IFERROR(GETPIVOTDATA(\"URN\",'Pivot FE&S'!$A$107,\"SSA 2 descriptor\",$B147,\"Outcome\",3),0)","v":15},{"$f":"IFERROR(GETPIVOTDATA(\"URN\",'Pivot FE&S'!$A$107,\"SSA 2 descriptor\",$B147,\"Outcome\",4),0)","v":1},null,-21]
[null,"Media and Communication",13,{"$f":"IFERROR(GETPIVOTDATA(\"URN\",'Pivot FE&S'!$A$107,\"SSA 2 descriptor\",$B148,\"Outcome\",1),0)","v":1},{"$f":"IFERROR(GETPIVOTDATA(\"URN\",'Pivot FE&S'!$A$107,\"SSA 2 descriptor\",$B148,\"Outcome\",2),0)","v":6},{"$f":"IFERROR(GETPIVOTDATA(\"URN\",'Pivot FE&S'!$A$107,\"SSA 2 descriptor\",$B148,\"Outcome\",3),0)","v":6},{"$f":"IFERROR(GETPIVOTDATA(\"URN\",'Pivot FE&S'!$A$107,\"SSA 2 descriptor\",$B148,\"Outcome\",4),0)","v":0},null,-13]
[null,"Modern foreign languages",5,{"$f":"IFERROR(GETPIVOTDATA(\"URN\",'Pivot FE&S'!$A$107,\"SSA 2 descriptor\",$B149,\"Outcome\",1),0)","v":0},{"$f":"IFERROR(GETPIVOTDATA(\"URN\",'Pivot FE&S'!$A$107,\"SSA 2 descriptor\",$B149,\"Outcome\",2),0)","v":3},{"$f":"IFERROR(GETPIVOTDATA(\"URN\",'Pivot FE&S'!$A$107,\"SSA 2 descriptor\",$B149,\"Outcome\",3),0)","v":1},{"$f":"IFERROR(GETPIVOTDATA(\"URN\",'Pivot FE&S'!$A$107,\"SSA 2 descriptor\",$B149,\"Outcome\",4),0)","v":1},null,-5]
[null,"Motor vehicle",17,{"$f":"IFERROR(GETPIVOTDATA(\"URN\",'Pivot FE&S'!$A$107,\"SSA 2 descriptor\",$B150,\"Outcome\",1),0)","v":1},{"$f":"IFERROR(GETPIVOTDATA(\"URN\",'Pivot FE&S'!$A$107,\"SSA 2 descriptor\",$B150,\"Outcome\",2),0)","v":6},{"$f":"IFERROR(GETPIVOTDATA(\"URN\",'Pivot FE&S'!$A$107,\"SSA 2 descriptor\",$B150,\"Outcome\",3),0)","v":10},{"$f":"IFERROR(GETPIVOTDATA(\"URN\",'Pivot FE&S'!$A$107,\"SSA 2 descriptor\",$B150,\"Outcome\",4),0)","v":0},null,-17]
[null,"Nursing and Dental Health",4,{"$f":"IFERROR(GETPIVOTDATA(\"URN\",'Pivot FE&S'!$A$107,\"SSA 2 descriptor\",$B151,\"Outcome\",1),0)","v":1},{"$f":"IFERROR(GETPIVOTDATA(\"URN\",'Pivot FE&S'!$A$107,\"SSA 2 descriptor\",$B151,\"Outcome\",2),0)","v":1},{"$f":"IFERROR(GETPIVOTDATA(\"URN\",'Pivot FE&S'!$A$107,\"SSA 2 descriptor\",$B151,\"Outcome\",3),0)","v":2},{"$f":"IFERROR(GETPIVOTDATA(\"URN\",'Pivot FE&S'!$A$107,\"SSA 2 descriptor\",$B151,\"Outcome\",4),0)","v":0},null,-4]
[null,"Performing Arts",19,{"$f":"IFERROR(GETPIVOTDATA(\"URN\",'Pivot FE&S'!$A$107,\"SSA 2 descriptor\",$B152,\"Outcome\",1),0)","v":3},{"$f":"IFERROR(GETPIVOTDATA(\"URN\",'Pivot FE&S'!$A$107,\"SSA 2 descriptor\",$B152,\"Outcome\",2),0)","v":13},{"$f":"IFERROR(GETPIVOTDATA(\"URN\",'Pivot FE&S'!$A$107,\"SSA 2 descriptor\",$B152,\"Outcome\",3),0)","v":3},{"$f":"IFERROR(GETPIVOTDATA(\"URN\",'Pivot FE&S'!$A$107,\"SSA 2 descriptor\",$B152,\"Outcome\",4),0)","v":0},null,-19]
[null,"Psychology",4,{"$f":"IFERROR(GETPIVOTDATA(\"URN\",'Pivot FE&S'!$A$107,\"SSA 2 descriptor\",$B153,\"Outcome\",1),0)","v":0},{"$f":"IFERROR(GETPIVOTDATA(\"URN\",'Pivot FE&S'!$A$107,\"SSA 2 descriptor\",$B153,\"Outcome\",2),0)","v":3},{"$f":"IFERROR(GETPIVOTDATA(\"URN\",'Pivot FE&S'!$A$107,\"SSA 2 descriptor\",$B153,\"Outcome\",3),0)","v":0},{"$f":"IFERROR(GETPIVOTDATA(\"URN\",'Pivot FE&S'!$A$107,\"SSA 2 descriptor\",$B153,\"Outcome\",4),0)","v":1},null,-4]
[null,"Public Services",13,{"$f":"IFERROR(GETPIVOTDATA(\"URN\",'Pivot FE&S'!$A$107,\"SSA 2 descriptor\",$B154,\"Outcome\",1),0)","v":3},{"$f":"IFERROR(GETPIVOTDATA(\"URN\",'Pivot FE&S'!$A$107,\"SSA 2 descriptor\",$B154,\"Outcome\",2),0)","v":7},{"$f":"IFERROR(GETPIVOTDATA(\"URN\",'Pivot FE&S'!$A$107,\"SSA 2 descriptor\",$B154,\"Outcome\",3),0)","v":3},{"$f":"IFERROR(GETPIVOTDATA(\"URN\",'Pivot FE&S'!$A$107,\"SSA 2 descriptor\",$B154,\"Outcome\",4),0)","v":0},null,-13]
[null,"Retailing and Wholesaling",8,{"$f":"IFERROR(GETPIVOTDATA(\"URN\",'Pivot FE&S'!$A$107,\"SSA 2 descriptor\",$B155,\"Outcome\",1),0)","v":0},{"$f":"IFERROR(GETPIVOTDATA(\"URN\",'Pivot FE&S'!$A$107,\"SSA 2 descriptor\",$B155,\"Outcome\",2),0)","v":5},{"$f":"IFERROR(GETPIVOTDATA(\"URN\",'Pivot FE&S'!$A$107,\"SSA 2 descriptor\",$B155,\"Outcome\",3),0)","v":2},{"$f":"IFERROR(GETPIVOTDATA(\"URN\",'Pivot FE&S'!$A$107,\"SSA 2 descriptor\",$B155,\"Outcome\",4),0)","v":1},null,-8]
[null,"Science",27,{"$f":"IFERROR(GETPIVOTDATA(\"URN\",'Pivot FE&S'!$A$107,\"SSA 2 descriptor\",$B156,\"Outcome\",1),0)","v":0},{"$f":"IFERROR(GETPIVOTDATA(\"URN\",'Pivot FE&S'!$A$107,\"SSA 2 descriptor\",$B156,\"Outcome\",2),0)","v":11},{"$f":"IFERROR(GETPIVOTDATA(\"URN\",'Pivot FE&S'!$A$107,\"SSA 2 descriptor\",$B156,\"Outcome\",3),0)","v":13},{"$f":"IFERROR(GETPIVOTDATA(\"URN\",'Pivot FE&S'!$A$107,\"SSA 2 descriptor\",$B156,\"Outcome\",4),0)","v":3},null,-27]
[null,"Science and Mathematics",1,{"$f":"IFERROR(GETPIVOTDATA(\"URN\",'Pivot FE&S'!$A$107,\"SSA 2 descriptor\",$B157,\"Outcome\",1),0)","v":0},{"$f":"IFERROR(GETPIVOTDATA(\"URN\",'Pivot FE&S'!$A$107,\"SSA 2 descriptor\",$B157,\"Outcome\",2),0)","v":0},{"$f":"IFERROR(GETPIVOTDATA(\"URN\",'Pivot FE&S'!$A$107,\"SSA 2 descriptor\",$B157,\"Outcome\",3),0)","v":0},{"$f":"IFERROR(GETPIVOTDATA(\"URN\",'Pivot FE&S'!$A$107,\"SSA 2 descriptor\",$B157,\"Outcome\",4),0)","v":1},null,-1]
[null,"Service Enterprises",2,{"$f":"IFERROR(GETPIVOTDATA(\"URN\",'Pivot FE&S'!$A$107,\"SSA 2 descriptor\",$B158,\"Outcome\",1),0)","v":0},{"$f":"IFERROR(GETPIVOTDATA(\"URN\",'Pivot FE&S'!$A$107,\"SSA 2 descriptor\",$B158,\"Outcome\",2),0)","v":1},{"$f":"IFERROR(GETPIVOTDATA(\"URN\",'Pivot FE&S'!$A$107,\"SSA 2 descriptor\",$B158,\"Outcome\",3),0)","v":0},{"$f":"IFERROR(GETPIVOTDATA(\"URN\",'Pivot FE&S'!$A$107,\"SSA 2 descriptor\",$B158,\"Outcome\",4),0)","v":1},null,-2]
[null,"Social Sciences",4,{"$f":"IFERROR(GETPIVOTDATA(\"URN\",'Pivot FE&S'!$A$107,\"SSA 2 descriptor\",$B159,\"Outcome\",1),0)","v":0},{"$f":"IFERROR(GETPIVOTDATA(\"URN\",'Pivot FE&S'!$A$107,\"SSA 2 descriptor\",$B159,\"Outcome\",2),0)","v":1},{"$f":"IFERROR(GETPIVOTDATA(\"URN\",'Pivot FE&S'!$A$107,\"SSA 2 descriptor\",$B159,\"Outcome\",3),0)","v":3},{"$f":"IFERROR(GETPIVOTDATA(\"URN\",'Pivot FE&S'!$A$107,\"SSA 2 descriptor\",$B159,\"Outcome\",4),0)","v":0},null,-4]
[null,"Sociology and Social Policy",2,{"$f":"IFERROR(GETPIVOTDATA(\"URN\",'Pivot FE&S'!$A$107,\"SSA 2 descriptor\",$B160,\"Outcome\",1),0)","v":0},{"$f":"IFERROR(GETPIVOTDATA(\"URN\",'Pivot FE&S'!$A$107,\"SSA 2 descriptor\",$B160,\"Outcome\",2),0)","v":1},{"$f":"IFERROR(GETPIVOTDATA(\"URN\",'Pivot FE&S'!$A$107,\"SSA 2 descriptor\",$B160,\"Outcome\",3),0)","v":0},{"$f":"IFERROR(GETPIVOTDATA(\"URN\",'Pivot FE&S'!$A$107,\"SSA 2 descriptor\",$B160,\"Outcome\",4),0)","v":1},null,-2]
[null,"Sport",17,{"$f":"IFERROR(GETPIVOTDATA(\"URN\",'Pivot FE&S'!$A$107,\"SSA 2 descriptor\",$B161,\"Outcome\",1),0)","v":4},{"$f":"IFERROR(GETPIVOTDATA(\"URN\",'Pivot FE&S'!$A$107,\"SSA 2 descriptor\",$B161,\"Outcome\",2),0)","v":11},{"$f":"IFERROR(GETPIVOTDATA(\"URN\",'Pivot FE&S'!$A$107,\"SSA 2 descriptor\",$B161,\"Outcome\",3),0)","v":2},{"$f":"IFERROR(GETPIVOTDATA(\"URN\",'Pivot FE&S'!$A$107,\"SSA 2 descriptor\",$B161,\"Outcome\",4),0)","v":0},null,-17]
[null,"Sport, Leisure and Recreation",8,{"$f":"IFERROR(GETPIVOTDATA(\"URN\",'Pivot FE&S'!$A$107,\"SSA 2 descriptor\",$B162,\"Outcome\",1),0)","v":2},{"$f":"IFERROR(GETPIVOTDATA(\"URN\",'Pivot FE&S'!$A$107,\"SSA 2 descriptor\",$B162,\"Outcome\",2),0)","v":6},{"$f":"IFERROR(GETPIVOTDATA(\"URN\",'Pivot FE&S'!$A$107,\"SSA 2 descriptor\",$B162,\"Outcome\",3),0)","v":0},{"$f":"IFERROR(GETPIVOTDATA(\"URN\",'Pivot FE&S'!$A$107,\"SSA 2 descriptor\",$B162,\"Outcome\",4),0)","v":0},null,-8]
[null,"Teaching and Lecturing",2,{"$f":"IFERROR(GETPIVOTDATA(\"URN\",'Pivot FE&S'!$A$107,\"SSA 2 descriptor\",$B163,\"Outcome\",1),0)","v":0},{"$f":"IFERROR(GETPIVOTDATA(\"URN\",'Pivot FE&S'!$A$107,\"SSA 2 descriptor\",$B163,\"Outcome\",2),0)","v":0},{"$f":"IFERROR(GETPIVOTDATA(\"URN\",'Pivot FE&S'!$A$107,\"SSA 2 descriptor\",$B163,\"Outcome\",3),0)","v":2},{"$f":"IFERROR(GETPIVOTDATA(\"URN\",'Pivot FE&S'!$A$107,\"SSA 2 descriptor\",$B163,\"Outcome\",4),0)","v":0},null,-2]
[null,"Theology and Religious Studies",2,{"$f":"IFERROR(GETPIVOTDATA(\"URN\",'Pivot FE&S'!$A$107,\"SSA 2 descriptor\",$B164,\"Outcome\",1),0)","v":1},{"$f":"IFERROR(GETPIVOTDATA(\"URN\",'Pivot FE&S'!$A$107,\"SSA 2 descriptor\",$B164,\"Outcome\",2),0)","v":1},{"$f":"IFERROR(GETPIVOTDATA(\"URN\",'Pivot FE&S'!$A$107,\"SSA 2 descriptor\",$B164,\"Outcome\",3),0)","v":0},{"$f":"IFERROR(GETPIVOTDATA(\"URN\",'Pivot FE&S'!$A$107,\"SSA 2 descriptor\",$B164,\"Outcome\",4),0)","v":0},null,-2]
[null,"Training to Provide Learning Support",1,{"$f":"IFERROR(GETPIVOTDATA(\"URN\",'Pivot FE&S'!$A$107,\"SSA 2 descriptor\",$B165,\"Outcome\",1),0)","v":0},{"$f":"IFERROR(GETPIVOTDATA(\"URN\",'Pivot FE&S'!$A$107,\"SSA 2 descriptor\",$B165,\"Outcome\",2),0)","v":0},{"$f":"IFERROR(GETPIVOTDATA(\"URN\",'Pivot FE&S'!$A$107,\"SSA 2 descriptor\",$B165,\"Outcome\",3),0)","v":1},{"$f":"IFERROR(GETPIVOTDATA(\"URN\",'Pivot FE&S'!$A$107,\"SSA 2 descriptor\",$B165,\"Outcome\",4),0)","v":0},null,-1]
[null,"Transportation operations and maintenance",10,{"$f":"IFERROR(GETPIVOTDATA(\"URN\",'Pivot FE&S'!$A$107,\"SSA 2 descriptor\",$B166,\"Outcome\",1),0)","v":2},{"$f":"IFERROR(GETPIVOTDATA(\"URN\",'Pivot FE&S'!$A$107,\"SSA 2 descriptor\",$B166,\"Outcome\",2),0)","v":2},{"$f":"IFERROR(GETPIVOTDATA(\"URN\",'Pivot FE&S'!$A$107,\"SSA 2 descriptor\",$B166,\"Outcome\",3),0)","v":4},{"$f":"IFERROR(GETPIVOTDATA(\"URN\",'Pivot FE&S'!$A$107,\"SSA 2 descriptor\",$B166,\"Outcome\",4),0)","v":2},null,-10]
[null,"Travel and Tourism",2,{"$f":"IFERROR(GETPIVOTDATA(\"URN\",'Pivot FE&S'!$A$107,\"SSA 2 descriptor\",$B167,\"Outcome\",1),0)","v":1},{"$f":"IFERROR(GETPIVOTDATA(\"URN\",'Pivot FE&S'!$A$107,\"SSA 2 descriptor\",$B167,\"Outcome\",2),0)","v":0},{"$f":"IFERROR(GETPIVOTDATA(\"URN\",'Pivot FE&S'!$A$107,\"SSA 2 descriptor\",$B167,\"Outcome\",3),0)","v":1},{"$f":"IFERROR(GETPIVOTDATA(\"URN\",'Pivot FE&S'!$A$107,\"SSA 2 descriptor\",$B167,\"Outcome\",4),0)","v":0},null,-2]
[null,"Visual Arts",37,{"$f":"IFERROR(GETPIVOTDATA(\"URN\",'Pivot FE&S'!$A$107,\"SSA 2 descriptor\",$B168,\"Outcome\",1),0)","v":7},{"$f":"IFERROR(GETPIVOTDATA(\"URN\",'Pivot FE&S'!$A$107,\"SSA 2 descriptor\",$B168,\"Outcome\",2),0)","v":24},{"$f":"IFERROR(GETPIVOTDATA(\"URN\",'Pivot FE&S'!$A$107,\"SSA 2 descriptor\",$B168,\"Outcome\",3),0)","v":6},{"$f":"IFERROR(GETPIVOTDATA(\"URN\",'Pivot FE&S'!$A$107,\"SSA 2 descriptor\",$B168,\"Outcome\",4),0)","v":0},null,{"$f":"H168-C168","v":-37}]
[null,"Warehousing and Distribution",10,{"$f":"IFERROR(GETPIVOTDATA(\"URN\",'Pivot FE&S'!$A$107,\"SSA 2 descriptor\",$B169,\"Outcome\",1),0)","v":2},{"$f":"IFERROR(GETPIVOTDATA(\"URN\",'Pivot FE&S'!$A$107,\"SSA 2 descriptor\",$B169,\"Outcome\",2),0)","v":4},{"$f":"IFERROR(GETPIVOTDATA(\"URN\",'Pivot FE&S'!$A$107,\"SSA 2 descriptor\",$B169,\"Outcome\",3),0)","v":4},{"$f":"IFERROR(GETPIVOTDATA(\"URN\",'Pivot FE&S'!$A$107,\"SSA 2 descriptor\",$B169,\"Outcome\",4),0)","v":0},null,-10]
[null,"Total",{"$f":"SUM(C104:C169)","v":951},{"$f":"SUM(D104:D169)","v":68},{"$f":"SUM(E104:E169)","v":485},{"$f":"SUM(F104:F169)","v":338},{"$f":"SUM(G104:G169)","v":60}]

{"sheet":"Pivot FE&S","index":3,"n_rows":208,"n_cols":6,"rows_kept":208,"cut":false,"hidden":true,"merged":[]}
[]
[]
["Overall effectiveness of providers inspected between 1 September 2014 and 31 August 2015"]
[]
["Count of Provider Name","Column Labels"]
["Row Labels",1,2,3,4,"Grand Total"]
["Academy Converter",null,null,1,null,1]
["Community Learning and Skills",2,32,19,7,60]
["Employer",3,4,4,2,13]
["Free School - 16-19",null,1,2,2,5]
["General Further Education/Tertiary College",2,15,26,5,48]
["Higher Education Institution",2,null,null,null,2]
["Independent Learning Provider",4,53,45,12,114]
["Independent Specialist College",null,5,4,2,11]
["Sixth Form College",null,7,5,3,15]
["Specialist Further Education",null,3,null,null,3]
["Grand Total",13,120,106,33,272]
[]
["Outcomes for learners"]
[]
["Count of Provider Name","Column Labels"]
["Row Labels",1,2,3,4,"Grand Total"]
["Academy Converter",null,null,1,null,1]
["Community Learning and Skills",2,32,22,4,60]
["Employer",3,2,6,2,13]
["Free School - 16-19",null,1,2,2,5]
["General Further Education/Tertiary College",2,11,30,5,48]
["Higher Education Institution",2,null,null,null,2]
["Independent Learning Provider",4,58,41,11,114]
["Independent Specialist College",1,5,4,1,11]
["Sixth Form College",null,7,5,3,15]
["Specialist Further Education",null,3,null,null,3]
["Grand Total",14,119,111,28,272]
[]
[]
[]
[]
[]
[]
["Teaching and learning"]
[]
["Count of Provider Name","Column Labels"]
["Row Labels",1,2,3,4,"Grand Total"]
["Academy Converter",null,null,1,null,1]
["Community Learning and Skills",2,35,20,3,60]
["Employer",3,4,4,2,13]
["Free School - 16-19",null,1,2,2,5]
["General Further Education/Tertiary College",2,17,25,4,48]
["Higher Education Institution",2,null,null,null,2]
["Independent Learning Provider",4,59,40,11,114]
["Independent Specialist College",null,5,4,2,11]
["Sixth Form College",null,7,6,2,15]
["Specialist Further Education",null,3,null,null,3]
["Grand Total",13,131,102,26,272]
[]
[]
[]
[]
[]
[]
["Leadership and management"]
[]
["Count of Provider Name","Column Labels"]
["Row Labels",1,2,3,4,"Grand Total"]
["Academy Converter",null,null,1,null,1]
["Community Learning and Skills",4,31,18,7,60]
["Employer",3,4,4,2,13]
["Free School - 16-19",null,1,2,2,5]
["General Further Education/Tertiary College",3,18,22,5,48]
["Higher Education Institution",2,null,null,null,2]
["Independent Learning Provider",5,52,45,12,114]
["Independent Specialist College",null,5,4,2,11]
["Sixth Form College",1,6,5,3,15]
["Specialist Further Education",null,2,1,null,3]
["Grand Total",18,119,102,33,272]
[]
[]
[]
[]
[]
[]
["SSA Descriptor 1"]
[]
["Count of URN","Column Labels"]
["Row Labels",1,2,3,4,"Grand Total"]
["Arts, Media and Publishing",11,43,15,null,69]
["Business, Administration and Law",5,101,74,11,191]
["Construction, Planning and the Built Environment",null,15,13,4,32]
["Education and Training",null,null,3,null,3]
["Engineering and Manufacturing Technologies",11,34,33,2,80]
["Health, Public Services and Care",12,65,51,2,130]
["Information and Communication Technology",4,28,7,5,44]
["Languages, Literature and Culture",1,9,9,2,21]
["Preparation for Life and Work",6,91,73,18,188]
["Retail and Commercial Enterprise",4,40,19,9,72]
["Science and Mathematics",1,17,28,5,51]
["Social Sciences",null,3,3,2,8]
["Leisure, Travel and Tourism",10,22,3,null,35]
["Family Learning",1,2,1,null,4]
["Agriculture, Horticulture and Animal Care",null,13,5,null,18]
["Humanities",2,2,null,null,4]
["Community Development",null,null,1,null,1]
["Grand Total",68,485,338,60,951]
[]
["SSA Descriptor 2"]
[]
["Count of URN","Column Labels"]
["Row Labels",1,2,3,4,"Grand Total"]
["Accounting and Finance",2,8,8,1,19]
["Administration",1,47,34,2,84]
["Agriculture",null,2,2,null,4]
["Animal care",null,2,null,null,2]
["Animal Care and Veterinary Science",null,5,null,null,5]
["Beauty Therapy",null,2,null,null,2]
["Building and Construction",null,6,7,3,16]
["Building Services",null,4,1,1,6]
["Business",1,4,4,null,9]
["Business Management",null,30,23,3,56]
["Call centre operations",null,null,null,1,1]
["Communications Technology",null,1,null,null,1]
["Community Development",null,null,1,null,1]
["Community Learning",null,7,3,1,11]
["Construction Crafts",null,5,5,null,10]
["Customer service",null,6,2,4,12]
["Early Years and Playwork",5,20,16,null,41]
["Employability Training",2,23,17,4,46]
["Engineering",5,13,12,null,30]
["English",1,6,8,1,16]
["Environmental Conservation",null,null,1,null,1]
["Equine Studies",null,1,1,null,2]
["ESOL",1,11,2,1,15]
["Family Learning",1,2,1,null,4]
["Forestry",null,1,null,null,1]
["Foundation English",null,15,21,5,41]
["Foundation English and Mathematics",null,13,7,null,20]
["Foundation mathematics",null,10,17,5,32]
["Hairdressing",1,5,2,3,11]
["Hairdressing and beauty therapy",1,10,9,1,21]
["Health and Social Care",5,41,30,2,78]
["Health, Public Services and Care",null,1,null,null,1]
["History",1,1,null,null,2]
["Horticulture",null,1,null,null,1]
["Horticulture and Forestry",null,1,1,null,2]
["Hospitality and Catering",null,13,2,2,17]
["ICT for practitioners",3,12,3,3,21]
["ICT for Users",1,15,4,2,22]
["Independent living and leisure skills",3,12,6,2,23]
["Law and Legal Services",1,4,2,1,8]
["Leisure, Travel and Tourism",1,null,null,null,1]
["Manufacturing Technologies",3,13,7,null,23]
["Marketing and Sales",null,2,1,null,3]
["Mathematics and Statistics",1,4,15,1,21]
["Media and Communication",1,6,6,null,13]
["Modern foreign languages",null,3,1,1,5]
["Motor vehicle",1,6,10,null,17]
["Nursing and Dental Health",1,1,2,null,4]
["Performing Arts",3,13,3,null,19]
["Psychology",null,3,null,1,4]
["Public Services",3,7,3,null,13]
["Retailing and Wholesaling",null,5,2,1,8]
["Science",null,11,13,3,27]
["Science and Mathematics",null,null,null,1,1]
["Service Enterprises",null,1,null,1,2]
["Social Sciences",null,1,3,null,4]
["Sociology and Social Policy",null,1,null,1,2]
["Sport",4,11,2,null,17]
["Sport, Leisure and Recreation",2,6,null,null,8]
["Teaching and Lecturing",null,null,2,null,2]
["Theology and Religious Studies",1,1,null,null,2]
["Training to Provide Learning Support",null,null,1,null,1]
["Transportation operations and maintenance",2,2,4,2,10]
["Travel and Tourism",1,null,1,null,2]
["Visual Arts",7,24,6,null,37]
["Warehousing and Distribution",2,4,4,null,10]
["Grand Total",68,485,338,60,951]
[]
["Count of URN","Column Labels"]
["Row Labels","Improved","Same","Declined","No previous inspection","Grand Total"]
["Community Learning and Skills",16,20,19,5,60]
["Grand Total",16,20,19,5,60]
[]
[]
[]
[]
[]
[]
[]
[]
[]
[]
[]
["Provider type","Community Learning and Skills"]
[]
["Count of Inspection number","Column Labels"]
["Row Labels",1,2,3,4,"Grand Total"]
["Improved",2,14,null,null,16]
[2,2,null,null,null,2]
[3,null,14,null,null,14]
["Same",null,15,5,null,20]
[2,null,15,null,null,15]
[3,null,null,5,null,5]
["Declined",null,2,10,7,19]
[1,null,2,2,null,4]
[2,null,null,8,6,14]
[3,null,null,null,1,1]
["No previous inspection",null,1,4,null,5]
["NULL",null,1,4,null,5]
["Grand Total",2,32,19,7,60]

{"sheet":"Inspection data","index":4,"n_rows":277,"n_cols":67,"rows_kept":277,"cut":false,"hidden":false,"merged":[]}
["Inspection outcomes for further education and skills providers inspected from 1 September 2014"]
[]
[]
[]
["Report","Provider Name","URN","Provider type","Ofsted Region","Local Authority","REE Type of School","Inspection type","Inspection number","Inspection start date","Inspection end date","Inspection status","Inspection report published","Previous inspection number","Previous inspection date","Previous overall effectiveness","Overall Effectiveness","14-16 Overall Effectiveness Part Time","14-16 Overall Effectiveness Full Time","Traineeships Overall Effectiveness","16-19 study programmes Overall Effectiveness","19+ Overall Effectiveness","Apprenticeships Overall Effectiveness","Community Learning Overall Effectiveness","National Careers Services Overall Effectiveness","Employability Overall Effectiveness","Outcome for Learners","14-16 Outcome for Learners Part Time","14-16 Outcome for Learners Full Time","Traineeships Outcome for Learners","16-19 study programmes Outcome for Learners","19+ Outcome for Learners","Apprenticeships Outcome for Learners","Community Learning Outcome for Learners","National Careers Services Outcome for Learners","Employability Outcome for Learners","Teaching","14-16 Teaching Part Time","14-16 Teaching Full Time","Traineeships Teaching","16-19 study programmes Teaching","19+ Teaching","Apprenticeships Teaching","Community Learning Teaching","National Careers Services Teaching","Employability Teaching","Leadership and Management","14-16 Leadership and Management Part Time","14-16 Leadership and Management Full Time","Traineeships Leadership and Management","16-19 study programmes Leadership and Management","19+ Leadership and Management","Apprenticeships Leadership and Management","Community Learning Leadership and Management","National Careers Services Leadership and Management","Employability Leadership and Management","How well all learners are safeguarded","14-16 How well all learners are safeguarded Part Time","14-16 How well all learners are safeguarded Full Time","Traineeships How well all learners are safeguarded","16-19 study programmes How well all learners are safeguarded","19+ How well all learners are safeguarded","Apprenticeships How well all learners are safeguarded","Community Learning How well all learners are safeguarded","National Careers Services How well all learners are safeguarded","Employability How well all learners are safeguarded","Current overall effectiveness outcome against Previous overall effectiveness outcome"]
[{"$f":"IF(C6 <> \"\", HYPERLINK(CONCATENATE(\"http://reports.ofsted.gov.uk/inspection-reports/find-inspection-report/provider/ELS/\",C6),\"Report\"),\"\")","v":"Report"},"Unique Training North East Limited",56817,"Independent Learning Provider","North East, Yorkshire & Humber","Durham","Independent Learning Provider","WBL - requires improvement",429793,"2014-09-09","2014-09-12","Published","2014-10-23",410696,"2013-07-12",3,3,"-","-","-","-","-",3,"-","-","-",2,"-","-","-","-","-",2,"-","-","-",2,"-","-","-","-","-",2,"-","-","-",3,"-","-","-","-","-",3,"-","-","-",3,"-","-","-","-","-",3,"-","-","-",{"$f":"IF(P6=\"Null\",\"No previous inspection\",IF(Q6>P6,\"Declined\", IF(Q6=P6,\"Same\",IF(Q6<P6,\"Improved\"))))","v":"Same"}]
["Report","Midstream (West Lancs) Ltd",139245,"Independent Specialist College","North West","Lancashire","Special College","ISC - full inspection",446689,"2014-09-16","2014-09-18","Published","2014-10-21","NULL","NULL","NULL",4,"-","-","-",4,4,"-","-","-","-",3,"-","-","-",3,3,"-","-","-","-",4,"-","-","-",4,4,"-","-","-","-",4,"-","-","-",4,4,"-","-","-","-",3,"-","-","-",3,3,"-","-","-","-","No previous inspection"]
["Report","Newham Sixth Form College",130452,"Sixth Form College","London","Newham","Further Education","SFC - full inspection",452156,"2014-09-15","2014-09-19","Published","2014-10-24",330823,"2009-02-06",2,3,"-","-","-",3,3,"-","-","-","-",3,"-","-","-",3,3,"-","-","-","-",3,"-","-","-",3,3,"-","-","-","-",3,"-","-","-",3,3,"-","-","-","-",2,"-","-","-",2,2,"-","-","-","-","Declined"]
["Report","King George V College",130492,"Sixth Form College","North West","Sefton","Further Education","SFC - full inspection",446535,"2014-09-16","2014-09-19","Published","2014-10-23",385365,"2012-03-22",2,4,"-","-","-",4,4,"-","-","-","-",4,"-","-","-",4,4,"-","-","-","-",4,"-","-","-",4,4,"-","-","-","-",4,"-","-","-",4,4,"-","-","-","-",2,"-","-","-",2,2,"-","-","-","-","Declined"]
["Report","JBC Computer Training Limited",59153,"Independent Learning Provider","West Midlands","Coventry","Independent Learning Provider","WBL - full (regional)",446618,"2014-09-17","2014-09-19","Published","2014-10-23","NULL","NULL","NULL",2,"-","-","-","-","-",2,"-","-","-",2,"-","-","-","-","-",2,"-","-","-",2,"-","-","-","-","-",2,"-","-","-",2,"-","-","-","-","-",2,"-","-","-",2,"-","-","-","-","-",2,"-","-","-","No previous inspection"]
["Report","Joseph Chamberlain Sixth Form College",130468,"Sixth Form College","West Midlands","Birmingham","Further Education","FE College - requires improvement",430285,"2014-09-16","2014-09-19","Published","2014-10-23",421160,"2013-04-19",3,2,"-","-","-",2,2,"-",2,"-","-",2,"-","-","-",2,2,"-",2,"-","-",2,"-","-","-",2,2,"-",2,"-","-",1,"-","-","-",1,1,"-",1,"-","-",2,"-","-","-",2,2,"-",2,"-","-","Improved"]
["Report","The Learning Partnership for Cornwall and The Isles of Scilly Limited",59113,"Independent Learning Provider","South West","Cornwall","Independent Learning Provider","WBL - full (regional)",434062,"2014-09-16","2014-09-19","Published","2014-10-30","NULL","NULL","NULL",3,"-","-","-","-",3,3,"-","-",3,3,"-","-","-","-",3,3,"-","-",3,3,"-","-","-","-",3,3,"-","-",3,3,"-","-","-","-",3,3,"-","-",3,3,"-","-","-","-",3,3,"-","-",3,"No previous inspection"]
["Report","Redcar & Cleveland Adult Learning Service",54087,"Community Learning and Skills","North East, Yorkshire & Humber","Redcar and Cleveland","ACL Local Authority","Adult and Community - full (regional)",446665,"2014-09-23","2014-09-26","Published","2014-10-29",329358,"2008-11-28",2,2,"-","-","-",2,2,2,2,"-","-",2,"-","-","-",2,2,2,2,"-","-",2,"-","-","-",2,2,2,2,"-","-",2,"-","-","-",2,2,2,2,"-","-",2,"-","-","-",2,2,2,2,"-","-","Same"]
["Report","Hartlepool Sixth Form College",130568,"Sixth Form College","North East, Yorkshire & Humber","Hartlepool","Further Education","SFC - full inspection",446538,"2014-09-23","2014-09-26","Published","2014-11-13",345834,"2010-05-21",2,4,"-","-","-",4,4,"-","-","-","-",4,"-","-","-",4,4,"-","-","-","-",3,"-","-","-",3,3,"-","-","-","-",4,"-","-","-",4,4,"-","-","-","-",2,"-","-","-",2,2,"-","-","-","-","Declined"]
["Report","Strode College",130806,"General Further Education/Tertiary College","South West","Somerset","Further Education","FE College - full inspection",446539,"2014-09-23","2014-09-26","Published","2014-10-31",330974,"2008-10-02",2,1,"-","-",1,1,1,2,"-","-","-",1,"-","-",1,1,2,2,"-","-","-",1,"-","-",1,1,1,1,"-","-","-",1,"-","-",1,1,1,1,"-","-","-",2,"-","-",2,2,2,2,"-","-","-","Improved"]
["Report","Skills for Security Limited",50192,"Independent Learning Provider","West Midlands","Worcestershire","Independent Learning Provider","WBL - requires improvement",430258,"2014-09-22","2014-09-26","Published","2014-10-28",410652,"2013-06-28",3,3,"-","-","-","-","-",3,"-","-","-",3,"-","-","-","-","-",3,"-","-","-",3,"-","-","-","-","-",3,"-","-","-",3,"-","-","-","-","-",3,"-","-","-",2,"-","-","-","-","-",2,"-","-","-","Same"]
["Report","Bradford College",130532,"General Further Education/Tertiary College","North East, Yorkshire & Humber","Bradford","Further Education","FE College - full inspection",446537,"2014-09-22","2014-09-26","Published","2014-10-29",329315,"2008-10-10",2,2,"-","-","-",2,2,2,2,"-","-",2,"-","-","-",2,2,2,2,"-","-",2,"-","-","-",2,2,2,2,"-","-",2,"-","-","-",2,2,2,2,"-","-",1,"-","-","-",1,1,1,1,"-","-","Same"]
["Report","Beacon Employment",59072,"Community Learning and Skills","West Midlands","Worcestershire","ACL Voluntary organisation","WBL - full (regional)",434036,"2014-09-23","2014-09-26","Published","2014-10-29",385726,"2012-02-17",3,4,"-","-","-",4,"-","-","-","-",4,4,"-","-","-",4,"-","-","-","-",4,4,"-","-","-",4,"-","-","-","-",4,4,"-","-","-",4,"-","-","-","-",4,4,"-","-","-",4,"-","-","-","-",4,"Declined"]
["Report","Trans-plant Training Limited",59164,"Independent Learning Provider","South West","Devon","Independent Learning Provider","WBL - full (regional)",446619,"2014-09-30","2014-10-03","Published","2014-11-07","NULL","NULL","NULL",3,"-","-","-","-","-",3,"-","-","-",3,"-","-","-","-","-",3,"-","-","-",3,"-","-","-","-","-",3,"-","-","-",3,"-","-","-","-","-",3,"-","-","-",2,"-","-","-","-","-",2,"-","-","-","No previous inspection"]
["Report","Luton Borough Council",53201,"Community Learning and Skills","East of England","Luton","ACL Local Authority","Adult and community - full (national)",434069,"2014-09-29","2014-10-03","Published","2014-11-07",387972,"2012-06-15",3,2,"-","-","-","-","-",2,2,"-","-",2,"-","-","-","-","-",2,2,"-","-",2,"-","-","-","-","-",2,2,"-","-",2,"-","-","-","-","-",2,2,"-","-",2,"-","-","-","-","-",2,2,"-","-","Improved"]
["Report","TQ Workforce Development Limited",58168,"Independent Learning Provider","East Midlands","Northamptonshire","Independent Learning Provider","WBL - requires improvement",430261,"2014-09-29","2014-10-03","Published","2014-11-07",408546,"2013-06-07",3,2,"-","-","-","-",2,2,"-","-",2,2,"-","-","-","-",2,2,"-","-",2,2,"-","-","-","-",2,2,"-","-",2,2,"-","-","-","-",2,2,"-","-",2,2,"-","-","-","-",2,2,"-","-",2,"Improved"]
["Report","Acacia Training Limited",50304,"Independent Learning Provider","West Midlands","Stoke-On-Trent","Independent Learning Provider","WBL - requires improvement",430249,"2014-09-29","2014-10-03","Published","2014-11-04",410640,"2013-04-19",3,3,"-","-","-","-","-",3,"-","-","-",3,"-","-","-","-","-",3,"-","-","-",3,"-","-","-","-","-",3,"-","-","-",3,"-","-","-","-","-",3,"-","-","-",2,"-","-","-","-","-",2,"-","-","-","Same"]
["Report","SEEVIC College",130681,"Sixth Form College","East of England","Essex","Further Education","FE College - requires improvement",430276,"2014-09-29","2014-10-03","Published","2014-11-04",409324,"2013-04-19",3,3,"-","-",2,3,3,2,"-","-","-",3,"-","-",2,3,3,2,"-","-","-",3,"-","-",2,3,3,2,"-","-","-",3,"-","-",2,3,3,2,"-","-","-",3,"-","-",3,3,3,3,"-","-","-","Same"]
["Report","Kingston Maurward College",130655,"Specialist Further Education","South West","Dorset","Further Education","FE College - requires improvement",430267,"2014-09-30","2014-10-03","Published","2014-11-07",410603,"2013-05-03",3,2,"-","-","-",2,2,2,"-","-","-",2,"-","-","-",2,2,2,"-","-","-",2,"-","-","-",2,2,2,"-","-","-",3,"-","-","-",3,3,2,"-","-","-",2,"-","-","-",2,2,2,"-","-","-","Improved"]
["Report","Lawn Tennis Association Limited",58182,"Independent Learning Provider","London","Wandsworth","Independent Learning Provider","Work Based Learning - full (national)",446609,"2014-10-06","2014-10-10","Published","2014-11-17",321537,"2008-11-13",2,1,"-","-","-","-","-",1,"-","-","-",1,"-","-","-","-","-",1,"-","-","-",1,"-","-","-","-","-",1,"-","-","-",1,"-","-","-","-","-",1,"-","-","-",2,"-","-","-","-","-",2,"-","-","-","Improved"]
["Report","The Marine Society College of the Sea",130414,"Community Learning and Skills","London","Lambeth","ACL Specialist Designated Institute","Adult and Community - full (regional)",446670,"2014-10-08","2014-10-10","Published","2014-11-24",330817,"2009-02-06",2,4,"-","-","-","-","-","-",4,"-","-",4,"-","-","-","-","-","-",4,"-","-",4,"-","-","-","-","-","-",4,"-","-",4,"-","-","-","-","-","-",4,"-","-",3,"-","-","-","-","-","-",3,"-","-","Declined"]
["Report","Southend-on-Sea Borough Council",54519,"Community Learning and Skills","East of England","Southend-On-Sea","ACL Local Authority","Adult and Community - full (regional)",446666,"2014-10-06","2014-10-10","Published","2014-11-12",329818,"2008-11-07",2,2,"-","-","-",2,2,2,2,"-",2,2,"-","-","-",2,2,2,2,"-",2,2,"-","-","-",2,2,2,2,"-",2,2,"-","-","-",2,2,2,2,"-",2,3,"-","-","-",3,3,3,3,"-",3,"Same"]
["Report","Worthing College",130845,"General Further Education/Tertiary College","South East","West Sussex","Further Education","FE College - requires improvement",430283,"2014-10-07","2014-10-10","Published","2014-11-14",409328,"2013-04-26",3,3,"-","-","-",3,3,"-","-","-","-",3,"-","-","-",3,3,"-","-","-","-",3,"-","-","-",3,3,"-","-","-","-",3,"-","-","-",3,3,"-","-","-","-",2,"-","-","-",2,2,"-","-","-","-","Same"]
["Report","Stafford College",130813,"General Further Education/Tertiary College","West Midlands","Staffordshire","Further Education","FE College - requires improvement",430279,"2014-10-06","2014-10-10","Published","2014-11-18",410716,"2013-04-19",3,3,"-","-","-",3,3,3,"-","-","-",3,"-","-","-",3,3,2,"-","-","-",3,"-","-","-",3,3,3,"-","-","-",3,"-","-","-",3,3,3,"-","-","-",3,"-","-","-",3,3,3,"-","-","-","Same"]
["Report","Waverley Training Services",55287,"Community Learning and Skills","South East","Surrey","ACL Local Authority","WBL - requires improvement",430262,"2014-10-06","2014-10-10","Published","2014-11-18",410697,"2013-04-26",3,3,"-","-","-",3,"-",3,"-","-",3,3,"-","-","-",2,"-",3,"-","-",3,3,"-","-","-",3,"-",3,"-","-",3,3,"-","-","-",3,"-",3,"-","-",3,3,"-","-","-",3,"-",3,"-","-",3,"Same"]
["Report","Matrix Training and Development Limited",53268,"Independent Learning Provider","West Midlands","Telford and Wrekin","Independent Learning Provider","WBL - full (regional)",446602,"2014-10-14","2014-10-16","Published","2014-11-12",318303,"2008-01-18",2,2,"-","-","-","-","-",2,"-","-","-",2,"-","-","-","-","-",2,"-","-","-",2,"-","-","-","-","-",2,"-","-","-",2,"-","-","-","-","-",2,"-","-","-",2,"-","-","-","-","-",2,"-","-","-","Same"]
["Report","Safe in Tees Valley Limited",54245,"Community Learning and Skills","North East, Yorkshire & Humber","Stockton-on-Tees","ACL Voluntary organisation","WBL - full (regional)",451617,"2014-10-15","2014-10-17","Published","2014-11-19",409409,"2012-11-28",2,4,"-","-","-",4,"-","-","-","-","-",4,"-","-","-",4,"-","-","-","-","-",4,"-","-","-",4,"-","-","-","-","-",4,"-","-","-",4,"-","-","-","-","-",4,"-","-","-",4,"-","-","-","-","-","Declined"]
["Report","Waltham Forest College",130456,"General Further Education/Tertiary College","London","Waltham Forest","Further Education","FE College - requires improvement",430281,"2014-10-13","2014-10-17","Published","2014-11-21",410622,"2013-05-17",3,3,"-","-","-",3,3,"-","-","-","-",3,"-","-","-",3,2,"-","-","-","-",3,"-","-","-",3,3,"-","-","-","-",3,"-","-","-",3,3,"-","-","-","-",2,"-","-","-",2,2,"-","-","-","-","Same"]
["Report","North Shropshire College",130797,"General Further Education/Tertiary College","West Midlands","Shropshire","Further Education","FE College - requires improvement",430280,"2014-10-14","2014-10-17","Published","2014-11-21",410621,"2013-05-03",3,3,"-","-","-",3,3,3,"-","-","-",3,"-","-","-",3,3,3,"-","-","-",3,"-","-","-",3,3,3,"-","-","-",3,"-","-","-",3,3,3,"-","-","-",3,"-","-","-",3,3,3,"-","-","-","Same"]
[{"$f":"IF(C35 <> \"\", HYPERLINK(CONCATENATE(\"http://reports.ofsted.gov.uk/inspection-reports/find-inspection-report/provider/ELS/\",C35),\"Report\"),\"\")","v":"Report"},"Havering London Borough Council",53127,"Community Learning and Skills","London","Havering","ACL Local Authority","Adult and community - full (national)",434068,"2014-10-13","2014-10-17","Published","2014-12-04",387987,"2012-05-04",3,2,"-","-","-","-",2,3,2,"-",2,2,"-","-","-","-",2,3,2,"-",2,2,"-","-","-","-",2,3,2,"-",2,2,"-","-","-","-",2,2,2,"-",2,2,"-","-","-","-",2,2,2,"-",2,{"$f":"IF(P35=\"Null\",\"No previous inspection\",IF(Q35>P35,\"Declined\", IF(Q35=P35,\"Same\",IF(Q35<P35,\"Improved\"))))","v":"Improved"}]
["Report","Warrington Borough Council",55268,"Community Learning and Skills","North West","Warrington","ACL Local Authority","Adult and Community - full (regional)",446668,"2014-10-14","2014-10-17","Published","2014-12-16",354472,"2010-10-15",2,4,"-","-","-","-","-",4,3,"-","-",4,"-","-","-","-","-",4,3,"-","-",3,"-","-","-","-","-",4,3,"-","-",4,"-","-","-","-","-",4,3,"-","-",3,"-","-","-","-","-",3,3,"-","-","Declined"]
["Report","Woodspeen Training Limited",50262,"Independent Learning Provider","North East, Yorkshire & Humber","Kirklees","Independent Learning Provider","WBL - requires improvement",446598,"2014-10-13","2014-10-17","Published","2014-11-19",410699,"2013-05-24",3,2,"-","-","-","-","-",2,"-","-",2,2,"-","-","-","-","-",2,"-","-",2,2,"-","-","-","-","-",2,"-","-",2,2,"-","-","-","-","-",2,"-","-",2,2,"-","-","-","-","-",2,"-","-",2,"Improved"]
["Report","Skills Team Ltd",58340,"Independent Learning Provider","London","Ealing","Independent Learning Provider","WBL - requires improvement",430259,"2014-10-13","2014-10-17","Published","2014-11-27",410653,"2013-06-21",3,3,"-","-","-","-","-",3,"-","-","-",3,"-","-","-","-","-",3,"-","-","-",3,"-","-","-","-","-",3,"-","-","-",3,"-","-","-","-","-",3,"-","-","-",3,"-","-","-","-","-",3,"-","-","-","Same"]
["Report","Morthyng Group Limited",53422,"Community Learning and Skills","North East, Yorkshire & Humber","Rotherham","ACL Voluntary organisation","WBL - full (regional)",452205,"2014-10-13","2014-10-17","Published","2014-11-19",363209,"2011-11-25",2,2,"-","-","-",2,"-","-","-","-","-",2,"-","-","-",2,"-","-","-","-","-",2,"-","-","-",2,"-","-","-","-","-",2,"-","-","-",2,"-","-","-","-","-",1,"-","-","-",1,"-","-","-","-","-","Same"]
["Report","Orpheus Centre",131950,"Independent Specialist College","South East","Surrey","Special College","ISC - full inspection",446687,"2014-10-21","2014-10-22","Published","2014-12-03",317375,"2007-06-08",4,3,"-","-","-",3,3,"-","-","-","-",3,"-","-","-",3,3,"-","-","-","-",3,"-","-","-",3,3,"-","-","-","-",3,"-","-","-",3,3,"-","-","-","-",3,"-","-","-",3,3,"-","-","-","-","Improved"]
["Report","CCP GRADUATE SCHOOL LTD",51090,"Independent Learning Provider","London","Brent","Independent Learning Provider","WBL - requires improvement",430251,"2014-10-20","2014-10-23","Published","2014-12-15",422425,"2013-06-21",3,3,"-","-","-",3,"-","-","-","-","-",3,"-","-","-",3,"-","-","-","-","-",2,"-","-","-",2,"-","-","-","-","-",3,"-","-","-",3,"-","-","-","-","-",2,"-","-","-",1,"-","-","-","-","-","Same"]
["Report","Central Sussex College",129383,"General Further Education/Tertiary College","South East","West Sussex","Further Education","FE College - requires improvement",430269,"2014-10-20","2014-10-24","Published","2014-11-28",409298,"2013-04-26",3,3,"-","-","-",3,3,3,"-","-","-",3,"-","-","-",3,3,4,"-","-","-",3,"-","-","-",3,3,3,"-","-","-",3,"-","-","-",3,3,3,"-","-","-",2,"-","-","-",2,2,2,"-","-","-","Same"]
["Report","Skills for Health Limited",58437,"Community Learning and Skills","South West","Bristol City of","ACL Voluntary organisation","WBL - requires improvement",430257,"2014-10-20","2014-10-24","Published","2014-11-28",410651,"2013-04-26",3,2,"-","-","-","-",2,2,"-","-","-",2,"-","-","-","-",2,2,"-","-","-",2,"-","-","-","-",2,2,"-","-","-",2,"-","-","-","-",2,2,"-","-","-",2,"-","-","-","-",2,2,"-","-","-","Improved"]
["Report","Epping Forest College",130677,"General Further Education/Tertiary College","East of England","Essex","Further Education","FE College - requires improvement",430271,"2014-10-20","2014-10-24","Published","2014-11-28",410611,"2013-05-17",3,3,"-","-","-",3,3,"-","-","-","-",3,"-","-","-",3,3,"-","-","-","-",3,"-","-","-",3,3,"-","-","-","-",2,"-","-","-",2,2,"-","-","-","-",2,"-","-","-",2,2,"-","-","-","-","Same"]
["Report","Aspire Achieve Advance Limited",59185,"Independent Learning Provider","East Midlands","Derbyshire","Independent Learning Provider","WBL - full (regional)",451933,"2014-10-20","2014-10-24","Published","2014-11-19","NULL","NULL","NULL",1,"-","-","-","-","-",1,"-","-","-",1,"-","-","-","-","-",1,"-","-","-",1,"-","-","-","-","-",1,"-","-","-",1,"-","-","-","-","-",1,"-","-","-",2,"-","-","-","-","-",2,"-","-","-","No previous inspection"]
["Report","Manor Training and Resource Centre Limited",53239,"Community Learning and Skills","North East, Yorkshire & Humber","Sheffield","ACL Voluntary organisation","Adult and Community - full (regional)",446664,"2014-10-22","2014-10-24","Published","2014-11-28",363486,"2010-11-12",2,3,"-","-","-",3,"-","-","-","-","-",3,"-","-","-",3,"-","-","-","-","-",3,"-","-","-",3,"-","-","-","-","-",3,"-","-","-",3,"-","-","-","-","-",3,"-","-","-",3,"-","-","-","-","-","Declined"]
["Report","Warrington Collegiate",130617,"General Further Education/Tertiary College","North West","Warrington","Further Education","FE College - full inspection",447146,"2014-10-20","2014-10-24","Published","2014-11-28",354448,"2010-10-22",2,3,"-","-","-",3,3,3,"-","-","-",3,"-","-","-",3,3,3,"-","-","-",3,"-","-","-",3,3,3,"-","-","-",3,"-","-","-",3,3,3,"-","-","-",2,"-","-","-",2,2,2,"-","-","-","Declined"]
["Report","City of Wolverhampton College",130484,"General Further Education/Tertiary College","West Midlands","Wolverhampton","Further Education","FE College - requires improvement",430270,"2014-10-20","2014-10-24","Published","2014-11-28",397446,"2013-05-03",3,2,"-","-","-",2,2,2,"-","-","-",3,"-","-","-",3,3,2,"-","-","-",2,"-","-","-",2,2,2,"-","-","-",2,"-","-","-",2,2,2,"-","-","-",2,"-","-","-",2,2,2,"-","-","-","Improved"]
["Report","Succead Limited",59159,"Independent Learning Provider","West Midlands","Birmingham","Independent Learning Provider","Work Based Learning - full (national)",452693,"2014-10-27","2014-10-31","Published","2014-11-21","NULL","NULL","NULL",3,"-","-","-","-","-",3,"-","-","-",3,"-","-","-","-","-",3,"-","-","-",3,"-","-","-","-","-",3,"-","-","-",3,"-","-","-","-","-",3,"-","-","-",3,"-","-","-","-","-",3,"-","-","-","No previous inspection"]
["Report","Team Enterprises Limited",58515,"Independent Learning Provider","North West","St. Helens","Independent Learning Provider","WBL - full (regional)",445777,"2014-10-27","2014-10-31","Published","2014-12-09",364590,"2011-05-06",2,3,"-","-",3,3,3,3,"-","-","-",3,"-","-",3,3,3,3,"-","-","-",3,"-","-",3,3,3,3,"-","-","-",3,"-","-",3,3,3,3,"-","-","-",3,"-","-",3,3,3,3,"-","-","-","Declined"]
["Report","MI ComputSolutions Incorporated",58370,"Independent Learning Provider","London","Lambeth","Independent Learning Provider","WBL - full (regional)",451598,"2014-10-27","2014-10-31","Published","2014-12-05",333284,"2009-08-14",2,2,"-","-","-","-",2,3,"-","-","-",2,"-","-","-","-",2,3,"-","-","-",2,"-","-","-","-",2,3,"-","-","-",2,"-","-","-","-",2,3,"-","-","-",2,"-","-","-","-",2,2,"-","-","-","Same"]
["Report","Lancashire Adult Learning",52911,"Community Learning and Skills","North West","Lancashire","ACL Local Authority","Adult and community - full (national)",446661,"2014-11-03","2014-11-07","Published","2014-12-10",330961,"2009-02-06",2,4,"-","-",4,"-",4,4,4,"-",4,3,"-","-",3,"-",3,3,3,"-",3,3,"-","-",3,"-",3,3,3,"-",3,4,"-","-",4,"-",4,4,4,"-",4,3,"-","-",3,"-",3,3,3,"-",3,"Declined"]
["Report","Amersham and Wycombe College",130608,"General Further Education/Tertiary College","South East","Buckinghamshire","Further Education","FE College - requires improvement",430268,"2014-11-03","2014-11-07","Published","2014-12-12",409443,"2013-06-07",3,3,2,"-","-",3,3,3,"-","-","-",3,1,"-","-",3,3,3,"-","-","-",3,2,"-","-",3,3,3,"-","-","-",2,2,"-","-",2,2,2,"-","-","-",2,2,"-","-",2,2,2,"-","-","-","Same"]
["Report","North Yorkshire County Council",50229,"Community Learning and Skills","North East, Yorkshire & Humber","North Yorkshire","ACL Local Authority","ACL - requires improvement",446660,"2014-11-03","2014-11-07","Published","2014-12-10",408465,"2013-05-24",3,2,"-","-","-",2,2,3,2,"-",2,2,"-","-","-",2,2,3,2,"-",2,2,"-","-","-",2,2,3,2,"-",2,2,"-","-","-",2,2,3,2,"-",2,3,"-","-","-",3,3,3,3,"-",3,"Improved"]
["Report","Bestland Solutions Limited",57838,"Independent Learning Provider","South East","Southampton","Independent Learning Provider","WBL - full (regional)",452620,"2014-11-04","2014-11-07","Published","2014-12-12","NULL","NULL","NULL",3,"-","-","-","-","-",3,"-","-","-",3,"-","-","-","-","-",3,"-","-","-",3,"-","-","-","-","-",3,"-","-","-",3,"-","-","-","-","-",3,"-","-","-",2,"-","-","-","-","-",2,"-","-","-","No previous inspection"]
["Report","Norman Mackie & Associates Limited",58507,"Independent Learning Provider","North West","Tameside","Independent Learning Provider","Work Based Learning - full (national)",451204,"2014-11-10","2014-11-12","Published","2014-12-15","NULL","NULL","NULL",2,"-","-","-","-","-","-","-","-",2,2,"-","-","-","-","-","-","-","-",2,2,"-","-","-","-","-","-","-","-",2,2,"-","-","-","-","-","-","-","-",2,1,"-","-","-","-","-","-","-","-",1,"No previous inspection"]
["Report","Communication Specialist College -  Doncaster",131869,"Independent Specialist College","North East, Yorkshire & Humber","Doncaster","Special College","ISC - full inspection",429190,"2014-11-11","2014-11-13","Published","2014-12-16",316974,"2007-10-05",2,2,"-","-","-",2,2,"-","-","-","-",2,"-","-","-",2,2,"-","-","-","-",2,"-","-","-",2,2,"-","-","-","-",2,"-","-","-",2,2,"-","-","-","-",2,"-","-","-",2,2,"-","-","-","-","Same"]
["Report","Wokingham Council",50246,"Community Learning and Skills","South East","Wokingham","ACL Local Authority","Adult and Community - full (regional)",452599,"2014-11-11","2014-11-13","Published","2014-12-23",354479,"2010-11-26",2,3,"-","-","-","-","-","-",3,"-","-",3,"-","-","-","-","-","-",3,"-","-",2,"-","-","-","-","-","-",2,"-","-",3,"-","-","-","-","-","-",3,"-","-",3,"-","-","-","-","-","-",3,"-","-","Declined"]
["Report","Central College Nottingham",130783,"General Further Education/Tertiary College","East Midlands","Nottinghamshire","Further Education","FE College - requires improvement",430278,"2014-11-10","2014-11-14","Published","2014-12-18",410618,"2013-05-24",3,3,3,"-","-",3,3,3,3,"-","-",3,3,"-","-",3,3,3,3,"-","-",3,3,"-","-",3,3,3,3,"-","-",2,2,"-","-",2,2,2,2,"-","-",2,2,"-","-",2,2,2,2,"-","-","Same"]
["Report","Compass Group UK & Ireland",58805,"Employer","South East","Surrey","Employer","WBL - requires improvement",430252,"2014-11-10","2014-11-14","Published","2014-12-19",408528,"2013-06-07",3,2,"-","-","-","-","-",2,"-","-","-",3,"-","-","-","-","-",3,"-","-","-",2,"-","-","-","-","-",2,"-","-","-",2,"-","-","-","-","-",2,"-","-","-",2,"-","-","-","-","-",2,"-","-","-","Improved"]
[{"$f":"IF(C61 <> \"\", HYPERLINK(CONCATENATE(\"http://reports.ofsted.gov.uk/inspection-reports/find-inspection-report/provider/ELS/\",C61),\"Report\"),\"\")","v":"Report"},"In Touch Care Limited",50138,"Independent Learning Provider","North East, Yorkshire & Humber","Sheffield","Independent Learning Provider","Work Based Learning - full (national)",446599,"2014-11-10","2014-11-14","Published","2014-12-19",408498,"2013-05-17",2,3,"-","-","-","-",3,3,"-","-","-",3,"-","-","-","-",3,3,"-","-","-",3,"-","-","-","-",3,3,"-","-","-",3,"-","-","-","-",3,3,"-","-","-",2,"-","-","-","-",2,2,"-","-","-",{"$f":"IF(P61=\"Null\",\"No previous inspection\",IF(Q61>P61,\"Declined\", IF(Q61=P61,\"Same\",IF(Q61<P61,\"Improved\"))))","v":"Declined"}]
["Report","Area 51 Education Ltd",139243,"Independent Specialist College","London","Haringey","Special College","ISC - full inspection",446688,"2014-11-12","2014-11-14","Published","2014-12-19","NULL","NULL","NULL",3,"-","-","-","-",3,"-","-","-","-",3,"-","-","-","-",3,"-","-","-","-",3,"-","-","-","-",3,"-","-","-","-",3,"-","-","-","-",3,"-","-","-","-",3,"-","-","-","-",3,"-","-","-","-","No previous inspection"]
["Report","Northern School of Contemporary Dance",133840,"Higher Education Institution","North East, Yorkshire & Humber","Leeds","Higher Education Institutions","FE in HE - full inspection",444690,"2014-11-11","2014-11-14","Published","2014-12-17","NULL","NULL","NULL",1,"-","-","-",1,1,"-","-","-","-",1,"-","-","-",1,1,"-","-","-","-",1,"-","-","-",1,1,"-","-","-","-",1,"-","-","-",1,1,"-","-","-","-",2,"-","-","-",2,2,"-","-","-","-","No previous inspection"]
["Report","Greenwich Community College at Plumstead Centre",130405,"General Further Education/Tertiary College","London","Greenwich","Further Education","FE College - requires improvement",430272,"2014-11-10","2014-11-14","Published","2014-12-19",410612,"2013-05-24",3,4,"-","-","-",4,4,"-","-","-","-",4,"-","-","-",4,4,"-","-","-","-",4,"-","-","-",4,4,"-","-","-","-",4,"-","-","-",4,4,"-","-","-","-",2,"-","-","-",2,2,"-","-","-","-","Declined"]
["Report","Adult Community Learning Essex",51766,"Community Learning and Skills","East of England","Essex","ACL Local Authority","Adult and Community - full (regional)",423415,"2014-11-10","2014-11-14","Published","2014-12-19",331440,"2009-06-05",1,3,"-","-","-","-",3,3,3,"-","-",3,"-","-","-","-",3,3,3,"-","-",3,"-","-","-","-",3,2,2,"-","-",3,"-","-","-","-",3,3,3,"-","-",2,"-","-","-","-",2,2,2,"-","-","Declined"]
["Report","S.Y.T.G. Limited",54504,"Independent Learning Provider","North East, Yorkshire & Humber","Sheffield","Independent Learning Provider","WBL - requires improvement",430256,"2014-11-11","2014-11-14","Published","2014-12-17",410692,"2013-05-17",3,2,"-","-","-",2,"-","-","-","-","-",2,"-","-","-",2,"-","-","-","-","-",2,"-","-","-",2,"-","-","-","-","-",3,"-","-","-",3,"-","-","-","-","-",2,"-","-","-",2,"-","-","-","-","-","Improved"]
["Report","Haringey London Borough Council",53124,"Community Learning and Skills","London","Haringey","ACL Local Authority","ACL - requires improvement",430294,"2014-11-10","2014-11-14","Published","2014-12-19",410633,"2013-05-17",3,3,"-","-","-","-","-","-",3,"-","-",3,"-","-","-","-","-","-",3,"-","-",3,"-","-","-","-","-","-",3,"-","-",3,"-","-","-","-","-","-",3,"-","-",3,"-","-","-","-","-","-",3,"-","-","Same"]
["Report","GHQ Training Limited",51961,"Independent Learning Provider","South West","Plymouth","Independent Learning Provider","WBL - full (regional)",445774,"2014-11-17","2014-11-20","Published","2014-12-25",376246,"2011-11-25",2,2,"-","-","-","-","-",2,"-","-","-",2,"-","-","-","-","-",2,"-","-","-",2,"-","-","-","-","-",2,"-","-","-",2,"-","-","-","-","-",2,"-","-","-",3,"-","-","-","-","-",3,"-","-","-","Same"]
["Report","Retail Motor Industry Training Limited",58614,"Independent Learning Provider","East Midlands","Nottingham","Independent Learning Provider","WBL - requires improvement",429794,"2014-11-17","2014-11-21","Published","2014-12-23",410650,"2013-07-19",3,2,"-","-","-","-","-",2,"-","-","-",2,"-","-","-","-","-",2,"-","-","-",2,"-","-","-","-","-",2,"-","-","-",1,"-","-","-","-","-",1,"-","-","-",1,"-","-","-","-","-",1,"-","-","-","Improved"]
["Report","The Cornwall Council",51349,"Community Learning and Skills","South West","Cornwall","ACL Local Authority","ACL - requires improvement",430293,"2014-11-17","2014-11-21","Published","2015-01-14",410630,"2013-06-07",3,2,"-","-","-","-",2,"-",2,"-","-",2,"-","-","-","-",2,"-",2,"-","-",2,"-","-","-","-",2,"-",2,"-","-",2,"-","-","-","-",2,"-",2,"-","-",3,"-","-","-","-",3,"-",3,"-","-","Improved"]
["Report","Huntingdonshire Regional College",130612,"General Further Education/Tertiary College","East of England","Cambridgeshire","Further Education","FE College - requires improvement",430273,"2014-11-17","2014-11-21","Published","2014-12-17",409318,"2013-06-07",3,3,"-","-","-",3,3,3,"-","-","-",3,"-","-","-",3,2,3,"-","-","-",3,"-","-","-",3,3,3,"-","-","-",3,"-","-","-",3,3,3,"-","-","-",2,"-","-","-",2,2,2,"-","-","-","Same"]
["Report","Barnfield College",130599,"General Further Education/Tertiary College","East of England","Luton","Further Education","FE College - full inspection",447145,"2014-11-17","2014-11-21","Published","2015-01-08",388000,"2012-04-27",3,4,"-","-","-",4,4,"-","-","-","-",4,"-","-","-",4,4,"-","-","-","-",4,"-","-","-",4,4,"-","-","-","-",4,"-","-","-",4,4,"-","-","-","-",3,"-","-","-",3,3,"-","-","-","-","Declined"]
["Report","South Gloucestershire and Stroud College",139238,"General Further Education/Tertiary College","South West","South Gloucestershire","Further Education","FE College - full inspection",452493,"2014-11-17","2014-11-21","Published","2014-12-23","NULL","NULL","NULL",2,2,"-","-",2,2,2,2,"-",1,2,2,"-","-",2,2,2,2,"-",1,2,2,"-","-",2,2,2,2,"-",1,1,1,"-","-",1,1,1,1,"-",1,2,2,"-","-",2,2,2,2,"-",2,"No previous inspection"]
["Report","Roots and Shoots",54175,"Community Learning and Skills","London","Lambeth","ACL Voluntary organisation","WBL - full (regional)",434051,"2014-11-24","2014-11-27","Published","2015-01-15",376248,"2011-12-01",1,2,"-","-","-",2,"-","-","-","-","-",2,"-","-","-",2,"-","-","-","-","-",2,"-","-","-",2,"-","-","-","-","-",2,"-","-","-",2,"-","-","-","-","-",2,"-","-","-",2,"-","-","-","-","-","Declined"]
["Report","Economic Solutions Limited (Manchester Solutions)",53233,"Independent Learning Provider","North West","Manchester","Independent Learning Provider","Work Based Learning - full (national)",443658,"2014-11-24","2014-11-28","Published","2014-12-24",388120,"2012-06-29",2,3,"-","-",3,3,3,3,"-","-","-",3,"-","-",3,3,3,3,"-","-","-",3,"-","-",3,3,3,3,"-","-","-",3,"-","-",3,3,3,3,"-","-","-",2,"-","-",2,2,2,2,"-","-","-","Declined"]
["Report","Sunderland City Metropolitan Borough Council",54666,"Community Learning and Skills","North East, Yorkshire & Humber","Sunderland","ACL Local Authority","Adult and Community - full (regional)",446667,"2014-11-24","2014-11-28","Published","2014-12-24",320960,"2008-11-28",2,2,"-","-","-","-",2,2,2,"-",2,2,"-","-","-","-",2,2,2,"-",2,2,"-","-","-","-",2,2,2,"-",2,2,"-","-","-","-",2,2,2,"-",2,2,"-","-","-","-",2,2,2,"-",2,"Same"]
["Report","South Leicestershire College",130750,"General Further Education/Tertiary College","East Midlands","Leicestershire","Further Education","FE College - requires improvement",430277,"2014-11-24","2014-11-28","Published","2015-01-07",410617,"2013-06-14",3,2,"-","-","-",2,2,2,"-","-","-",2,"-","-","-",2,2,2,"-","-","-",2,"-","-","-",2,2,2,"-","-","-",2,"-","-","-",2,2,2,"-","-","-",2,"-","-","-",2,2,2,"-","-","-","Improved"]
["Report","Barford Education and Training (North East) Limited",55459,"Independent Learning Provider","East of England","Essex","Independent Learning Provider","WBL - requires improvement",430250,"2014-11-24","2014-11-28","Published","2015-01-07",423508,"2013-06-07",3,4,"-","-","-","-","-",4,"-","-",4,4,"-","-","-","-","-",4,"-","-",4,4,"-","-","-","-","-",4,"-","-",4,4,"-","-","-","-","-",4,"-","-",4,2,"-","-","-","-","-",2,"-","-",2,"Declined"]
["Report","London Learning Consortium Community Interest Company",58611,"Community Learning and Skills","London","Croydon","ACL Voluntary organisation","WBL - requires improvement",430254,"2014-11-24","2014-11-28","Published","2015-01-13",399131,"2013-06-28",3,2,"-","-","-","-",2,2,"-","-","-",2,"-","-","-","-",2,2,"-","-","-",2,"-","-","-","-",2,2,"-","-","-",2,"-","-","-","-",2,2,"-","-","-",2,"-","-","-","-",2,2,"-","-","-","Improved"]
["Report","Alpha Building Services Engineering Ltd",59178,"Independent Learning Provider","London","Newham","Independent Learning Provider","WBL - full (regional)",446621,"2014-11-24","2014-11-28","Published","2015-02-18","NULL","NULL","NULL",4,"-","-","-","-","-",4,"-","-","-",4,"-","-","-","-","-",4,"-","-","-",4,"-","-","-","-","-",4,"-","-","-",4,"-","-","-","-","-",4,"-","-","-",3,"-","-","-","-","-",3,"-","-","-","No previous inspection"]
["Report","Rocket Training Limited",54158,"Independent Learning Provider","North West","Liverpool","Independent Learning Provider","WBL - requires improvement",446603,"2014-11-24","2014-11-28","Published","2014-12-24",410691,"2013-06-28",3,3,"-","-","-",2,"-",3,"-","-","-",3,"-","-","-",2,"-",3,"-","-","-",3,"-","-","-",2,"-",3,"-","-","-",3,"-","-","-",2,"-",3,"-","-","-",2,"-","-","-",2,"-",2,"-","-","-","Same"]
["Report","Brinsworth Training Limited",58933,"Independent Learning Provider","North East, Yorkshire & Humber","Rotherham","Independent Learning Provider","WBL - full (regional)",454945,"2014-11-25","2014-11-28","Published","2014-12-24",376231,"2011-10-28",2,3,"-","-","-","-","-",3,"-","-","-",3,"-","-","-","-","-",3,"-","-","-",3,"-","-","-","-","-",3,"-","-","-",3,"-","-","-","-","-",3,"-","-","-",2,"-","-","-","-","-",2,"-","-","-","Declined"]
["Report","Sheiling College",139249,"Independent Specialist College","South West","Dorset","Special College","ISC - full inspection",451325,"2014-12-02","2014-12-03","Published","2015-01-12","NULL","NULL","NULL",2,"-","-","-","-",2,"-","-","-","-",2,"-","-","-","-",2,"-","-","-","-",2,"-","-","-","-",2,"-","-","-","-",2,"-","-","-","-",2,"-","-","-","-",2,"-","-","-","-",2,"-","-","-","-","No previous inspection"]
["Report","Strategic Training Solutions (Mansfield) Limited",54643,"Independent Learning Provider","East Midlands","Nottinghamshire","Independent Learning Provider","WBL - requires improvement",430260,"2014-12-02","2014-12-04","Published","2015-01-13",408544,"2013-06-27",3,3,"-","-","-",3,"-","-","-","-","-",3,"-","-","-",3,"-","-","-","-","-",3,"-","-","-",3,"-","-","-","-","-",3,"-","-","-",3,"-","-","-","-","-",2,"-","-","-",2,"-","-","-","-","-","Same"]
["Report","Venture Learning Limited",55208,"Independent Learning Provider","North West","Wigan","Independent Learning Provider","WBL - full (regional)",429009,"2014-12-01","2014-12-04","Published","2015-01-21",330959,"2009-01-16",1,4,"-","-","-","-","-",4,"-","-","-",4,"-","-","-","-","-",4,"-","-","-",4,"-","-","-","-","-",4,"-","-","-",4,"-","-","-","-","-",4,"-","-","-",4,"-","-","-","-","-",4,"-","-","-","Declined"]
["Report","Hounslow Adult and Community Education",53132,"Community Learning and Skills","London","Hounslow","ACL Local Authority","Adult and Community - full (regional)",446662,"2014-12-01","2014-12-05","Published","2015-01-14",329193,"2008-12-05",2,2,"-","-","-","-",2,"-",2,"-","-",2,"-","-","-","-",2,"-",2,"-","-",2,"-","-","-","-",2,"-",2,"-","-",2,"-","-","-","-",2,"-",2,"-","-",2,"-","-","-","-",2,"-",2,"-","-","Same"]
["Report","Expedient Training Services Limited",51800,"Independent Learning Provider","North East, Yorkshire & Humber","South Tyneside","Independent Learning Provider","WBL - requires improvement",430253,"2014-12-02","2014-12-05","Published","2015-01-07",408494,"2013-06-14",3,3,"-","-","-","-","-",3,"-","-","-",2,"-","-","-","-","-",2,"-","-","-",2,"-","-","-","-","-",2,"-","-","-",3,"-","-","-","-","-",3,"-","-","-",2,"-","-","-","-","-",2,"-","-","-","Same"]
["Report","Options 2 Workplace Learning Ltd",58938,"Independent Learning Provider","East Midlands","Northamptonshire","Independent Learning Provider","WBL - full (regional)",452625,"2014-12-02","2014-12-05","Published","2015-01-08","NULL","NULL","NULL",3,"-","-","-","-","-",3,"-","-","-",3,"-","-","-","-","-",3,"-","-","-",3,"-","-","-","-","-",3,"-","-","-",3,"-","-","-","-","-",3,"-","-","-",2,"-","-","-","-","-",2,"-","-","-","No previous inspection"]
["Report","Four Counties Training Limited",51893,"Independent Learning Provider","London","Ealing","Independent Learning Provider","Work Based Learning - full (national)",446601,"2014-12-01","2014-12-05","Published","2015-01-21",321281,"2008-02-08",1,4,"-","-","-","-",4,4,"-","-","-",4,"-","-","-","-",4,4,"-","-","-",4,"-","-","-","-",4,4,"-","-","-",4,"-","-","-","-",4,4,"-","-","-",3,"-","-","-","-",3,3,"-","-","-","Declined"]
["Report","Mainstream Training Limited",58362,"Independent Learning Provider","South East","Kent","Independent Learning Provider","Work Based Learning - full (national)",446612,"2014-12-01","2014-12-05","Published","2015-01-15",330084,"2008-12-11",2,2,"-","-","-","-","-",2,"-","-",2,2,"-","-","-","-","-",2,"-","-",2,2,"-","-","-","-","-",2,"-","-",2,2,"-","-","-","-","-",2,"-","-",2,2,"-","-","-","-","-",2,"-","-",2,"Same"]
[{"$f":"IF(C91 <> \"\", HYPERLINK(CONCATENATE(\"http://reports.ofsted.gov.uk/inspection-reports/find-inspection-report/provider/ELS/\",C91),\"Report\"),\"\")","v":"Report"},"Lowestoft College",130819,"General Further Education/Tertiary College","East of England","Suffolk","Further Education","FE College - requires improvement",430274,"2014-12-02","2014-12-05","Published","2015-01-14",409321,"2013-06-14",3,3,"-","-","-",3,3,2,"-","-","-",3,"-","-","-",3,3,2,"-","-","-",3,"-","-","-",3,3,2,"-","-","-",3,"-","-","-",3,3,2,"-","-","-",2,"-","-","-",2,2,2,"-","-","-",{"$f":"IF(P91=\"Null\",\"No previous inspection\",IF(Q91>P91,\"Declined\", IF(Q91=P91,\"Same\",IF(Q91<P91,\"Improved\"))))","v":"Same"}]
["Report","New College Swindon",130851,"General Further Education/Tertiary College","South West","Swindon","Further Education","FE College - full inspection",446541,"2014-12-01","2014-12-05","Published","2015-01-14",332873,"2009-01-23",2,2,"-","-","-",2,2,1,"-","-","-",2,"-","-","-",2,2,1,"-","-","-",2,"-","-","-",2,2,1,"-","-","-",2,"-","-","-",2,2,1,"-","-","-",2,"-","-","-",2,2,2,"-","-","-","Same"]
["Report","Worcestershire County Council",55422,"Community Learning and Skills","West Midlands","Worcestershire","ACL Local Authority","Adult and Community - full (regional)",451949,"2014-12-02","2014-12-05","Published","2015-01-07",375496,"2011-11-18",2,3,"-","-",3,4,2,"-",2,"-","-",3,"-","-",3,4,3,"-",2,"-","-",3,"-","-",3,3,2,"-",2,"-","-",3,"-","-",3,4,2,"-",2,"-","-",2,"-","-",2,2,2,"-",2,"-","-","Declined"]
["Report","The Academy Hair & Beauty Ltd",54803,"Independent Learning Provider","North East, Yorkshire & Humber","North Yorkshire","Independent Learning Provider","WBL - full (regional)",452617,"2014-12-09","2014-12-11","Published","2015-01-16",318271,"2008-01-16",1,1,"-","-","-","-","-",1,"-","-","-",1,"-","-","-","-","-",1,"-","-","-",1,"-","-","-","-","-",1,"-","-","-",1,"-","-","-","-","-",1,"-","-","-",1,"-","-","-","-","-",1,"-","-","-","Same"]
["Report","Ministry of Defence (RAF)",54191,"Employer","South West","Gloucestershire","Employer","Work Based Learning - full (national)",446605,"2014-12-08","2014-12-12","Published","2015-01-21",330030,"2009-01-16",2,1,"-","-","-","-","-",1,"-","-","-",1,"-","-","-","-","-",1,"-","-","-",1,"-","-","-","-","-",1,"-","-","-",1,"-","-","-","-","-",1,"-","-","-",2,"-","-","-","-","-",2,"-","-","-","Improved"]
["Report","Wandsworth London Borough Council",53152,"Community Learning and Skills","London","Wandsworth","ACL Local Authority","Adult and Community - full (regional)",446663,"2014-12-08","2014-12-12","Published","2015-01-21",345790,"2010-04-30",2,4,"-","-","-","-","-",4,4,"-","-",3,"-","-","-","-","-",3,2,"-","-",3,"-","-","-","-","-",3,2,"-","-",4,"-","-","-","-","-",4,4,"-","-",4,"-","-","-","-","-",4,4,"-","-","Declined"]
["Report","Lambeth College",130413,"General Further Education/Tertiary College","London","Lambeth","Further Education","FE College - requires improvement",429287,"2014-12-08","2014-12-12","Published","2015-01-23",397442,"2013-03-22",3,3,"-","-","-",3,3,"-","-","-","-",4,"-","-","-",4,4,"-","-","-","-",3,"-","-","-",3,3,"-","-","-","-",3,"-","-","-",3,3,"-","-","-","-",2,"-","-","-",2,2,"-","-","-","-","Same"]
["Report","Wolverhampton Adult Education Service",55413,"Community Learning and Skills","West Midlands","Wolverhampton","ACL Local Authority","Adult and Community - full (regional)",446669,"2014-12-08","2014-12-12","Published","2015-01-15",331468,"2009-01-23",2,1,"-","-","-",1,1,"-",1,"-",1,1,"-","-","-",1,1,"-",1,"-",1,1,"-","-","-",1,1,"-",1,"-",1,1,"-","-","-",1,1,"-",1,"-",1,2,"-","-","-",2,2,"-",2,"-",2,"Improved"]
["Report","Stockport College",130512,"General Further Education/Tertiary College","North West","Stockport","Further Education","FE College - reinspection",433764,"2014-12-08","2014-12-12","Published","2015-01-15",427743,"2013-10-04",4,3,3,"-","-",3,3,3,"-","-",3,3,3,"-","-",3,3,3,"-","-",3,3,3,"-","-",3,3,3,"-","-",3,3,3,"-","-",3,3,3,"-","-",3,2,2,"-","-",2,2,2,"-","-",2,"Improved"]
[{"$f":"IF(C100 <> \"\", HYPERLINK(CONCATENATE(\"http://reports.ofsted.gov.uk/inspection-reports/find-inspection-report/provider/ELS/\",C100),\"Report\"),\"\")","v":"Report"},"Targeted Training Projects Limited",54744,"Independent Learning Provider","West Midlands","Dudley","Independent Learning Provider","WBL - full (regional)",446606,"2014-12-08","2014-12-12","Published","2015-01-27",307075,"2006-07-21",3,4,"-","-","-","-","-",4,"-","-","-",4,"-","-","-","-","-",4,"-","-","-",4,"-","-","-","-","-",4,"-","-","-",4,"-","-","-","-","-",4,"-","-","-",4,"-","-","-","-","-",4,"-","-","-",{"$f":"IF(P100=\"Null\",\"No previous inspection\",IF(Q100>P100,\"Declined\", IF(Q100=P100,\"Same\",IF(Q100<P100,\"Improved\"))))","v":"Declined"}]
["Report","East Surrey College",130824,"General Further Education/Tertiary College","South East","Surrey","Further Education","FE College - full inspection",446540,"2014-12-09","2014-12-12","Published","2015-01-21",329158,"2009-01-16",2,2,1,"-",2,2,2,3,"-","-","-",2,1,"-",2,2,2,3,"-","-","-",2,2,"-",2,2,2,3,"-","-","-",2,1,"-",2,2,2,2,"-","-","-",2,2,"-",2,2,2,2,"-","-","-","Same"]
["Report","SBC Training Limited",54277,"Independent Learning Provider","West Midlands","Shropshire","Independent Learning Provider","Work Based Learning - full (national)",446604,"2014-12-08","2014-12-12","Published","2015-01-16",345866,"2010-07-09",2,3,"-","-",2,"-","-",3,"-","-","-",3,"-","-",2,"-","-",3,"-","-","-",3,"-","-",2,"-","-",3,"-","-","-",3,"-","-",2,"-","-",3,"-","-","-",2,"-","-",2,"-","-",2,"-","-","-","Declined"]
["Report","Chamber Training (Humber) Limited",51104,"Independent Learning Provider","North East, Yorkshire & Humber","Kingston upon Hull City of","Independent Learning Provider","WBL - requires improvement",429795,"2015-01-12","2015-01-16","Published","2015-02-23",404575,"2013-07-19",3,2,"-","-","-","-",2,2,"-","-","-",2,"-","-","-","-",2,2,"-","-","-",2,"-","-","-","-",2,2,"-","-","-",2,"-","-","-","-",2,2,"-","-","-",2,"-","-","-","-",2,2,"-","-","-","Improved"]
["Report","East London Advanced Technology Training",51646,"Community Learning and Skills","London","Hackney","ACL Voluntary organisation","Adult and Community - full (regional)",452602,"2015-01-14","2015-01-16","Published","2015-02-20",334063,"2009-04-24",2,1,"-","-","-","-",1,"-","-","-","-",1,"-","-","-","-",1,"-","-","-","-",1,"-","-","-","-",1,"-","-","-","-",1,"-","-","-","-",1,"-","-","-","-",2,"-","-","-","-",2,"-","-","-","-","Improved"]
["Report","Weymouth College",130653,"General Further Education/Tertiary College","South West","Dorset","Further Education","FE College - requires improvement",430282,"2015-01-13","2015-01-16","Published","2015-02-20",409327,"2013-06-07",3,4,4,"-","-",4,4,4,"-","-",4,2,2,"-","-",2,2,2,"-","-",2,2,2,"-","-",2,2,2,"-","-",2,4,4,"-","-",4,4,4,"-","-",4,2,2,"-","-",2,2,2,"-","-",2,"Declined"]
["Report","GI Group",59190,"Employer","East Midlands","Derbyshire","Employer","WBL - full (regional)",452631,"2015-01-13","2015-01-16","Published","2015-02-26","NULL","NULL","NULL",3,"-","-","-","-","-",3,"-","-","-",3,"-","-","-","-","-",3,"-","-","-",3,"-","-","-","-","-",3,"-","-","-",3,"-","-","-","-","-",3,"-","-","-",2,"-","-","-","-","-",2,"-","-","-","No previous inspection"]
["Report","The Maltings College",139433,"Free School - 16-19","North East, Yorkshire & Humber","Calderdale","Free School - 16-19","16-19 academy - full inspection",452498,"2015-01-13","2015-01-16","Published","2015-02-27","NULL","NULL","NULL",4,2,"-","-",4,"-","-","-","-","-",4,2,"-","-",4,"-","-","-","-","-",4,2,"-","-",4,"-","-","-","-","-",4,2,"-","-",4,"-","-","-","-","-",3,3,"-","-",3,"-","-","-","-","-","No previous inspection"]
["Report","Community Training Services Limited",51259,"Independent Learning Provider","North East, Yorkshire & Humber","Sheffield","Independent Learning Provider","WBL - full (regional)",452979,"2015-01-12","2015-01-16","Published","2015-02-24",363219,"2011-01-21",2,2,"-","-","-",2,2,2,"-","-","-",3,"-","-","-",3,3,3,"-","-","-",2,"-","-","-",2,2,2,"-","-","-",2,"-","-","-",2,2,2,"-","-","-",2,"-","-","-",2,2,2,"-","-","-","Same"]
["Report","The Child Care Company (Old Windsor) Limited",58467,"Independent Learning Provider","South East","Slough","Independent Learning Provider","WBL - full (regional)",446611,"2015-01-19","2015-01-22","Published","2015-02-26","NULL","NULL","NULL",2,"-","-","-","-","-",2,"-","-","-",2,"-","-","-","-","-",2,"-","-","-",2,"-","-","-","-","-",2,"-","-","-",2,"-","-","-","-","-",2,"-","-","-",2,"-","-","-","-","-",2,"-","-","-","No previous inspection"]
["Report","The Shropshire Council",54373,"Community Learning and Skills","West Midlands","Shropshire","ACL Voluntary organisation","ACL - requires improvement",440287,"2015-01-19","2015-01-23","Published","2015-03-03",423424,"2013-11-01",3,2,"-","-","-",2,2,2,2,"-",2,2,"-","-","-",2,2,2,2,"-",2,2,"-","-","-",2,2,2,2,"-",2,1,"-","-","-",1,1,1,1,"-",1,1,"-","-","-",1,1,1,1,"-",1,"Improved"]
["Report","Kingston University",133825,"Higher Education Institution","London","Kingston Upon Thames","Higher Education Institutions","FE in HE - full inspection",446542,"2015-01-20","2015-01-23","Published","2015-03-02","NULL","NULL","NULL",1,"-","-","-",1,1,"-","-","-","-",1,"-","-","-",1,1,"-","-","-","-",1,"-","-","-",1,1,"-","-","-","-",1,"-","-","-",1,1,"-","-","-","-",2,"-","-","-",2,2,"-","-","-","-","No previous inspection"]
["Report","The Virtual College",54946,"Independent Learning Provider","North East, Yorkshire & Humber","Bradford","Independent Learning Provider","Work Based Learning - full (national)",446608,"2015-01-19","2015-01-23","Published","2015-03-03",330940,"2009-01-16",2,3,"-","-","-","-",3,3,"-","-",3,2,"-","-","-","-",2,2,"-","-",2,2,"-","-","-","-",2,2,"-","-",2,3,"-","-","-","-",3,3,"-","-",3,3,"-","-","-","-",3,3,"-","-",3,"Declined"]
["Report","Aspiration Training Limited",57680,"Independent Learning Provider","West Midlands","Worcestershire","Independent Learning Provider","WBL - requires improvement",429796,"2015-01-19","2015-01-23","Published","2015-03-03",410641,"2013-07-26",3,3,"-","-","-","-","-",3,"-","-","-",3,"-","-","-","-","-",3,"-","-","-",3,"-","-","-","-","-",3,"-","-","-",3,"-","-","-","-","-",3,"-","-","-",2,"-","-","-","-","-",2,"-","-","-","Same"]
["Report","Trafford College",130519,"General Further Education/Tertiary College","North West","Trafford","Further Education","FE College - full inspection",452485,"2015-01-19","2015-01-23","Published","2015-03-02",332998,"2009-05-01",1,2,"-","-","-",2,2,2,"-","-","-",2,"-","-","-",2,2,2,"-","-","-",2,"-","-","-",2,2,2,"-","-","-",2,"-","-","-",2,2,2,"-","-","-",2,"-","-","-",2,2,2,"-","-","-","Declined"]
["Report","Bilborough College",130787,"Sixth Form College","East Midlands","Nottingham","Further Education","SFC - full inspection",452491,"2015-01-20","2015-01-23","Published","2015-03-06",331246,"2009-03-25",2,3,"-","-","-",3,"-","-","-","-","-",3,"-","-","-",3,"-","-","-","-","-",3,"-","-","-",3,"-","-","-","-","-",3,"-","-","-",3,"-","-","-","-","-",2,"-","-","-",2,"-","-","-","-","-","Declined"]
["Report","Durham County Council",50219,"Community Learning and Skills","North East, Yorkshire & Humber","Durham","ACL Local Authority","ACL - requires improvement",434393,"2015-01-19","2015-01-23","Published","2015-03-06",423431,"2013-10-11",3,2,"-","-","-","-",2,1,2,"-","-",2,"-","-","-","-",2,1,2,"-","-",2,"-","-","-","-",2,1,2,"-","-",2,"-","-","-","-",2,2,2,"-","-",2,"-","-","-","-",2,2,2,"-","-","Improved"]
["Report","The Mary Ward Centre (AE Centre)",130404,"Community Learning and Skills","London","Camden","ACL Specialist Designated Institute","Adult and Community - full (regional)",452634,"2015-01-19","2015-01-23","Published","2015-02-27",330812,"2009-02-27",2,2,"-","-","-","-","-","-",2,"-","-",2,"-","-","-","-","-","-",2,"-","-",2,"-","-","-","-","-","-",2,"-","-",2,"-","-","-","-","-","-",2,"-","-",2,"-","-","-","-","-","-",2,"-","-","Same"]
["Report","Staffline Recruitment Limited",59075,"Independent Learning Provider","East Midlands","Nottingham","Independent Learning Provider","WBL - requires improvement",433768,"2015-01-20","2015-01-23","Published","2015-03-02",424465,"2013-09-27",3,2,"-","-","-","-","-",2,"-","-","-",2,"-","-","-","-","-",2,"-","-","-",2,"-","-","-","-","-",2,"-","-","-",2,"-","-","-","-","-",2,"-","-","-",2,"-","-","-","-","-",2,"-","-","-","Improved"]
["Report","E.ON UK Plc",58731,"Employer","East Midlands","Nottinghamshire","Employer","WBL - full (regional)",452990,"2015-01-20","2015-01-23","Published","2015-03-12",376207,"2011-12-09",2,3,"-","-","-","-","-",3,"-","-","-",3,"-","-","-","-","-",3,"-","-","-",3,"-","-","-","-","-",3,"-","-","-",3,"-","-","-","-","-",3,"-","-","-",2,"-","-","-","-","-",2,"-","-","-","Declined"]
["Report","G B Training (UK) Ltd",51944,"Independent Learning Provider","West Midlands","Birmingham","Independent Learning Provider","WBL - full (regional)",452603,"2015-01-19","2015-01-23","Published","2015-03-03",307094,"2006-09-07",3,2,"-","-","-","-","-",2,"-","-","-",2,"-","-","-","-","-",2,"-","-","-",2,"-","-","-","-","-",2,"-","-","-",2,"-","-","-","-","-",2,"-","-","-",2,"-","-","-","-","-",2,"-","-","-","Improved"]
["Report","NCC Adult Education Services",53545,"Community Learning and Skills","East of England","Norfolk","ACL Local Authority","Adult and Community - full (regional)",452610,"2015-01-19","2015-01-23","Published","2015-03-09",375495,"2011-11-25",2,4,"-","-","-","-",4,"-",4,"-","-",3,"-","-","-","-",3,"-",3,"-","-",3,"-","-","-","-",3,"-",3,"-","-",4,"-","-","-","-",4,"-",4,"-","-",2,"-","-","-","-",2,"-",2,"-","-","Declined"]
["Report","Baltic Training Services Limited",58229,"Independent Learning Provider","North East, Yorkshire & Humber","Durham","Independent Learning Provider","Work Based Learning - full (national)",452988,"2015-01-19","2015-01-23","Published","2015-03-02",333485,"2009-08-21",2,2,"-","-",2,"-","-",2,"-","-",2,2,"-","-",2,"-","-",2,"-","-",2,2,"-","-",2,"-","-",2,"-","-",2,2,"-","-",2,"-","-",2,"-","-",2,2,"-","-",2,"-","-",2,"-","-",2,"Same"]
["Report","DBC Training",59167,"Independent Learning Provider","East Midlands","Derby","Independent Learning Provider","WBL - full (regional)",456390,"2015-01-27","2015-01-29","Published","2015-03-05","NULL","NULL","NULL",3,"-","-","-","-","-",3,"-","-","-",3,"-","-","-","-","-",3,"-","-","-",3,"-","-","-","-","-",3,"-","-","-",2,"-","-","-","-","-",2,"-","-","-",2,"-","-","-","-","-",2,"-","-","-","No previous inspection"]
["Report","Newbury College",130602,"General Further Education/Tertiary College","South East","West Berkshire","Further Education","FE College - full inspection",452486,"2015-01-27","2015-01-30","Published","2015-03-10",342293,"2009-11-13",2,2,"-","-","-",2,2,"-","-","-","-",2,"-","-","-",2,2,"-","-","-","-",2,"-","-","-",2,2,"-","-","-","-",2,"-","-","-",2,2,"-","-","-","-",2,"-","-","-",2,2,"-","-","-","-","Same"]
["Report","KATS Ltd",58323,"Independent Learning Provider","South East","Hampshire","Independent Learning Provider","WBL - full (regional)",452621,"2015-01-27","2015-01-30","Published","2015-03-25",333270,"2009-08-07",2,4,"-","-",4,"-","-",4,"-","-","-",4,"-","-",4,"-","-",4,"-","-","-",4,"-","-",4,"-","-",4,"-","-","-",4,"-","-",4,"-","-",4,"-","-","-",3,"-","-",3,"-","-",3,"-","-","-","Declined"]
["Report","Hereward College of Further Education",130474,"General Further Education/Tertiary College","West Midlands","Coventry","Further Education","FE College - requires improvement",452778,"2015-01-27","2015-01-30","Published","2015-03-06",423397,"2013-09-19",3,2,"-","-","-",2,2,3,"-","-","-",3,"-","-","-",3,3,3,"-","-","-",2,"-","-","-",2,2,3,"-","-","-",2,"-","-","-",2,2,3,"-","-","-",2,"-","-","-",2,2,2,"-","-","-","Improved"]
["Report","Connell Sixth Form College",139730,"Free School - 16-19","North West","Manchester","Free School - 16-19","16-19 academy - full inspection",452499,"2015-01-27","2015-01-30","Published","2015-03-17","NULL","NULL","NULL",3,"-","-","-",3,"-","-","-","-","-",3,"-","-","-",3,"-","-","-","-","-",3,"-","-","-",3,"-","-","-","-","-",3,"-","-","-",3,"-","-","-","-","-",3,"-","-","-",3,"-","-","-","-","-","No previous inspection"]
[{"$f":"IF(C128 <> \"\", HYPERLINK(CONCATENATE(\"http://reports.ofsted.gov.uk/inspection-reports/find-inspection-report/provider/ELS/\",C128),\"Report\"),\"\")","v":"Report"},"Stem Academy",139793,"Free School - 16-19","London","Islington","Free School - 16-19","16-19 academy - full inspection",452500,"2015-01-27","2015-01-30","Published","2015-03-26","NULL","NULL","NULL",4,"-","-","-",4,"-","-","-","-","-",4,"-","-","-",4,"-","-","-","-","-",4,"-","-","-",4,"-","-","-","-","-",4,"-","-","-",4,"-","-","-","-","-",3,"-","-","-",3,"-","-","-","-","-",{"$f":"IF(P128=\"Null\",\"No previous inspection\",IF(Q128>P128,\"Declined\", IF(Q128=P128,\"Same\",IF(Q128<P128,\"Improved\"))))","v":"No previous inspection"}]
["Report","Anderson Stockley Accredited Training Ltd",50410,"Independent Learning Provider","East Midlands","Northamptonshire","Independent Learning Provider","Work Based Learning - full (national)",452600,"2015-02-03","2015-02-05","Published","2015-03-12",329928,"2008-10-24",3,3,"-","-","-","-","-",3,"-","-","-",3,"-","-","-","-","-",3,"-","-","-",3,"-","-","-","-","-",3,"-","-","-",3,"-","-","-","-","-",3,"-","-","-",3,"-","-","-","-","-",3,"-","-","-","Same"]
["Report","lookfantastic Training Limited",53697,"Independent Learning Provider","South East","Brighton and Hove","Independent Learning Provider","Work Based Learning - full (national)",452613,"2015-02-02","2015-02-06","Published","2015-03-16",382484,"2011-06-24",2,3,"-","-","-","-",3,3,"-","-","-",3,"-","-","-","-",3,3,"-","-","-",2,"-","-","-","-",2,2,"-","-","-",3,"-","-","-","-",3,3,"-","-","-",3,"-","-","-","-",3,3,"-","-","-","Declined"]
["Report","Nottingham City Council",53664,"Community Learning and Skills","East Midlands","Nottingham","ACL Local Authority","Adult and Community - full (regional)",423419,"2015-02-04","2015-02-06","Published","2015-03-13",329892,"2008-11-28",2,2,"-","-","-","-","-","-",2,"-","-",2,"-","-","-","-","-","-",2,"-","-",2,"-","-","-","-","-","-",2,"-","-",2,"-","-","-","-","-","-",2,"-","-",2,"-","-","-","-","-","-",2,"-","-","Same"]
["Report","Avanta Enterprise Limited",59173,"Independent Learning Provider","London","Westminster","Independent Learning Provider","Work Based Learning - full (national)",452630,"2015-02-02","2015-02-06","Published","2015-03-16","NULL","NULL","NULL",2,"-","-","-","-","-",2,"-","-",2,2,"-","-","-","-","-",2,"-","-",2,2,"-","-","-","-","-",2,"-","-",2,2,"-","-","-","-","-",2,"-","-",2,2,"-","-","-","-","-",2,"-","-",2,"No previous inspection"]
["Report","Straight A Training Limited",54640,"Independent Learning Provider","South East","Surrey","Independent Learning Provider","WBL - full (regional)",452981,"2015-02-03","2015-02-06","Published","2015-03-16",342602,"2009-12-11",2,3,"-","-","-","-","-",3,"-","-","-",2,"-","-","-","-","-",2,"-","-","-",3,"-","-","-","-","-",3,"-","-","-",3,"-","-","-","-","-",3,"-","-","-",3,"-","-","-","-","-",3,"-","-","-","Declined"]
["Report","Training 2000 Limited",55045,"Community Learning and Skills","North West","Blackburn with Darwen","ACL Voluntary organisation","WBL - full (regional)",452982,"2015-02-02","2015-02-06","Published","2015-03-12",363206,"2011-03-25",2,2,"-","-","-",2,"-",1,"-","-","-",2,"-","-","-",2,"-",2,"-","-","-",2,"-","-","-",2,"-",1,"-","-","-",1,"-","-","-",2,"-",1,"-","-","-",1,"-","-","-",1,"-",1,"-","-","-","Same"]
["Report","Hugh Baird College",130490,"General Further Education/Tertiary College","North West","Sefton","Further Education","FE College - full inspection",452484,"2015-02-02","2015-02-06","Published","2015-03-09",343958,"2010-02-12",2,2,"-",2,"-",2,2,2,"-","-","-",2,"-",2,"-",2,2,2,"-","-","-",2,"-",2,"-",2,2,2,"-","-","-",2,"-",2,"-",2,2,2,"-","-","-",1,"-",1,"-",1,1,1,"-","-","-","Same"]
["Report","LeSoCo",130415,"General Further Education/Tertiary College","London","Lewisham","Further Education","FE College - reinspection",440233,"2015-02-02","2015-02-06","Published","2015-04-01",420390,"2013-11-29",4,4,"-","-","-",4,4,3,"-","-","-",4,"-","-","-",4,3,4,"-","-","-",4,"-","-","-",4,4,3,"-","-","-",4,"-","-","-",4,4,3,"-","-","-",2,"-","-","-",2,2,2,"-","-","-","Same"]
["Report","Midlands Training and Development",53693,"Independent Learning Provider","West Midlands","Warwickshire","Independent Learning Provider","WBL - full (regional)",452612,"2015-02-10","2015-02-12","Published","2015-03-06",406792,"2012-10-26",2,3,"-","-","-",3,"-","-","-","-","-",3,"-","-","-",3,"-","-","-","-","-",3,"-","-","-",3,"-","-","-","-","-",3,"-","-","-",3,"-","-","-","-","-",2,"-","-","-",2,"-","-","-","-","-","Declined"]
["Report","New College Telford",130801,"Sixth Form College","West Midlands","Telford and Wrekin","Further Education","SFC - full inspection",452492,"2015-02-10","2015-02-13","Published","2015-03-19",408451,"2013-03-22",2,3,"-","-","-",3,3,"-","-","-","-",3,"-","-","-",3,3,"-","-","-","-",3,"-","-","-",3,3,"-","-","-","-",3,"-","-","-",3,3,"-","-","-","-",2,"-","-","-",2,2,"-","-","-","-","Declined"]
["Report","Darlington College",130656,"General Further Education/Tertiary College","North East, Yorkshire & Humber","Darlington","Further Education","FE College - full inspection",452549,"2015-02-09","2015-02-13","Published","2015-03-20",331026,"2009-03-06",1,4,"-","-","-",4,3,4,"-","-","-",4,"-","-","-",4,3,4,"-","-","-",4,"-","-","-",4,3,4,"-","-","-",4,"-","-","-",4,3,4,"-","-","-",2,"-","-","-",2,2,2,"-","-","-","Declined"]
["Report","METSKILL Limited",53330,"Community Learning and Skills","North East, Yorkshire & Humber","Sheffield","ACL Voluntary organisation","Work Based Learning - full (national)",452609,"2015-02-09","2015-02-13","Published","2015-03-24",385747,"2012-02-10",2,3,"-","-","-","-","-",3,"-","-","-",3,"-","-","-","-","-",3,"-","-","-",3,"-","-","-","-","-",3,"-","-","-",3,"-","-","-","-","-",3,"-","-","-",2,"-","-","-","-","-",2,"-","-","-","Declined"]
["Report","LIGA (UK) LTD",59155,"Independent Learning Provider","South East","Oxfordshire","Independent Learning Provider","Work Based Learning - full (national)",452628,"2015-02-11","2015-02-13","Published","2015-03-20","NULL","NULL","NULL",3,"-","-","-","-","-",3,"-","-","-",3,"-","-","-","-","-",3,"-","-","-",3,"-","-","-","-","-",3,"-","-","-",3,"-","-","-","-","-",3,"-","-","-",3,"-","-","-","-","-",3,"-","-","-","No previous inspection"]
["Report","QDOS Training Limited",58397,"Independent Learning Provider","East Midlands","Leicester","Independent Learning Provider","WBL - full (regional)",452989,"2015-02-10","2015-02-13","Published","2015-04-09",376203,"2011-10-06",2,4,"-","-",4,"-",4,4,"-","-","-",2,"-","-",2,"-",2,2,"-","-","-",3,"-","-",2,"-",3,2,"-","-","-",4,"-","-",4,"-",4,4,"-","-","-",4,"-","-",4,"-",4,4,"-","-","-","Declined"]
["Report","The Real Apprenticeship Company Limited",59162,"Independent Learning Provider","West Midlands","Warwickshire","Independent Learning Provider","Work Based Learning - full (national)",455608,"2015-02-17","2015-02-20","Published","2015-03-20","NULL","NULL","NULL",2,"-","-","-","-","-",2,"-","-","-",2,"-","-","-","-","-",2,"-","-","-",2,"-","-","-","-","-",2,"-","-","-",2,"-","-","-","-","-",2,"-","-","-",2,"-","-","-","-","-",2,"-","-","-","No previous inspection"]
["Report","Sandwell Training Association Limited",54271,"Community Learning and Skills","West Midlands","Sandwell","ACL Voluntary organisation","WBL - full (regional)",452616,"2015-02-16","2015-02-20","Published","2015-03-20",376201,"2011-10-14",2,3,"-","-","-","-","-",3,"-","-","-",3,"-","-","-","-","-",3,"-","-","-",3,"-","-","-","-","-",3,"-","-","-",3,"-","-","-","-","-",3,"-","-","-",3,"-","-","-","-","-",3,"-","-","-","Declined"]
["Report","John Laing Training Ltd",52638,"Independent Learning Provider","East of England","Hertfordshire","Independent Learning Provider","Work Based Learning - full (national)",452605,"2015-02-17","2015-02-20","Published","2015-03-25",342621,"2009-11-20",3,2,"-","-","-","-","-",2,"-","-","-",2,"-","-","-","-","-",2,"-","-","-",2,"-","-","-","-","-",2,"-","-","-",2,"-","-","-","-","-",2,"-","-","-",2,"-","-","-","-","-",2,"-","-","-","Improved"]
["Report","Norfolk Training Services Limited",53550,"Independent Learning Provider","East of England","Norfolk","Independent Learning Provider","WBL - full (regional)",452611,"2015-02-16","2015-02-20","Published","2015-03-27",366019,"2011-08-05",2,3,"-","-","-",3,3,3,"-","-","-",3,"-","-","-",3,3,3,"-","-","-",3,"-","-","-",3,3,3,"-","-","-",3,"-","-","-",3,3,3,"-","-","-",3,"-","-","-",3,3,3,"-","-","-","Declined"]
["Report","ID Training",57877,"Independent Learning Provider","North East, Yorkshire & Humber","Newcastle Upon Tyne","Independent Learning Provider","WBL - full (regional)",452986,"2015-02-24","2015-02-27","Published","2015-04-09",330918,"2009-03-26",3,2,"-","-","-",2,"-",2,"-","-",2,2,"-","-","-",2,"-",2,"-","-",2,2,"-","-","-",2,"-",2,"-","-",2,2,"-","-","-",2,"-",2,"-","-",2,2,"-","-","-",2,"-",2,"-","-",2,"Improved"]
["Report","Herbert of Liverpool (Training) Ltd",50132,"Independent Learning Provider","North West","Liverpool","Independent Learning Provider","WBL - requires improvement",455920,"2015-02-24","2015-02-27","Published","2015-04-08",424335,"2013-10-25",3,4,"-","-","-","-","-",4,"-","-","-",4,"-","-","-","-","-",4,"-","-","-",4,"-","-","-","-","-",4,"-","-","-",4,"-","-","-","-","-",4,"-","-","-",3,"-","-","-","-","-",3,"-","-","-","Declined"]
["Report","The Training & Recruitment Partnership Limited",55053,"Independent Learning Provider","London","Merton","Independent Learning Provider","Work Based Learning - full (national)",452983,"2015-02-23","2015-02-27","Published","2015-04-01",364781,"2010-11-19",2,3,"-","-","-","-",3,3,"-","-","-",3,"-","-","-","-",3,3,"-","-","-",3,"-","-","-","-",3,3,"-","-","-",3,"-","-","-","-",3,3,"-","-","-",3,"-","-","-","-",3,3,"-","-","-","Declined"]
["Report","Priory Central Services Limited",59108,"Employer","East Midlands","Leicestershire","Employer","WBL - requires improvement",434394,"2015-03-02","2015-03-06","Published","2015-04-17",423727,"2013-10-18",3,4,"-","-","-","-","-",4,"-","-","-",4,"-","-","-","-","-",4,"-","-","-",4,"-","-","-","-","-",4,"-","-","-",4,"-","-","-","-","-",4,"-","-","-",3,"-","-","-","-","-",3,"-","-","-","Declined"]
["Report","Babington Business College Limited",50586,"Independent Learning Provider","East Midlands","Derby","Independent Learning Provider","Work Based Learning - full (national)",452977,"2015-03-02","2015-03-06","Published","2015-04-07",375547,"2011-11-18",2,2,"-","-","-","-","-",2,"-","-","-",2,"-","-","-","-","-",2,"-","-","-",2,"-","-","-","-","-",2,"-","-","-",2,"-","-","-","-","-",2,"-","-","-",2,"-","-","-","-","-",2,"-","-","-","Same"]
["Report","MidKent College",130726,"General Further Education/Tertiary College","South East","Medway","Further Education","FE College - full inspection",452489,"2015-03-02","2015-03-06","Published","2015-04-22",330821,"2009-03-06",2,3,"-","-","-",3,3,"-","-","-","-",3,"-","-","-",3,3,"-","-","-","-",3,"-","-","-",3,3,"-","-","-","-",3,"-","-","-",3,3,"-","-","-","-",2,"-","-","-",2,2,"-","-","-","-","Declined"]
["Report","Sir Isaac Newton Sixth Form Free School",139896,"Free School - 16-19","East of England","Norfolk","Free School - 16-19","16-19 academy - full inspection",452502,"2015-03-03","2015-03-06","Published","2015-03-31","NULL","NULL","NULL",2,"-","-","-",2,"-","-","-","-","-",2,"-","-","-",2,"-","-","-","-","-",2,"-","-","-",2,"-","-","-","-","-",2,"-","-","-",2,"-","-","-","-","-",2,"-","-","-",2,"-","-","-","-","-","No previous inspection"]
["Report","Romney Resource 2000 Ltd",58383,"Community Learning and Skills","South East","Kent","ACL Voluntary organisation","WBL - requires improvement",434392,"2015-03-03","2015-03-06","Published","2015-04-22",423836,"2013-10-11",3,3,"-","-","-",3,"-","-","-","-","-",3,"-","-","-",3,"-","-","-","-","-",3,"-","-","-",3,"-","-","-","-","-",3,"-","-","-",3,"-","-","-","-","-",3,"-","-","-",3,"-","-","-","-","-","Same"]
["Report","Central Training Academy Limited",51072,"Independent Learning Provider","East of England","Southend-On-Sea","Independent Learning Provider","Work Based Learning - full (national)",452978,"2015-03-02","2015-03-06","Published","2015-04-14",345936,"2010-05-28",2,2,"-","-",2,2,3,2,"-","-","-",2,"-","-",2,2,3,2,"-","-","-",2,"-","-",2,2,3,2,"-","-","-",2,"-","-",2,2,3,2,"-","-","-",2,"-","-",2,2,2,2,"-","-","-",{"$f":"IF(P155=\"Null\",\"No previous inspection\",IF(Q155>P155,\"Declined\", IF(Q155=P155,\"Same\",IF(Q155<P155,\"Improved\"))))","v":"Same"}]
["Report","Webs Training Limited",55294,"Independent Learning Provider","East Midlands","Nottinghamshire","Independent Learning Provider","WBL - full (regional)",452618,"2015-03-03","2015-03-06","Published","2015-04-09",362863,"2010-11-26",1,2,"-","-","-",2,2,2,"-","-","-",2,"-","-","-",2,2,2,"-","-","-",2,"-","-","-",2,2,2,"-","-","-",2,"-","-","-",2,2,2,"-","-","-",2,"-","-","-",2,2,2,"-","-","-","Declined"]
["Report","Tameside College",130516,"General Further Education/Tertiary College","North West","Tameside","Further Education","FE College - full inspection",452546,"2015-03-02","2015-03-06","Published","2015-04-10",332997,"2009-06-11",2,3,3,"-","-",3,3,1,"-","-","-",3,3,"-","-",3,3,1,"-","-","-",3,2,"-","-",3,3,1,"-","-","-",3,3,"-","-",3,3,1,"-","-","-",2,2,"-","-",2,2,2,"-","-","-","Declined"]
["Report","Prior Pursglove College",130575,"Sixth Form College","North East, Yorkshire & Humber","Redcar and Cleveland","Further Education","SFC - reinspection",446543,"2015-03-03","2015-03-06","Published","2015-04-09",423378,"2013-12-06",4,2,"-","-","-",2,2,2,"-","-","-",2,"-","-","-",2,2,2,"-","-","-",2,"-","-","-",2,2,2,"-","-","-",2,"-","-","-",2,2,2,"-","-","-",2,"-","-","-",2,2,2,"-","-","-","Improved"]
["Report","London Vesta College Limited",59157,"Independent Learning Provider","London","Tower Hamlets","Independent Learning Provider","WBL - full (regional)",455606,"2015-03-04","2015-03-06","Published","2015-04-14","NULL","NULL","NULL",3,"-","-","-","-","-",3,"-","-","-",2,"-","-","-","-","-",2,"-","-","-",3,"-","-","-","-","-",3,"-","-","-",3,"-","-","-","-","-",3,"-","-","-",2,"-","-","-","-","-",2,"-","-","-","No previous inspection"]
["Report","The Communiversity",58913,"Community Learning and Skills","North West","Liverpool","ACL Voluntary organisation","Adult and Community - full (regional)",455664,"2015-03-10","2015-03-12","Published","2015-04-16","NULL","NULL","NULL",3,"-","-","-","-","-",3,"-","-","-",3,"-","-","-","-","-",3,"-","-","-",3,"-","-","-","-","-",3,"-","-","-",3,"-","-","-","-","-",3,"-","-","-",3,"-","-","-","-","-",3,"-","-","-","No previous inspection"]
["Report","Ministry of Defence (Navy)",58403,"Employer","South East","Portsmouth","Employer","WBL - full (regional)",452622,"2015-03-09","2015-03-13","Published","2015-04-21",330255,"2009-02-06",2,2,"-","-","-","-","-",2,"-","-","-",2,"-","-","-","-","-",2,"-","-","-",2,"-","-","-","-","-",2,"-","-","-",2,"-","-","-","-","-",2,"-","-","-",2,"-","-","-","-","-",2,"-","-","-","Same"]
["Report","PERA Training Limited",59194,"Independent Learning Provider","East Midlands","Leicestershire","Independent Learning Provider","Work Based Learning - full (national)",452632,"2015-03-09","2015-03-13","Published","2015-04-17","NULL","NULL","NULL",2,"-","-","-","-","-",2,"-","-","-",2,"-","-","-","-","-",2,"-","-","-",2,"-","-","-","-","-",2,"-","-","-",2,"-","-","-","-","-",2,"-","-","-",2,"-","-","-","-","-",2,"-","-","-","No previous inspection"]
["Report","Wigan and Leigh College",130521,"General Further Education/Tertiary College","North West","Wigan","Further Education","FE College - full inspection",446536,"2015-03-09","2015-03-13","Published","2015-04-17",343829,"2010-03-05",2,3,"-","-","-",3,3,3,"-","-","-",3,"-","-","-",3,3,3,"-","-","-",3,"-","-","-",3,3,3,"-","-","-",3,"-","-","-",3,3,3,"-","-","-",2,"-","-","-",2,2,2,"-","-","-","Declined"]
["Report","Strode's College",130833,"Sixth Form College","South East","Surrey","Further Education","SFC - full inspection",452545,"2015-03-10","2015-03-13","Published","2015-04-24",332979,"2009-05-15",2,3,"-","-","-",3,"-","-","-","-","-",3,"-","-","-",3,"-","-","-","-","-",3,"-","-","-",3,"-","-","-","-","-",3,"-","-","-",3,"-","-","-","-","-",3,"-","-","-",3,"-","-","-","-","-","Declined"]
["Report","Warwickshire College Group",130835,"General Further Education/Tertiary College","West Midlands","Warwickshire","Further Education","FE College - full inspection",461394,"2015-03-09","2015-03-13","Published","2015-04-02",318900,"2008-01-25",1,2,"-","-","-",2,2,2,"-","-","-",3,"-","-","-",3,3,2,"-","-","-",2,"-","-","-",2,2,2,"-","-","-",2,"-","-","-",2,2,2,"-","-","-",2,"-","-","-",2,2,2,"-","-","-","Declined"]
["Report","Big Creative Training LTD",51619,"Independent Learning Provider","London","Waltham Forest","Independent Learning Provider","WBL - full (regional)",446600,"2015-03-09","2015-03-13","Published","2015-04-22",318277,"2008-01-25",2,3,"-","-","-",3,"-","-","-","-","-",3,"-","-","-",3,"-","-","-","-","-",3,"-","-","-",3,"-","-","-","-","-",3,"-","-","-",3,"-","-","-","-","-",3,"-","-","-",3,"-","-","-","-","-","Declined"]
["Report","BROADLAND DISTRICT COUNCIL",50098,"Community Learning and Skills","East of England","Norfolk","ACL Local Authority","WBL - full (regional)",452973,"2015-03-09","2015-03-13","Published","2015-04-21",375545,"2011-10-28",2,3,"-","-","-",3,"-",3,"-","-","-",3,"-","-","-",3,"-",3,"-","-","-",3,"-","-","-",3,"-",3,"-","-","-",3,"-","-","-",3,"-",3,"-","-","-",2,"-","-","-",2,"-",2,"-","-","-","Declined"]
["Report","Kimberley 16 - 19 Stem College",139798,"Free School - 16-19","East of England","Bedford","Free School - 16-19","16-19 academy - full inspection",452501,"2015-03-10","2015-03-13","Published","2015-04-21","NULL","NULL","NULL",3,"-","-","-",3,"-","-","-","-","-",3,"-","-","-",3,"-","-","-","-","-",3,"-","-","-",3,"-","-","-","-","-",3,"-","-","-",3,"-","-","-","-","-",2,"-","-","-",2,"-","-","-","-","-","No previous inspection"]
["Report","Didac Limited",51550,"Independent Learning Provider","South West","Bristol City of","Independent Learning Provider","Work Based Learning - full (national)",452601,"2015-03-10","2015-03-13","Published","2015-04-21",397718,"2012-06-14",1,2,"-","-","-",2,2,2,"-","-","-",3,"-","-","-",2,2,3,"-","-","-",2,"-","-","-",2,2,2,"-","-","-",2,"-","-","-",2,2,2,"-","-","-",2,"-","-","-",2,2,2,"-","-","-","Declined"]
["Report","Training Strategies Ltd.",59129,"Independent Learning Provider","North West","Liverpool","Independent Learning Provider","WBL - requires improvement",433767,"2015-03-10","2015-03-13","Published","2015-04-17",423817,"2013-09-27",3,2,"-","-","-","-",2,2,"-","-","-",2,"-","-","-","-",2,2,"-","-","-",2,"-","-","-","-",2,2,"-","-","-",2,"-","-","-","-",2,2,"-","-","-",3,"-","-","-","-",3,3,"-","-","-","Improved"]
["Report","Solihull College",130481,"General Further Education/Tertiary College","West Midlands","Solihull","Further Education","FE College - full inspection",452547,"2015-03-09","2015-03-13","Published","2015-04-21",346614,"2010-05-14",2,3,"-","-","-",3,3,2,"-","-","-",3,"-","-","-",3,3,3,"-","-","-",3,"-","-","-",3,3,2,"-","-","-",3,"-","-","-",3,3,2,"-","-","-",2,"-","-","-",2,2,2,"-","-","-","Declined"]
["Report","Bromley London Borough Council",53108,"Community Learning and Skills","London","Bromley","ACL Local Authority","Adult and Community - full (regional)",452606,"2015-03-10","2015-03-13","Published","2015-04-22",342323,"2010-02-12",2,3,"-","-","-","-",3,"-",3,"-","-",3,"-","-","-","-",3,"-",3,"-","-",2,"-","-","-","-",2,"-",2,"-","-",3,"-","-","-","-",3,"-",3,"-","-",2,"-","-","-","-",2,"-",2,"-","-","Declined"]
["Report","The Apprentice Academy Limited",59161,"Independent Learning Provider","North West","Manchester","Independent Learning Provider","WBL - full (regional)",455607,"2015-03-10","2015-03-13","Published","2015-04-15","NULL","NULL","NULL",3,"-","-","-","-","-",3,"-","-","-",3,"-","-","-","-","-",3,"-","-","-",3,"-","-","-","-","-",3,"-","-","-",3,"-","-","-","-","-",3,"-","-","-",3,"-","-","-","-","-",3,"-","-","-","No previous inspection"]
["Report","Health Education North East",59195,"Independent Learning Provider","North East, Yorkshire & Humber","Newcastle Upon Tyne","Independent Learning Provider","WBL - full (regional)",452633,"2015-03-16","2015-03-19","Published","2015-04-23","NULL","NULL","NULL",2,"-","-","-","-",2,2,"-","-","-",2,"-","-","-","-",2,2,"-","-","-",2,"-","-","-","-",2,2,"-","-","-",2,"-","-","-","-",2,2,"-","-","-",2,"-","-","-","-",2,2,"-","-","-","No previous inspection"]
["Report","Derby Skillbuild",51525,"Community Learning and Skills","East Midlands","Derby","ACL Voluntary organisation","WBL - requires improvement",434401,"2015-03-17","2015-03-19","Published","2015-04-24",423742,"2013-10-25",3,2,"-","-","-",2,"-","-","-","-","-",2,"-","-","-",2,"-","-","-","-","-",2,"-","-","-",2,"-","-","-","-","-",2,"-","-","-",2,"-","-","-","-","-",2,"-","-","-",2,"-","-","-","-","-","Improved"]
["Report","City Gateway",58841,"Community Learning and Skills","London","Tower Hamlets","ACL Voluntary organisation","WBL - full (regional)",452623,"2015-03-16","2015-03-19","Published","2015-04-22",364060,"2010-12-03",1,2,"-","-","-","-",2,2,"-","-","-",2,"-","-","-","-",2,2,"-","-","-",2,"-","-","-","-",1,2,"-","-","-",2,"-","-","-","-",1,2,"-","-","-",1,"-","-","-","-",1,1,"-","-","-","Declined"]
["Report","Focus Training (SW) Limited",50126,"Independent Learning Provider","South West","Plymouth","Independent Learning Provider","WBL - full (regional)",452974,"2015-03-16","2015-03-20","Published","2015-05-01",376243,"2011-09-30",2,2,"-","-",2,"-","-",2,"-","-",2,2,"-","-",2,"-","-",2,"-","-",2,2,"-","-",2,"-","-",2,"-","-",2,2,"-","-",2,"-","-",2,"-","-",2,2,"-","-",2,"-","-",2,"-","-",2,"Same"]
["Report","Royal Borough of Kingston upon Thames Council",54196,"Community Learning and Skills","London","Kingston Upon Thames","ACL Local Authority","ACL - requires improvement",434390,"2015-03-17","2015-03-20","Published","2015-05-08",423422,"2013-10-11",3,2,"-","-","-",2,2,2,2,"-","-",2,"-","-","-",2,2,2,2,"-","-",2,"-","-","-",2,2,2,2,"-","-",2,"-","-","-",2,2,2,2,"-","-",2,"-","-","-",2,2,2,2,"-","-","Improved"]
["Report","Hartpury College",130687,"Specialist Further Education","South West","Gloucestershire","Further Education","FE College - full inspection",452550,"2015-03-17","2015-03-20","Published","2015-04-29",345455,"2009-11-27",1,2,"-","-","-",2,2,2,"-","-","-",2,"-","-","-",2,2,2,"-","-","-",2,"-","-","-",2,2,2,"-","-","-",2,"-","-","-",2,2,2,"-","-","-",2,"-","-","-",2,2,2,"-","-","-","Declined"]
["Report","Bolton College",130495,"General Further Education/Tertiary College","North West","Bolton","Further Education","FE College - full inspection",455663,"2015-03-16","2015-03-20","Published","2015-04-22",345809,"2010-05-14",2,3,"-","-","-",3,3,4,2,"-","-",3,"-","-","-",3,3,4,2,"-","-",2,"-","-","-",2,2,3,2,"-","-",3,"-","-","-",3,3,3,2,"-","-",2,"-","-","-",2,2,2,2,"-","-","Declined"]
["Report","Stratford-upon-Avon College",130837,"General Further Education/Tertiary College","West Midlands","Warwickshire","Further Education","FE College - requires improvement",433769,"2015-03-17","2015-03-20","Published","2015-04-09",423367,"2013-10-04",3,2,"-","-","-",2,2,"-","-","-","-",3,"-","-","-",3,2,"-","-","-","-",2,"-","-","-",2,2,"-","-","-","-",2,"-","-","-",2,2,"-","-","-","-",2,"-","-","-",2,2,"-","-","-","-","Improved"]
["Report","Cheshire West and Chester Council",58930,"Community Learning and Skills","North West","Cheshire West and Chester","ACL Local Authority","Adult and community - full (national)",452624,"2015-03-17","2015-03-20","Published","2015-04-22",363137,"2011-01-21",2,2,"-","-","-","-","-","-",2,"-","-",2,"-","-","-","-","-","-",2,"-","-",2,"-","-","-","-","-","-",2,"-","-",2,"-","-","-","-","-","-",2,"-","-",2,"-","-","-","-","-","-",2,"-","-","Same"]
["Report","Weir Training Limited",55295,"Independent Learning Provider","South East","Surrey","Independent Learning Provider","WBL - full (regional)",452984,"2015-03-16","2015-03-20","Published","2015-04-23",333250,"2009-07-23",2,2,"-","-","-","-","-",2,"-","-","-",2,"-","-","-","-","-",2,"-","-","-",2,"-","-","-","-","-",2,"-","-","-",2,"-","-","-","-","-",2,"-","-","-",2,"-","-","-","-","-",2,"-","-","-","Same"]
["Report","Furness College",130633,"General Further Education/Tertiary College","North West","Cumbria","Further Education","FE College - full inspection",452487,"2015-03-24","2015-03-27","Published","2015-05-01",362659,"2010-12-10",2,2,"-","-","-",2,2,2,"-","-","-",2,"-","-","-",2,2,2,"-","-","-",2,"-","-","-",2,2,2,"-","-","-",2,"-","-","-",2,2,2,"-","-","-",2,"-","-","-",2,2,2,"-","-","-","Same"]
["Report","Open Door Adult Learning Centre",53746,"Community Learning and Skills","North East, Yorkshire & Humber","Sheffield","ACL Voluntary organisation","Adult and Community - full (regional)",452615,"2015-03-24","2015-03-27","Published","2015-05-01",320075,"2008-01-25",1,3,"-","-","-","-",3,"-","-","-","-",3,"-","-","-","-",3,"-","-","-","-",2,"-","-","-","-",2,"-","-","-","-",3,"-","-","-","-",3,"-","-","-","-",3,"-","-","-","-",3,"-","-","-","-","Declined"]
["Report","Enfield London Borough Council",53116,"Community Learning and Skills","London","Enfield","ACL Local Authority","Adult and community - full (national)",452607,"2015-03-24","2015-03-27","Published","2015-05-08",366693,"2011-04-01",2,2,"-","-","-",3,"-",2,2,"-","-",2,"-","-","-",3,"-",2,2,"-","-",2,"-","-","-",3,"-",2,2,"-","-",2,"-","-","-",3,"-",2,2,"-","-",2,"-","-","-",2,"-",2,2,"-","-","Same"]
["Report","Redbridge Institute of Adult Education",53141,"Community Learning and Skills","London","Redbridge","ACL Local Authority","Adult and Community - full (regional)",452608,"2015-03-23","2015-03-27","Published","2015-05-08",330815,"2009-03-13",2,2,"-","-","-","-","-","-",2,"-","-",2,"-","-","-","-","-","-",2,"-","-",2,"-","-","-","-","-","-",2,"-","-",2,"-","-","-","-","-","-",2,"-","-",2,"-","-","-","-","-","-",2,"-","-","Same"]
["Report","Thomas Cook Group UK Limited",58184,"Employer","East of England","Peterborough","Employer","Work Based Learning - full (national)",452987,"2015-03-23","2015-03-27","Published","2015-04-30",332129,"2009-06-19",2,1,"-","-","-","-","-",1,"-","-","-",1,"-","-","-","-","-",1,"-","-","-",1,"-","-","-","-","-",1,"-","-","-",1,"-","-","-","-","-",1,"-","-","-",2,"-","-","-","-","-",2,"-","-","-","Improved"]
["Report","Astute Minds Ltd",59168,"Independent Learning Provider","London","Camden","Independent Learning Provider","WBL - full (regional)",455611,"2015-03-24","2015-03-27","Published","2015-04-27","NULL","NULL","NULL",2,"-","-","-","-","-",2,"-","-","-",3,"-","-","-","-","-",3,"-","-","-",2,"-","-","-","-","-",2,"-","-","-",2,"-","-","-","-","-",2,"-","-","-",2,"-","-","-","-","-",2,"-","-","-","No previous inspection"]
["Report","Strathmore College",132021,"Independent Specialist College","West Midlands","Stoke-On-Trent","Special College","ISC - requires improvement",446033,"2015-03-25","2015-03-27","Published","2015-04-29",429195,"2014-02-27",3,2,"-","-","-",2,2,"-","-","-","-",2,"-","-","-",2,2,"-","-","-","-",2,"-","-","-",2,2,"-","-","-","-",2,"-","-","-",2,2,"-","-","-","-",2,"-","-","-",2,2,"-","-","-","-","Improved"]
["Report","New College Stamford ",130760,"General Further Education/Tertiary College","East Midlands","Lincolnshire","Further Education","FE College - full inspection",452490,"2015-03-24","2015-03-27","Published","2015-04-29",365901,"2011-05-20",2,3,"-","-","-",3,3,3,"-","-","-",3,"-","-","-",3,3,3,"-","-","-",3,"-","-","-",3,3,3,"-","-","-",3,"-","-","-",3,3,3,"-","-","-",2,"-","-","-",2,2,2,"-","-","-","Declined"]
[{"$f":"IF(C192 <> \"\", HYPERLINK(CONCATENATE(\"http://reports.ofsted.gov.uk/inspection-reports/find-inspection-report/provider/ELS/\",C192),\"Report\"),\"\")","v":"Report"},"YMCA Training",57598,"Community Learning and Skills","North West","Stockport","ACL Voluntary organisation","Work Based Learning - full (national)",452735,"2015-03-23","2015-03-27","Published","2015-04-29",345914,"2010-05-28",2,3,"-","-",2,3,2,2,"-","-","-",3,"-","-",2,3,2,2,"-","-","-",3,"-","-",2,3,2,2,"-","-","-",3,"-","-",3,3,3,3,"-","-","-",2,"-","-",2,3,2,2,"-","-","-","Declined"]
["Report","Hudson & Hughes Training Limited",52396,"Independent Learning Provider","South West","Somerset","Independent Learning Provider","WBL - full (regional)",452604,"2015-03-24","2015-03-27","Published","2015-04-30",365986,"2011-05-27",2,2,"-","-",2,"-",2,2,"-","-","-",2,"-","-",2,"-",2,2,"-","-","-",2,"-","-",2,"-",2,2,"-","-","-",2,"-","-",2,"-",2,2,"-","-","-",3,"-","-",3,"-",3,3,"-","-","-","Same"]
[{"$f":"IF(C194 <> \"\", HYPERLINK(CONCATENATE(\"http://reports.ofsted.gov.uk/inspection-reports/find-inspection-report/provider/ELS/\",C194),\"Report\"),\"\")","v":"Report"},"Barrow-in-Furness Sixth Form College",130637,"Sixth Form College","North West","Cumbria","Further Education","SFC - requires improvement",440399,"2015-04-14","2015-04-17","Published","2015-05-21",423381,"2013-11-15",3,2,"-","-","-",2,2,"-","-","-","-",2,"-","-","-",2,2,"-","-","-","-",2,"-","-","-",2,2,"-","-","-","-",2,"-","-","-",2,2,"-","-","-","-",2,"-","-","-",2,2,"-","-","-","-",{"$f":"IF(P194=\"Null\",\"No previous inspection\",IF(Q194>P194,\"Declined\", IF(Q194=P194,\"Same\",IF(Q194<P194,\"Improved\"))))","v":"Improved"}]
["Report","All Trades Training Limited",59124,"Independent Learning Provider","East of England","Norfolk","Independent Learning Provider","WBL - requires improvement",440400,"2015-04-15","2015-04-17","Published","2015-05-14",423816,"2013-11-29",3,2,"-","-","-","-","-",2,"-","-","-",2,"-","-","-","-","-",2,"-","-","-",2,"-","-","-","-","-",2,"-","-","-",2,"-","-","-","-","-",2,"-","-","-",2,"-","-","-","-","-",2,"-","-","-","Improved"]
["Report","Calthorpe Vocational Trust",141435,"Independent Specialist College","West Midlands","Birmingham","Special College","ISC - full inspection",455855,"2015-04-20","2015-04-22","Published","2015-05-27","NULL","NULL","NULL",2,"-","-","-","-",2,"-","-","-","-",1,"-","-","-","-",1,"-","-","-","-",2,"-","-","-","-",2,"-","-","-","-",2,"-","-","-","-",2,"-","-","-","-",2,"-","-","-","-",2,"-","-","-","-","No previous inspection"]
["Report","Landau Forte Academy Tamworth Sixth Form",141491,"Academy Converter","West Midlands","Staffordshire","Academy 16-19 Sponsor Led","16-19 academy - full inspection",455817,"2015-04-21","2015-04-24","Published","2015-07-10","NULL","NULL","NULL",3,"-","-","-",3,"-","-","-","-","-",3,"-","-","-",3,"-","-","-","-","-",3,"-","-","-",3,"-","-","-","-","-",3,"-","-","-",3,"-","-","-","-","-",2,"-","-","-",2,"-","-","-","-","-","No previous inspection"]
["Report","Kwik-Fit (GB) Limited",52896,"Employer","East Midlands","Derby","Employer","WBL - requires improvement",434402,"2015-04-20","2015-04-24","Published","2015-05-20",423719,"2013-11-01",3,1,"-","-","-","-","-",1,"-","-","-",1,"-","-","-","-","-",1,"-","-","-",1,"-","-","-","-","-",1,"-","-","-",1,"-","-","-","-","-",1,"-","-","-",1,"-","-","-","-","-",1,"-","-","-","Improved"]
[{"$f":"IF(C199 <> \"\", HYPERLINK(CONCATENATE(\"http://reports.ofsted.gov.uk/inspection-reports/find-inspection-report/provider/ELS/\",C199),\"Report\"),\"\")","v":"Report"},"North West Training Council",53615,"Community Learning and Skills","North West","Sefton","ACL Voluntary organisation","WBL - requires improvement",440402,"2015-04-20","2015-04-24","Published","2015-06-02",410920,"2013-11-15",3,2,"-","-","-","-","-",2,"-","-","-",2,"-","-","-","-","-",2,"-","-","-",2,"-","-","-","-","-",2,"-","-","-",2,"-","-","-","-","-",2,"-","-","-",2,"-","-","-","-","-",2,"-","-","-",{"$f":"IF(P199=\"Null\",\"No previous inspection\",IF(Q199>P199,\"Declined\", IF(Q199=P199,\"Same\",IF(Q199<P199,\"Improved\"))))","v":"Improved"}]
["Report","DV8 TRAINING (BRIGHTON) LIMITED",59191,"Independent Learning Provider","South East","Brighton and Hove","Independent Learning Provider","WBL - full (regional)",455621,"2015-04-21","2015-04-24","Published","2015-06-02","NULL","NULL","NULL",3,"-","-","-",3,"-","-","-","-","-",3,"-","-","-",3,"-","-","-","-","-",3,"-","-","-",3,"-","-","-","-","-",3,"-","-","-",3,"-","-","-","-","-",2,"-","-","-",2,"-","-","-","-","-","No previous inspection"]
["Report","Steps to Work (Walsall) Ltd",50202,"Community Learning and Skills","West Midlands","Walsall","ACL Voluntary organisation","Adult and Community - full (regional)",455576,"2015-04-22","2015-04-24","Published","2015-06-02","NULL","NULL","NULL",3,"-","-","-","-","-",3,"-","-","-",3,"-","-","-","-","-",3,"-","-","-",3,"-","-","-","-","-",3,"-","-","-",2,"-","-","-","-","-",2,"-","-","-",1,"-","-","-","-","-",1,"-","-","-","No previous inspection"]
["Report","City of Stoke-on-Trent Sixth Form College",130817,"Sixth Form College","West Midlands","Stoke-On-Trent","Further Education","SFC - requires improvement 2nd inspection",446035,"2015-04-21","2015-04-24","Published","2015-05-29",429257,"2014-01-17",3,2,"-",2,"-",2,2,"-","-","-","-",2,"-",2,"-",2,2,"-","-","-","-",2,"-",2,"-",2,2,"-","-","-","-",2,"-",2,"-",2,2,"-","-","-","-",2,"-",2,"-",2,2,"-","-","-","-","Improved"]
["Report","Veolia Environement Development Centre Limited",58179,"Employer","London","Islington","Employer","WBL - requires improvement",440392,"2015-04-20","2015-04-24","Published","2015-06-02",423725,"2013-11-15",3,3,"-","-","-","-","-",3,"-","-","-",3,"-","-","-","-","-",3,"-","-","-",3,"-","-","-","-","-",3,"-","-","-",3,"-","-","-","-","-",3,"-","-","-",3,"-","-","-","-","-",3,"-","-","-","Same"]
["Report","King Edward VI College Nuneaton",130840,"Sixth Form College","West Midlands","Warwickshire","Further Education","SFC - requires improvement",443135,"2015-04-28","2015-05-01","Published","2015-06-03",423390,"2013-12-13",3,2,"-","-","-",2,"-","-","-","-","-",2,"-","-","-",2,"-","-","-","-","-",2,"-","-","-",2,"-","-","-","-","-",2,"-","-","-",2,"-","-","-","-","-",2,"-","-","-",2,"-","-","-","-","-","Improved"]
["Report","North East Lincolnshire Council",53575,"Community Learning and Skills","North East, Yorkshire & Humber","North East Lincolnshire","ACL Local Authority","ACL - requires improvement",446860,"2015-04-28","2015-05-01","Published","2015-06-16",429149,"2014-02-28",3,3,"-","-",3,3,3,3,3,"-",3,3,"-","-",3,3,3,4,3,"-",3,3,"-","-",3,3,3,3,3,"-",3,3,"-","-",3,3,3,3,3,"-",3,2,"-","-",2,2,2,2,2,"-",2,"Same"]
["Report","ProCo NW Limited",53981,"Independent Learning Provider","North West","Wigan","Independent Learning Provider","WBL - requires improvement",440404,"2015-04-27","2015-05-01","Published","2015-06-03",410129,"2013-11-15",3,3,"-","-","-",3,2,2,"-","-","-",3,"-","-","-",3,2,2,"-","-","-",3,"-","-","-",3,2,2,"-","-","-",3,"-","-","-",3,2,2,"-","-","-",2,"-","-","-",2,2,2,"-","-","-","Same"]
["Report","Totton College",130699,"Sixth Form College","South East","Hampshire","Further Education","SFC - requires improvement 2nd inspection",446036,"2015-04-28","2015-05-01","Published","2015-06-17",429256,"2014-02-07",3,4,"-","-","-",4,4,4,"-","-","-",4,"-","-","-",4,4,4,"-","-","-",4,"-","-","-",4,4,4,"-","-","-",4,"-","-","-",4,4,4,"-","-","-",2,"-","-","-",2,2,2,"-","-","-","Declined"]
["Report","Lowestoft Sixth Form College",136255,"Sixth Form College","East of England","Suffolk","Further Education","SFC - requires improvement",444483,"2015-04-28","2015-05-01","Published","2015-06-03",429176,"2014-01-31",3,2,"-","-","-",2,"-","-","-","-","-",2,"-","-","-",2,"-","-","-","-","-",2,"-","-","-",2,"-","-","-","-","-",2,"-","-","-",2,"-","-","-","-","-",2,"-","-","-",2,"-","-","-","-","-","Improved"]
["Report","Wilberforce College",130580,"Sixth Form College","North East, Yorkshire & Humber","Kingston upon Hull City of","Further Education","SFC - requires improvement",434399,"2015-04-28","2015-05-01","Published","2015-06-03",423379,"2013-10-11",3,2,"-","-","-",2,"-","-","-","-","-",2,"-","-","-",2,"-","-","-","-","-",2,"-","-","-",2,"-","-","-","-","-",2,"-","-","-",2,"-","-","-","-","-",2,"-","-","-",2,"-","-","-","-","-","Improved"]
["Report","The Consultancy Home Counties Limited",59189,"Independent Learning Provider","East of England","Hertfordshire","Independent Learning Provider","WBL - full (regional)",461250,"2015-05-05","2015-05-07","Published","2015-06-03","NULL","NULL","NULL",3,"-","-","-",3,"-","-","-","-","-",3,"-","-","-",3,"-","-","-","-","-",3,"-","-","-",3,"-","-","-","-","-",3,"-","-","-",3,"-","-","-","-","-",2,"-","-","-",2,"-","-","-","-","-","No previous inspection"]
["Report","Inroads (Essex) Ltd",141492,"Independent Specialist College","East of England","Suffolk","Special College","ISC - full inspection",455854,"2015-05-06","2015-05-08","Published","2015-06-15","NULL","NULL","NULL",4,"-","-","-",4,4,"-","-","-","-",4,"-","-","-",4,4,"-","-","-","-",4,"-","-","-",4,4,"-","-","-","-",4,"-","-","-",4,4,"-","-","-","-",3,"-","-","-",3,3,"-","-","-","-","No previous inspection"]
["Report","Archway Academy",50442,"Independent Learning Provider","West Midlands","Birmingham","Independent Learning Provider","WBL - requires improvement",446034,"2015-05-05","2015-05-08","Published","2015-06-05",429100,"2014-02-28",3,2,"-","-",2,2,"-","-","-","-","-",2,"-","-",2,2,"-","-","-","-","-",2,"-","-",2,2,"-","-","-","-","-",2,"-","-",2,2,"-","-","-","-","-",3,"-","-",3,3,"-","-","-","-","-","Improved"]
["Report","Creative Process",59150,"Independent Learning Provider","London","Lewisham","Independent Learning Provider","WBL - full (regional)",452627,"2015-05-05","2015-05-08","Published","2015-07-09","NULL","NULL","NULL",3,"-","-","-","-","-",3,"-","-","-",2,"-","-","-","-","-",2,"-","-","-",3,"-","-","-","-","-",3,"-","-","-",3,"-","-","-","-","-",3,"-","-","-",2,"-","-","-","-","-",2,"-","-","-","No previous inspection"]
["Report","Be Totally You",59122,"Independent Learning Provider","London","Lewisham","Independent Learning Provider","WBL - requires improvement",452784,"2015-05-05","2015-05-08","Published","2015-06-15",423832,"2013-10-17",3,3,"-","-","-","-","-",3,"-","-","-",3,"-","-","-","-","-",3,"-","-","-",3,"-","-","-","-","-",3,"-","-","-",3,"-","-","-","-","-",3,"-","-","-",2,"-","-","-","-","-",2,"-","-","-","Same"]
["Report","Henshaw's College",121777,"Independent Specialist College","North East, Yorkshire & Humber","North Yorkshire","Special College","ISC - full inspection",455466,"2015-05-12","2015-05-14","Published","2015-06-16",376164,"2011-11-25",2,3,"-","-","-","-",3,"-","-","-","-",3,"-","-","-","-",3,"-","-","-","-",3,"-","-","-","-",3,"-","-","-","-",3,"-","-","-","-",3,"-","-","-","-",2,"-","-","-","-",2,"-","-","-","-","Declined"]
["Report","PROVIDENT TRAINING LIMITED",59149,"Independent Learning Provider","North West","Oldham","Independent Learning Provider","Work Based Learning - full (national)",464717,"2015-05-11","2015-05-14","Published","2015-06-17","NULL","NULL","NULL",4,"-","-","-","-","-",4,"-","-","-",4,"-","-","-","-","-",4,"-","-","-",4,"-","-","-","-","-",4,"-","-","-",4,"-","-","-","-","-",4,"-","-","-",4,"-","-","-","-","-",4,"-","-","-","No previous inspection"]
["Report","In-Comm Training Services Limited",50139,"Independent Learning Provider","West Midlands","Walsall","Independent Learning Provider","WBL - full (regional)",455575,"2015-05-11","2015-05-14","Published","2015-06-19",406788,"2012-10-26",2,2,"-","-","-","-","-",2,"-","-","-",2,"-","-","-","-","-",2,"-","-","-",2,"-","-","-","-","-",2,"-","-","-",2,"-","-","-","-","-",2,"-","-","-",2,"-","-","-","-","-",2,"-","-","-","Same"]
["Report","Boots Opticians Professional Services Limited",51573,"Employer","East Midlands","Nottingham","Employer","Work Based Learning - full (national)",455579,"2015-05-12","2015-05-15","Published","2015-06-12",388438,"2012-08-10",2,3,"-","-","-","-","-",3,"-","-","-",3,"-","-","-","-","-",3,"-","-","-",3,"-","-","-","-","-",3,"-","-","-",3,"-","-","-","-","-",3,"-","-","-",2,"-","-","-","-","-",2,"-","-","-","Declined"]
["Report","Nottinghamshire County Council",53674,"Community Learning and Skills","East Midlands","Nottinghamshire","ACL Local Authority","Adult and Community - full (regional)",455583,"2015-05-11","2015-05-15","Published","2015-06-16",399152,"2012-11-16",2,2,"-","-","-",2,1,"-",2,"-","-",2,"-","-","-",2,1,"-",2,"-","-",2,"-","-","-",2,1,"-",2,"-","-",2,"-","-","-",2,1,"-",2,"-","-",2,"-","-","-",2,2,"-",2,"-","-","Same"]
["Report","South Essex College of Further and  Higher Education",130672,"General Further Education/Tertiary College","East of England","Southend-On-Sea","Further Education","FE College - requires improvement",440398,"2015-05-11","2015-05-15","Published","2015-06-18",423357,"2013-11-15",3,3,"-","-","-",3,3,2,"-","-","-",3,"-","-","-",3,3,2,"-","-","-",3,"-","-","-",3,3,2,"-","-","-",2,"-","-","-",2,2,2,"-","-","-",2,"-","-","-",2,2,2,"-","-","-","Same"]
["Report","Training Futures (UK) Limited",59186,"Independent Learning Provider","East Midlands","Derbyshire","Independent Learning Provider","WBL - full (regional)",461248,"2015-05-12","2015-05-15","Published","2015-06-15","NULL","NULL","NULL",2,"-","-","-","-","-",2,"-","-","-",2,"-","-","-","-","-",2,"-","-","-",2,"-","-","-","-","-",2,"-","-","-",2,"-","-","-","-","-",2,"-","-","-",2,"-","-","-","-","-",2,"-","-","-","No previous inspection"]
["Report","Canterbury College",130730,"General Further Education/Tertiary College","South East","Kent","Further Education","FE College - requires improvement",440396,"2015-05-11","2015-05-15","Published","2015-06-22",423359,"2013-11-15",3,3,"-","-","-",3,3,2,"-","-","-",3,"-","-","-",3,3,2,"-","-","-",3,"-","-","-",3,3,2,"-","-","-",3,"-","-","-",3,3,2,"-","-","-",1,"-","-","-",1,1,1,"-","-","-","Same"]
["Report","The Oldham College",130505,"General Further Education/Tertiary College","North West","Oldham","Further Education","FE College - full inspection",463125,"2015-05-11","2015-05-15","Published","2015-06-18",317327,"2007-12-07",1,3,"-","-","-",3,3,3,"-","-","-",3,"-","-","-",3,3,4,"-","-","-",3,"-","-","-",3,3,3,"-","-","-",3,"-","-","-",3,3,3,"-","-","-",2,"-","-","-",2,2,2,"-","-","-","Declined"]
["Report","Leicestershire County Council",52998,"Community Learning and Skills","East Midlands","Leicestershire","ACL Local Authority","Adult and Community - full (regional)",452656,"2015-05-11","2015-05-15","Published","2015-06-15",399151,"2012-10-12",2,2,"-","-",2,"-",2,2,2,"-",2,2,"-","-",1,"-",2,2,2,"-",2,2,"-","-",2,"-",2,2,2,"-",2,2,"-","-",2,"-",2,2,2,"-",2,2,"-","-",2,"-",2,2,2,"-",2,"Same"]
["Report","Working Rite",59193,"Community Learning and Skills","South East","East Sussex","ACL Voluntary organisation","Adult and community - full (national)",455622,"2015-05-13","2015-05-15","Published","2015-06-22","NULL","NULL","NULL",3,"-","-","-",3,"-","-","-","-","-",3,"-","-","-",3,"-","-","-","-","-",3,"-","-","-",3,"-","-","-","-","-",3,"-","-","-",3,"-","-","-","-","-",2,"-","-","-",2,"-","-","-","-","-","No previous inspection"]
["Report","Project Management (Staffordshire) Limited",53992,"Independent Learning Provider","West Midlands","Stoke-On-Trent","Independent Learning Provider","WBL - full (regional)",452980,"2015-05-11","2015-05-15","Published","2015-06-18",363196,"2011-01-28",2,2,"-","-","-",2,"-",2,"-","-","-",2,"-","-","-",2,"-",2,"-","-","-",2,"-","-","-",2,"-",2,"-","-","-",2,"-","-","-",2,"-",2,"-","-","-",2,"-","-","-",2,"-",2,"-","-","-","Same"]
["Report","Ruskin Mill College",133036,"Independent Specialist College","South West","Gloucestershire","Special College","ISC - reinspection",447351,"2015-05-18","2015-05-20","Published","2015-06-18",443549,"2014-03-21",4,2,"-","-","-",2,2,"-","-","-","-",2,"-","-","-",2,2,"-","-","-","-",2,"-","-","-",2,2,"-","-","-","-",2,"-","-","-",2,2,"-","-","-","-",2,"-","-","-",2,2,"-","-","-","-","Improved"]
["Report","NHTA Limited",53671,"Independent Learning Provider","East Midlands","Nottingham","Independent Learning Provider","WBL - requires improvement",446030,"2015-05-18","2015-05-21","Published","2015-06-19",429116,"2014-02-14",3,1,"-","-","-","-","-",1,"-","-","-",1,"-","-","-","-","-",1,"-","-","-",1,"-","-","-","-","-",1,"-","-","-",1,"-","-","-","-","-",1,"-","-","-",2,"-","-","-","-","-",2,"-","-","-","Improved"]
["Report","FIRST4SKILLS Limited",59142,"Independent Learning Provider","North West","Liverpool","Independent Learning Provider","Work Based Learning - full (national)",455600,"2015-05-18","2015-05-22","Published","2015-06-25","NULL","NULL","NULL",3,"-","-","-","-","-",3,"-","-",3,3,"-","-","-","-","-",3,"-","-",3,3,"-","-","-","-","-",3,"-","-",3,3,"-","-","-","-","-",3,"-","-",3,2,"-","-","-","-","-",2,"-","-",2,"No previous inspection"]
["Report","HYA Training Limited",52418,"Independent Learning Provider","North East, Yorkshire & Humber","Kingston upon Hull City of","Independent Learning Provider","WBL - requires improvement",444472,"2015-05-19","2015-05-22","Published","2015-06-29",407133,"2014-01-17",3,2,"-","-","-",2,"-","-","-","-","-",2,"-","-","-",2,"-","-","-","-","-",2,"-","-","-",2,"-","-","-","-","-",2,"-","-","-",2,"-","-","-","-","-",2,"-","-","-",2,"-","-","-","-","-","Improved"]
["Report","Birmingham Metropolitan College",130466,"General Further Education/Tertiary College","West Midlands","Birmingham","Further Education","FE College - full inspection",455456,"2015-05-18","2015-05-22","Published","2015-06-18",363287,"2011-02-11",2,3,"-","-","-",3,3,3,"-","-",2,3,"-","-","-",3,3,3,"-","-",3,3,"-","-","-",3,3,3,"-","-",3,3,"-","-","-",3,3,3,"-","-",3,2,"-","-","-",2,2,2,"-","-",2,"Declined"]
["Report","A4e Ltd",50083,"Independent Learning Provider","North East, Yorkshire & Humber","Sheffield","Independent Learning Provider","WBL - requires improvement",461179,"2015-05-18","2015-05-22","Published","2015-06-25",422197,"2014-02-21",3,2,"-","-","-","-",2,2,"-","-",2,2,"-","-","-","-",2,3,"-","-",2,2,"-","-","-","-",2,2,"-","-",2,2,"-","-","-","-",2,2,"-","-",2,2,"-","-","-","-",2,2,"-","-",2,"Improved"]
["Report","Doncaster Metropolitan Borough Council",51578,"Community Learning and Skills","North East, Yorkshire & Humber","Doncaster","ACL Local Authority","Adult and Community - full (regional)",463030,"2015-05-19","2015-05-22","Published","2015-06-25",399147,"2012-10-19",2,2,"-","-",2,"-",2,2,2,"-","-",2,"-","-",2,"-",2,2,2,"-","-",2,"-","-",2,"-",2,2,2,"-","-",2,"-","-",2,"-",2,2,2,"-","-",2,"-","-",2,"-",2,2,2,"-","-","Same"]
["Report","Richmond Adult Community College",131095,"General Further Education/Tertiary College","London","Richmond Upon Thames","Further Education","FE College - requires improvement",447348,"2015-05-19","2015-05-22","Published","2015-06-29",429168,"2014-02-28",3,2,"-","-","-","-",2,"-","-","-","-",2,"-","-","-","-",2,"-","-","-","-",2,"-","-","-","-",2,"-","-","-","-",2,"-","-","-","-",2,"-","-","-","-",2,"-","-","-","-",2,"-","-","-","-","Improved"]
["Report","Chapman Bennett Associates Limited",59181,"Independent Learning Provider","East of England","Peterborough","Independent Learning Provider","WBL - full (regional)",461247,"2015-05-18","2015-05-22","Published","2015-06-25","NULL","NULL","NULL",2,"-","-","-","-","-",2,"-","-","-",2,"-","-","-","-","-",2,"-","-","-",2,"-","-","-","-","-",2,"-","-","-",2,"-","-","-","-","-",2,"-","-","-",2,"-","-","-","-","-",2,"-","-","-","No previous inspection"]
["Report","Urban Futures London Limited",59166,"Community Learning and Skills","London","Haringey","ACL Voluntary organisation","WBL - full (regional)",455610,"2015-06-01","2015-06-03","Published","2015-07-08","NULL","NULL","NULL",3,"-","-","-","-","-",3,"-","-","-",3,"-","-","-","-","-",3,"-","-","-",3,"-","-","-","-","-",3,"-","-","-",3,"-","-","-","-","-",3,"-","-","-",3,"-","-","-","-","-",3,"-","-","-","No previous inspection"]
["Report","SR Education",59184,"Independent Learning Provider","East Midlands","Nottinghamshire","Independent Learning Provider","WBL - full (regional)",455617,"2015-06-02","2015-06-05","Published","2015-07-01","NULL","NULL","NULL",3,"-","-","-","-","-",3,"-","-","-",3,"-","-","-","-","-",3,"-","-","-",3,"-","-","-","-","-",3,"-","-","-",3,"-","-","-","-","-",3,"-","-","-",3,"-","-","-","-","-",3,"-","-","-","No previous inspection"]
[{"$f":"IF(C238 <> \"\", HYPERLINK(CONCATENATE(\"http://reports.ofsted.gov.uk/inspection-reports/find-inspection-report/provider/ELS/\",C238),\"Report\"),\"\")","v":"Report"},"Guildford College of Further and Higher Education",130823,"General Further Education/Tertiary College","South East","Surrey","Further Education","FE College - full inspection",455460,"2015-06-01","2015-06-05","Published","2015-07-10",332981,"2009-05-15",2,3,"-","-","-",3,3,3,"-","-","-",3,"-","-","-",3,3,4,"-","-","-",3,"-","-","-",3,3,3,"-","-","-",3,"-","-","-",3,3,3,"-","-","-",2,"-","-","-",2,2,2,"-","-","-",{"$f":"IF(P238=\"Null\",\"No previous inspection\",IF(Q238>P238,\"Declined\", IF(Q238=P238,\"Same\",IF(Q238<P238,\"Improved\"))))","v":"Declined"}]
["Report","Eden Training Solutions Limited",59182,"Independent Learning Provider","North East, Yorkshire & Humber","Barnsley","Independent Learning Provider","WBL - full (regional)",455616,"2015-06-02","2015-06-05","Published","2015-07-08","NULL","NULL","NULL",2,"-","-","-","-","-",2,"-","-","-",2,"-","-","-","-","-",2,"-","-","-",2,"-","-","-","-","-",2,"-","-","-",2,"-","-","-","-","-",2,"-","-","-",2,"-","-","-","-","-",2,"-","-","-","No previous inspection"]
["Report","Provq Limited",59179,"Independent Learning Provider","West Midlands","Shropshire","Independent Learning Provider","WBL - full (regional)",461246,"2015-06-02","2015-06-05","Published","2015-06-29","NULL","NULL","NULL",2,"-","-","-","-","-",2,"-","-","-",2,"-","-","-","-","-",2,"-","-","-",2,"-","-","-","-","-",2,"-","-","-",2,"-","-","-","-","-",2,"-","-","-",1,"-","-","-","-","-",1,"-","-","-","No previous inspection"]
["Report","Westward Pathfinder",53565,"Community Learning and Skills","South West","Devon","ACL Voluntary organisation","WBL - requires improvement",452785,"2015-06-02","2015-06-05","Published","2015-07-10",429122,"2014-02-21",3,2,"-","-","-","-",2,"-","-","-","-",2,"-","-","-","-",2,"-","-","-","-",2,"-","-","-","-",2,"-","-","-","-",2,"-","-","-","-",2,"-","-","-","-",2,"-","-","-","-",2,"-","-","-","-","Improved"]
["Report","Kensington and Chelsea College",130410,"General Further Education/Tertiary College","London","Kensington and Chelsea","Further Education","FE College - requires improvement",440397,"2015-06-02","2015-06-05","Published","2015-07-10",423347,"2013-11-15",3,3,"-","-","-",3,3,"-","-","-","-",3,"-","-","-",3,3,"-","-","-","-",3,"-","-","-",3,3,"-","-","-","-",3,"-","-","-",3,3,"-","-","-","-",2,"-","-","-",2,2,"-","-","-","-","Same"]
["Report","Yorkshire Training Partnership Limited",58132,"Independent Learning Provider","North East, Yorkshire & Humber","Rotherham","Independent Learning Provider","WBL - requires improvement",443134,"2015-06-01","2015-06-05","Published","2015-07-08",420897,"2013-12-13",3,2,"-","-","-","-","-",2,"-","-","-",2,"-","-","-","-","-",2,"-","-","-",2,"-","-","-","-","-",2,"-","-","-",2,"-","-","-","-","-",2,"-","-","-",2,"-","-","-","-","-",2,"-","-","-","Improved"]
["Report","Pathway First Limited",59176,"Independent Learning Provider","West Midlands","Birmingham","Independent Learning Provider","WBL - full (regional)",455612,"2015-06-02","2015-06-05","Published","2015-06-24","NULL","NULL","NULL",3,"-","-","-","-","-",3,"-","-","-",3,"-","-","-","-","-",3,"-","-","-",3,"-","-","-","-","-",3,"-","-","-",3,"-","-","-","-","-",3,"-","-","-",2,"-","-","-","-","-",2,"-","-","-","No previous inspection"]
["Report","St Paul's",58314,"Community Learning and Skills","West Midlands","Birmingham","ACL Voluntary organisation","Adult and Community - full (regional)",455596,"2015-06-03","2015-06-05","Published","2015-06-24","NULL","NULL","NULL",2,"-","-","-","-","-",2,"-","-","-",2,"-","-","-","-","-",2,"-","-","-",2,"-","-","-","-","-",2,"-","-","-",2,"-","-","-","-","-",2,"-","-","-",2,"-","-","-","-","-",2,"-","-","-","No previous inspection"]
["Report","Wiltshire College",132779,"General Further Education/Tertiary College","South West","Wiltshire","Further Education","FE College - requires improvement",447349,"2015-06-08","2015-06-12","Published","2015-07-17",423369,"2014-03-07",3,2,"-","-","-",2,2,2,"-","-","-",3,"-","-","-",3,3,2,"-","-","-",2,"-","-","-",2,2,2,"-","-","-",2,"-","-","-",2,2,2,"-","-","-",1,"-","-","-",1,1,1,"-","-","-","Improved"]
["Report","Blue Training (U.K.) Limited",58170,"Independent Learning Provider","North West","Oldham","Independent Learning Provider","Work Based Learning - full (national)",461265,"2015-06-08","2015-06-12","Published","2015-07-15",399072,"2012-09-28",2,4,"-","-","-","-","-",4,"-","-","-",4,"-","-","-","-","-",4,"-","-","-",4,"-","-","-","-","-",4,"-","-","-",4,"-","-","-","-","-",4,"-","-","-",4,"-","-","-","-","-",4,"-","-","-","Declined"]
["Report","Berkshire College of Agriculture",130606,"Specialist Further Education","South East","Windsor and Maidenhead","Further Education","FE College - requires improvement",447345,"2015-06-09","2015-06-12","Published","2015-07-17",423371,"2014-03-07",3,2,"-","-","-",2,2,3,"-","-","-",2,"-","-","-",2,2,3,"-","-","-",2,"-","-","-",2,2,3,"-","-","-",2,"-","-","-",2,2,3,"-","-","-",2,"-","-","-",2,2,2,"-","-","-","Improved"]
["Report","Gateshead College",130551,"General Further Education/Tertiary College","North East, Yorkshire & Humber","Gateshead","Further Education","FE College - requires improvement",446027,"2015-06-08","2015-06-12","Published","2015-07-17",429163,"2014-02-07",3,1,"-","-","-",1,1,1,"-","-","-",1,"-","-","-",1,1,1,"-","-","-",1,"-","-","-",1,1,1,"-","-","-",1,"-","-","-",1,1,1,"-","-","-",1,"-","-","-",1,1,1,"-","-","-","Improved"]
["Report","Milton Keynes College",130609,"General Further Education/Tertiary College","South East","Milton Keynes","Further Education","FE College - requires improvement",447346,"2015-06-08","2015-06-12","Published","2015-07-17",429166,"2014-02-28",3,3,"-","-","-",3,3,3,"-","-","-",3,"-","-","-",3,3,3,"-","-","-",3,"-","-","-",3,3,3,"-","-","-",3,"-","-","-",3,3,3,"-","-","-",2,"-","-","-",2,2,2,"-","-","-","Same"]
["Report","The Vocational College Limited",54947,"Independent Learning Provider","North West","Liverpool","Independent Learning Provider","Work Based Learning - full (national)",452204,"2015-06-08","2015-06-12","Published","2015-07-15",345907,"2010-07-09",2,2,"-","-","-",3,"-",2,"-","-","-",2,"-","-","-",3,"-",2,"-","-","-",2,"-","-","-",3,"-",2,"-","-","-",2,"-","-","-",3,"-",2,"-","-","-",2,"-","-","-",2,"-",2,"-","-","-","Same"]
["Report","Friends Centre",51905,"Community Learning and Skills","South East","Brighton and Hove","ACL Voluntary organisation","ACL - requires improvement",444482,"2015-06-10","2015-06-12","Published","2015-07-17",429142,"2014-01-17",3,3,"-","-","-","-",3,"-",3,"-","-",3,"-","-","-","-",3,"-",3,"-","-",3,"-","-","-","-",3,"-",3,"-","-",3,"-","-","-","-",3,"-",3,"-","-",2,"-","-","-","-",2,"-",2,"-","-","Same"]
["Report","Training Synergy Limited",59163,"Independent Learning Provider","London","Hackney","Independent Learning Provider","WBL - full (regional)",455609,"2015-06-09","2015-06-12","Published","2015-07-17","NULL","NULL","NULL",3,"-","-","-","-","-",3,"-","-","-",3,"-","-","-","-","-",3,"-","-","-",3,"-","-","-","-","-",3,"-","-","-",3,"-","-","-","-","-",3,"-","-","-",2,"-","-","-","-","-",2,"-","-","-","No previous inspection"]
["Report","Rutland County Council",54229,"Community Learning and Skills","East Midlands","Rutland","ACL Local Authority","ACL - requires improvement",446028,"2015-06-16","2015-06-18","Published","2015-07-09",423423,"2014-02-07",3,2,"-","-","-","-",2,2,2,"-",2,2,"-","-","-","-",2,2,2,"-",2,2,"-","-","-","-",2,2,2,"-",2,2,"-","-","-","-",2,2,2,"-",2,2,"-","-","-","-",2,2,2,"-",2,"Improved"]
["Report","Professional Business & Training Solutions Limited",53982,"Independent Learning Provider","London","Bexley","Independent Learning Provider","WBL - requires improvement",429226,"2015-06-16","2015-06-18","Published","2015-07-23",399104,"2012-10-18",3,2,"-","-","-","-","-","-","-","-",2,2,"-","-","-","-","-","-","-","-",2,2,"-","-","-","-","-","-","-","-",2,2,"-","-","-","-","-","-","-","-",2,2,"-","-","-","-","-","-","-","-",2,"Improved"]
["Report","N.T.S. Limited",58781,"Independent Learning Provider","London","Hounslow","Independent Learning Provider","WBL - requires improvement",440391,"2015-06-16","2015-06-18","Published","2015-07-17",410128,"2013-11-14",3,2,"-","-","-",2,"-","-","-","-","-",2,"-","-","-",2,"-","-","-","-","-",2,"-","-","-",2,"-","-","-","-","-",2,"-","-","-",2,"-","-","-","-","-",2,"-","-","-",2,"-","-","-","-","-","Improved"]
["Report","System Group Limited",54726,"Independent Learning Provider","North West","Cumbria","Independent Learning Provider","Work Based Learning - full (national)",455589,"2015-06-15","2015-06-19","Published","2015-07-22",404578,"2012-09-21",2,3,"-","-","-","-",3,3,"-","-","-",3,"-","-","-","-",3,3,"-","-","-",3,"-","-","-","-",2,3,"-","-","-",3,"-","-","-","-",3,3,"-","-","-",2,"-","-","-","-",2,2,"-","-","-","Declined"]
["Report","Skills and Learning: Bournemouth, Dorset and Poole",53936,"Community Learning and Skills","South West","Poole","ACL Local Authority","Adult and Community - full (regional)",455585,"2015-06-15","2015-06-19","Published","2015-07-22",385054,"2012-03-02",2,2,"-","-","-","-",2,"-","-","-","-",2,"-","-","-","-",2,"-","-","-","-",2,"-","-","-","-",2,"-","-","-","-",2,"-","-","-","-",2,"-","-","-","-",2,"-","-","-","-",2,"-","-","-","-","Same"]
["Report","Apprentice Funding Assistant Limited",59147,"Independent Learning Provider","East of England","Norfolk","Independent Learning Provider","Work Based Learning - full (national)",455602,"2015-06-15","2015-06-19","Published","2015-07-14","NULL","NULL","NULL",2,"-","-","-","-","-",2,"-","-","-",2,"-","-","-","-","-",2,"-","-","-",2,"-","-","-","-","-",2,"-","-","-",2,"-","-","-","-","-",2,"-","-","-",2,"-","-","-","-","-",2,"-","-","-","No previous inspection"]
["Report","B L Training Limited",50584,"Independent Learning Provider","North East, Yorkshire & Humber","Newcastle Upon Tyne","Independent Learning Provider","WBL - full (regional)",455578,"2015-06-15","2015-06-19","Published","2015-07-21",385757,"2012-02-10",2,2,"-","-","-","-","-",2,"-","-","-",2,"-","-","-","-","-",2,"-","-","-",2,"-","-","-","-","-",2,"-","-","-",2,"-","-","-","-","-",2,"-","-","-",2,"-","-","-","-","-",2,"-","-","-","Same"]
["Report","MPower Training Solutions Ltd",59187,"Independent Learning Provider","East of England","Essex","Independent Learning Provider","WBL - full (regional)",461249,"2015-06-16","2015-06-19","Published","2015-07-10","NULL","NULL","NULL",3,"-","-","-","-","-",3,"-","-","-",3,"-","-","-","-","-",3,"-","-","-",3,"-","-","-","-","-",3,"-","-","-",3,"-","-","-","-","-",3,"-","-","-",3,"-","-","-","-","-",3,"-","-","-","No previous inspection"]
["Report","Select Service Partner UK Limited",59042,"Employer","London","Camden","Employer","Work Based Learning - reinspection",451098,"2015-06-22","2015-06-25","Published","2015-07-30",429777,"2014-03-28",4,2,"-","-","-","-","-",2,"-","-","-",3,"-","-","-","-","-",3,"-","-","-",2,"-","-","-","-","-",2,"-","-","-",2,"-","-","-","-","-",2,"-","-","-",2,"-","-","-","-","-",2,"-","-","-","Improved"]
["Report","Medway Council",53295,"Community Learning and Skills","South East","Medway","ACL Local Authority","ACL - requires improvement",446029,"2015-06-23","2015-06-26","Published","2015-07-28",422200,"2014-02-07",3,2,"-","-","-","-",2,"-",2,"-","-",2,"-","-","-","-",2,"-",2,"-","-",2,"-","-","-","-",2,"-",2,"-","-",2,"-","-","-","-",2,"-",2,"-","-",2,"-","-","-","-",2,"-",2,"-","-","Improved"]
["Report","Access Training Limited",50314,"Independent Learning Provider","North East, Yorkshire & Humber","Gateshead","Independent Learning Provider","WBL - full (regional)",455577,"2015-06-22","2015-06-26","Published","2015-07-22",385750,"2012-02-03",2,2,"-","-","-","-",2,2,"-","-",2,2,"-","-","-","-",2,2,"-","-",2,2,"-","-","-","-",2,2,"-","-",2,2,"-","-","-","-",2,2,"-","-",2,2,"-","-","-","-",2,2,"-","-",2,"Same"]
["Report","Groundwork South Tyneside and Newcastle",141503,"Independent Specialist College","North East, Yorkshire & Humber","South Tyneside","Special College","ISC - full inspection",455856,"2015-06-24","2015-06-26","Published","2015-07-29","NULL","NULL","NULL",3,"-","-","-",3,3,"-","-","-","-",2,"-","-","-",2,2,"-","-","-","-",3,"-","-","-",3,3,"-","-","-","-",3,"-","-","-",3,3,"-","-","-","-",2,"-","-","-",2,2,"-","-","-","-","No previous inspection"]
["Report","Birmingham Electrical Training Ltd",50713,"Independent Learning Provider","West Midlands","Birmingham","Independent Learning Provider","WBL - requires improvement 2nd inspection",446037,"2015-06-23","2015-06-26","Published","2015-07-16",429219,"2014-02-21",3,2,"-","-","-","-","-",2,"-","-","-",2,"-","-","-","-","-",2,"-","-","-",2,"-","-","-","-","-",2,"-","-","-",2,"-","-","-","-","-",2,"-","-","-",2,"-","-","-","-","-",2,"-","-","-","Improved"]
["Report","t2 business solutions",58820,"Independent Learning Provider","South West","Devon","Independent Learning Provider","Work Based Learning - full (national)",455599,"2015-06-22","2015-06-26","Published","2015-08-07",385772,"2012-03-23",1,3,"-","-",3,3,3,3,"-","-","-",2,"-","-",1,1,2,2,"-","-","-",2,"-","-",1,1,2,2,"-","-","-",3,"-","-",3,3,3,3,"-","-","-",3,"-","-",3,3,3,3,"-","-","-","Declined"]
["Report","Building Engineering Services Training Limited",50100,"Independent Learning Provider","South East","Buckinghamshire","Independent Learning Provider","WBL - requires improvement",447338,"2015-06-22","2015-06-26","Published","2015-08-05",429125,"2014-03-14",3,4,"-","-","-","-","-",4,"-","-","-",4,"-","-","-","-","-",4,"-","-","-",4,"-","-","-","-","-",4,"-","-","-",4,"-","-","-","-","-",4,"-","-","-",3,"-","-","-","-","-",3,"-","-","-","Declined"]
["Report","VQ Solutions Ltd",58570,"Independent Learning Provider","North East, Yorkshire & Humber","North Yorkshire","Independent Learning Provider","WBL - full (regional)",455597,"2015-06-23","2015-06-26","Published","2015-07-31","NULL","NULL","NULL",2,"-","-","-","-","-",2,"-","-","-",2,"-","-","-","-","-",2,"-","-","-",2,"-","-","-","-","-",2,"-","-","-",2,"-","-","-","-","-",2,"-","-","-",2,"-","-","-","-","-",2,"-","-","-","No previous inspection"]
["Report","HIT Training Ltd",57860,"Independent Learning Provider","South East","West Sussex","Independent Learning Provider","Work Based Learning - full (national)",455591,"2015-06-22","2015-06-26","Published","2015-07-31",385767,"2012-01-13",2,2,"-","-",2,"-","-",2,"-","-",3,2,"-","-",3,"-","-",2,"-","-",3,2,"-","-",2,"-","-",2,"-","-",3,2,"-","-",2,"-","-",2,"-","-",3,2,"-","-",2,"-","-",2,"-","-",2,"Same"]
["Report","EQL Solutions Limited",59196,"Independent Learning Provider","North West","Warrington","Independent Learning Provider","Work Based Learning - full (national)",463394,"2015-06-29","2015-07-03","Published","2015-07-31","NULL","NULL","NULL",3,"-","-","-","-","-",3,"-","-",3,3,"-","-","-","-","-",3,"-","-",3,3,"-","-","-","-","-",3,"-","-",3,3,"-","-","-","-","-",3,"-","-",3,2,"-","-","-","-","-",2,"-","-",2,"No previous inspection"]
["Report","Lite (Stockport) Limited",53068,"Independent Learning Provider","North West","Stockport","Independent Learning Provider","WBL - full (regional)",463358,"2015-06-30","2015-07-03","Published","2015-07-31",319225,"2008-04-02",1,2,"-","-","-","-","-",2,"-","-","-",2,"-","-","-","-","-",2,"-","-","-",2,"-","-","-","-","-",2,"-","-","-",2,"-","-","-","-","-",2,"-","-","-",2,"-","-","-","-","-",2,"-","-","-","Declined"]
["Report","Whitbread PLC",55363,"Employer","East of England","Central Bedfordshire","Employer","WBL - requires improvement",446607,"2015-06-30","2015-07-03","Published","2015-07-22",385766,"2012-03-02",3,2,"-","-","-","-","-",2,"-","-","-",2,"-","-","-","-","-",2,"-","-","-",2,"-","-","-","-","-",2,"-","-","-",2,"-","-","-","-","-",2,"-","-","-",2,"-","-","-","-","-",2,"-","-","-","Improved"]
["Report","Meadowhall Training Limited",59216,"Independent Learning Provider","North East, Yorkshire & Humber","Sheffield","Independent Learning Provider","WBL - full (regional)",463248,"2015-06-29","2015-07-03","Published","2015-08-08","NULL","NULL","NULL",3,"-","-","-","-","-",3,"-","-","-",3,"-","-","-","-","-",3,"-","-","-",3,"-","-","-","-","-",3,"-","-","-",3,"-","-","-","-","-",3,"-","-","-",2,"-","-","-","-","-",2,"-","-","-","No previous inspection"]
["Report","The CADCentre (UK) Limited",50104,"Independent Learning Provider","West Midlands","Birmingham","Independent Learning Provider","Work Based Learning - full (national)",455574,"2015-07-06","2015-07-10","Published","2015-08-14","NULL","NULL","NULL",4,"-","-","-","-",4,4,"-","-",4,4,"-","-","-","-",4,4,"-","-",4,4,"-","-","-","-",4,4,"-","-",4,4,"-","-","-","-",4,4,"-","-",4,4,"-","-","-","-",4,4,"-","-",4,"No previous inspection"]
["Report","Next Retail Ltd",59180,"Employer","East Midlands","Leicestershire","Employer","Work Based Learning - full (national)",455614,"2015-07-06","2015-07-10","Published","2015-08-14","NULL","NULL","NULL",4,"-","-","-","-","-",4,"-","-","-",4,"-","-","-","-","-",4,"-","-","-",4,"-","-","-","-","-",4,"-","-","-",4,"-","-","-","-","-",4,"-","-","-",4,"-","-","-","-","-",4,"-","-","-","No previous inspection"]
["Report","QDOS Training Limited",58397,"Independent Learning Provider","East Midlands","Leicester","Independent Learning Provider","Work Based Learning - reinspection",465164,"2015-07-28","2015-07-31","Published","2015-08-26",452989,"2015-02-13",4,2,"-","-","-","-",2,2,"-","-","-",2,"-","-","-","-",2,2,"-","-","-",2,"-","-","-","-",2,2,"-","-","-",2,"-","-","-","-",2,2,"-","-","-",2,"-","-","-","-",2,2,"-","-","-","Improved"]

{"sheet":"Pivot SSA","index":5,"n_rows":94,"n_cols":6,"rows_kept":94,"cut":false,"hidden":true,"merged":[]}
[]
[]
["Count of Inspection Number","Column Labels"]
["Row Labels",1,2,3,4,"Grand Total"]
["Agriculture, Horticulture and Animal Care",null,13,5,null,18]
["Arts, Media and Publishing",11,43,15,null,69]
["Business, Administration and Law",5,101,74,11,191]
["Community Development",null,null,1,null,1]
["Construction, Planning and the Built Environment",null,15,13,4,32]
["Education and Training",null,null,3,null,3]
["Engineering and Manufacturing Technologies",11,34,33,2,80]
["Family Learning",1,2,1,null,4]
["Health, Public Services and Care",12,65,51,2,130]
["Humanities",2,2,null,null,4]
["Information and Communication Technology",4,28,7,5,44]
["Languages, Literature and Culture",1,9,9,2,21]
["Leisure, Travel and Tourism",10,22,3,null,35]
["Preparation for Life and Work",6,91,73,18,188]
["Retail and Commercial Enterprise",4,40,19,9,72]
["Science and Mathematics",1,17,28,5,51]
["Social Sciences",null,3,3,2,8]
["Grand Total",68,485,338,60,951]
[]
[]
[]
["Count of Inspection Number","Column Labels"]
["Row Labels",1,2,3,4,"Grand Total"]
["Accounting and Finance",2,8,8,1,19]
["Administration",1,47,34,2,84]
["Agriculture",null,2,2,null,4]
["Animal care",null,2,null,null,2]
["Animal Care and Veterinary Science",null,5,null,null,5]
["Beauty Therapy",null,2,null,null,2]
["Building and Construction",null,6,7,3,16]
["Building Services",null,4,1,1,6]
["Business",1,4,4,null,9]
["Business Management",null,30,23,3,56]
["Call centre operations",null,null,null,1,1]
["Communications Technology",null,1,null,null,1]
["Community Development",null,null,1,null,1]
["Community Learning",null,7,3,1,11]
["Construction Crafts",null,5,5,null,10]
["Customer service",null,6,2,4,12]
["Early Years and Playwork",5,20,16,null,41]
["Employability Training",2,23,17,4,46]
["Engineering",5,13,12,null,30]
["English",1,6,8,1,16]
["Environmental Conservation",null,null,1,null,1]
["Equine Studies",null,1,1,null,2]
["ESOL",1,11,2,1,15]
["Family Learning",1,2,1,null,4]
["Forestry",null,1,null,null,1]
["Foundation English",null,15,21,5,41]
["Foundation English and Mathematics",null,13,7,null,20]
["Foundation mathematics",null,10,17,5,32]
["Hairdressing",1,5,2,3,11]
["Hairdressing and beauty therapy",1,10,9,1,21]
["Health and Social Care",5,41,30,2,78]
["Health, Public Services and Care",null,1,null,null,1]
["History",1,1,null,null,2]
["Horticulture",null,1,null,null,1]
["Horticulture and Forestry",null,1,1,null,2]
["Hospitality and Catering",null,13,2,2,17]
["ICT for practitioners",3,12,3,3,21]
["ICT for Users",1,15,4,2,22]
["Independent living and leisure skills",3,12,6,2,23]
["Law and Legal Services",1,4,2,1,8]
["Leisure, Travel and Tourism",1,null,null,null,1]
["Manufacturing Technologies",3,13,7,null,23]
["Marketing and Sales",null,2,1,null,3]
["Mathematics and Statistics",1,4,15,1,21]
["Media and Communication",1,6,6,null,13]
["Modern foreign languages",null,3,1,1,5]
["Motor vehicle",1,6,10,null,17]
["Nursing and Dental Health",1,1,2,null,4]
["Performing Arts",3,13,3,null,19]
["Psychology",null,3,null,1,4]
["Public Services",3,7,3,null,13]
["Retailing and Wholesaling",null,5,2,1,8]
["Science",null,11,13,3,27]
["Science and Mathematics",null,null,null,1,1]
["Service Enterprises",null,1,null,1,2]
["Social Sciences",null,1,3,null,4]
["Sociology and Social Policy",null,1,null,1,2]
["Sport",4,11,2,null,17]
["Sport, Leisure and Recreation",2,6,null,null,8]
["Teaching and Lecturing",null,null,2,null,2]
["Theology and Religious Studies",1,1,null,null,2]
["Training to Provide Learning Support",null,null,1,null,1]
["Transportation operations and maintenance",2,2,4,2,10]
["Travel and Tourism",1,null,1,null,2]
["Visual Arts",7,24,6,null,37]
["Warehousing and Distribution",2,4,4,null,10]
["Grand Total",68,485,338,60,951]

{"sheet":"Sector subject area data","index":6,"n_rows":954,"n_cols":17,"rows_kept":954,"cut":false,"hidden":false,"merged":[]}
["Sector subject area judgements for further education and skills providers inspected since 1 September 2014"]
[]
["Report","Provider Name","URN","Local authority","Ofsted region","Provider type","Inspection Type","Inspection Number","Inspection Start Date","Inspection End Date","Inspection Status","Inspection Report Published","SSA 1 code","SSA 1 descriptor","SSA 2 code","SSA 2 descriptor","Outcome"]
[{"$f":"IF(C4 <> \"\", HYPERLINK(CONCATENATE(\"http://reports.ofsted.gov.uk/inspection-reports/find-inspection-report/provider/ELS/\",C4),\"Report\"),\"\")","v":"Report"},"Canterbury College",130730,"Kent","South East","General Further Education/Tertiary College","FE College - requires improvement",440396,"2015-05-11","2015-05-15","Published","2015-06-22",1,"Health, Public Services and Care",400,"Public Services",3]
["Report","Canterbury College",130730,"Kent","South East","General Further Education/Tertiary College","FE College - requires improvement",440396,"2015-05-11","2015-05-15","Published","2015-06-22",4,"Engineering and Manufacturing Technologies",300,"Motor vehicle",3]
["Report","Canterbury College",130730,"Kent","South East","General Further Education/Tertiary College","FE College - requires improvement",440396,"2015-05-11","2015-05-15","Published","2015-06-22",6,"Information and Communication Technology",200,"ICT for Users",4]
["Report","Canterbury College",130730,"Kent","South East","General Further Education/Tertiary College","FE College - requires improvement",440396,"2015-05-11","2015-05-15","Published","2015-06-22",7,"Retail and Commercial Enterprise",301,"Hairdressing and beauty therapy",3]
["Report","Canterbury College",130730,"Kent","South East","General Further Education/Tertiary College","FE College - requires improvement",440396,"2015-05-11","2015-05-15","Published","2015-06-22",14,"Preparation for Life and Work",112,"Foundation English",3]
["Report","Canterbury College",130730,"Kent","South East","General Further Education/Tertiary College","FE College - requires improvement",440396,"2015-05-11","2015-05-15","Published","2015-06-22",4,"Engineering and Manufacturing Technologies",100,"Engineering",3]
["Report","Canterbury College",130730,"Kent","South East","General Further Education/Tertiary College","FE College - requires improvement",440396,"2015-05-11","2015-05-15","Published","2015-06-22",6,"Information and Communication Technology",100,"ICT for practitioners",4]
["Report","Canterbury College",130730,"Kent","South East","General Further Education/Tertiary College","FE College - requires improvement",440396,"2015-05-11","2015-05-15","Published","2015-06-22",14,"Preparation for Life and Work",113,"Foundation mathematics",3]
["Report","Canterbury College",130730,"Kent","South East","General Further Education/Tertiary College","FE College - requires improvement",440396,"2015-05-11","2015-05-15","Published","2015-06-22",9,"Arts, Media and Publishing",200,"Visual Arts",1]
["Report","East Surrey College",130824,"Surrey","South East","General Further Education/Tertiary College","FE College - full inspection",446540,"2014-12-09","2014-12-12","Published","2015-01-21",14,"Preparation for Life and Work",112,"Foundation English",2]
["Report","East Surrey College",130824,"Surrey","South East","General Further Education/Tertiary College","FE College - full inspection",446540,"2014-12-09","2014-12-12","Published","2015-01-21",1,"Health, Public Services and Care",300,"Health and Social Care",1]
["Report","East Surrey College",130824,"Surrey","South East","General Further Education/Tertiary College","FE College - full inspection",446540,"2014-12-09","2014-12-12","Published","2015-01-21",1,"Health, Public Services and Care",500,"Early Years and Playwork",1]
["Report","East Surrey College",130824,"Surrey","South East","General Further Education/Tertiary College","FE College - full inspection",446540,"2014-12-09","2014-12-12","Published","2015-01-21",9,"Arts, Media and Publishing",300,"Media and Communication",1]
["Report","East Surrey College",130824,"Surrey","South East","General Further Education/Tertiary College","FE College - full inspection",446540,"2014-12-09","2014-12-12","Published","2015-01-21",15,"Business, Administration and Law",100,"Accounting and Finance",2]
["Report","East Surrey College",130824,"Surrey","South East","General Further Education/Tertiary College","FE College - full inspection",446540,"2014-12-09","2014-12-12","Published","2015-01-21",5,"Construction, Planning and the Built Environment",200,"Building and Construction",3]
["Report","East Surrey College",130824,"Surrey","South East","General Further Education/Tertiary College","FE College - full inspection",446540,"2014-12-09","2014-12-12","Published","2015-01-21",9,"Arts, Media and Publishing",200,"Visual Arts",1]
["Report","East Surrey College",130824,"Surrey","South East","General Further Education/Tertiary College","FE College - full inspection",446540,"2014-12-09","2014-12-12","Published","2015-01-21",15,"Business, Administration and Law",300,"Business Management",2]
["Report","King George V College",130492,"Sefton","North West","Sixth Form College","SFC - full inspection",446535,"2014-09-16","2014-09-19","Published","2014-10-23",12,"Languages, Literature and Culture",202,"Modern foreign languages",4]
["Report","King George V College",130492,"Sefton","North West","Sixth Form College","SFC - full inspection",446535,"2014-09-16","2014-09-19","Published","2014-10-23",15,"Business, Administration and Law",600,"Business",3]
["Report","King George V College",130492,"Sefton","North West","Sixth Form College","SFC - full inspection",446535,"2014-09-16","2014-09-19","Published","2014-10-23",15,"Business, Administration and Law",500,"Law and Legal Services",4]
["Report","North Shropshire College",130797,"Shropshire","West Midlands","General Further Education/Tertiary College","FE College - requires improvement",430280,"2014-10-14","2014-10-17","Published","2014-11-21",8,"Leisure, Travel and Tourism",100,"Sport, Leisure and Recreation",2]
["Report","North Shropshire College",130797,"Shropshire","West Midlands","General Further Education/Tertiary College","FE College - requires improvement",430280,"2014-10-14","2014-10-17","Published","2014-11-21",2,"Science and Mathematics",200,"Mathematics and Statistics",3]
["Report","North Shropshire College",130797,"Shropshire","West Midlands","General Further Education/Tertiary College","FE College - requires improvement",430280,"2014-10-14","2014-10-17","Published","2014-11-21",14,"Preparation for Life and Work",108,"Independent living and leisure skills",3]
["Report","North Shropshire College",130797,"Shropshire","West Midlands","General Further Education/Tertiary College","FE College - requires improvement",430280,"2014-10-14","2014-10-17","Published","2014-11-21",2,"Science and Mathematics",100,"Science",3]
["Report","North Shropshire College",130797,"Shropshire","West Midlands","General Further Education/Tertiary College","FE College - requires improvement",430280,"2014-10-14","2014-10-17","Published","2014-11-21",3,"Agriculture, Horticulture and Animal Care",100,"Agriculture",3]
["Report","New College Telford",130801,"Telford and Wrekin","West Midlands","Sixth Form College","SFC - full inspection",452492,"2015-02-10","2015-02-13","Published","2015-03-19",15,"Business, Administration and Law",300,"Business Management",2]
["Report","New College Telford",130801,"Telford and Wrekin","West Midlands","Sixth Form College","SFC - full inspection",452492,"2015-02-10","2015-02-13","Published","2015-03-19",15,"Business, Administration and Law",500,"Law and Legal Services",2]
["Report","New College Telford",130801,"Telford and Wrekin","West Midlands","Sixth Form College","SFC - full inspection",452492,"2015-02-10","2015-02-13","Published","2015-03-19",2,"Science and Mathematics",100,"Science",2]
["Report","Milton Keynes College",130609,"Milton Keynes","South East","General Further Education/Tertiary College","FE College - requires improvement",447346,"2015-06-08","2015-06-12","Published","2015-07-17",8,"Leisure, Travel and Tourism",101,"Sport",2]
["Report","Milton Keynes College",130609,"Milton Keynes","South East","General Further Education/Tertiary College","FE College - requires improvement",447346,"2015-06-08","2015-06-12","Published","2015-07-17",5,"Construction, Planning and the Built Environment",202,"Construction Crafts",3]
["Report","Milton Keynes College",130609,"Milton Keynes","South East","General Further Education/Tertiary College","FE College - requires improvement",447346,"2015-06-08","2015-06-12","Published","2015-07-17",15,"Business, Administration and Law",200,"Administration",2]
["Report","Milton Keynes College",130609,"Milton Keynes","South East","General Further Education/Tertiary College","FE College - requires improvement",447346,"2015-06-08","2015-06-12","Published","2015-07-17",8,"Leisure, Travel and Tourism",102,"Public Services",2]
["Report","Milton Keynes College",130609,"Milton Keynes","South East","General Further Education/Tertiary College","FE College - requires improvement",447346,"2015-06-08","2015-06-12","Published","2015-07-17",4,"Engineering and Manufacturing Technologies",100,"Engineering",3]
["Report","Milton Keynes College",130609,"Milton Keynes","South East","General Further Education/Tertiary College","FE College - requires improvement",447346,"2015-06-08","2015-06-12","Published","2015-07-17",4,"Engineering and Manufacturing Technologies",300,"Motor vehicle",3]
["Report","Milton Keynes College",130609,"Milton Keynes","South East","General Further Education/Tertiary College","FE College - requires improvement",447346,"2015-06-08","2015-06-12","Published","2015-07-17",14,"Preparation for Life and Work",113,"Foundation mathematics",3]
["Report","Milton Keynes College",130609,"Milton Keynes","South East","General Further Education/Tertiary College","FE College - requires improvement",447346,"2015-06-08","2015-06-12","Published","2015-07-17",15,"Business, Administration and Law",300,"Business Management",2]
["Report","Trafford College",130519,"Trafford","North West","General Further Education/Tertiary College","FE College - full inspection",452485,"2015-01-19","2015-01-23","Published","2015-03-02",1,"Health, Public Services and Care",500,"Early Years and Playwork",3]
["Report","Trafford College",130519,"Trafford","North West","General Further Education/Tertiary College","FE College - full inspection",452485,"2015-01-19","2015-01-23","Published","2015-03-02",2,"Science and Mathematics",200,"Mathematics and Statistics",3]
["Report","Trafford College",130519,"Trafford","North West","General Further Education/Tertiary College","FE College - full inspection",452485,"2015-01-19","2015-01-23","Published","2015-03-02",7,"Retail and Commercial Enterprise",303,"Beauty Therapy",2]
["Report","Trafford College",130519,"Trafford","North West","General Further Education/Tertiary College","FE College - full inspection",452485,"2015-01-19","2015-01-23","Published","2015-03-02",1,"Health, Public Services and Care",300,"Health and Social Care",3]
["Report","South Essex College of Further and  Higher Education",130672,"Southend-On-Sea","East of England","General Further Education/Tertiary College","FE College - requires improvement",440398,"2015-05-11","2015-05-15","Published","2015-06-18",2,"Science and Mathematics",200,"Mathematics and Statistics",3]
["Report","South Essex College of Further and  Higher Education",130672,"Southend-On-Sea","East of England","General Further Education/Tertiary College","FE College - requires improvement",440398,"2015-05-11","2015-05-15","Published","2015-06-18",8,"Leisure, Travel and Tourism",100,"Sport, Leisure and Recreation",2]
["Report","South Essex College of Further and  Higher Education",130672,"Southend-On-Sea","East of England","General Further Education/Tertiary College","FE College - requires improvement",440398,"2015-05-11","2015-05-15","Published","2015-06-18",15,"Business, Administration and Law",200,"Administration",2]
["Report","South Essex College of Further and  Higher Education",130672,"Southend-On-Sea","East of England","General Further Education/Tertiary College","FE College - requires improvement",440398,"2015-05-11","2015-05-15","Published","2015-06-18",4,"Engineering and Manufacturing Technologies",100,"Engineering",3]
["Report","South Essex College of Further and  Higher Education",130672,"Southend-On-Sea","East of England","General Further Education/Tertiary College","FE College - requires improvement",440398,"2015-05-11","2015-05-15","Published","2015-06-18",7,"Retail and Commercial Enterprise",301,"Hairdressing and beauty therapy",2]
["Report","South Essex College of Further and  Higher Education",130672,"Southend-On-Sea","East of England","General Further Education/Tertiary College","FE College - requires improvement",440398,"2015-05-11","2015-05-15","Published","2015-06-18",1,"Health, Public Services and Care",500,"Early Years and Playwork",2]
["Report","South Essex College of Further and  Higher Education",130672,"Southend-On-Sea","East of England","General Further Education/Tertiary College","FE College - requires improvement",440398,"2015-05-11","2015-05-15","Published","2015-06-18",2,"Science and Mathematics",100,"Science",3]
["Report","South Essex College of Further and  Higher Education",130672,"Southend-On-Sea","East of England","General Further Education/Tertiary College","FE College - requires improvement",440398,"2015-05-11","2015-05-15","Published","2015-06-18",14,"Preparation for Life and Work",112,"Foundation English",3]
["Report","Wiltshire College",132779,"Wiltshire","South West","General Further Education/Tertiary College","FE College - requires improvement",447349,"2015-06-08","2015-06-12","Published","2015-07-17",3,"Agriculture, Horticulture and Animal Care",100,"Agriculture",2]
["Report","Wiltshire College",132779,"Wiltshire","South West","General Further Education/Tertiary College","FE College - requires improvement",447349,"2015-06-08","2015-06-12","Published","2015-07-17",6,"Information and Communication Technology",100,"ICT for practitioners",2]
["Report","Wiltshire College",132779,"Wiltshire","South West","General Further Education/Tertiary College","FE College - requires improvement",447349,"2015-06-08","2015-06-12","Published","2015-07-17",14,"Preparation for Life and Work",112,"Foundation English",3]
["Report","Wiltshire College",132779,"Wiltshire","South West","General Further Education/Tertiary College","FE College - requires improvement",447349,"2015-06-08","2015-06-12","Published","2015-07-17",1,"Health, Public Services and Care",500,"Early Years and Playwork",3]
["Report","Wiltshire College",132779,"Wiltshire","South West","General Further Education/Tertiary College","FE College - requires improvement",447349,"2015-06-08","2015-06-12","Published","2015-07-17",4,"Engineering and Manufacturing Technologies",100,"Engineering",2]
["Report","Wiltshire College",132779,"Wiltshire","South West","General Further Education/Tertiary College","FE College - requires improvement",447349,"2015-06-08","2015-06-12","Published","2015-07-17",15,"Business, Administration and Law",200,"Administration",2]
["Report","Wiltshire College",132779,"Wiltshire","South West","General Further Education/Tertiary College","FE College - requires improvement",447349,"2015-06-08","2015-06-12","Published","2015-07-17",4,"Engineering and Manufacturing Technologies",300,"Motor vehicle",2]
["Report","Wiltshire College",132779,"Wiltshire","South West","General Further Education/Tertiary College","FE College - requires improvement",447349,"2015-06-08","2015-06-12","Published","2015-07-17",7,"Retail and Commercial Enterprise",400,"Hospitality and Catering",2]
["Report","Wiltshire College",132779,"Wiltshire","South West","General Further Education/Tertiary College","FE College - requires improvement",447349,"2015-06-08","2015-06-12","Published","2015-07-17",9,"Arts, Media and Publishing",200,"Visual Arts",2]
["Report","Wiltshire College",132779,"Wiltshire","South West","General Further Education/Tertiary College","FE College - requires improvement",447349,"2015-06-08","2015-06-12","Published","2015-07-17",3,"Agriculture, Horticulture and Animal Care",300,"Animal Care and Veterinary Science",2]
["Report","Wiltshire College",132779,"Wiltshire","South West","General Further Education/Tertiary College","FE College - requires improvement",447349,"2015-06-08","2015-06-12","Published","2015-07-17",6,"Information and Communication Technology",200,"ICT for Users",2]
["Report","Furness College",130633,"Cumbria","North West","General Further Education/Tertiary College","FE College - full inspection",452487,"2015-03-24","2015-03-27","Published","2015-05-01",4,"Engineering and Manufacturing Technologies",200,"Manufacturing Technologies",2]
["Report","Furness College",130633,"Cumbria","North West","General Further Education/Tertiary College","FE College - full inspection",452487,"2015-03-24","2015-03-27","Published","2015-05-01",4,"Engineering and Manufacturing Technologies",100,"Engineering",1]
["Report","Furness College",130633,"Cumbria","North West","General Further Education/Tertiary College","FE College - full inspection",452487,"2015-03-24","2015-03-27","Published","2015-05-01",14,"Preparation for Life and Work",112,"Foundation English",3]
["Report","Furness College",130633,"Cumbria","North West","General Further Education/Tertiary College","FE College - full inspection",452487,"2015-03-24","2015-03-27","Published","2015-05-01",14,"Preparation for Life and Work",113,"Foundation mathematics",2]
["Report","Barrow-in-Furness Sixth Form College",130637,"Cumbria","North West","Sixth Form College","SFC - requires improvement",440399,"2015-04-14","2015-04-17","Published","2015-05-21",15,"Business, Administration and Law",500,"Law and Legal Services",1]
[{"$f":"IF(C68 <> \"\", HYPERLINK(CONCATENATE(\"http://reports.ofsted.gov.uk/inspection-reports/find-inspection-report/provider/ELS/\",C68),\"Report\"),\"\")","v":"Report"},"Barrow-in-Furness Sixth Form College",130637,"Cumbria","North West","Sixth Form College","SFC - requires improvement",440399,"2015-04-14","2015-04-17","Published","2015-05-21",2,"Science and Mathematics",101,"Psychology",2]
["Report","Barrow-in-Furness Sixth Form College",130637,"Cumbria","North West","Sixth Form College","SFC - requires improvement",440399,"2015-04-14","2015-04-17","Published","2015-05-21",2,"Science and Mathematics",100,"Science",2]
["Report","Barrow-in-Furness Sixth Form College",130637,"Cumbria","North West","Sixth Form College","SFC - requires improvement",440399,"2015-04-14","2015-04-17","Published","2015-05-21",15,"Business, Administration and Law",300,"Business Management",2]
["Report","Darlington College",130656,"Darlington","North East, Yorkshire & Humber","General Further Education/Tertiary College","FE College - full inspection",452549,"2015-02-09","2015-02-13","Published","2015-03-20",8,"Leisure, Travel and Tourism",101,"Sport",3]
["Report","Darlington College",130656,"Darlington","North East, Yorkshire & Humber","General Further Education/Tertiary College","FE College - full inspection",452549,"2015-02-09","2015-02-13","Published","2015-03-20",8,"Leisure, Travel and Tourism",200,"Travel and Tourism",3]
["Report","Darlington College",130656,"Darlington","North East, Yorkshire & Humber","General Further Education/Tertiary College","FE College - full inspection",452549,"2015-02-09","2015-02-13","Published","2015-03-20",9,"Arts, Media and Publishing",200,"Visual Arts",3]
["Report","Darlington College",130656,"Darlington","North East, Yorkshire & Humber","General Further Education/Tertiary College","FE College - full inspection",452549,"2015-02-09","2015-02-13","Published","2015-03-20",4,"Engineering and Manufacturing Technologies",100,"Engineering",3]
["Report","Darlington College",130656,"Darlington","North East, Yorkshire & Humber","General Further Education/Tertiary College","FE College - full inspection",452549,"2015-02-09","2015-02-13","Published","2015-03-20",4,"Engineering and Manufacturing Technologies",200,"Manufacturing Technologies",3]
["Report","Darlington College",130656,"Darlington","North East, Yorkshire & Humber","General Further Education/Tertiary College","FE College - full inspection",452549,"2015-02-09","2015-02-13","Published","2015-03-20",5,"Construction, Planning and the Built Environment",200,"Building and Construction",3]
["Report","Darlington College",130656,"Darlington","North East, Yorkshire & Humber","General Further Education/Tertiary College","FE College - full inspection",452549,"2015-02-09","2015-02-13","Published","2015-03-20",9,"Arts, Media and Publishing",300,"Media and Communication",3]
["Report","Darlington College",130656,"Darlington","North East, Yorkshire & Humber","General Further Education/Tertiary College","FE College - full inspection",452549,"2015-02-09","2015-02-13","Published","2015-03-20",14,"Preparation for Life and Work",112,"Foundation English",4]
["Report","Darlington College",130656,"Darlington","North East, Yorkshire & Humber","General Further Education/Tertiary College","FE College - full inspection",452549,"2015-02-09","2015-02-13","Published","2015-03-20",15,"Business, Administration and Law",200,"Administration",3]
["Report","Darlington College",130656,"Darlington","North East, Yorkshire & Humber","General Further Education/Tertiary College","FE College - full inspection",452549,"2015-02-09","2015-02-13","Published","2015-03-20",15,"Business, Administration and Law",600,"Business",3]
["Report","System Group Limited",54726,"Cumbria","North West","Independent Learning Provider","Work Based Learning - full (national)",455589,"2015-06-15","2015-06-19","Published","2015-07-22",4,"Engineering and Manufacturing Technologies",300,"Motor vehicle",3]
["Report","System Group Limited",54726,"Cumbria","North West","Independent Learning Provider","Work Based Learning - full (national)",455589,"2015-06-15","2015-06-19","Published","2015-07-22",14,"Preparation for Life and Work",204,"Employability Training",2]
["Report","King George V College",130492,"Sefton","North West","Sixth Form College","SFC - full inspection",446535,"2014-09-16","2014-09-19","Published","2014-10-23",2,"Science and Mathematics",100,"Science",4]
["Report","Kimberley 16 - 19 Stem College",139798,"Bedford","East of England","Free School - 16-19","16-19 academy - full inspection",452501,"2015-03-10","2015-03-13","Published","2015-04-21",2,"Science and Mathematics",200,"Mathematics and Statistics",3]
["Report","Kimberley 16 - 19 Stem College",139798,"Bedford","East of England","Free School - 16-19","16-19 academy - full inspection",452501,"2015-03-10","2015-03-13","Published","2015-04-21",4,"Engineering and Manufacturing Technologies",100,"Engineering",2]
["Report","Kimberley 16 - 19 Stem College",139798,"Bedford","East of England","Free School - 16-19","16-19 academy - full inspection",452501,"2015-03-10","2015-03-13","Published","2015-04-21",2,"Science and Mathematics",100,"Science",3]
["Report","Hugh Baird College",130490,"Sefton","North West","General Further Education/Tertiary College","FE College - full inspection",452484,"2015-02-02","2015-02-06","Published","2015-03-09",7,"Retail and Commercial Enterprise",301,"Hairdressing and beauty therapy",3]
["Report","Hugh Baird College",130490,"Sefton","North West","General Further Education/Tertiary College","FE College - full inspection",452484,"2015-02-02","2015-02-06","Published","2015-03-09",14,"Preparation for Life and Work",112,"Foundation English",3]
["Report","Hugh Baird College",130490,"Sefton","North West","General Further Education/Tertiary College","FE College - full inspection",452484,"2015-02-02","2015-02-06","Published","2015-03-09",15,"Business, Administration and Law",200,"Administration",2]
["Report","Hugh Baird College",130490,"Sefton","North West","General Further Education/Tertiary College","FE College - full inspection",452484,"2015-02-02","2015-02-06","Published","2015-03-09",15,"Business, Administration and Law",300,"Business Management",2]
["Report","Hugh Baird College",130490,"Sefton","North West","General Further Education/Tertiary College","FE College - full inspection",452484,"2015-02-02","2015-02-06","Published","2015-03-09",1,"Health, Public Services and Care",300,"Health and Social Care",2]
["Report","Hugh Baird College",130490,"Sefton","North West","General Further Education/Tertiary College","FE College - full inspection",452484,"2015-02-02","2015-02-06","Published","2015-03-09",5,"Construction, Planning and the Built Environment",202,"Construction Crafts",2]
["Report","Hugh Baird College",130490,"Sefton","North West","General Further Education/Tertiary College","FE College - full inspection",452484,"2015-02-02","2015-02-06","Published","2015-03-09",14,"Preparation for Life and Work",108,"Independent living and leisure skills",1]
["Report","Richmond Adult Community College",131095,"Richmond Upon Thames","London","General Further Education/Tertiary College","FE College - requires improvement",447348,"2015-05-19","2015-05-22","Published","2015-06-29",14,"Preparation for Life and Work",103,"ESOL",2]
["Report","Richmond Adult Community College",131095,"Richmond Upon Thames","London","General Further Education/Tertiary College","FE College - requires improvement",447348,"2015-05-19","2015-05-22","Published","2015-06-29",14,"Preparation for Life and Work",112,"Foundation English",2]
["Report","Richmond Adult Community College",131095,"Richmond Upon Thames","London","General Further Education/Tertiary College","FE College - requires improvement",447348,"2015-05-19","2015-05-22","Published","2015-06-29",15,"Business, Administration and Law",300,"Business Management",3]
["Report","Richmond Adult Community College",131095,"Richmond Upon Thames","London","General Further Education/Tertiary College","FE College - requires improvement",447348,"2015-05-19","2015-05-22","Published","2015-06-29",9,"Arts, Media and Publishing",100,"Performing Arts",2]
["Report","Richmond Adult Community College",131095,"Richmond Upon Thames","London","General Further Education/Tertiary College","FE College - requires improvement",447348,"2015-05-19","2015-05-22","Published","2015-06-29",15,"Business, Administration and Law",100,"Accounting and Finance",3]
["Report","Richmond Adult Community College",131095,"Richmond Upon Thames","London","General Further Education/Tertiary College","FE College - requires improvement",447348,"2015-05-19","2015-05-22","Published","2015-06-29",9,"Arts, Media and Publishing",200,"Visual Arts",2]
["Report","Wolverhampton Adult Education Service",55413,"Wolverhampton","West Midlands","Community Learning and Skills","Adult and Community - full (regional)",446669,"2014-12-08","2014-12-12","Published","2015-01-15",9,"Arts, Media and Publishing",200,"Visual Arts",1]
["Report","Wolverhampton Adult Education Service",55413,"Wolverhampton","West Midlands","Community Learning and Skills","Adult and Community - full (regional)",446669,"2014-12-08","2014-12-12","Published","2015-01-15",14,"Preparation for Life and Work",114,"Foundation English and Mathematics",2]
["Report","Wolverhampton Adult Education Service",55413,"Wolverhampton","West Midlands","Community Learning and Skills","Adult and Community - full (regional)",446669,"2014-12-08","2014-12-12","Published","2015-01-15",6,"Information and Communication Technology",200,"ICT for Users",2]
["Report","Skills and Learning: Bournemouth, Dorset and Poole",53936,"Poole","South West","Community Learning and Skills","Adult and Community - full (regional)",455585,"2015-06-15","2015-06-19","Published","2015-07-22",1,"Health, Public Services and Care",300,"Health and Social Care",2]
["Report","South Leicestershire College",130750,"Leicestershire","East Midlands","General Further Education/Tertiary College","FE College - requires improvement",430277,"2014-11-24","2014-11-28","Published","2015-01-07",15,"Business, Administration and Law",300,"Business Management",2]
["Report","South Leicestershire College",130750,"Leicestershire","East Midlands","General Further Education/Tertiary College","FE College - requires improvement",430277,"2014-11-24","2014-11-28","Published","2015-01-07",4,"Engineering and Manufacturing Technologies",200,"Manufacturing Technologies",2]
["Report","South Leicestershire College",130750,"Leicestershire","East Midlands","General Further Education/Tertiary College","FE College - requires improvement",430277,"2014-11-24","2014-11-28","Published","2015-01-07",5,"Construction, Planning and the Built Environment",200,"Building and Construction",2]
["Report","South Leicestershire College",130750,"Leicestershire","East Midlands","General Further Education/Tertiary College","FE College - requires improvement",430277,"2014-11-24","2014-11-28","Published","2015-01-07",14,"Preparation for Life and Work",112,"Foundation English",2]
["Report","South Leicestershire College",130750,"Leicestershire","East Midlands","General Further Education/Tertiary College","FE College - requires improvement",430277,"2014-11-24","2014-11-28","Published","2015-01-07",14,"Preparation for Life and Work",113,"Foundation mathematics",2]
["Report","South Leicestershire College",130750,"Leicestershire","East Midlands","General Further Education/Tertiary College","FE College - requires improvement",430277,"2014-11-24","2014-11-28","Published","2015-01-07",15,"Business, Administration and Law",100,"Accounting and Finance",2]
["Report","South Leicestershire College",130750,"Leicestershire","East Midlands","General Further Education/Tertiary College","FE College - requires improvement",430277,"2014-11-24","2014-11-28","Published","2015-01-07",1,"Health, Public Services and Care",300,"Health and Social Care",2]
["Report","South Leicestershire College",130750,"Leicestershire","East Midlands","General Further Education/Tertiary College","FE College - requires improvement",430277,"2014-11-24","2014-11-28","Published","2015-01-07",4,"Engineering and Manufacturing Technologies",100,"Engineering",2]
["Report","South Leicestershire College",130750,"Leicestershire","East Midlands","General Further Education/Tertiary College","FE College - requires improvement",430277,"2014-11-24","2014-11-28","Published","2015-01-07",1,"Health, Public Services and Care",500,"Early Years and Playwork",2]
["Report","Joseph Chamberlain Sixth Form College",130468,"Birmingham","West Midlands","Sixth Form College","FE College - requires improvement",430285,"2014-09-16","2014-09-19","Published","2014-10-23",2,"Science and Mathematics",100,"Science",2]
["Report","Joseph Chamberlain Sixth Form College",130468,"Birmingham","West Midlands","Sixth Form College","FE College - requires improvement",430285,"2014-09-16","2014-09-19","Published","2014-10-23",2,"Science and Mathematics",200,"Mathematics and Statistics",1]
["Report","Joseph Chamberlain Sixth Form College",130468,"Birmingham","West Midlands","Sixth Form College","FE College - requires improvement",430285,"2014-09-16","2014-09-19","Published","2014-10-23",10,"Humanities",100,"History",1]
["Report","Joseph Chamberlain Sixth Form College",130468,"Birmingham","West Midlands","Sixth Form College","FE College - requires improvement",430285,"2014-09-16","2014-09-19","Published","2014-10-23",10,"Humanities",400,"Theology and Religious Studies",1]
["Report","Joseph Chamberlain Sixth Form College",130468,"Birmingham","West Midlands","Sixth Form College","FE College - requires improvement",430285,"2014-09-16","2014-09-19","Published","2014-10-23",6,"Information and Communication Technology",100,"ICT for practitioners",2]
["Report","Luton Borough Council",53201,"Luton","East of England","Community Learning and Skills","Adult and community - full (national)",434069,"2014-09-29","2014-10-03","Published","2014-11-07",14,"Preparation for Life and Work",114,"Foundation English and Mathematics",2]
["Report","Luton Borough Council",53201,"Luton","East of England","Community Learning and Skills","Adult and community - full (national)",434069,"2014-09-29","2014-10-03","Published","2014-11-07",14,"Preparation for Life and Work",103,"ESOL",2]
["Report","Luton Borough Council",53201,"Luton","East of England","Community Learning and Skills","Adult and community - full (national)",434069,"2014-09-29","2014-10-03","Published","2014-11-07",15,"Business, Administration and Law",600,"Business",2]
["Report","Birmingham Electrical Training Ltd",50713,"Birmingham","West Midlands","Independent Learning Provider","WBL - requires improvement 2nd inspection",446037,"2015-06-23","2015-06-26","Published","2015-07-16",5,"Construction, Planning and the Built Environment",201,"Building Services",2]
["Report","St Paul's",58314,"Birmingham","West Midlands","Community Learning and Skills","Adult and Community - full (regional)",455596,"2015-06-03","2015-06-05","Published","2015-06-24",1,"Health, Public Services and Care",500,"Early Years and Playwork",2]
["Report","Anderson Stockley Accredited Training Ltd",50410,"Northamptonshire","East Midlands","Independent Learning Provider","Work Based Learning - full (national)",452600,"2015-02-03","2015-02-05","Published","2015-03-12",1,"Health, Public Services and Care",200,"Nursing and Dental Health",3]
["Report","Wiltshire College",132779,"Wiltshire","South West","General Further Education/Tertiary College","FE College - requires improvement",447349,"2015-06-08","2015-06-12","Published","2015-07-17",15,"Business, Administration and Law",300,"Business Management",2]
["Report","Weymouth College",130653,"Dorset","South West","General Further Education/Tertiary College","FE College - requires improvement",430282,"2015-01-13","2015-01-16","Published","2015-02-20",1,"Health, Public Services and Care",300,"Health and Social Care",2]
["Report","Weymouth College",130653,"Dorset","South West","General Further Education/Tertiary College","FE College - requires improvement",430282,"2015-01-13","2015-01-16","Published","2015-02-20",1,"Health, Public Services and Care",500,"Early Years and Playwork",2]
["Report","Weymouth College",130653,"Dorset","South West","General Further Education/Tertiary College","FE College - requires improvement",430282,"2015-01-13","2015-01-16","Published","2015-02-20",7,"Retail and Commercial Enterprise",400,"Hospitality and Catering",2]
[{"$f":"IF(C128 <> \"\", HYPERLINK(CONCATENATE(\"http://reports.ofsted.gov.uk/inspection-reports/find-inspection-report/provider/ELS/\",C128),\"Report\"),\"\")","v":"Report"},"Weymouth College",130653,"Dorset","South West","General Further Education/Tertiary College","FE College - requires improvement",430282,"2015-01-13","2015-01-16","Published","2015-02-20",9,"Arts, Media and Publishing",100,"Performing Arts",2]
["Report","Weymouth College",130653,"Dorset","South West","General Further Education/Tertiary College","FE College - requires improvement",430282,"2015-01-13","2015-01-16","Published","2015-02-20",14,"Preparation for Life and Work",112,"Foundation English",2]
["Report","Kingston Maurward College",130655,"Dorset","South West","Specialist Further Education","FE College - requires improvement",430267,"2014-09-30","2014-10-03","Published","2014-11-07",8,"Leisure, Travel and Tourism",101,"Sport",2]
["Report","Kingston Maurward College",130655,"Dorset","South West","Specialist Further Education","FE College - requires improvement",430267,"2014-09-30","2014-10-03","Published","2014-11-07",3,"Agriculture, Horticulture and Animal Care",100,"Agriculture",3]
["Report","Kingston Maurward College",130655,"Dorset","South West","Specialist Further Education","FE College - requires improvement",430267,"2014-09-30","2014-10-03","Published","2014-11-07",3,"Agriculture, Horticulture and Animal Care",202,"Forestry",2]
["Report","Kingston Maurward College",130655,"Dorset","South West","Specialist Further Education","FE College - requires improvement",430267,"2014-09-30","2014-10-03","Published","2014-11-07",8,"Leisure, Travel and Tourism",102,"Public Services",2]
["Report","Kingston Maurward College",130655,"Dorset","South West","Specialist Further Education","FE College - requires improvement",430267,"2014-09-30","2014-10-03","Published","2014-11-07",14,"Preparation for Life and Work",113,"Foundation mathematics",3]
["Report","Kingston Maurward College",130655,"Dorset","South West","Specialist Further Education","FE College - requires improvement",430267,"2014-09-30","2014-10-03","Published","2014-11-07",3,"Agriculture, Horticulture and Animal Care",201,"Horticulture",2]
["Report","Kingston Maurward College",130655,"Dorset","South West","Specialist Further Education","FE College - requires improvement",430267,"2014-09-30","2014-10-03","Published","2014-11-07",3,"Agriculture, Horticulture and Animal Care",400,"Environmental Conservation",3]
["Report","Totton College",130699,"Hampshire","South East","Sixth Form College","SFC - requires improvement 2nd inspection",446036,"2015-04-28","2015-05-01","Published","2015-06-17",11,"Social Sciences",201,"Psychology",4]
["Report","Totton College",130699,"Hampshire","South East","Sixth Form College","SFC - requires improvement 2nd inspection",446036,"2015-04-28","2015-05-01","Published","2015-06-17",2,"Science and Mathematics",200,"Mathematics and Statistics",3]
["Report","Totton College",130699,"Hampshire","South East","Sixth Form College","SFC - requires improvement 2nd inspection",446036,"2015-04-28","2015-05-01","Published","2015-06-17",9,"Arts, Media and Publishing",100,"Performing Arts",3]
["Report","Totton College",130699,"Hampshire","South East","Sixth Form College","SFC - requires improvement 2nd inspection",446036,"2015-04-28","2015-05-01","Published","2015-06-17",9,"Arts, Media and Publishing",300,"Media and Communication",3]
["Report","Totton College",130699,"Hampshire","South East","Sixth Form College","SFC - requires improvement 2nd inspection",446036,"2015-04-28","2015-05-01","Published","2015-06-17",11,"Social Sciences",200,"Sociology and Social Policy",4]
["Report","Totton College",130699,"Hampshire","South East","Sixth Form College","SFC - requires improvement 2nd inspection",446036,"2015-04-28","2015-05-01","Published","2015-06-17",2,"Science and Mathematics",100,"Science",4]
["Report","Totton College",130699,"Hampshire","South East","Sixth Form College","SFC - requires improvement 2nd inspection",446036,"2015-04-28","2015-05-01","Published","2015-06-17",12,"Languages, Literature and Culture",100,"English",3]
["Report","Wigan and Leigh College",130521,"Wigan","North West","General Further Education/Tertiary College","FE College - full inspection",446536,"2015-03-09","2015-03-13","Published","2015-04-17",1,"Health, Public Services and Care",500,"Early Years and Playwork",3]
["Report","Wigan and Leigh College",130521,"Wigan","North West","General Further Education/Tertiary College","FE College - full inspection",446536,"2015-03-09","2015-03-13","Published","2015-04-17",5,"Construction, Planning and the Built Environment",200,"Building and Construction",3]
["Report","Wigan and Leigh College",130521,"Wigan","North West","General Further Education/Tertiary College","FE College - full inspection",446536,"2015-03-09","2015-03-13","Published","2015-04-17",1,"Health, Public Services and Care",300,"Health and Social Care",3]
["Report","Wigan and Leigh College",130521,"Wigan","North West","General Further Education/Tertiary College","FE College - full inspection",446536,"2015-03-09","2015-03-13","Published","2015-04-17",15,"Business, Administration and Law",100,"Accounting and Finance",3]
["Report","Wigan and Leigh College",130521,"Wigan","North West","General Further Education/Tertiary College","FE College - full inspection",446536,"2015-03-09","2015-03-13","Published","2015-04-17",15,"Business, Administration and Law",200,"Administration",3]
["Report","Wigan and Leigh College",130521,"Wigan","North West","General Further Education/Tertiary College","FE College - full inspection",446536,"2015-03-09","2015-03-13","Published","2015-04-17",4,"Engineering and Manufacturing Technologies",100,"Engineering",3]
["Report","Wigan and Leigh College",130521,"Wigan","North West","General Further Education/Tertiary College","FE College - full inspection",446536,"2015-03-09","2015-03-13","Published","2015-04-17",7,"Retail and Commercial Enterprise",301,"Hairdressing and beauty therapy",2]
["Report","Wigan and Leigh College",130521,"Wigan","North West","General Further Education/Tertiary College","FE College - full inspection",446536,"2015-03-09","2015-03-13","Published","2015-04-17",14,"Preparation for Life and Work",112,"Foundation English",3]
["Report","Warrington Collegiate",130617,"Warrington","North West","General Further Education/Tertiary College","FE College - full inspection",447146,"2014-10-20","2014-10-24","Published","2014-11-28",4,"Engineering and Manufacturing Technologies",100,"Engineering",2]
["Report","Warrington Collegiate",130617,"Warrington","North West","General Further Education/Tertiary College","FE College - full inspection",447146,"2014-10-20","2014-10-24","Published","2014-11-28",5,"Construction, Planning and the Built Environment",200,"Building and Construction",3]
["Report","Warrington Collegiate",130617,"Warrington","North West","General Further Education/Tertiary College","FE College - full inspection",447146,"2014-10-20","2014-10-24","Published","2014-11-28",14,"Preparation for Life and Work",113,"Foundation mathematics",4]
["Report","Warrington Collegiate",130617,"Warrington","North West","General Further Education/Tertiary College","FE College - full inspection",447146,"2014-10-20","2014-10-24","Published","2014-11-28",1,"Health, Public Services and Care",500,"Early Years and Playwork",3]
["Report","Warrington Collegiate",130617,"Warrington","North West","General Further Education/Tertiary College","FE College - full inspection",447146,"2014-10-20","2014-10-24","Published","2014-11-28",15,"Business, Administration and Law",200,"Administration",3]
["Report","Warrington Collegiate",130617,"Warrington","North West","General Further Education/Tertiary College","FE College - full inspection",447146,"2014-10-20","2014-10-24","Published","2014-11-28",1,"Health, Public Services and Care",300,"Health and Social Care",3]
["Report","Warrington Collegiate",130617,"Warrington","North West","General Further Education/Tertiary College","FE College - full inspection",447146,"2014-10-20","2014-10-24","Published","2014-11-28",4,"Engineering and Manufacturing Technologies",300,"Motor vehicle",2]
["Report","Warrington Collegiate",130617,"Warrington","North West","General Further Education/Tertiary College","FE College - full inspection",447146,"2014-10-20","2014-10-24","Published","2014-11-28",7,"Retail and Commercial Enterprise",301,"Hairdressing and beauty therapy",2]
["Report","Warrington Collegiate",130617,"Warrington","North West","General Further Education/Tertiary College","FE College - full inspection",447146,"2014-10-20","2014-10-24","Published","2014-11-28",15,"Business, Administration and Law",100,"Accounting and Finance",3]
["Report","Chamber Training (Humber) Limited",51104,"Kingston upon Hull City of","North East, Yorkshire & Humber","Independent Learning Provider","WBL - requires improvement",429795,"2015-01-12","2015-01-16","Published","2015-02-23",15,"Business, Administration and Law",300,"Business Management",2]
["Report","Chamber Training (Humber) Limited",51104,"Kingston upon Hull City of","North East, Yorkshire & Humber","Independent Learning Provider","WBL - requires improvement",429795,"2015-01-12","2015-01-16","Published","2015-02-23",15,"Business, Administration and Law",200,"Administration",2]
["Report","Chamber Training (Humber) Limited",51104,"Kingston upon Hull City of","North East, Yorkshire & Humber","Independent Learning Provider","WBL - requires improvement",429795,"2015-01-12","2015-01-16","Published","2015-02-23",1,"Health, Public Services and Care",300,"Health and Social Care",2]
["Report","Epping Forest College",130677,"Essex","East of England","General Further Education/Tertiary College","FE College - requires improvement",430271,"2014-10-20","2014-10-24","Published","2014-11-28",1,"Health, Public Services and Care",300,"Health and Social Care",2]
["Report","Epping Forest College",130677,"Essex","East of England","General Further Education/Tertiary College","FE College - requires improvement",430271,"2014-10-20","2014-10-24","Published","2014-11-28",1,"Health, Public Services and Care",500,"Early Years and Playwork",2]
["Report","Epping Forest College",130677,"Essex","East of England","General Further Education/Tertiary College","FE College - requires improvement",430271,"2014-10-20","2014-10-24","Published","2014-11-28",4,"Engineering and Manufacturing Technologies",300,"Motor vehicle",3]
["Report","Epping Forest College",130677,"Essex","East of England","General Further Education/Tertiary College","FE College - requires improvement",430271,"2014-10-20","2014-10-24","Published","2014-11-28",8,"Leisure, Travel and Tourism",100,"Sport, Leisure and Recreation",2]
["Report","Epping Forest College",130677,"Essex","East of England","General Further Education/Tertiary College","FE College - requires improvement",430271,"2014-10-20","2014-10-24","Published","2014-11-28",14,"Preparation for Life and Work",113,"Foundation mathematics",3]
["Report","Epping Forest College",130677,"Essex","East of England","General Further Education/Tertiary College","FE College - requires improvement",430271,"2014-10-20","2014-10-24","Published","2014-11-28",15,"Business, Administration and Law",100,"Accounting and Finance",2]
["Report","Epping Forest College",130677,"Essex","East of England","General Further Education/Tertiary College","FE College - requires improvement",430271,"2014-10-20","2014-10-24","Published","2014-11-28",4,"Engineering and Manufacturing Technologies",100,"Engineering",3]
["Report","Epping Forest College",130677,"Essex","East of England","General Further Education/Tertiary College","FE College - requires improvement",430271,"2014-10-20","2014-10-24","Published","2014-11-28",9,"Arts, Media and Publishing",200,"Visual Arts",2]
["Report","Epping Forest College",130677,"Essex","East of England","General Further Education/Tertiary College","FE College - requires improvement",430271,"2014-10-20","2014-10-24","Published","2014-11-28",15,"Business, Administration and Law",300,"Business Management",2]
["Report","LIGA (UK) LTD",59155,"Oxfordshire","South East","Independent Learning Provider","Work Based Learning - full (national)",452628,"2015-02-11","2015-02-13","Published","2015-03-20",15,"Business, Administration and Law",200,"Administration",3]
["Report","N.T.S. Limited",58781,"Hounslow","London","Independent Learning Provider","WBL - requires improvement",440391,"2015-06-16","2015-06-18","Published","2015-07-17",14,"Preparation for Life and Work",204,"Employability Training",2]
["Report","Adult Community Learning Essex",51766,"Essex","East of England","Community Learning and Skills","Adult and Community - full (regional)",423415,"2014-11-10","2014-11-14","Published","2014-12-19",9,"Arts, Media and Publishing",200,"Visual Arts",2]
["Report","Adult Community Learning Essex",51766,"Essex","East of England","Community Learning and Skills","Adult and Community - full (regional)",423415,"2014-11-10","2014-11-14","Published","2014-12-19",1,"Health, Public Services and Care",300,"Health and Social Care",2]
["Report","Adult Community Learning Essex",51766,"Essex","East of England","Community Learning and Skills","Adult and Community - full (regional)",423415,"2014-11-10","2014-11-14","Published","2014-12-19",1,"Health, Public Services and Care",500,"Early Years and Playwork",2]
["Report","Adult Community Learning Essex",51766,"Essex","East of England","Community Learning and Skills","Adult and Community - full (regional)",423415,"2014-11-10","2014-11-14","Published","2014-12-19",9,"Arts, Media and Publishing",100,"Performing Arts",2]
["Report","Adult Community Learning Essex",51766,"Essex","East of England","Community Learning and Skills","Adult and Community - full (regional)",423415,"2014-11-10","2014-11-14","Published","2014-12-19",14,"Preparation for Life and Work",113,"Foundation mathematics",3]
["Report","Adult Community Learning Essex",51766,"Essex","East of England","Community Learning and Skills","Adult and Community - full (regional)",423415,"2014-11-10","2014-11-14","Published","2014-12-19",14,"Preparation for Life and Work",112,"Foundation English",3]
["Report","The Apprentice Academy Limited",59161,"Manchester","North West","Independent Learning Provider","WBL - full (regional)",455607,"2015-03-10","2015-03-13","Published","2015-04-15",15,"Business, Administration and Law",200,"Administration",3]
["Report","The Apprentice Academy Limited",59161,"Manchester","North West","Independent Learning Provider","WBL - full (regional)",455607,"2015-03-10","2015-03-13","Published","2015-04-15",15,"Business, Administration and Law",400,"Marketing and Sales",3]
["Report","Hounslow Adult and Community Education",53132,"Hounslow","London","Community Learning and Skills","Adult and Community - full (regional)",446662,"2014-12-01","2014-12-05","Published","2015-01-14",14,"Preparation for Life and Work",103,"ESOL",2]
["Report","Hounslow Adult and Community Education",53132,"Hounslow","London","Community Learning and Skills","Adult and Community - full (regional)",446662,"2014-12-01","2014-12-05","Published","2015-01-14",7,"Retail and Commercial Enterprise",303,"Beauty Therapy",2]
["Report","Hounslow Adult and Community Education",53132,"Hounslow","London","Community Learning and Skills","Adult and Community - full (regional)",446662,"2014-12-01","2014-12-05","Published","2015-01-14",7,"Retail and Commercial Enterprise",302,"Hairdressing",2]
["Report","Hounslow Adult and Community Education",53132,"Hounslow","London","Community Learning and Skills","Adult and Community - full (regional)",446662,"2014-12-01","2014-12-05","Published","2015-01-14",9,"Arts, Media and Publishing",200,"Visual Arts",2]
["Report","Trafford College",130519,"Trafford","North West","General Further Education/Tertiary College","FE College - full inspection",452485,"2015-01-19","2015-01-23","Published","2015-03-02",7,"Retail and Commercial Enterprise",302,"Hairdressing",2]
["Report","Amersham and Wycombe College",130608,"Buckinghamshire","South East","General Further Education/Tertiary College","FE College - requires improvement",430268,"2014-11-03","2014-11-07","Published","2014-12-12",9,"Arts, Media and Publishing",200,"Visual Arts",2]
["Report","Amersham and Wycombe College",130608,"Buckinghamshire","South East","General Further Education/Tertiary College","FE College - requires improvement",430268,"2014-11-03","2014-11-07","Published","2014-12-12",15,"Business, Administration and Law",300,"Business Management",3]
["Report","Amersham and Wycombe College",130608,"Buckinghamshire","South East","General Further Education/Tertiary College","FE College - requires improvement",430268,"2014-11-03","2014-11-07","Published","2014-12-12",5,"Construction, Planning and the Built Environment",202,"Construction Crafts",3]
["Report","Amersham and Wycombe College",130608,"Buckinghamshire","South East","General Further Education/Tertiary College","FE College - requires improvement",430268,"2014-11-03","2014-11-07","Published","2014-12-12",9,"Arts, Media and Publishing",100,"Performing Arts",2]
[{"$f":"IF(C192 <> \"\", HYPERLINK(CONCATENATE(\"http://reports.ofsted.gov.uk/inspection-reports/find-inspection-report/provider/ELS/\",C192),\"Report\"),\"\")","v":"Report"},"Amersham and Wycombe College",130608,"Buckinghamshire","South East","General Further Education/Tertiary College","FE College - requires improvement",430268,"2014-11-03","2014-11-07","Published","2014-12-12",14,"Preparation for Life and Work",113,"Foundation mathematics",3]
["Report","Amersham and Wycombe College",130608,"Buckinghamshire","South East","General Further Education/Tertiary College","FE College - requires improvement",430268,"2014-11-03","2014-11-07","Published","2014-12-12",15,"Business, Administration and Law",100,"Accounting and Finance",2]
["Report","Amersham and Wycombe College",130608,"Buckinghamshire","South East","General Further Education/Tertiary College","FE College - requires improvement",430268,"2014-11-03","2014-11-07","Published","2014-12-12",15,"Business, Administration and Law",200,"Administration",2]
["Report","Sir Isaac Newton Sixth Form Free School",139896,"Norfolk","East of England","Free School - 16-19","16-19 academy - full inspection",452502,"2015-03-03","2015-03-06","Published","2015-03-31",2,"Science and Mathematics",100,"Science",2]
["Report","Sir Isaac Newton Sixth Form Free School",139896,"Norfolk","East of England","Free School - 16-19","16-19 academy - full inspection",452502,"2015-03-03","2015-03-06","Published","2015-03-31",2,"Science and Mathematics",101,"Psychology",2]
["Report","Sir Isaac Newton Sixth Form Free School",139896,"Norfolk","East of England","Free School - 16-19","16-19 academy - full inspection",452502,"2015-03-03","2015-03-06","Published","2015-03-31",2,"Science and Mathematics",200,"Mathematics and Statistics",2]
["Report","Matrix Training and Development Limited",53268,"Telford and Wrekin","West Midlands","Independent Learning Provider","WBL - full (regional)",446602,"2014-10-14","2014-10-16","Published","2014-11-12",15,"Business, Administration and Law",200,"Administration",2]
["Report","Building Engineering Services Training Limited",50100,"Buckinghamshire","South East","Independent Learning Provider","WBL - requires improvement",447338,"2015-06-22","2015-06-26","Published","2015-08-05",5,"Construction, Planning and the Built Environment",201,"Building Services",4]
["Report","Rutland County Council",54229,"Rutland","East Midlands","Community Learning and Skills","ACL - requires improvement",446028,"2015-06-16","2015-06-18","Published","2015-07-09",14,"Preparation for Life and Work",114,"Foundation English and Mathematics",2]
["Report","Provq Limited",59179,"Shropshire","West Midlands","Independent Learning Provider","WBL - full (regional)",461246,"2015-06-02","2015-06-05","Published","2015-06-29",4,"Engineering and Manufacturing Technologies",400,"Transportation operations and maintenance",2]
["Report","Durham County Council",50219,"Durham","North East, Yorkshire & Humber","Community Learning and Skills","ACL - requires improvement",434393,"2015-01-19","2015-01-23","Published","2015-03-06",15,"Business, Administration and Law",200,"Administration",1]
["Report","Durham County Council",50219,"Durham","North East, Yorkshire & Humber","Community Learning and Skills","ACL - requires improvement",434393,"2015-01-19","2015-01-23","Published","2015-03-06",14,"Preparation for Life and Work",111,"Community Learning",2]
["Report","Durham County Council",50219,"Durham","North East, Yorkshire & Humber","Community Learning and Skills","ACL - requires improvement",434393,"2015-01-19","2015-01-23","Published","2015-03-06",14,"Preparation for Life and Work",114,"Foundation English and Mathematics",2]
["Report","Norfolk Training Services Limited",53550,"Norfolk","East of England","Independent Learning Provider","WBL - full (regional)",452611,"2015-02-16","2015-02-20","Published","2015-03-27",14,"Preparation for Life and Work",204,"Employability Training",3]
["Report","Norfolk Training Services Limited",53550,"Norfolk","East of England","Independent Learning Provider","WBL - full (regional)",452611,"2015-02-16","2015-02-20","Published","2015-03-27",15,"Business, Administration and Law",200,"Administration",2]
["Report","Norfolk Training Services Limited",53550,"Norfolk","East of England","Independent Learning Provider","WBL - full (regional)",452611,"2015-02-16","2015-02-20","Published","2015-03-27",4,"Engineering and Manufacturing Technologies",300,"Motor vehicle",3]
["Report","Norfolk Training Services Limited",53550,"Norfolk","East of England","Independent Learning Provider","WBL - full (regional)",452611,"2015-02-16","2015-02-20","Published","2015-03-27",7,"Retail and Commercial Enterprise",100,"Retailing and Wholesaling",3]
["Report","Medway Council",53295,"Medway","South East","Community Learning and Skills","ACL - requires improvement",446029,"2015-06-23","2015-06-26","Published","2015-07-28",14,"Preparation for Life and Work",111,"Community Learning",2]
["Report","Birmingham Metropolitan College",130466,"Birmingham","West Midlands","General Further Education/Tertiary College","FE College - full inspection",455456,"2015-05-18","2015-05-22","Published","2015-06-18",8,"Leisure, Travel and Tourism",101,"Sport",2]
["Report","Birmingham Metropolitan College",130466,"Birmingham","West Midlands","General Further Education/Tertiary College","FE College - full inspection",455456,"2015-05-18","2015-05-22","Published","2015-06-18",14,"Preparation for Life and Work",112,"Foundation English",3]
["Report","Birmingham Metropolitan College",130466,"Birmingham","West Midlands","General Further Education/Tertiary College","FE College - full inspection",455456,"2015-05-18","2015-05-22","Published","2015-06-18",14,"Preparation for Life and Work",113,"Foundation mathematics",3]
["Report","Birmingham Metropolitan College",130466,"Birmingham","West Midlands","General Further Education/Tertiary College","FE College - full inspection",455456,"2015-05-18","2015-05-22","Published","2015-06-18",15,"Business, Administration and Law",200,"Administration",3]
["Report","Birmingham Metropolitan College",130466,"Birmingham","West Midlands","General Further Education/Tertiary College","FE College - full inspection",455456,"2015-05-18","2015-05-22","Published","2015-06-18",1,"Health, Public Services and Care",300,"Health and Social Care",4]
["Report","Birmingham Metropolitan College",130466,"Birmingham","West Midlands","General Further Education/Tertiary College","FE College - full inspection",455456,"2015-05-18","2015-05-22","Published","2015-06-18",4,"Engineering and Manufacturing Technologies",200,"Manufacturing Technologies",1]
["Report","Birmingham Metropolitan College",130466,"Birmingham","West Midlands","General Further Education/Tertiary College","FE College - full inspection",455456,"2015-05-18","2015-05-22","Published","2015-06-18",9,"Arts, Media and Publishing",200,"Visual Arts",2]
["Report","Birmingham Metropolitan College",130466,"Birmingham","West Midlands","General Further Education/Tertiary College","FE College - full inspection",455456,"2015-05-18","2015-05-22","Published","2015-06-18",5,"Construction, Planning and the Built Environment",202,"Construction Crafts",3]
["Report","Next Retail Ltd",59180,"Leicestershire","East Midlands","Employer","Work Based Learning - full (national)",455614,"2015-07-06","2015-07-10","Published","2015-08-14",7,"Retail and Commercial Enterprise",101,"Call centre operations",4]
["Report","Next Retail Ltd",59180,"Leicestershire","East Midlands","Employer","Work Based Learning - full (national)",455614,"2015-07-06","2015-07-10","Published","2015-08-14",7,"Retail and Commercial Enterprise",100,"Retailing and Wholesaling",4]
["Report","Blue Training (U.K.) Limited",58170,"Oldham","North West","Independent Learning Provider","Work Based Learning - full (national)",461265,"2015-06-08","2015-06-12","Published","2015-07-15",7,"Retail and Commercial Enterprise",400,"Hospitality and Catering",4]
["Report","Blue Training (U.K.) Limited",58170,"Oldham","North West","Independent Learning Provider","Work Based Learning - full (national)",461265,"2015-06-08","2015-06-12","Published","2015-07-15",15,"Business, Administration and Law",200,"Administration",3]
["Report","Blue Training (U.K.) Limited",58170,"Oldham","North West","Independent Learning Provider","Work Based Learning - full (national)",461265,"2015-06-08","2015-06-12","Published","2015-07-15",7,"Retail and Commercial Enterprise",300,"Service Enterprises",4]
["Report","Blue Training (U.K.) Limited",58170,"Oldham","North West","Independent Learning Provider","Work Based Learning - full (national)",461265,"2015-06-08","2015-06-12","Published","2015-07-15",15,"Business, Administration and Law",401,"Customer service",3]
["Report","Priory Central Services Limited",59108,"Leicestershire","East Midlands","Employer","WBL - requires improvement",434394,"2015-03-02","2015-03-06","Published","2015-04-17",1,"Health, Public Services and Care",300,"Health and Social Care",4]
["Report","Aspire Achieve Advance Limited",59185,"Derbyshire","East Midlands","Independent Learning Provider","WBL - full (regional)",451933,"2014-10-20","2014-10-24","Published","2014-11-19",6,"Information and Communication Technology",100,"ICT for practitioners",1]
["Report","Aspire Achieve Advance Limited",59185,"Derbyshire","East Midlands","Independent Learning Provider","WBL - full (regional)",451933,"2014-10-20","2014-10-24","Published","2014-11-19",15,"Business, Administration and Law",100,"Accounting and Finance",1]
["Report","Training Futures (UK) Limited",59186,"Derbyshire","East Midlands","Independent Learning Provider","WBL - full (regional)",461248,"2015-05-12","2015-05-15","Published","2015-06-15",15,"Business, Administration and Law",300,"Business Management",2]
["Report","Training Futures (UK) Limited",59186,"Derbyshire","East Midlands","Independent Learning Provider","WBL - full (regional)",461248,"2015-05-12","2015-05-15","Published","2015-06-15",1,"Health, Public Services and Care",300,"Health and Social Care",2]
["Report","Training Futures (UK) Limited",59186,"Derbyshire","East Midlands","Independent Learning Provider","WBL - full (regional)",461248,"2015-05-12","2015-05-15","Published","2015-06-15",15,"Business, Administration and Law",200,"Administration",2]
["Report","GI Group",59190,"Derbyshire","East Midlands","Employer","WBL - full (regional)",452631,"2015-01-13","2015-01-16","Published","2015-02-26",7,"Retail and Commercial Enterprise",200,"Warehousing and Distribution",3]
["Report","Skills and Learning: Bournemouth, Dorset and Poole",53936,"Poole","South West","Community Learning and Skills","Adult and Community - full (regional)",455585,"2015-06-15","2015-06-19","Published","2015-07-22",7,"Retail and Commercial Enterprise",301,"Hairdressing and beauty therapy",2]
["Report","Skills and Learning: Bournemouth, Dorset and Poole",53936,"Poole","South West","Community Learning and Skills","Adult and Community - full (regional)",455585,"2015-06-15","2015-06-19","Published","2015-07-22",14,"Preparation for Life and Work",111,"Community Learning",2]
["Report","Guildford College of Further and Higher Education",130823,"Surrey","South East","General Further Education/Tertiary College","FE College - full inspection",455460,"2015-06-01","2015-06-05","Published","2015-07-10",3,"Agriculture, Horticulture and Animal Care",200,"Horticulture and Forestry",3]
["Report","Guildford College of Further and Higher Education",130823,"Surrey","South East","General Further Education/Tertiary College","FE College - full inspection",455460,"2015-06-01","2015-06-05","Published","2015-07-10",1,"Health, Public Services and Care",300,"Health and Social Care",3]
["Report","Guildford College of Further and Higher Education",130823,"Surrey","South East","General Further Education/Tertiary College","FE College - full inspection",455460,"2015-06-01","2015-06-05","Published","2015-07-10",14,"Preparation for Life and Work",112,"Foundation English",4]
["Report","Guildford College of Further and Higher Education",130823,"Surrey","South East","General Further Education/Tertiary College","FE College - full inspection",455460,"2015-06-01","2015-06-05","Published","2015-07-10",9,"Arts, Media and Publishing",300,"Media and Communication",2]
["Report","Guildford College of Further and Higher Education",130823,"Surrey","South East","General Further Education/Tertiary College","FE College - full inspection",455460,"2015-06-01","2015-06-05","Published","2015-07-10",14,"Preparation for Life and Work",103,"ESOL",2]
["Report","Guildford College of Further and Higher Education",130823,"Surrey","South East","General Further Education/Tertiary College","FE College - full inspection",455460,"2015-06-01","2015-06-05","Published","2015-07-10",14,"Preparation for Life and Work",108,"Independent living and leisure skills",2]
["Report","Guildford College of Further and Higher Education",130823,"Surrey","South East","General Further Education/Tertiary College","FE College - full inspection",455460,"2015-06-01","2015-06-05","Published","2015-07-10",9,"Arts, Media and Publishing",200,"Visual Arts",2]
["Report","Compass Group UK & Ireland",58805,"Surrey","South East","Employer","WBL - requires improvement",430252,"2014-11-10","2014-11-14","Published","2014-12-19",7,"Retail and Commercial Enterprise",400,"Hospitality and Catering",2]
["Report","Compass Group UK & Ireland",58805,"Surrey","South East","Employer","WBL - requires improvement",430252,"2014-11-10","2014-11-14","Published","2014-12-19",15,"Business, Administration and Law",300,"Business Management",3]
["Report","London Vesta College Limited",59157,"Tower Hamlets","London","Independent Learning Provider","WBL - full (regional)",455606,"2015-03-04","2015-03-06","Published","2015-04-14",6,"Information and Communication Technology",100,"ICT for practitioners",3]
["Report","CCP GRADUATE SCHOOL LTD",51090,"Brent","London","Independent Learning Provider","WBL - requires improvement",430251,"2014-10-20","2014-10-23","Published","2014-12-15",14,"Preparation for Life and Work",114,"Foundation English and Mathematics",2]
["Report","Romney Resource 2000 Ltd",58383,"Kent","South East","Community Learning and Skills","WBL - requires improvement",434392,"2015-03-03","2015-03-06","Published","2015-04-22",14,"Preparation for Life and Work",204,"Employability Training",3]
["Report","Waverley Training Services",55287,"Surrey","South East","Community Learning and Skills","WBL - requires improvement",430262,"2014-10-06","2014-10-10","Published","2014-11-18",1,"Health, Public Services and Care",300,"Health and Social Care",3]
["Report","Waverley Training Services",55287,"Surrey","South East","Community Learning and Skills","WBL - requires improvement",430262,"2014-10-06","2014-10-10","Published","2014-11-18",1,"Health, Public Services and Care",500,"Early Years and Playwork",3]
["Report","Waverley Training Services",55287,"Surrey","South East","Community Learning and Skills","WBL - requires improvement",430262,"2014-10-06","2014-10-10","Published","2014-11-18",14,"Preparation for Life and Work",204,"Employability Training",3]
["Report","Waverley Training Services",55287,"Surrey","South East","Community Learning and Skills","WBL - requires improvement",430262,"2014-10-06","2014-10-10","Published","2014-11-18",15,"Business, Administration and Law",300,"Business Management",3]
["Report","Waverley Training Services",55287,"Surrey","South East","Community Learning and Skills","WBL - requires improvement",430262,"2014-10-06","2014-10-10","Published","2014-11-18",8,"Leisure, Travel and Tourism",101,"Sport",2]
[{"$f":"IF(C250 <> \"\", HYPERLINK(CONCATENATE(\"http://reports.ofsted.gov.uk/inspection-reports/find-inspection-report/provider/ELS/\",C250),\"Report\"),\"\")","v":"Report"},"Waverley Training Services",55287,"Surrey","South East","Community Learning and Skills","WBL - requires improvement",430262,"2014-10-06","2014-10-10","Published","2014-11-18",15,"Business, Administration and Law",200,"Administration",3]
["Report","Mainstream Training Limited",58362,"Kent","South East","Independent Learning Provider","Work Based Learning - full (national)",446612,"2014-12-01","2014-12-05","Published","2015-01-15",4,"Engineering and Manufacturing Technologies",400,"Transportation operations and maintenance",1]
["Report","Mainstream Training Limited",58362,"Kent","South East","Independent Learning Provider","Work Based Learning - full (national)",446612,"2014-12-01","2014-12-05","Published","2015-01-15",7,"Retail and Commercial Enterprise",200,"Warehousing and Distribution",1]
["Report","Mainstream Training Limited",58362,"Kent","South East","Independent Learning Provider","Work Based Learning - full (national)",446612,"2014-12-01","2014-12-05","Published","2015-01-15",15,"Business, Administration and Law",200,"Administration",2]
["Report","KATS Ltd",58323,"Hampshire","South East","Independent Learning Provider","WBL - full (regional)",452621,"2015-01-27","2015-01-30","Published","2015-03-25",15,"Business, Administration and Law",300,"Business Management",4]
["Report","KATS Ltd",58323,"Hampshire","South East","Independent Learning Provider","WBL - full (regional)",452621,"2015-01-27","2015-01-30","Published","2015-03-25",7,"Retail and Commercial Enterprise",302,"Hairdressing",4]
["Report","Kingston University",133825,"Kingston Upon Thames","London","Higher Education Institution","FE in HE - full inspection",446542,"2015-01-20","2015-01-23","Published","2015-03-02",9,"Arts, Media and Publishing",200,"Visual Arts",1]
["Report","Lowestoft College",130819,"Suffolk","East of England","General Further Education/Tertiary College","FE College - requires improvement",430274,"2014-12-02","2014-12-05","Published","2015-01-14",7,"Retail and Commercial Enterprise",301,"Hairdressing and beauty therapy",3]
["Report","Lowestoft College",130819,"Suffolk","East of England","General Further Education/Tertiary College","FE College - requires improvement",430274,"2014-12-02","2014-12-05","Published","2015-01-14",9,"Arts, Media and Publishing",200,"Visual Arts",3]
["Report","Lowestoft College",130819,"Suffolk","East of England","General Further Education/Tertiary College","FE College - requires improvement",430274,"2014-12-02","2014-12-05","Published","2015-01-14",14,"Preparation for Life and Work",112,"Foundation English",3]
["Report","Lowestoft College",130819,"Suffolk","East of England","General Further Education/Tertiary College","FE College - requires improvement",430274,"2014-12-02","2014-12-05","Published","2015-01-14",14,"Preparation for Life and Work",113,"Foundation mathematics",3]
["Report","Inroads (Essex) Ltd",141492,"Suffolk","East of England","Independent Specialist College","ISC - full inspection",455854,"2015-05-06","2015-05-08","Published","2015-06-15",14,"Preparation for Life and Work",108,"Independent living and leisure skills",4]
["Report","Alpha Building Services Engineering Ltd",59178,"Newham","London","Independent Learning Provider","WBL - full (regional)",446621,"2014-11-24","2014-11-28","Published","2015-02-18",4,"Engineering and Manufacturing Technologies",400,"Transportation operations and maintenance",3]
["Report","Alpha Building Services Engineering Ltd",59178,"Newham","London","Independent Learning Provider","WBL - full (regional)",446621,"2014-11-24","2014-11-28","Published","2015-02-18",5,"Construction, Planning and the Built Environment",200,"Building and Construction",4]
["Report","Hartpury College",130687,"Gloucestershire","South West","Specialist Further Education","FE College - full inspection",452550,"2015-03-17","2015-03-20","Published","2015-04-29",3,"Agriculture, Horticulture and Animal Care",300,"Animal Care and Veterinary Science",2]
["Report","Hartpury College",130687,"Gloucestershire","South West","Specialist Further Education","FE College - full inspection",452550,"2015-03-17","2015-03-20","Published","2015-04-29",2,"Science and Mathematics",100,"Science",3]
["Report","Hartpury College",130687,"Gloucestershire","South West","Specialist Further Education","FE College - full inspection",452550,"2015-03-17","2015-03-20","Published","2015-04-29",2,"Science and Mathematics",200,"Mathematics and Statistics",3]
["Report","Hartpury College",130687,"Gloucestershire","South West","Specialist Further Education","FE College - full inspection",452550,"2015-03-17","2015-03-20","Published","2015-04-29",3,"Agriculture, Horticulture and Animal Care",100,"Agriculture",2]
["Report","Hartpury College",130687,"Gloucestershire","South West","Specialist Further Education","FE College - full inspection",452550,"2015-03-17","2015-03-20","Published","2015-04-29",8,"Leisure, Travel and Tourism",101,"Sport",1]
["Report","Strode College",130806,"Somerset","South West","General Further Education/Tertiary College","FE College - full inspection",446539,"2014-09-23","2014-09-26","Published","2014-10-31",2,"Science and Mathematics",100,"Science",2]
["Report","Strode College",130806,"Somerset","South West","General Further Education/Tertiary College","FE College - full inspection",446539,"2014-09-23","2014-09-26","Published","2014-10-31",9,"Arts, Media and Publishing",200,"Visual Arts",1]
["Report","Strode College",130806,"Somerset","South West","General Further Education/Tertiary College","FE College - full inspection",446539,"2014-09-23","2014-09-26","Published","2014-10-31",14,"Preparation for Life and Work",108,"Independent living and leisure skills",1]
["Report","Strode College",130806,"Somerset","South West","General Further Education/Tertiary College","FE College - full inspection",446539,"2014-09-23","2014-09-26","Published","2014-10-31",12,"Languages, Literature and Culture",100,"English",1]
["Report","Hereward College of Further Education",130474,"Coventry","West Midlands","General Further Education/Tertiary College","FE College - requires improvement",452778,"2015-01-27","2015-01-30","Published","2015-03-06",14,"Preparation for Life and Work",108,"Independent living and leisure skills",2]
["Report","Hereward College of Further Education",130474,"Coventry","West Midlands","General Further Education/Tertiary College","FE College - requires improvement",452778,"2015-01-27","2015-01-30","Published","2015-03-06",1,"Health, Public Services and Care",300,"Health and Social Care",3]
["Report","Central College Nottingham",130783,"Nottinghamshire","East Midlands","General Further Education/Tertiary College","FE College - requires improvement",430278,"2014-11-10","2014-11-14","Published","2014-12-18",2,"Science and Mathematics",100,"Science",3]
["Report","Central College Nottingham",130783,"Nottinghamshire","East Midlands","General Further Education/Tertiary College","FE College - requires improvement",430278,"2014-11-10","2014-11-14","Published","2014-12-18",4,"Engineering and Manufacturing Technologies",300,"Motor vehicle",2]
["Report","Central College Nottingham",130783,"Nottinghamshire","East Midlands","General Further Education/Tertiary College","FE College - requires improvement",430278,"2014-11-10","2014-11-14","Published","2014-12-18",8,"Leisure, Travel and Tourism",102,"Public Services",2]
["Report","Central College Nottingham",130783,"Nottinghamshire","East Midlands","General Further Education/Tertiary College","FE College - requires improvement",430278,"2014-11-10","2014-11-14","Published","2014-12-18",14,"Preparation for Life and Work",108,"Independent living and leisure skills",1]
[{"$f":"IF(C279 <> \"\", HYPERLINK(CONCATENATE(\"http://reports.ofsted.gov.uk/inspection-reports/find-inspection-report/provider/ELS/\",C279),\"Report\"),\"\")","v":"Report"},"Central College Nottingham",130783,"Nottinghamshire","East Midlands","General Further Education/Tertiary College","FE College - requires improvement",430278,"2014-11-10","2014-11-14","Published","2014-12-18",1,"Health, Public Services and Care",300,"Health and Social Care",3]
["Report","Central College Nottingham",130783,"Nottinghamshire","East Midlands","General Further Education/Tertiary College","FE College - requires improvement",430278,"2014-11-10","2014-11-14","Published","2014-12-18",8,"Leisure, Travel and Tourism",101,"Sport",2]
["Report","Central College Nottingham",130783,"Nottinghamshire","East Midlands","General Further Education/Tertiary College","FE College - requires improvement",430278,"2014-11-10","2014-11-14","Published","2014-12-18",14,"Preparation for Life and Work",112,"Foundation English",3]
["Report","Central College Nottingham",130783,"Nottinghamshire","East Midlands","General Further Education/Tertiary College","FE College - requires improvement",430278,"2014-11-10","2014-11-14","Published","2014-12-18",14,"Preparation for Life and Work",113,"Foundation mathematics",3]
["Report","Central College Nottingham",130783,"Nottinghamshire","East Midlands","General Further Education/Tertiary College","FE College - requires improvement",430278,"2014-11-10","2014-11-14","Published","2014-12-18",2,"Science and Mathematics",200,"Mathematics and Statistics",3]
["Report","Central College Nottingham",130783,"Nottinghamshire","East Midlands","General Further Education/Tertiary College","FE College - requires improvement",430278,"2014-11-10","2014-11-14","Published","2014-12-18",4,"Engineering and Manufacturing Technologies",200,"Manufacturing Technologies",2]
["Report","Area 51 Education Ltd",139243,"Haringey","London","Independent Specialist College","ISC - full inspection",446688,"2014-11-12","2014-11-14","Published","2014-12-19",14,"Preparation for Life and Work",108,"Independent living and leisure skills",3]
["Report","Landau Forte Academy Tamworth Sixth Form",141491,"Staffordshire","West Midlands","Academy 16-19 Sponsor Led","16-19 academy - full inspection",455817,"2015-04-21","2015-04-24","Published","2015-07-10",2,"Science and Mathematics",200,"Mathematics and Statistics",3]
["Report","Landau Forte Academy Tamworth Sixth Form",141491,"Staffordshire","West Midlands","Academy 16-19 Sponsor Led","16-19 academy - full inspection",455817,"2015-04-21","2015-04-24","Published","2015-07-10",9,"Arts, Media and Publishing",200,"Visual Arts",2]
["Report","NHTA Limited",53671,"Nottingham","East Midlands","Independent Learning Provider","WBL - requires improvement",446030,"2015-05-18","2015-05-21","Published","2015-06-19",7,"Retail and Commercial Enterprise",302,"Hairdressing",1]
["Report","A4e Ltd",50083,"Sheffield","North East, Yorkshire & Humber","Independent Learning Provider","WBL - requires improvement",461179,"2015-05-18","2015-05-22","Published","2015-06-25",15,"Business, Administration and Law",200,"Administration",2]
["Report","A4e Ltd",50083,"Sheffield","North East, Yorkshire & Humber","Independent Learning Provider","WBL - requires improvement",461179,"2015-05-18","2015-05-22","Published","2015-06-25",15,"Business, Administration and Law",300,"Business Management",2]
["Report","A4e Ltd",50083,"Sheffield","North East, Yorkshire & Humber","Independent Learning Provider","WBL - requires improvement",461179,"2015-05-18","2015-05-22","Published","2015-06-25",14,"Preparation for Life and Work",114,"Foundation English and Mathematics",2]
["Report","A4e Ltd",50083,"Sheffield","North East, Yorkshire & Humber","Independent Learning Provider","WBL - requires improvement",461179,"2015-05-18","2015-05-22","Published","2015-06-25",14,"Preparation for Life and Work",204,"Employability Training",2]
["Report","SR Education",59184,"Nottinghamshire","East Midlands","Independent Learning Provider","WBL - full (regional)",455617,"2015-06-02","2015-06-05","Published","2015-07-01",1,"Health, Public Services and Care",300,"Health and Social Care",3]
["Report","Warrington Borough Council",55268,"Warrington","North West","Community Learning and Skills","Adult and Community - full (regional)",446668,"2014-10-14","2014-10-17","Published","2014-12-16",15,"Business, Administration and Law",200,"Administration",4]
["Report","Warrington Borough Council",55268,"Warrington","North West","Community Learning and Skills","Adult and Community - full (regional)",446668,"2014-10-14","2014-10-17","Published","2014-12-16",14,"Preparation for Life and Work",111,"Community Learning",3]
["Report","Central Sussex College",129383,"West Sussex","South East","General Further Education/Tertiary College","FE College - requires improvement",430269,"2014-10-20","2014-10-24","Published","2014-11-28",1,"Health, Public Services and Care",300,"Health and Social Care",2]
["Report","Central Sussex College",129383,"West Sussex","South East","General Further Education/Tertiary College","FE College - requires improvement",430269,"2014-10-20","2014-10-24","Published","2014-11-28",8,"Leisure, Travel and Tourism",101,"Sport",3]
["Report","Central Sussex College",129383,"West Sussex","South East","General Further Education/Tertiary College","FE College - requires improvement",430269,"2014-10-20","2014-10-24","Published","2014-11-28",14,"Preparation for Life and Work",113,"Foundation mathematics",3]
["Report","Central Sussex College",129383,"West Sussex","South East","General Further Education/Tertiary College","FE College - requires improvement",430269,"2014-10-20","2014-10-24","Published","2014-11-28",7,"Retail and Commercial Enterprise",301,"Hairdressing and beauty therapy",3]
["Report","Central Sussex College",129383,"West Sussex","South East","General Further Education/Tertiary College","FE College - requires improvement",430269,"2014-10-20","2014-10-24","Published","2014-11-28",15,"Business, Administration and Law",200,"Administration",3]
["Report","Central Sussex College",129383,"West Sussex","South East","General Further Education/Tertiary College","FE College - requires improvement",430269,"2014-10-20","2014-10-24","Published","2014-11-28",15,"Business, Administration and Law",300,"Business Management",3]
["Report","Central Sussex College",129383,"West Sussex","South East","General Further Education/Tertiary College","FE College - requires improvement",430269,"2014-10-20","2014-10-24","Published","2014-11-28",5,"Construction, Planning and the Built Environment",200,"Building and Construction",2]
["Report","LeSoCo",130415,"Lewisham","London","General Further Education/Tertiary College","FE College - reinspection",440233,"2015-02-02","2015-02-06","Published","2015-04-01",14,"Preparation for Life and Work",113,"Foundation mathematics",4]
["Report","LeSoCo",130415,"Lewisham","London","General Further Education/Tertiary College","FE College - reinspection",440233,"2015-02-02","2015-02-06","Published","2015-04-01",6,"Information and Communication Technology",200,"ICT for Users",3]
["Report","LeSoCo",130415,"Lewisham","London","General Further Education/Tertiary College","FE College - reinspection",440233,"2015-02-02","2015-02-06","Published","2015-04-01",14,"Preparation for Life and Work",112,"Foundation English",4]
["Report","LeSoCo",130415,"Lewisham","London","General Further Education/Tertiary College","FE College - reinspection",440233,"2015-02-02","2015-02-06","Published","2015-04-01",1,"Health, Public Services and Care",300,"Health and Social Care",3]
["Report","LeSoCo",130415,"Lewisham","London","General Further Education/Tertiary College","FE College - reinspection",440233,"2015-02-02","2015-02-06","Published","2015-04-01",5,"Construction, Planning and the Built Environment",202,"Construction Crafts",3]
[{"$f":"IF(C308 <> \"\", HYPERLINK(CONCATENATE(\"http://reports.ofsted.gov.uk/inspection-reports/find-inspection-report/provider/ELS/\",C308),\"Report\"),\"\")","v":"Report"},"LeSoCo",130415,"Lewisham","London","General Further Education/Tertiary College","FE College - reinspection",440233,"2015-02-02","2015-02-06","Published","2015-04-01",7,"Retail and Commercial Enterprise",400,"Hospitality and Catering",2]
["Report","LeSoCo",130415,"Lewisham","London","General Further Education/Tertiary College","FE College - reinspection",440233,"2015-02-02","2015-02-06","Published","2015-04-01",9,"Arts, Media and Publishing",100,"Performing Arts",2]
["Report","DBC Training",59167,"Derby","East Midlands","Independent Learning Provider","WBL - full (regional)",456390,"2015-01-27","2015-01-29","Published","2015-03-05",15,"Business, Administration and Law",200,"Administration",3]
["Report","Astute Minds Ltd",59168,"Camden","London","Independent Learning Provider","WBL - full (regional)",455611,"2015-03-24","2015-03-27","Published","2015-04-27",15,"Business, Administration and Law",200,"Administration",2]
["Report","Economic Solutions Limited (Manchester Solutions)",53233,"Manchester","North West","Independent Learning Provider","Work Based Learning - full (national)",443658,"2014-11-24","2014-11-28","Published","2014-12-24",1,"Health, Public Services and Care",300,"Health and Social Care",2]
["Report","Economic Solutions Limited (Manchester Solutions)",53233,"Manchester","North West","Independent Learning Provider","Work Based Learning - full (national)",443658,"2014-11-24","2014-11-28","Published","2014-12-24",14,"Preparation for Life and Work",114,"Foundation English and Mathematics",3]
["Report","Economic Solutions Limited (Manchester Solutions)",53233,"Manchester","North West","Independent Learning Provider","Work Based Learning - full (national)",443658,"2014-11-24","2014-11-28","Published","2014-12-24",4,"Engineering and Manufacturing Technologies",300,"Motor vehicle",2]
["Report","Economic Solutions Limited (Manchester Solutions)",53233,"Manchester","North West","Independent Learning Provider","Work Based Learning - full (national)",443658,"2014-11-24","2014-11-28","Published","2014-12-24",7,"Retail and Commercial Enterprise",301,"Hairdressing and beauty therapy",3]
["Report","Connell Sixth Form College",139730,"Manchester","North West","Free School - 16-19","16-19 academy - full inspection",452499,"2015-01-27","2015-01-30","Published","2015-03-17",2,"Science and Mathematics",200,"Mathematics and Statistics",3]
["Report","Norfolk Training Services Limited",53550,"Norfolk","East of England","Independent Learning Provider","WBL - full (regional)",452611,"2015-02-16","2015-02-20","Published","2015-03-27",15,"Business, Administration and Law",401,"Customer service",2]
["Report","Norfolk Training Services Limited",53550,"Norfolk","East of England","Independent Learning Provider","WBL - full (regional)",452611,"2015-02-16","2015-02-20","Published","2015-03-27",7,"Retail and Commercial Enterprise",200,"Warehousing and Distribution",3]
["Report","SBC Training Limited",54277,"Shropshire","West Midlands","Independent Learning Provider","Work Based Learning - full (national)",446604,"2014-12-08","2014-12-12","Published","2015-01-16",5,"Construction, Planning and the Built Environment",201,"Building Services",2]
["Report","SBC Training Limited",54277,"Shropshire","West Midlands","Independent Learning Provider","Work Based Learning - full (national)",446604,"2014-12-08","2014-12-12","Published","2015-01-16",7,"Retail and Commercial Enterprise",100,"Retailing and Wholesaling",2]
["Report","SBC Training Limited",54277,"Shropshire","West Midlands","Independent Learning Provider","Work Based Learning - full (national)",446604,"2014-12-08","2014-12-12","Published","2015-01-16",1,"Health, Public Services and Care",300,"Health and Social Care",3]
["Report","SBC Training Limited",54277,"Shropshire","West Midlands","Independent Learning Provider","Work Based Learning - full (national)",446604,"2014-12-08","2014-12-12","Published","2015-01-16",7,"Retail and Commercial Enterprise",200,"Warehousing and Distribution",2]
["Report","SBC Training Limited",54277,"Shropshire","West Midlands","Independent Learning Provider","Work Based Learning - full (national)",446604,"2014-12-08","2014-12-12","Published","2015-01-16",15,"Business, Administration and Law",200,"Administration",2]
["Report","New College Stamford ",130760,"Lincolnshire","East Midlands","General Further Education/Tertiary College","FE College - full inspection",452490,"2015-03-24","2015-03-27","Published","2015-04-29",1,"Health, Public Services and Care",300,"Health and Social Care",3]
["Report","New College Stamford ",130760,"Lincolnshire","East Midlands","General Further Education/Tertiary College","FE College - full inspection",452490,"2015-03-24","2015-03-27","Published","2015-04-29",1,"Health, Public Services and Care",500,"Early Years and Playwork",3]
["Report","New College Stamford ",130760,"Lincolnshire","East Midlands","General Further Education/Tertiary College","FE College - full inspection",452490,"2015-03-24","2015-03-27","Published","2015-04-29",2,"Science and Mathematics",200,"Mathematics and Statistics",3]
["Report","New College Stamford ",130760,"Lincolnshire","East Midlands","General Further Education/Tertiary College","FE College - full inspection",452490,"2015-03-24","2015-03-27","Published","2015-04-29",2,"Science and Mathematics",100,"Science",3]
["Report","New College Stamford ",130760,"Lincolnshire","East Midlands","General Further Education/Tertiary College","FE College - full inspection",452490,"2015-03-24","2015-03-27","Published","2015-04-29",5,"Construction, Planning and the Built Environment",201,"Building Services",2]
["Report","New College Stamford ",130760,"Lincolnshire","East Midlands","General Further Education/Tertiary College","FE College - full inspection",452490,"2015-03-24","2015-03-27","Published","2015-04-29",5,"Construction, Planning and the Built Environment",202,"Construction Crafts",2]
["Report","New College Stamford ",130760,"Lincolnshire","East Midlands","General Further Education/Tertiary College","FE College - full inspection",452490,"2015-03-24","2015-03-27","Published","2015-04-29",14,"Preparation for Life and Work",112,"Foundation English",2]
["Report","New College Stamford ",130760,"Lincolnshire","East Midlands","General Further Education/Tertiary College","FE College - full inspection",452490,"2015-03-24","2015-03-27","Published","2015-04-29",15,"Business, Administration and Law",300,"Business Management",4]
["Report","Skills Team Ltd",58340,"Ealing","London","Independent Learning Provider","WBL - requires improvement",430259,"2014-10-13","2014-10-17","Published","2014-11-27",6,"Information and Communication Technology",200,"ICT for Users",3]
["Report","Skills Team Ltd",58340,"Ealing","London","Independent Learning Provider","WBL - requires improvement",430259,"2014-10-13","2014-10-17","Published","2014-11-27",15,"Business, Administration and Law",300,"Business Management",2]
["Report","The Cornwall Council",51349,"Cornwall","South West","Community Learning and Skills","ACL - requires improvement",430293,"2014-11-17","2014-11-21","Published","2015-01-14",9,"Arts, Media and Publishing",200,"Visual Arts",2]
["Report","The Cornwall Council",51349,"Cornwall","South West","Community Learning and Skills","ACL - requires improvement",430293,"2014-11-17","2014-11-21","Published","2015-01-14",14,"Preparation for Life and Work",113,"Foundation mathematics",2]
["Report","The Cornwall Council",51349,"Cornwall","South West","Community Learning and Skills","ACL - requires improvement",430293,"2014-11-17","2014-11-21","Published","2015-01-14",6,"Information and Communication Technology",200,"ICT for Users",2]
[{"$f":"IF(C337 <> \"\", HYPERLINK(CONCATENATE(\"http://reports.ofsted.gov.uk/inspection-reports/find-inspection-report/provider/ELS/\",C337),\"Report\"),\"\")","v":"Report"},"The Cornwall Council",51349,"Cornwall","South West","Community Learning and Skills","ACL - requires improvement",430293,"2014-11-17","2014-11-21","Published","2015-01-14",14,"Preparation for Life and Work",112,"Foundation English",2]
["Report","The Learning Partnership for Cornwall and The Isles of Scilly Limited",59113,"Cornwall","South West","Independent Learning Provider","WBL - full (regional)",434062,"2014-09-16","2014-09-19","Published","2014-10-30",14,"Preparation for Life and Work",112,"Foundation English",3]
["Report","The Learning Partnership for Cornwall and The Isles of Scilly Limited",59113,"Cornwall","South West","Independent Learning Provider","WBL - full (regional)",434062,"2014-09-16","2014-09-19","Published","2014-10-30",15,"Business, Administration and Law",200,"Administration",3]
["Report","Mainstream Training Limited",58362,"Kent","South East","Independent Learning Provider","Work Based Learning - full (national)",446612,"2014-12-01","2014-12-05","Published","2015-01-15",5,"Construction, Planning and the Built Environment",202,"Construction Crafts",2]
["Report","Focus Training (SW) Limited",50126,"Plymouth","South West","Independent Learning Provider","WBL - full (regional)",452974,"2015-03-16","2015-03-20","Published","2015-05-01",15,"Business, Administration and Law",300,"Business Management",2]
["Report","City of Stoke-on-Trent Sixth Form College",130817,"Stoke-On-Trent","West Midlands","Sixth Form College","SFC - requires improvement 2nd inspection",446035,"2015-04-21","2015-04-24","Published","2015-05-29",9,"Arts, Media and Publishing",200,"Visual Arts",2]
["Report","City of Stoke-on-Trent Sixth Form College",130817,"Stoke-On-Trent","West Midlands","Sixth Form College","SFC - requires improvement 2nd inspection",446035,"2015-04-21","2015-04-24","Published","2015-05-29",10,"Humanities",400,"Theology and Religious Studies",2]
["Report","City of Stoke-on-Trent Sixth Form College",130817,"Stoke-On-Trent","West Midlands","Sixth Form College","SFC - requires improvement 2nd inspection",446035,"2015-04-21","2015-04-24","Published","2015-05-29",15,"Business, Administration and Law",300,"Business Management",2]
["Report","City of Stoke-on-Trent Sixth Form College",130817,"Stoke-On-Trent","West Midlands","Sixth Form College","SFC - requires improvement 2nd inspection",446035,"2015-04-21","2015-04-24","Published","2015-05-29",15,"Business, Administration and Law",500,"Law and Legal Services",2]
["Report","City of Stoke-on-Trent Sixth Form College",130817,"Stoke-On-Trent","West Midlands","Sixth Form College","SFC - requires improvement 2nd inspection",446035,"2015-04-21","2015-04-24","Published","2015-05-29",10,"Humanities",100,"History",2]
["Report","City of Stoke-on-Trent Sixth Form College",130817,"Stoke-On-Trent","West Midlands","Sixth Form College","SFC - requires improvement 2nd inspection",446035,"2015-04-21","2015-04-24","Published","2015-05-29",12,"Languages, Literature and Culture",100,"English",2]
["Report","Havering London Borough Council",53127,"Havering","London","Community Learning and Skills","Adult and community - full (national)",434068,"2014-10-13","2014-10-17","Published","2014-12-04",14,"Preparation for Life and Work",111,"Community Learning",2]
["Report","Wokingham Council",50246,"Wokingham","South East","Community Learning and Skills","Adult and Community - full (regional)",452599,"2014-11-11","2014-11-13","Published","2014-12-23",18,"Community Development",0,"Community Development",3]
["Report","GHQ Training Limited",51961,"Plymouth","South West","Independent Learning Provider","WBL - full (regional)",445774,"2014-11-17","2014-11-20","Published","2014-12-25",1,"Health, Public Services and Care",500,"Early Years and Playwork",2]
["Report","GHQ Training Limited",51961,"Plymouth","South West","Independent Learning Provider","WBL - full (regional)",445774,"2014-11-17","2014-11-20","Published","2014-12-25",7,"Retail and Commercial Enterprise",301,"Hairdressing and beauty therapy",2]
["Report","GHQ Training Limited",51961,"Plymouth","South West","Independent Learning Provider","WBL - full (regional)",445774,"2014-11-17","2014-11-20","Published","2014-12-25",15,"Business, Administration and Law",200,"Administration",2]
["Report","Skills and Learning: Bournemouth, Dorset and Poole",53936,"Poole","South West","Community Learning and Skills","Adult and Community - full (regional)",455585,"2015-06-15","2015-06-19","Published","2015-07-22",14,"Preparation for Life and Work",114,"Foundation English and Mathematics",2]
["Report","Straight A Training Limited",54640,"Surrey","South East","Independent Learning Provider","WBL - full (regional)",452981,"2015-02-03","2015-02-06","Published","2015-03-16",7,"Retail and Commercial Enterprise",400,"Hospitality and Catering",3]
["Report","Expedient Training Services Limited",51800,"South Tyneside","North East, Yorkshire & Humber","Independent Learning Provider","WBL - requires improvement",430253,"2014-12-02","2014-12-05","Published","2015-01-07",1,"Health, Public Services and Care",300,"Health and Social Care",2]
["Report","Orpheus Centre",131950,"Surrey","South East","Independent Specialist College","ISC - full inspection",446687,"2014-10-21","2014-10-22","Published","2014-12-03",14,"Preparation for Life and Work",108,"Independent living and leisure skills",3]
["Report","Strathmore College",132021,"Stoke-On-Trent","West Midlands","Independent Specialist College","ISC - requires improvement",446033,"2015-03-25","2015-03-27","Published","2015-04-29",14,"Preparation for Life and Work",108,"Independent living and leisure skills",2]
["Report","Focus Training (SW) Limited",50126,"Plymouth","South West","Independent Learning Provider","WBL - full (regional)",452974,"2015-03-16","2015-03-20","Published","2015-05-01",7,"Retail and Commercial Enterprise",300,"Service Enterprises",2]
["Report","Focus Training (SW) Limited",50126,"Plymouth","South West","Independent Learning Provider","WBL - full (regional)",452974,"2015-03-16","2015-03-20","Published","2015-05-01",15,"Business, Administration and Law",200,"Administration",2]
["Report","Focus Training (SW) Limited",50126,"Plymouth","South West","Independent Learning Provider","WBL - full (regional)",452974,"2015-03-16","2015-03-20","Published","2015-05-01",1,"Health, Public Services and Care",300,"Health and Social Care",2]
[{"$f":"IF(C361 <> \"\", HYPERLINK(CONCATENATE(\"http://reports.ofsted.gov.uk/inspection-reports/find-inspection-report/provider/ELS/\",C361),\"Report\"),\"\")","v":"Report"},"Focus Training (SW) Limited",50126,"Plymouth","South West","Independent Learning Provider","WBL - full (regional)",452974,"2015-03-16","2015-03-20","Published","2015-05-01",7,"Retail and Commercial Enterprise",400,"Hospitality and Catering",2]
["Report","GI Group",59190,"Derbyshire","East Midlands","Employer","WBL - full (regional)",452631,"2015-01-13","2015-01-16","Published","2015-02-26",4,"Engineering and Manufacturing Technologies",200,"Manufacturing Technologies",3]
["Report","Leicestershire County Council",52998,"Leicestershire","East Midlands","Community Learning and Skills","Adult and Community - full (regional)",452656,"2015-05-11","2015-05-15","Published","2015-06-15",14,"Preparation for Life and Work",103,"ESOL",2]
["Report","Leicestershire County Council",52998,"Leicestershire","East Midlands","Community Learning and Skills","Adult and Community - full (regional)",452656,"2015-05-11","2015-05-15","Published","2015-06-15",14,"Preparation for Life and Work",108,"Independent living and leisure skills",2]
["Report","Leicestershire County Council",52998,"Leicestershire","East Midlands","Community Learning and Skills","Adult and Community - full (regional)",452656,"2015-05-11","2015-05-15","Published","2015-06-15",15,"Business, Administration and Law",200,"Administration",2]
["Report","Archway Academy",50442,"Birmingham","West Midlands","Independent Learning Provider","WBL - requires improvement",446034,"2015-05-05","2015-05-08","Published","2015-06-05",14,"Preparation for Life and Work",204,"Employability Training",2]
["Report","PROVIDENT TRAINING LIMITED",59149,"Oldham","North West","Independent Learning Provider","Work Based Learning - full (national)",464717,"2015-05-11","2015-05-14","Published","2015-06-17",7,"Retail and Commercial Enterprise",400,"Hospitality and Catering",4]
["Report","PROVIDENT TRAINING LIMITED",59149,"Oldham","North West","Independent Learning Provider","Work Based Learning - full (national)",464717,"2015-05-11","2015-05-14","Published","2015-06-17",15,"Business, Administration and Law",401,"Customer service",4]
["Report","Options 2 Workplace Learning Ltd",58938,"Northamptonshire","East Midlands","Independent Learning Provider","WBL - full (regional)",452625,"2014-12-02","2014-12-05","Published","2015-01-08",15,"Business, Administration and Law",200,"Administration",3]
["Report","Training 2000 Limited",55045,"Blackburn with Darwen","North West","Community Learning and Skills","WBL - full (regional)",452982,"2015-02-02","2015-02-06","Published","2015-03-12",4,"Engineering and Manufacturing Technologies",100,"Engineering",1]
["Report","Training 2000 Limited",55045,"Blackburn with Darwen","North West","Community Learning and Skills","WBL - full (regional)",452982,"2015-02-02","2015-02-06","Published","2015-03-12",15,"Business, Administration and Law",100,"Accounting and Finance",2]
["Report","Training 2000 Limited",55045,"Blackburn with Darwen","North West","Community Learning and Skills","WBL - full (regional)",452982,"2015-02-02","2015-02-06","Published","2015-03-12",15,"Business, Administration and Law",200,"Administration",2]
["Report","Training 2000 Limited",55045,"Blackburn with Darwen","North West","Community Learning and Skills","WBL - full (regional)",452982,"2015-02-02","2015-02-06","Published","2015-03-12",1,"Health, Public Services and Care",200,"Nursing and Dental Health",1]
["Report","Training 2000 Limited",55045,"Blackburn with Darwen","North West","Community Learning and Skills","WBL - full (regional)",452982,"2015-02-02","2015-02-06","Published","2015-03-12",14,"Preparation for Life and Work",204,"Employability Training",2]
["Report","Training 2000 Limited",55045,"Blackburn with Darwen","North West","Community Learning and Skills","WBL - full (regional)",452982,"2015-02-02","2015-02-06","Published","2015-03-12",4,"Engineering and Manufacturing Technologies",200,"Manufacturing Technologies",1]
["Report","Medway Council",53295,"Medway","South East","Community Learning and Skills","ACL - requires improvement",446029,"2015-06-23","2015-06-26","Published","2015-07-28",14,"Preparation for Life and Work",112,"Foundation English",2]
["Report","Succead Limited",59159,"Birmingham","West Midlands","Independent Learning Provider","Work Based Learning - full (national)",452693,"2014-10-27","2014-10-31","Published","2014-11-21",15,"Business, Administration and Law",300,"Business Management",3]
["Report","Succead Limited",59159,"Birmingham","West Midlands","Independent Learning Provider","Work Based Learning - full (national)",452693,"2014-10-27","2014-10-31","Published","2014-11-21",4,"Engineering and Manufacturing Technologies",200,"Manufacturing Technologies",3]
["Report","Succead Limited",59159,"Birmingham","West Midlands","Independent Learning Provider","Work Based Learning - full (national)",452693,"2014-10-27","2014-10-31","Published","2014-11-21",15,"Business, Administration and Law",200,"Administration",3]
["Report","The CADCentre (UK) Limited",50104,"Birmingham","West Midlands","Independent Learning Provider","Work Based Learning - full (national)",455574,"2015-07-06","2015-07-10","Published","2015-08-14",6,"Information and Communication Technology",200,"ICT for Users",4]
["Report","The CADCentre (UK) Limited",50104,"Birmingham","West Midlands","Independent Learning Provider","Work Based Learning - full (national)",455574,"2015-07-06","2015-07-10","Published","2015-08-14",14,"Preparation for Life and Work",204,"Employability Training",4]
["Report","The CADCentre (UK) Limited",50104,"Birmingham","West Midlands","Independent Learning Provider","Work Based Learning - full (national)",455574,"2015-07-06","2015-07-10","Published","2015-08-14",15,"Business, Administration and Law",200,"Administration",4]
["Report","The CADCentre (UK) Limited",50104,"Birmingham","West Midlands","Independent Learning Provider","Work Based Learning - full (national)",455574,"2015-07-06","2015-07-10","Published","2015-08-14",6,"Information and Communication Technology",100,"ICT for practitioners",4]
["Report","MidKent College",130726,"Medway","South East","General Further Education/Tertiary College","FE College - full inspection",452489,"2015-03-02","2015-03-06","Published","2015-04-22",1,"Health, Public Services and Care",500,"Early Years and Playwork",2]
["Report","MidKent College",130726,"Medway","South East","General Further Education/Tertiary College","FE College - full inspection",452489,"2015-03-02","2015-03-06","Published","2015-04-22",5,"Construction, Planning and the Built Environment",200,"Building and Construction",3]
["Report","Strode's College",130833,"Surrey","South East","Sixth Form College","SFC - full inspection",452545,"2015-03-10","2015-03-13","Published","2015-04-24",9,"Arts, Media and Publishing",100,"Performing Arts",2]
["Report","Strode's College",130833,"Surrey","South East","Sixth Form College","SFC - full inspection",452545,"2015-03-10","2015-03-13","Published","2015-04-24",12,"Languages, Literature and Culture",100,"English",3]
["Report","Strode's College",130833,"Surrey","South East","Sixth Form College","SFC - full inspection",452545,"2015-03-10","2015-03-13","Published","2015-04-24",9,"Arts, Media and Publishing",200,"Visual Arts",3]
["Report","Strode's College",130833,"Surrey","South East","Sixth Form College","SFC - full inspection",452545,"2015-03-10","2015-03-13","Published","2015-04-24",2,"Science and Mathematics",200,"Mathematics and Statistics",3]
["Report","Strode's College",130833,"Surrey","South East","Sixth Form College","SFC - full inspection",452545,"2015-03-10","2015-03-13","Published","2015-04-24",11,"Social Sciences",0,"Social Sciences",3]
["Report","Strode's College",130833,"Surrey","South East","Sixth Form College","SFC - full inspection",452545,"2015-03-10","2015-03-13","Published","2015-04-24",2,"Science and Mathematics",100,"Science",3]
["Report","City of Wolverhampton College",130484,"Wolverhampton","West Midlands","General Further Education/Tertiary College","FE College - requires improvement",430270,"2014-10-20","2014-10-24","Published","2014-11-28",2,"Science and Mathematics",100,"Science",2]
[{"$f":"IF(C393 <> \"\", HYPERLINK(CONCATENATE(\"http://reports.ofsted.gov.uk/inspection-reports/find-inspection-report/provider/ELS/\",C393),\"Report\"),\"\")","v":"Report"},"City of Wolverhampton College",130484,"Wolverhampton","West Midlands","General Further Education/Tertiary College","FE College - requires improvement",430270,"2014-10-20","2014-10-24","Published","2014-11-28",5,"Construction, Planning and the Built Environment",200,"Building and Construction",2]
["Report","City of Wolverhampton College",130484,"Wolverhampton","West Midlands","General Further Education/Tertiary College","FE College - requires improvement",430270,"2014-10-20","2014-10-24","Published","2014-11-28",15,"Business, Administration and Law",200,"Administration",2]
["Report","City of Wolverhampton College",130484,"Wolverhampton","West Midlands","General Further Education/Tertiary College","FE College - requires improvement",430270,"2014-10-20","2014-10-24","Published","2014-11-28",1,"Health, Public Services and Care",300,"Health and Social Care",2]
["Report","City of Wolverhampton College",130484,"Wolverhampton","West Midlands","General Further Education/Tertiary College","FE College - requires improvement",430270,"2014-10-20","2014-10-24","Published","2014-11-28",4,"Engineering and Manufacturing Technologies",100,"Engineering",2]
["Report","City of Wolverhampton College",130484,"Wolverhampton","West Midlands","General Further Education/Tertiary College","FE College - requires improvement",430270,"2014-10-20","2014-10-24","Published","2014-11-28",4,"Engineering and Manufacturing Technologies",200,"Manufacturing Technologies",2]
["Report","City of Wolverhampton College",130484,"Wolverhampton","West Midlands","General Further Education/Tertiary College","FE College - requires improvement",430270,"2014-10-20","2014-10-24","Published","2014-11-28",1,"Health, Public Services and Care",500,"Early Years and Playwork",2]
["Report","City of Wolverhampton College",130484,"Wolverhampton","West Midlands","General Further Education/Tertiary College","FE College - requires improvement",430270,"2014-10-20","2014-10-24","Published","2014-11-28",2,"Science and Mathematics",200,"Mathematics and Statistics",2]
["Report","City of Wolverhampton College",130484,"Wolverhampton","West Midlands","General Further Education/Tertiary College","FE College - requires improvement",430270,"2014-10-20","2014-10-24","Published","2014-11-28",7,"Retail and Commercial Enterprise",301,"Hairdressing and beauty therapy",3]
["Report","City of Wolverhampton College",130484,"Wolverhampton","West Midlands","General Further Education/Tertiary College","FE College - requires improvement",430270,"2014-10-20","2014-10-24","Published","2014-11-28",14,"Preparation for Life and Work",112,"Foundation English",3]
["Report","City of Wolverhampton College",130484,"Wolverhampton","West Midlands","General Further Education/Tertiary College","FE College - requires improvement",430270,"2014-10-20","2014-10-24","Published","2014-11-28",14,"Preparation for Life and Work",113,"Foundation mathematics",3]
["Report","Groundwork South Tyneside and Newcastle",141503,"South Tyneside","North East, Yorkshire & Humber","Independent Specialist College","ISC - full inspection",455856,"2015-06-24","2015-06-26","Published","2015-07-29",14,"Preparation for Life and Work",108,"Independent living and leisure skills",3]
["Report","Weir Training Limited",55295,"Surrey","South East","Independent Learning Provider","WBL - full (regional)",452984,"2015-03-16","2015-03-20","Published","2015-04-23",7,"Retail and Commercial Enterprise",100,"Retailing and Wholesaling",2]
["Report","Weir Training Limited",55295,"Surrey","South East","Independent Learning Provider","WBL - full (regional)",452984,"2015-03-16","2015-03-20","Published","2015-04-23",15,"Business, Administration and Law",300,"Business Management",2]
["Report","MidKent College",130726,"Medway","South East","General Further Education/Tertiary College","FE College - full inspection",452489,"2015-03-02","2015-03-06","Published","2015-04-22",14,"Preparation for Life and Work",113,"Foundation mathematics",4]
["Report","MidKent College",130726,"Medway","South East","General Further Education/Tertiary College","FE College - full inspection",452489,"2015-03-02","2015-03-06","Published","2015-04-22",7,"Retail and Commercial Enterprise",301,"Hairdressing and beauty therapy",2]
["Report","MidKent College",130726,"Medway","South East","General Further Education/Tertiary College","FE College - full inspection",452489,"2015-03-02","2015-03-06","Published","2015-04-22",9,"Arts, Media and Publishing",100,"Performing Arts",2]
["Report","MidKent College",130726,"Medway","South East","General Further Education/Tertiary College","FE College - full inspection",452489,"2015-03-02","2015-03-06","Published","2015-04-22",1,"Health, Public Services and Care",300,"Health and Social Care",2]
["Report","MidKent College",130726,"Medway","South East","General Further Education/Tertiary College","FE College - full inspection",452489,"2015-03-02","2015-03-06","Published","2015-04-22",7,"Retail and Commercial Enterprise",400,"Hospitality and Catering",3]
["Report","MidKent College",130726,"Medway","South East","General Further Education/Tertiary College","FE College - full inspection",452489,"2015-03-02","2015-03-06","Published","2015-04-22",9,"Arts, Media and Publishing",200,"Visual Arts",2]
["Report","Calthorpe Vocational Trust",141435,"Birmingham","West Midlands","Independent Specialist College","ISC - full inspection",455855,"2015-04-20","2015-04-22","Published","2015-05-27",14,"Preparation for Life and Work",108,"Independent living and leisure skills",2]
["Report","PERA Training Limited",59194,"Leicestershire","East Midlands","Independent Learning Provider","Work Based Learning - full (national)",452632,"2015-03-09","2015-03-13","Published","2015-04-17",7,"Retail and Commercial Enterprise",100,"Retailing and Wholesaling",2]
["Report","PERA Training Limited",59194,"Leicestershire","East Midlands","Independent Learning Provider","Work Based Learning - full (national)",452632,"2015-03-09","2015-03-13","Published","2015-04-17",4,"Engineering and Manufacturing Technologies",200,"Manufacturing Technologies",2]
["Report","Sunderland City Metropolitan Borough Council",54666,"Sunderland","North East, Yorkshire & Humber","Community Learning and Skills","Adult and Community - full (regional)",446667,"2014-11-24","2014-11-28","Published","2014-12-24",1,"Health, Public Services and Care",300,"Health and Social Care",2]
[{"$f":"IF(C416 <> \"\", HYPERLINK(CONCATENATE(\"http://reports.ofsted.gov.uk/inspection-reports/find-inspection-report/provider/ELS/\",C416),\"Report\"),\"\")","v":"Report"},"Sunderland City Metropolitan Borough Council",54666,"Sunderland","North East, Yorkshire & Humber","Community Learning and Skills","Adult and Community - full (regional)",446667,"2014-11-24","2014-11-28","Published","2014-12-24",6,"Information and Communication Technology",200,"ICT for Users",2]
["Report","Sunderland City Metropolitan Borough Council",54666,"Sunderland","North East, Yorkshire & Humber","Community Learning and Skills","Adult and Community - full (regional)",446667,"2014-11-24","2014-11-28","Published","2014-12-24",17,"Family Learning",0,"Family Learning",2]
["Report","G B Training (UK) Ltd",51944,"Birmingham","West Midlands","Independent Learning Provider","WBL - full (regional)",452603,"2015-01-19","2015-01-23","Published","2015-03-03",1,"Health, Public Services and Care",300,"Health and Social Care",2]
["Report","G B Training (UK) Ltd",51944,"Birmingham","West Midlands","Independent Learning Provider","WBL - full (regional)",452603,"2015-01-19","2015-01-23","Published","2015-03-03",15,"Business, Administration and Law",200,"Administration",2]
["Report","G B Training (UK) Ltd",51944,"Birmingham","West Midlands","Independent Learning Provider","WBL - full (regional)",452603,"2015-01-19","2015-01-23","Published","2015-03-03",6,"Information and Communication Technology",100,"ICT for practitioners",3]
["Report","G B Training (UK) Ltd",51944,"Birmingham","West Midlands","Independent Learning Provider","WBL - full (regional)",452603,"2015-01-19","2015-01-23","Published","2015-03-03",7,"Retail and Commercial Enterprise",400,"Hospitality and Catering",2]
["Report","G B Training (UK) Ltd",51944,"Birmingham","West Midlands","Independent Learning Provider","WBL - full (regional)",452603,"2015-01-19","2015-01-23","Published","2015-03-03",15,"Business, Administration and Law",300,"Business Management",2]
["Report","TQ Workforce Development Limited",58168,"Northamptonshire","East Midlands","Independent Learning Provider","WBL - requires improvement",430261,"2014-09-29","2014-10-03","Published","2014-11-07",1,"Health, Public Services and Care",400,"Public Services",3]
["Report","TQ Workforce Development Limited",58168,"Northamptonshire","East Midlands","Independent Learning Provider","WBL - requires improvement",430261,"2014-09-29","2014-10-03","Published","2014-11-07",14,"Preparation for Life and Work",113,"Foundation mathematics",2]
["Report","TQ Workforce Development Limited",58168,"Northamptonshire","East Midlands","Independent Learning Provider","WBL - requires improvement",430261,"2014-09-29","2014-10-03","Published","2014-11-07",15,"Business, Administration and Law",200,"Administration",2]
["Report","TQ Workforce Development Limited",58168,"Northamptonshire","East Midlands","Independent Learning Provider","WBL - requires improvement",430261,"2014-09-29","2014-10-03","Published","2014-11-07",14,"Preparation for Life and Work",112,"Foundation English",2]
["Report","TQ Workforce Development Limited",58168,"Northamptonshire","East Midlands","Independent Learning Provider","WBL - requires improvement",430261,"2014-09-29","2014-10-03","Published","2014-11-07",15,"Business, Administration and Law",300,"Business Management",2]
["Report","Pathway First Limited",59176,"Birmingham","West Midlands","Independent Learning Provider","WBL - full (regional)",455612,"2015-06-02","2015-06-05","Published","2015-06-24",1,"Health, Public Services and Care",500,"Early Years and Playwork",3]
["Report","Berkshire College of Agriculture",130606,"Windsor and Maidenhead","South East","Specialist Further Education","FE College - requires improvement",447345,"2015-06-09","2015-06-12","Published","2015-07-17",3,"Agriculture, Horticulture and Animal Care",302,"Animal care",2]
["Report","Berkshire College of Agriculture",130606,"Windsor and Maidenhead","South East","Specialist Further Education","FE College - requires improvement",447345,"2015-06-09","2015-06-12","Published","2015-07-17",8,"Leisure, Travel and Tourism",102,"Public Services",1]
["Report","Berkshire College of Agriculture",130606,"Windsor and Maidenhead","South East","Specialist Further Education","FE College - requires improvement",447345,"2015-06-09","2015-06-12","Published","2015-07-17",14,"Preparation for Life and Work",112,"Foundation English",2]
["Report","Berkshire College of Agriculture",130606,"Windsor and Maidenhead","South East","Specialist Further Education","FE College - requires improvement",447345,"2015-06-09","2015-06-12","Published","2015-07-17",4,"Engineering and Manufacturing Technologies",300,"Motor vehicle",3]
["Report","Berkshire College of Agriculture",130606,"Windsor and Maidenhead","South East","Specialist Further Education","FE College - requires improvement",447345,"2015-06-09","2015-06-12","Published","2015-07-17",8,"Leisure, Travel and Tourism",101,"Sport",1]
["Report","VQ Solutions Ltd",58570,"North Yorkshire","North East, Yorkshire & Humber","Independent Learning Provider","WBL - full (regional)",455597,"2015-06-23","2015-06-26","Published","2015-07-31",6,"Information and Communication Technology",100,"ICT for practitioners",2]
["Report","VQ Solutions Ltd",58570,"North Yorkshire","North East, Yorkshire & Humber","Independent Learning Provider","WBL - full (regional)",455597,"2015-06-23","2015-06-26","Published","2015-07-31",6,"Information and Communication Technology",200,"ICT for Users",2]
["Report","VQ Solutions Ltd",58570,"North Yorkshire","North East, Yorkshire & Humber","Independent Learning Provider","WBL - full (regional)",455597,"2015-06-23","2015-06-26","Published","2015-07-31",15,"Business, Administration and Law",200,"Administration",2]
["Report","Targeted Training Projects Limited",54744,"Dudley","West Midlands","Independent Learning Provider","WBL - full (regional)",446606,"2014-12-08","2014-12-12","Published","2015-01-27",5,"Construction, Planning and the Built Environment",200,"Building and Construction",4]
["Report","Northern School of Contemporary Dance",133840,"Leeds","North East, Yorkshire & Humber","Higher Education Institution","FE in HE - full inspection",444690,"2014-11-11","2014-11-14","Published","2014-12-17",9,"Arts, Media and Publishing",100,"Performing Arts",1]
["Report","The Academy Hair & Beauty Ltd",54803,"North Yorkshire","North East, Yorkshire & Humber","Independent Learning Provider","WBL - full (regional)",452617,"2014-12-09","2014-12-11","Published","2015-01-16",7,"Retail and Commercial Enterprise",301,"Hairdressing and beauty therapy",1]
["Report","The Consultancy Home Counties Limited",59189,"Hertfordshire","East of England","Independent Learning Provider","WBL - full (regional)",461250,"2015-05-05","2015-05-07","Published","2015-06-03",14,"Preparation for Life and Work",204,"Employability Training",3]
["Report","Beacon Employment",59072,"Worcestershire","West Midlands","Community Learning and Skills","WBL - full (regional)",434036,"2014-09-23","2014-09-26","Published","2014-10-29",14,"Preparation for Life and Work",204,"Employability Training",4]
["Report","North Yorkshire County Council",50229,"North Yorkshire","North East, Yorkshire & Humber","Community Learning and Skills","ACL - requires improvement",446660,"2014-11-03","2014-11-07","Published","2014-12-10",1,"Health, Public Services and Care",500,"Early Years and Playwork",3]
["Report","North Yorkshire County Council",50229,"North Yorkshire","North East, Yorkshire & Humber","Community Learning and Skills","ACL - requires improvement",446660,"2014-11-03","2014-11-07","Published","2014-12-10",6,"Information and Communication Technology",200,"ICT for Users",2]
["Report","North Yorkshire County Council",50229,"North Yorkshire","North East, Yorkshire & Humber","Community Learning and Skills","ACL - requires improvement",446660,"2014-11-03","2014-11-07","Published","2014-12-10",14,"Preparation for Life and Work",114,"Foundation English and Mathematics",2]
["Report","North Yorkshire County Council",50229,"North Yorkshire","North East, Yorkshire & Humber","Community Learning and Skills","ACL - requires improvement",446660,"2014-11-03","2014-11-07","Published","2014-12-10",1,"Health, Public Services and Care",300,"Health and Social Care",3]
["Report","The Maltings College",139433,"Calderdale","North East, Yorkshire & Humber","Free School - 16-19","16-19 academy - full inspection",452498,"2015-01-13","2015-01-16","Published","2015-02-27",7,"Retail and Commercial Enterprise",301,"Hairdressing and beauty therapy",3]
["Report","New College Swindon",130851,"Swindon","South West","General Further Education/Tertiary College","FE College - full inspection",446541,"2014-12-01","2014-12-05","Published","2015-01-14",1,"Health, Public Services and Care",500,"Early Years and Playwork",1]
[{"$f":"IF(C448 <> \"\", HYPERLINK(CONCATENATE(\"http://reports.ofsted.gov.uk/inspection-reports/find-inspection-report/provider/ELS/\",C448),\"Report\"),\"\")","v":"Report"},"New College Swindon",130851,"Swindon","South West","General Further Education/Tertiary College","FE College - full inspection",446541,"2014-12-01","2014-12-05","Published","2015-01-14",2,"Science and Mathematics",200,"Mathematics and Statistics",2]
["Report","New College Swindon",130851,"Swindon","South West","General Further Education/Tertiary College","FE College - full inspection",446541,"2014-12-01","2014-12-05","Published","2015-01-14",6,"Information and Communication Technology",100,"ICT for practitioners",2]
["Report","KATS Ltd",58323,"Hampshire","South East","Independent Learning Provider","WBL - full (regional)",452621,"2015-01-27","2015-01-30","Published","2015-03-25",15,"Business, Administration and Law",401,"Customer service",4]
["Report","Newham Sixth Form College",130452,"Newham","London","Sixth Form College","SFC - full inspection",452156,"2014-09-15","2014-09-19","Published","2014-10-24",2,"Science and Mathematics",200,"Mathematics and Statistics",3]
["Report","Newham Sixth Form College",130452,"Newham","London","Sixth Form College","SFC - full inspection",452156,"2014-09-15","2014-09-19","Published","2014-10-24",9,"Arts, Media and Publishing",200,"Visual Arts",2]
["Report","Newham Sixth Form College",130452,"Newham","London","Sixth Form College","SFC - full inspection",452156,"2014-09-15","2014-09-19","Published","2014-10-24",12,"Languages, Literature and Culture",100,"English",3]
["Report","Newham Sixth Form College",130452,"Newham","London","Sixth Form College","SFC - full inspection",452156,"2014-09-15","2014-09-19","Published","2014-10-24",15,"Business, Administration and Law",100,"Accounting and Finance",3]
["Report","Newham Sixth Form College",130452,"Newham","London","Sixth Form College","SFC - full inspection",452156,"2014-09-15","2014-09-19","Published","2014-10-24",6,"Information and Communication Technology",200,"ICT for Users",2]
["Report","Newham Sixth Form College",130452,"Newham","London","Sixth Form College","SFC - full inspection",452156,"2014-09-15","2014-09-19","Published","2014-10-24",9,"Arts, Media and Publishing",300,"Media and Communication",2]
["Report","Newham Sixth Form College",130452,"Newham","London","Sixth Form College","SFC - full inspection",452156,"2014-09-15","2014-09-19","Published","2014-10-24",2,"Science and Mathematics",100,"Science",3]
["Report","Newham Sixth Form College",130452,"Newham","London","Sixth Form College","SFC - full inspection",452156,"2014-09-15","2014-09-19","Published","2014-10-24",6,"Information and Communication Technology",100,"ICT for practitioners",2]
["Report","Newham Sixth Form College",130452,"Newham","London","Sixth Form College","SFC - full inspection",452156,"2014-09-15","2014-09-19","Published","2014-10-24",15,"Business, Administration and Law",300,"Business Management",3]
["Report","Didac Limited",51550,"Bristol City of","South West","Independent Learning Provider","Work Based Learning - full (national)",452601,"2015-03-10","2015-03-13","Published","2015-04-21",4,"Engineering and Manufacturing Technologies",200,"Manufacturing Technologies",2]
["Report","Didac Limited",51550,"Bristol City of","South West","Independent Learning Provider","Work Based Learning - full (national)",452601,"2015-03-10","2015-03-13","Published","2015-04-21",15,"Business, Administration and Law",200,"Administration",2]
["Report","Didac Limited",51550,"Bristol City of","South West","Independent Learning Provider","Work Based Learning - full (national)",452601,"2015-03-10","2015-03-13","Published","2015-04-21",15,"Business, Administration and Law",401,"Customer service",2]
["Report","Sandwell Training Association Limited",54271,"Sandwell","West Midlands","Community Learning and Skills","WBL - full (regional)",452616,"2015-02-16","2015-02-20","Published","2015-03-20",1,"Health, Public Services and Care",300,"Health and Social Care",3]
["Report","Sandwell Training Association Limited",54271,"Sandwell","West Midlands","Community Learning and Skills","WBL - full (regional)",452616,"2015-02-16","2015-02-20","Published","2015-03-20",15,"Business, Administration and Law",200,"Administration",3]
["Report","Sandwell Training Association Limited",54271,"Sandwell","West Midlands","Community Learning and Skills","WBL - full (regional)",452616,"2015-02-16","2015-02-20","Published","2015-03-20",15,"Business, Administration and Law",300,"Business Management",3]
["Report","Sandwell Training Association Limited",54271,"Sandwell","West Midlands","Community Learning and Skills","WBL - full (regional)",452616,"2015-02-16","2015-02-20","Published","2015-03-20",4,"Engineering and Manufacturing Technologies",100,"Engineering",3]
["Report","Sandwell Training Association Limited",54271,"Sandwell","West Midlands","Community Learning and Skills","WBL - full (regional)",452616,"2015-02-16","2015-02-20","Published","2015-03-20",4,"Engineering and Manufacturing Technologies",200,"Manufacturing Technologies",3]
["Report","Bolton College",130495,"Bolton","North West","General Further Education/Tertiary College","FE College - full inspection",455663,"2015-03-16","2015-03-20","Published","2015-04-22",1,"Health, Public Services and Care",500,"Early Years and Playwork",2]
["Report","Bolton College",130495,"Bolton","North West","General Further Education/Tertiary College","FE College - full inspection",455663,"2015-03-16","2015-03-20","Published","2015-04-22",5,"Construction, Planning and the Built Environment",202,"Construction Crafts",3]
["Report","Bolton College",130495,"Bolton","North West","General Further Education/Tertiary College","FE College - full inspection",455663,"2015-03-16","2015-03-20","Published","2015-04-22",7,"Retail and Commercial Enterprise",301,"Hairdressing and beauty therapy",2]
["Report","Bolton College",130495,"Bolton","North West","General Further Education/Tertiary College","FE College - full inspection",455663,"2015-03-16","2015-03-20","Published","2015-04-22",14,"Preparation for Life and Work",108,"Independent living and leisure skills",2]
["Report","Warrington Borough Council",55268,"Warrington","North West","Community Learning and Skills","Adult and Community - full (regional)",446668,"2014-10-14","2014-10-17","Published","2014-12-16",15,"Business, Administration and Law",401,"Customer service",4]
["Report","Stockport College",130512,"Stockport","North West","General Further Education/Tertiary College","FE College - reinspection",433764,"2014-12-08","2014-12-12","Published","2015-01-15",9,"Arts, Media and Publishing",200,"Visual Arts",2]
["Report","Stockport College",130512,"Stockport","North West","General Further Education/Tertiary College","FE College - reinspection",433764,"2014-12-08","2014-12-12","Published","2015-01-15",15,"Business, Administration and Law",300,"Business Management",3]
["Report","Stockport College",130512,"Stockport","North West","General Further Education/Tertiary College","FE College - reinspection",433764,"2014-12-08","2014-12-12","Published","2015-01-15",1,"Health, Public Services and Care",300,"Health and Social Care",3]
["Report","Stockport College",130512,"Stockport","North West","General Further Education/Tertiary College","FE College - reinspection",433764,"2014-12-08","2014-12-12","Published","2015-01-15",4,"Engineering and Manufacturing Technologies",100,"Engineering",3]
["Report","Stockport College",130512,"Stockport","North West","General Further Education/Tertiary College","FE College - reinspection",433764,"2014-12-08","2014-12-12","Published","2015-01-15",14,"Preparation for Life and Work",112,"Foundation English",3]
["Report","Stockport College",130512,"Stockport","North West","General Further Education/Tertiary College","FE College - reinspection",433764,"2014-12-08","2014-12-12","Published","2015-01-15",4,"Engineering and Manufacturing Technologies",200,"Manufacturing Technologies",3]
["Report","Stockport College",130512,"Stockport","North West","General Further Education/Tertiary College","FE College - reinspection",433764,"2014-12-08","2014-12-12","Published","2015-01-15",9,"Arts, Media and Publishing",100,"Performing Arts",2]
[{"$f":"IF(C480 <> \"\", HYPERLINK(CONCATENATE(\"http://reports.ofsted.gov.uk/inspection-reports/find-inspection-report/provider/ELS/\",C480),\"Report\"),\"\")","v":"Report"},"Stockport College",130512,"Stockport","North West","General Further Education/Tertiary College","FE College - reinspection",433764,"2014-12-08","2014-12-12","Published","2015-01-15",15,"Business, Administration and Law",500,"Law and Legal Services",3]
["Report","Stockport College",130512,"Stockport","North West","General Further Education/Tertiary College","FE College - reinspection",433764,"2014-12-08","2014-12-12","Published","2015-01-15",1,"Health, Public Services and Care",500,"Early Years and Playwork",3]
["Report","Stockport College",130512,"Stockport","North West","General Further Education/Tertiary College","FE College - reinspection",433764,"2014-12-08","2014-12-12","Published","2015-01-15",14,"Preparation for Life and Work",204,"Employability Training",3]
["Report","Rocket Training Limited",54158,"Liverpool","North West","Independent Learning Provider","WBL - requires improvement",446603,"2014-11-24","2014-11-28","Published","2014-12-24",14,"Preparation for Life and Work",204,"Employability Training",2]
["Report","Rocket Training Limited",54158,"Liverpool","North West","Independent Learning Provider","WBL - requires improvement",446603,"2014-11-24","2014-11-28","Published","2014-12-24",15,"Business, Administration and Law",200,"Administration",3]
["Report","Wilberforce College",130580,"Kingston upon Hull City of","North East, Yorkshire & Humber","Sixth Form College","SFC - requires improvement",434399,"2015-04-28","2015-05-01","Published","2015-06-03",6,"Information and Communication Technology",100,"ICT for practitioners",2]
["Report","Wilberforce College",130580,"Kingston upon Hull City of","North East, Yorkshire & Humber","Sixth Form College","SFC - requires improvement",434399,"2015-04-28","2015-05-01","Published","2015-06-03",12,"Languages, Literature and Culture",100,"English",2]
["Report","Wilberforce College",130580,"Kingston upon Hull City of","North East, Yorkshire & Humber","Sixth Form College","SFC - requires improvement",434399,"2015-04-28","2015-05-01","Published","2015-06-03",1,"Health, Public Services and Care",200,"Nursing and Dental Health",2]
["Report","Wilberforce College",130580,"Kingston upon Hull City of","North East, Yorkshire & Humber","Sixth Form College","SFC - requires improvement",434399,"2015-04-28","2015-05-01","Published","2015-06-03",1,"Health, Public Services and Care",300,"Health and Social Care",2]
["Report","Wilberforce College",130580,"Kingston upon Hull City of","North East, Yorkshire & Humber","Sixth Form College","SFC - requires improvement",434399,"2015-04-28","2015-05-01","Published","2015-06-03",2,"Science and Mathematics",100,"Science",2]
["Report","Wilberforce College",130580,"Kingston upon Hull City of","North East, Yorkshire & Humber","Sixth Form College","SFC - requires improvement",434399,"2015-04-28","2015-05-01","Published","2015-06-03",9,"Arts, Media and Publishing",300,"Media and Communication",2]
["Report","Urban Futures London Limited",59166,"Haringey","London","Community Learning and Skills","WBL - full (regional)",455610,"2015-06-01","2015-06-03","Published","2015-07-08",15,"Business, Administration and Law",200,"Administration",3]
["Report","ID Training",57877,"Newcastle Upon Tyne","North East, Yorkshire & Humber","Independent Learning Provider","WBL - full (regional)",452986,"2015-02-24","2015-02-27","Published","2015-04-09",1,"Health, Public Services and Care",300,"Health and Social Care",2]
["Report","Warwickshire College Group",130835,"Warwickshire","West Midlands","General Further Education/Tertiary College","FE College - full inspection",461394,"2015-03-09","2015-03-13","Published","2015-04-02",4,"Engineering and Manufacturing Technologies",100,"Engineering",2]
["Report","Warwickshire College Group",130835,"Warwickshire","West Midlands","General Further Education/Tertiary College","FE College - full inspection",461394,"2015-03-09","2015-03-13","Published","2015-04-02",14,"Preparation for Life and Work",112,"Foundation English",3]
["Report","Warwickshire College Group",130835,"Warwickshire","West Midlands","General Further Education/Tertiary College","FE College - full inspection",461394,"2015-03-09","2015-03-13","Published","2015-04-02",3,"Agriculture, Horticulture and Animal Care",300,"Animal Care and Veterinary Science",2]
["Report","Warwickshire College Group",130835,"Warwickshire","West Midlands","General Further Education/Tertiary College","FE College - full inspection",461394,"2015-03-09","2015-03-13","Published","2015-04-02",8,"Leisure, Travel and Tourism",101,"Sport",2]
["Report","Warwickshire College Group",130835,"Warwickshire","West Midlands","General Further Education/Tertiary College","FE College - full inspection",461394,"2015-03-09","2015-03-13","Published","2015-04-02",15,"Business, Administration and Law",300,"Business Management",2]
["Report","Warwickshire College Group",130835,"Warwickshire","West Midlands","General Further Education/Tertiary College","FE College - full inspection",461394,"2015-03-09","2015-03-13","Published","2015-04-02",3,"Agriculture, Horticulture and Animal Care",301,"Equine Studies",2]
["Report","Warwickshire College Group",130835,"Warwickshire","West Midlands","General Further Education/Tertiary College","FE College - full inspection",461394,"2015-03-09","2015-03-13","Published","2015-04-02",14,"Preparation for Life and Work",113,"Foundation mathematics",3]
["Report","Stratford-upon-Avon College",130837,"Warwickshire","West Midlands","General Further Education/Tertiary College","FE College - requires improvement",433769,"2015-03-17","2015-03-20","Published","2015-04-09",7,"Retail and Commercial Enterprise",400,"Hospitality and Catering",2]
["Report","Stratford-upon-Avon College",130837,"Warwickshire","West Midlands","General Further Education/Tertiary College","FE College - requires improvement",433769,"2015-03-17","2015-03-20","Published","2015-04-09",9,"Arts, Media and Publishing",200,"Visual Arts",2]
["Report","Stratford-upon-Avon College",130837,"Warwickshire","West Midlands","General Further Education/Tertiary College","FE College - requires improvement",433769,"2015-03-17","2015-03-20","Published","2015-04-09",14,"Preparation for Life and Work",113,"Foundation mathematics",2]
["Report","Stratford-upon-Avon College",130837,"Warwickshire","West Midlands","General Further Education/Tertiary College","FE College - requires improvement",433769,"2015-03-17","2015-03-20","Published","2015-04-09",1,"Health, Public Services and Care",500,"Early Years and Playwork",2]
["Report","Stratford-upon-Avon College",130837,"Warwickshire","West Midlands","General Further Education/Tertiary College","FE College - requires improvement",433769,"2015-03-17","2015-03-20","Published","2015-04-09",9,"Arts, Media and Publishing",100,"Performing Arts",2]
["Report","Stratford-upon-Avon College",130837,"Warwickshire","West Midlands","General Further Education/Tertiary College","FE College - requires improvement",433769,"2015-03-17","2015-03-20","Published","2015-04-09",1,"Health, Public Services and Care",300,"Health and Social Care",2]
["Report","Bradford College",130532,"Bradford","North East, Yorkshire & Humber","General Further Education/Tertiary College","FE College - full inspection",446537,"2014-09-22","2014-09-26","Published","2014-10-29",1,"Health, Public Services and Care",300,"Health and Social Care",1]
["Report","Bradford College",130532,"Bradford","North East, Yorkshire & Humber","General Further Education/Tertiary College","FE College - full inspection",446537,"2014-09-22","2014-09-26","Published","2014-10-29",4,"Engineering and Manufacturing Technologies",100,"Engineering",2]
["Report","Bradford College",130532,"Bradford","North East, Yorkshire & Humber","General Further Education/Tertiary College","FE College - full inspection",446537,"2014-09-22","2014-09-26","Published","2014-10-29",14,"Preparation for Life and Work",103,"ESOL",1]
["Report","Bradford College",130532,"Bradford","North East, Yorkshire & Humber","General Further Education/Tertiary College","FE College - full inspection",446537,"2014-09-22","2014-09-26","Published","2014-10-29",15,"Business, Administration and Law",300,"Business Management",3]
["Report","Bradford College",130532,"Bradford","North East, Yorkshire & Humber","General Further Education/Tertiary College","FE College - full inspection",446537,"2014-09-22","2014-09-26","Published","2014-10-29",14,"Preparation for Life and Work",112,"Foundation English",2]
["Report","Bradford College",130532,"Bradford","North East, Yorkshire & Humber","General Further Education/Tertiary College","FE College - full inspection",446537,"2014-09-22","2014-09-26","Published","2014-10-29",1,"Health, Public Services and Care",500,"Early Years and Playwork",1]
[{"$f":"IF(C512 <> \"\", HYPERLINK(CONCATENATE(\"http://reports.ofsted.gov.uk/inspection-reports/find-inspection-report/provider/ELS/\",C512),\"Report\"),\"\")","v":"Report"},"Connell Sixth Form College",139730,"Manchester","North West","Free School - 16-19","16-19 academy - full inspection",452499,"2015-01-27","2015-01-30","Published","2015-03-17",2,"Science and Mathematics",100,"Science",3]
["Report","The Mary Ward Centre (AE Centre)",130404,"Camden","London","Community Learning and Skills","Adult and Community - full (regional)",452634,"2015-01-19","2015-01-23","Published","2015-02-27",14,"Preparation for Life and Work",103,"ESOL",2]
["Report","The Mary Ward Centre (AE Centre)",130404,"Camden","London","Community Learning and Skills","Adult and Community - full (regional)",452634,"2015-01-19","2015-01-23","Published","2015-02-27",9,"Arts, Media and Publishing",200,"Visual Arts",2]
["Report","HIT Training Ltd",57860,"West Sussex","South East","Independent Learning Provider","Work Based Learning - full (national)",455591,"2015-06-22","2015-06-26","Published","2015-07-31",15,"Business, Administration and Law",300,"Business Management",2]
["Report","HIT Training Ltd",57860,"West Sussex","South East","Independent Learning Provider","Work Based Learning - full (national)",455591,"2015-06-22","2015-06-26","Published","2015-07-31",7,"Retail and Commercial Enterprise",400,"Hospitality and Catering",2]
["Report","HIT Training Ltd",57860,"West Sussex","South East","Independent Learning Provider","Work Based Learning - full (national)",455591,"2015-06-22","2015-06-26","Published","2015-07-31",14,"Preparation for Life and Work",204,"Employability Training",3]
["Report","HIT Training Ltd",57860,"West Sussex","South East","Independent Learning Provider","Work Based Learning - full (national)",455591,"2015-06-22","2015-06-26","Published","2015-07-31",15,"Business, Administration and Law",200,"Administration",2]
["Report","Lancashire Adult Learning",52911,"Lancashire","North West","Community Learning and Skills","Adult and community - full (national)",446661,"2014-11-03","2014-11-07","Published","2014-12-10",9,"Arts, Media and Publishing",200,"Visual Arts",3]
["Report","Lancashire Adult Learning",52911,"Lancashire","North West","Community Learning and Skills","Adult and community - full (national)",446661,"2014-11-03","2014-11-07","Published","2014-12-10",14,"Preparation for Life and Work",204,"Employability Training",2]
["Report","Lancashire Adult Learning",52911,"Lancashire","North West","Community Learning and Skills","Adult and community - full (national)",446661,"2014-11-03","2014-11-07","Published","2014-12-10",15,"Business, Administration and Law",300,"Business Management",2]
["Report","Lancashire Adult Learning",52911,"Lancashire","North West","Community Learning and Skills","Adult and community - full (national)",446661,"2014-11-03","2014-11-07","Published","2014-12-10",17,"Family Learning",0,"Family Learning",3]
["Report","Creative Process",59150,"Lewisham","London","Independent Learning Provider","WBL - full (regional)",452627,"2015-05-05","2015-05-08","Published","2015-07-09",15,"Business, Administration and Law",400,"Marketing and Sales",2]
["Report","Creative Process",59150,"Lewisham","London","Independent Learning Provider","WBL - full (regional)",452627,"2015-05-05","2015-05-08","Published","2015-07-09",9,"Arts, Media and Publishing",300,"Media and Communication",3]
["Report","Avanta Enterprise Limited",59173,"Westminster","London","Independent Learning Provider","Work Based Learning - full (national)",452630,"2015-02-02","2015-02-06","Published","2015-03-16",15,"Business, Administration and Law",200,"Administration",2]
["Report","Avanta Enterprise Limited",59173,"Westminster","London","Independent Learning Provider","Work Based Learning - full (national)",452630,"2015-02-02","2015-02-06","Published","2015-03-16",1,"Health, Public Services and Care",300,"Health and Social Care",2]
["Report","Avanta Enterprise Limited",59173,"Westminster","London","Independent Learning Provider","Work Based Learning - full (national)",452630,"2015-02-02","2015-02-06","Published","2015-03-16",14,"Preparation for Life and Work",204,"Employability Training",2]
["Report","Avanta Enterprise Limited",59173,"Westminster","London","Independent Learning Provider","Work Based Learning - full (national)",452630,"2015-02-02","2015-02-06","Published","2015-03-16",15,"Business, Administration and Law",300,"Business Management",2]
["Report","Big Creative Training LTD",51619,"Waltham Forest","London","Independent Learning Provider","WBL - full (regional)",446600,"2015-03-09","2015-03-13","Published","2015-04-22",9,"Arts, Media and Publishing",100,"Performing Arts",3]
["Report","Big Creative Training LTD",51619,"Waltham Forest","London","Independent Learning Provider","WBL - full (regional)",446600,"2015-03-09","2015-03-13","Published","2015-04-22",9,"Arts, Media and Publishing",300,"Media and Communication",3]
["Report","Big Creative Training LTD",51619,"Waltham Forest","London","Independent Learning Provider","WBL - full (regional)",446600,"2015-03-09","2015-03-13","Published","2015-04-22",14,"Preparation for Life and Work",114,"Foundation English and Mathematics",3]
["Report","Derby Skillbuild",51525,"Derby","East Midlands","Community Learning and Skills","WBL - requires improvement",434401,"2015-03-17","2015-03-19","Published","2015-04-24",14,"Preparation for Life and Work",204,"Employability Training",2]
["Report","Midstream (West Lancs) Ltd",139245,"Lancashire","North West","Independent Specialist College","ISC - full inspection",446689,"2014-09-16","2014-09-18","Published","2014-10-21",14,"Preparation for Life and Work",108,"Independent living and leisure skills",4]
["Report","SEEVIC College",130681,"Essex","East of England","Sixth Form College","FE College - requires improvement",430276,"2014-09-29","2014-10-03","Published","2014-11-04",1,"Health, Public Services and Care",300,"Health and Social Care",2]
["Report","SEEVIC College",130681,"Essex","East of England","Sixth Form College","FE College - requires improvement",430276,"2014-09-29","2014-10-03","Published","2014-11-04",1,"Health, Public Services and Care",500,"Early Years and Playwork",2]
["Report","Pathway First Limited",59176,"Birmingham","West Midlands","Independent Learning Provider","WBL - full (regional)",455612,"2015-06-02","2015-06-05","Published","2015-06-24",15,"Business, Administration and Law",200,"Administration",3]
["Report","Barnfield College",130599,"Luton","East of England","General Further Education/Tertiary College","FE College - full inspection",447145,"2014-11-17","2014-11-21","Published","2015-01-08",1,"Health, Public Services and Care",300,"Health and Social Care",3]
["Report","Barnfield College",130599,"Luton","East of England","General Further Education/Tertiary College","FE College - full inspection",447145,"2014-11-17","2014-11-21","Published","2015-01-08",9,"Arts, Media and Publishing",300,"Media and Communication",3]
["Report","Barnfield College",130599,"Luton","East of England","General Further Education/Tertiary College","FE College - full inspection",447145,"2014-11-17","2014-11-21","Published","2015-01-08",14,"Preparation for Life and Work",103,"ESOL",4]
["Report","Barnfield College",130599,"Luton","East of England","General Further Education/Tertiary College","FE College - full inspection",447145,"2014-11-17","2014-11-21","Published","2015-01-08",5,"Construction, Planning and the Built Environment",200,"Building and Construction",4]
["Report","Barnfield College",130599,"Luton","East of England","General Further Education/Tertiary College","FE College - full inspection",447145,"2014-11-17","2014-11-21","Published","2015-01-08",7,"Retail and Commercial Enterprise",301,"Hairdressing and beauty therapy",4]
["Report","Barnfield College",130599,"Luton","East of England","General Further Education/Tertiary College","FE College - full inspection",447145,"2014-11-17","2014-11-21","Published","2015-01-08",9,"Arts, Media and Publishing",200,"Visual Arts",3]
["Report","Barnfield College",130599,"Luton","East of England","General Further Education/Tertiary College","FE College - full inspection",447145,"2014-11-17","2014-11-21","Published","2015-01-08",14,"Preparation for Life and Work",113,"Foundation mathematics",4]
[{"$f":"IF(C544 <> \"\", HYPERLINK(CONCATENATE(\"http://reports.ofsted.gov.uk/inspection-reports/find-inspection-report/provider/ELS/\",C544),\"Report\"),\"\")","v":"Report"},"The Oldham College",130505,"Oldham","North West","General Further Education/Tertiary College","FE College - full inspection",463125,"2015-05-11","2015-05-15","Published","2015-06-18",15,"Business, Administration and Law",200,"Administration",3]
["Report","The Oldham College",130505,"Oldham","North West","General Further Education/Tertiary College","FE College - full inspection",463125,"2015-05-11","2015-05-15","Published","2015-06-18",1,"Health, Public Services and Care",300,"Health and Social Care",3]
["Report","The Oldham College",130505,"Oldham","North West","General Further Education/Tertiary College","FE College - full inspection",463125,"2015-05-11","2015-05-15","Published","2015-06-18",7,"Retail and Commercial Enterprise",301,"Hairdressing and beauty therapy",2]
["Report","The Oldham College",130505,"Oldham","North West","General Further Education/Tertiary College","FE College - full inspection",463125,"2015-05-11","2015-05-15","Published","2015-06-18",9,"Arts, Media and Publishing",100,"Performing Arts",2]
["Report","The Oldham College",130505,"Oldham","North West","General Further Education/Tertiary College","FE College - full inspection",463125,"2015-05-11","2015-05-15","Published","2015-06-18",14,"Preparation for Life and Work",112,"Foundation English",3]
["Report","The Oldham College",130505,"Oldham","North West","General Further Education/Tertiary College","FE College - full inspection",463125,"2015-05-11","2015-05-15","Published","2015-06-18",9,"Arts, Media and Publishing",300,"Media and Communication",2]
["Report","The Oldham College",130505,"Oldham","North West","General Further Education/Tertiary College","FE College - full inspection",463125,"2015-05-11","2015-05-15","Published","2015-06-18",14,"Preparation for Life and Work",113,"Foundation mathematics",3]
["Report","The Oldham College",130505,"Oldham","North West","General Further Education/Tertiary College","FE College - full inspection",463125,"2015-05-11","2015-05-15","Published","2015-06-18",15,"Business, Administration and Law",300,"Business Management",4]
["Report","Whitbread PLC",55363,"Central Bedfordshire","East of England","Employer","WBL - requires improvement",446607,"2015-06-30","2015-07-03","Published","2015-07-22",7,"Retail and Commercial Enterprise",400,"Hospitality and Catering",2]
[{"$f":"IF(C553 <> \"\", HYPERLINK(CONCATENATE(\"http://reports.ofsted.gov.uk/inspection-reports/find-inspection-report/provider/ELS/\",C553),\"Report\"),\"\")","v":"Report"},"Cheshire West and Chester Council",58930,"Cheshire West and Chester","North West","Community Learning and Skills","Adult and community - full (national)",452624,"2015-03-17","2015-03-20","Published","2015-04-22",14,"Preparation for Life and Work",111,"Community Learning",2]
["Report","Weir Training Limited",55295,"Surrey","South East","Independent Learning Provider","WBL - full (regional)",452984,"2015-03-16","2015-03-20","Published","2015-04-23",7,"Retail and Commercial Enterprise",200,"Warehousing and Distribution",2]
["Report","King George V College",130492,"Sefton","North West","Sixth Form College","SFC - full inspection",446535,"2014-09-16","2014-09-19","Published","2014-10-23",12,"Languages, Literature and Culture",100,"English",3]
["Report","City Gateway",58841,"Tower Hamlets","London","Community Learning and Skills","WBL - full (regional)",452623,"2015-03-16","2015-03-19","Published","2015-04-22",14,"Preparation for Life and Work",113,"Foundation mathematics",2]
["Report","City Gateway",58841,"Tower Hamlets","London","Community Learning and Skills","WBL - full (regional)",452623,"2015-03-16","2015-03-19","Published","2015-04-22",15,"Business, Administration and Law",200,"Administration",2]
["Report","City Gateway",58841,"Tower Hamlets","London","Community Learning and Skills","WBL - full (regional)",452623,"2015-03-16","2015-03-19","Published","2015-04-22",14,"Preparation for Life and Work",204,"Employability Training",1]
["Report","Acacia Training Limited",50304,"Stoke-On-Trent","West Midlands","Independent Learning Provider","WBL - requires improvement",430249,"2014-09-29","2014-10-03","Published","2014-11-04",15,"Business, Administration and Law",300,"Business Management",3]
["Report","Acacia Training Limited",50304,"Stoke-On-Trent","West Midlands","Independent Learning Provider","WBL - requires improvement",430249,"2014-09-29","2014-10-03","Published","2014-11-04",1,"Health, Public Services and Care",300,"Health and Social Care",3]
["Report","North West Training Council",53615,"Sefton","North West","Community Learning and Skills","WBL - requires improvement",440402,"2015-04-20","2015-04-24","Published","2015-06-02",4,"Engineering and Manufacturing Technologies",100,"Engineering",2]
["Report","North West Training Council",53615,"Sefton","North West","Community Learning and Skills","WBL - requires improvement",440402,"2015-04-20","2015-04-24","Published","2015-06-02",4,"Engineering and Manufacturing Technologies",300,"Motor vehicle",2]
["Report","East London Advanced Technology Training",51646,"Hackney","London","Community Learning and Skills","Adult and Community - full (regional)",452602,"2015-01-14","2015-01-16","Published","2015-02-20",6,"Information and Communication Technology",200,"ICT for Users",1]
["Report","East London Advanced Technology Training",51646,"Hackney","London","Community Learning and Skills","Adult and Community - full (regional)",452602,"2015-01-14","2015-01-16","Published","2015-02-20",6,"Information and Communication Technology",100,"ICT for practitioners",1]
["Report","Project Management (Staffordshire) Limited",53992,"Stoke-On-Trent","West Midlands","Independent Learning Provider","WBL - full (regional)",452980,"2015-05-11","2015-05-15","Published","2015-06-18",4,"Engineering and Manufacturing Technologies",100,"Engineering",2]
["Report","Project Management (Staffordshire) Limited",53992,"Stoke-On-Trent","West Midlands","Independent Learning Provider","WBL - full (regional)",452980,"2015-05-11","2015-05-15","Published","2015-06-18",5,"Construction, Planning and the Built Environment",202,"Construction Crafts",2]
["Report","Project Management (Staffordshire) Limited",53992,"Stoke-On-Trent","West Midlands","Independent Learning Provider","WBL - full (regional)",452980,"2015-05-11","2015-05-15","Published","2015-06-18",15,"Business, Administration and Law",200,"Administration",2]
["Report","Project Management (Staffordshire) Limited",53992,"Stoke-On-Trent","West Midlands","Independent Learning Provider","WBL - full (regional)",452980,"2015-05-11","2015-05-15","Published","2015-06-18",14,"Preparation for Life and Work",204,"Employability Training",2]
["Report","Weir Training Limited",55295,"Surrey","South East","Independent Learning Provider","WBL - full (regional)",452984,"2015-03-16","2015-03-20","Published","2015-04-23",15,"Business, Administration and Law",200,"Administration",2]
["Report","Training Synergy Limited",59163,"Hackney","London","Independent Learning Provider","WBL - full (regional)",455609,"2015-06-09","2015-06-12","Published","2015-07-17",6,"Information and Communication Technology",100,"ICT for practitioners",3]
["Report","Bolton College",130495,"Bolton","North West","General Further Education/Tertiary College","FE College - full inspection",455663,"2015-03-16","2015-03-20","Published","2015-04-22",1,"Health, Public Services and Care",300,"Health and Social Care",2]
["Report","Bolton College",130495,"Bolton","North West","General Further Education/Tertiary College","FE College - full inspection",455663,"2015-03-16","2015-03-20","Published","2015-04-22",12,"Languages, Literature and Culture",100,"English",2]
["Report","Bolton College",130495,"Bolton","North West","General Further Education/Tertiary College","FE College - full inspection",455663,"2015-03-16","2015-03-20","Published","2015-04-22",12,"Languages, Literature and Culture",202,"Modern foreign languages",2]
["Report","Bolton College",130495,"Bolton","North West","General Further Education/Tertiary College","FE College - full inspection",455663,"2015-03-16","2015-03-20","Published","2015-04-22",14,"Preparation for Life and Work",112,"Foundation English",2]
["Report","Bolton College",130495,"Bolton","North West","General Further Education/Tertiary College","FE College - full inspection",455663,"2015-03-16","2015-03-20","Published","2015-04-22",5,"Construction, Planning and the Built Environment",201,"Building Services",3]
["Report","Royal Borough of Kingston upon Thames Council",54196,"Kingston Upon Thames","London","Community Learning and Skills","ACL - requires improvement",434390,"2015-03-17","2015-03-20","Published","2015-05-08",14,"Preparation for Life and Work",103,"ESOL",2]
["Report","Royal Borough of Kingston upon Thames Council",54196,"Kingston Upon Thames","London","Community Learning and Skills","ACL - requires improvement",434390,"2015-03-17","2015-03-20","Published","2015-05-08",15,"Business, Administration and Law",200,"Administration",2]
["Report","Royal Borough of Kingston upon Thames Council",54196,"Kingston Upon Thames","London","Community Learning and Skills","ACL - requires improvement",434390,"2015-03-17","2015-03-20","Published","2015-05-08",9,"Arts, Media and Publishing",200,"Visual Arts",2]
["Report","Royal Borough of Kingston upon Thames Council",54196,"Kingston Upon Thames","London","Community Learning and Skills","ACL - requires improvement",434390,"2015-03-17","2015-03-20","Published","2015-05-08",15,"Business, Administration and Law",100,"Accounting and Finance",2]
["Report","Newbury College",130602,"West Berkshire","South East","General Further Education/Tertiary College","FE College - full inspection",452486,"2015-01-27","2015-01-30","Published","2015-03-10",9,"Arts, Media and Publishing",300,"Media and Communication",2]
["Report","Newbury College",130602,"West Berkshire","South East","General Further Education/Tertiary College","FE College - full inspection",452486,"2015-01-27","2015-01-30","Published","2015-03-10",1,"Health, Public Services and Care",0,"Health, Public Services and Care",2]
["Report","Newbury College",130602,"West Berkshire","South East","General Further Education/Tertiary College","FE College - full inspection",452486,"2015-01-27","2015-01-30","Published","2015-03-10",7,"Retail and Commercial Enterprise",301,"Hairdressing and beauty therapy",3]
["Report","Newbury College",130602,"West Berkshire","South East","General Further Education/Tertiary College","FE College - full inspection",452486,"2015-01-27","2015-01-30","Published","2015-03-10",15,"Business, Administration and Law",300,"Business Management",2]
["Report","Newbury College",130602,"West Berkshire","South East","General Further Education/Tertiary College","FE College - full inspection",452486,"2015-01-27","2015-01-30","Published","2015-03-10",9,"Arts, Media and Publishing",200,"Visual Arts",2]
[{"$f":"IF(C585 <> \"\", HYPERLINK(CONCATENATE(\"http://reports.ofsted.gov.uk/inspection-reports/find-inspection-report/provider/ELS/\",C585),\"Report\"),\"\")","v":"Report"},"Newbury College",130602,"West Berkshire","South East","General Further Education/Tertiary College","FE College - full inspection",452486,"2015-01-27","2015-01-30","Published","2015-03-10",15,"Business, Administration and Law",100,"Accounting and Finance",2]
["Report","Sheiling College",139249,"Dorset","South West","Independent Specialist College","ISC - full inspection",451325,"2014-12-02","2014-12-03","Published","2015-01-12",14,"Preparation for Life and Work",108,"Independent living and leisure skills",2]
["Report","Ruskin Mill College",133036,"Gloucestershire","South West","Independent Specialist College","ISC - reinspection",447351,"2015-05-18","2015-05-20","Published","2015-06-18",14,"Preparation for Life and Work",108,"Independent living and leisure skills",2]
["Report","Bestland Solutions Limited",57838,"Southampton","South East","Independent Learning Provider","WBL - full (regional)",452620,"2014-11-04","2014-11-07","Published","2014-12-12",13,"Education and Training",200,"Training to Provide Learning Support",3]
["Report","Bestland Solutions Limited",57838,"Southampton","South East","Independent Learning Provider","WBL - full (regional)",452620,"2014-11-04","2014-11-07","Published","2014-12-12",15,"Business, Administration and Law",200,"Administration",3]
["Report","Woodspeen Training Limited",50262,"Kirklees","North East, Yorkshire & Humber","Independent Learning Provider","WBL - requires improvement",446598,"2014-10-13","2014-10-17","Published","2014-11-19",1,"Health, Public Services and Care",300,"Health and Social Care",2]
["Report","Woodspeen Training Limited",50262,"Kirklees","North East, Yorkshire & Humber","Independent Learning Provider","WBL - requires improvement",446598,"2014-10-13","2014-10-17","Published","2014-11-19",7,"Retail and Commercial Enterprise",302,"Hairdressing",2]
["Report","Woodspeen Training Limited",50262,"Kirklees","North East, Yorkshire & Humber","Independent Learning Provider","WBL - requires improvement",446598,"2014-10-13","2014-10-17","Published","2014-11-19",15,"Business, Administration and Law",200,"Administration",3]
["Report","The Learning Partnership for Cornwall and The Isles of Scilly Limited",59113,"Cornwall","South West","Independent Learning Provider","WBL - full (regional)",434062,"2014-09-16","2014-09-19","Published","2014-10-30",14,"Preparation for Life and Work",204,"Employability Training",3]
["Report","Prior Pursglove College",130575,"Redcar and Cleveland","North East, Yorkshire & Humber","Sixth Form College","SFC - reinspection",446543,"2015-03-03","2015-03-06","Published","2015-04-09",2,"Science and Mathematics",200,"Mathematics and Statistics",2]
["Report","Prior Pursglove College",130575,"Redcar and Cleveland","North East, Yorkshire & Humber","Sixth Form College","SFC - reinspection",446543,"2015-03-03","2015-03-06","Published","2015-04-09",12,"Languages, Literature and Culture",100,"English",3]
["Report","Prior Pursglove College",130575,"Redcar and Cleveland","North East, Yorkshire & Humber","Sixth Form College","SFC - reinspection",446543,"2015-03-03","2015-03-06","Published","2015-04-09",15,"Business, Administration and Law",600,"Business",2]
["Report","Prior Pursglove College",130575,"Redcar and Cleveland","North East, Yorkshire & Humber","Sixth Form College","SFC - reinspection",446543,"2015-03-03","2015-03-06","Published","2015-04-09",2,"Science and Mathematics",100,"Science",2]
["Report","Prior Pursglove College",130575,"Redcar and Cleveland","North East, Yorkshire & Humber","Sixth Form College","SFC - reinspection",446543,"2015-03-03","2015-03-06","Published","2015-04-09",9,"Arts, Media and Publishing",200,"Visual Arts",2]
["Report","Prior Pursglove College",130575,"Redcar and Cleveland","North East, Yorkshire & Humber","Sixth Form College","SFC - reinspection",446543,"2015-03-03","2015-03-06","Published","2015-04-09",11,"Social Sciences",0,"Social Sciences",2]
["Report","Prior Pursglove College",130575,"Redcar and Cleveland","North East, Yorkshire & Humber","Sixth Form College","SFC - reinspection",446543,"2015-03-03","2015-03-06","Published","2015-04-09",15,"Business, Administration and Law",500,"Law and Legal Services",2]
["Report","Kensington and Chelsea College",130410,"Kensington and Chelsea","London","General Further Education/Tertiary College","FE College - requires improvement",440397,"2015-06-02","2015-06-05","Published","2015-07-10",14,"Preparation for Life and Work",103,"ESOL",2]
["Report","Kensington and Chelsea College",130410,"Kensington and Chelsea","London","General Further Education/Tertiary College","FE College - requires improvement",440397,"2015-06-02","2015-06-05","Published","2015-07-10",14,"Preparation for Life and Work",113,"Foundation mathematics",3]
["Report","Kensington and Chelsea College",130410,"Kensington and Chelsea","London","General Further Education/Tertiary College","FE College - requires improvement",440397,"2015-06-02","2015-06-05","Published","2015-07-10",1,"Health, Public Services and Care",500,"Early Years and Playwork",3]
["Report","Kensington and Chelsea College",130410,"Kensington and Chelsea","London","General Further Education/Tertiary College","FE College - requires improvement",440397,"2015-06-02","2015-06-05","Published","2015-07-10",14,"Preparation for Life and Work",112,"Foundation English",2]
["Report","Kensington and Chelsea College",130410,"Kensington and Chelsea","London","General Further Education/Tertiary College","FE College - requires improvement",440397,"2015-06-02","2015-06-05","Published","2015-07-10",1,"Health, Public Services and Care",300,"Health and Social Care",3]
["Report","Kensington and Chelsea College",130410,"Kensington and Chelsea","London","General Further Education/Tertiary College","FE College - requires improvement",440397,"2015-06-02","2015-06-05","Published","2015-07-10",15,"Business, Administration and Law",100,"Accounting and Finance",3]
["Report","Kensington and Chelsea College",130410,"Kensington and Chelsea","London","General Further Education/Tertiary College","FE College - requires improvement",440397,"2015-06-02","2015-06-05","Published","2015-07-10",15,"Business, Administration and Law",200,"Administration",3]
["Report","The Marine Society College of the Sea",130414,"Lambeth","London","Community Learning and Skills","Adult and Community - full (regional)",446670,"2014-10-08","2014-10-10","Published","2014-11-24",14,"Preparation for Life and Work",111,"Community Learning",4]
["Report","NCC Adult Education Services",53545,"Norfolk","East of England","Community Learning and Skills","Adult and Community - full (regional)",452610,"2015-01-19","2015-01-23","Published","2015-03-09",8,"Leisure, Travel and Tourism",101,"Sport",2]
["Report","NCC Adult Education Services",53545,"Norfolk","East of England","Community Learning and Skills","Adult and Community - full (regional)",452610,"2015-01-19","2015-01-23","Published","2015-03-09",14,"Preparation for Life and Work",108,"Independent living and leisure skills",3]
["Report","NCC Adult Education Services",53545,"Norfolk","East of England","Community Learning and Skills","Adult and Community - full (regional)",452610,"2015-01-19","2015-01-23","Published","2015-03-09",14,"Preparation for Life and Work",112,"Foundation English",3]
["Report","BROADLAND DISTRICT COUNCIL",50098,"Norfolk","East of England","Community Learning and Skills","WBL - full (regional)",452973,"2015-03-09","2015-03-13","Published","2015-04-21",3,"Agriculture, Horticulture and Animal Care",301,"Equine Studies",3]
["Report","ID Training",57877,"Newcastle Upon Tyne","North East, Yorkshire & Humber","Independent Learning Provider","WBL - full (regional)",452986,"2015-02-24","2015-02-27","Published","2015-04-09",1,"Health, Public Services and Care",500,"Early Years and Playwork",2]
["Report","Lite (Stockport) Limited",53068,"Stockport","North West","Independent Learning Provider","WBL - full (regional)",463358,"2015-06-30","2015-07-03","Published","2015-07-31",3,"Agriculture, Horticulture and Animal Care",302,"Animal care",2]
["Report","Chamber Training (Humber) Limited",51104,"Kingston upon Hull City of","North East, Yorkshire & Humber","Independent Learning Provider","WBL - requires improvement",429795,"2015-01-12","2015-01-16","Published","2015-02-23",4,"Engineering and Manufacturing Technologies",100,"Engineering",2]
["Report","Chamber Training (Humber) Limited",51104,"Kingston upon Hull City of","North East, Yorkshire & Humber","Independent Learning Provider","WBL - requires improvement",429795,"2015-01-12","2015-01-16","Published","2015-02-23",4,"Engineering and Manufacturing Technologies",200,"Manufacturing Technologies",2]
[{"$f":"IF(C617 <> \"\", HYPERLINK(CONCATENATE(\"http://reports.ofsted.gov.uk/inspection-reports/find-inspection-report/provider/ELS/\",C617),\"Report\"),\"\")","v":"Report"},"Boots Opticians Professional Services Limited",51573,"Nottingham","East Midlands","Employer","Work Based Learning - full (national)",455579,"2015-05-12","2015-05-15","Published","2015-06-12",1,"Health, Public Services and Care",300,"Health and Social Care",3]
["Report","Health Education North East",59195,"Newcastle Upon Tyne","North East, Yorkshire & Humber","Independent Learning Provider","WBL - full (regional)",452633,"2015-03-16","2015-03-19","Published","2015-04-23",15,"Business, Administration and Law",200,"Administration",2]
["Report","Health Education North East",59195,"Newcastle Upon Tyne","North East, Yorkshire & Humber","Independent Learning Provider","WBL - full (regional)",452633,"2015-03-16","2015-03-19","Published","2015-04-23",1,"Health, Public Services and Care",300,"Health and Social Care",2]
["Report","Team Enterprises Limited",58515,"St. Helens","North West","Independent Learning Provider","WBL - full (regional)",445777,"2014-10-27","2014-10-31","Published","2014-12-09",15,"Business, Administration and Law",300,"Business Management",3]
["Report","Team Enterprises Limited",58515,"St. Helens","North West","Independent Learning Provider","WBL - full (regional)",445777,"2014-10-27","2014-10-31","Published","2014-12-09",1,"Health, Public Services and Care",300,"Health and Social Care",3]
["Report","Team Enterprises Limited",58515,"St. Helens","North West","Independent Learning Provider","WBL - full (regional)",445777,"2014-10-27","2014-10-31","Published","2014-12-09",14,"Preparation for Life and Work",204,"Employability Training",3]
["Report","Team Enterprises Limited",58515,"St. Helens","North West","Independent Learning Provider","WBL - full (regional)",445777,"2014-10-27","2014-10-31","Published","2014-12-09",13,"Education and Training",100,"Teaching and Lecturing",3]
["Report","EQL Solutions Limited",59196,"Warrington","North West","Independent Learning Provider","Work Based Learning - full (national)",463394,"2015-06-29","2015-07-03","Published","2015-07-31",1,"Health, Public Services and Care",300,"Health and Social Care",3]
["Report","EQL Solutions Limited",59196,"Warrington","North West","Independent Learning Provider","Work Based Learning - full (national)",463394,"2015-06-29","2015-07-03","Published","2015-07-31",4,"Engineering and Manufacturing Technologies",400,"Transportation operations and maintenance",2]
["Report","EQL Solutions Limited",59196,"Warrington","North West","Independent Learning Provider","Work Based Learning - full (national)",463394,"2015-06-29","2015-07-03","Published","2015-07-31",14,"Preparation for Life and Work",204,"Employability Training",3]
["Report","EQL Solutions Limited",59196,"Warrington","North West","Independent Learning Provider","Work Based Learning - full (national)",463394,"2015-06-29","2015-07-03","Published","2015-07-31",15,"Business, Administration and Law",300,"Business Management",3]
["Report","EQL Solutions Limited",59196,"Warrington","North West","Independent Learning Provider","Work Based Learning - full (national)",463394,"2015-06-29","2015-07-03","Published","2015-07-31",15,"Business, Administration and Law",200,"Administration",3]
["Report","London Learning Consortium Community Interest Company",58611,"Croydon","London","Community Learning and Skills","WBL - requires improvement",430254,"2014-11-24","2014-11-28","Published","2015-01-13",1,"Health, Public Services and Care",300,"Health and Social Care",2]
["Report","London Learning Consortium Community Interest Company",58611,"Croydon","London","Community Learning and Skills","WBL - requires improvement",430254,"2014-11-24","2014-11-28","Published","2015-01-13",5,"Construction, Planning and the Built Environment",200,"Building and Construction",2]
["Report","London Learning Consortium Community Interest Company",58611,"Croydon","London","Community Learning and Skills","WBL - requires improvement",430254,"2014-11-24","2014-11-28","Published","2015-01-13",15,"Business, Administration and Law",200,"Administration",2]
["Report","London Learning Consortium Community Interest Company",58611,"Croydon","London","Community Learning and Skills","WBL - requires improvement",430254,"2014-11-24","2014-11-28","Published","2015-01-13",14,"Preparation for Life and Work",114,"Foundation English and Mathematics",2]
["Report","S.Y.T.G. Limited",54504,"Sheffield","North East, Yorkshire & Humber","Independent Learning Provider","WBL - requires improvement",430256,"2014-11-11","2014-11-14","Published","2014-12-17",14,"Preparation for Life and Work",204,"Employability Training",2]
["Report","Venture Learning Limited",55208,"Wigan","North West","Independent Learning Provider","WBL - full (regional)",429009,"2014-12-01","2014-12-04","Published","2015-01-21",7,"Retail and Commercial Enterprise",302,"Hairdressing",4]
["Report","HYA Training Limited",52418,"Kingston upon Hull City of","North East, Yorkshire & Humber","Independent Learning Provider","WBL - requires improvement",444472,"2015-05-19","2015-05-22","Published","2015-06-29",14,"Preparation for Life and Work",204,"Employability Training",2]
["Report","New College Swindon",130851,"Swindon","South West","General Further Education/Tertiary College","FE College - full inspection",446541,"2014-12-01","2014-12-05","Published","2015-01-14",9,"Arts, Media and Publishing",100,"Performing Arts",2]
["Report","New College Swindon",130851,"Swindon","South West","General Further Education/Tertiary College","FE College - full inspection",446541,"2014-12-01","2014-12-05","Published","2015-01-14",12,"Languages, Literature and Culture",100,"English",3]
["Report","New College Swindon",130851,"Swindon","South West","General Further Education/Tertiary College","FE College - full inspection",446541,"2014-12-01","2014-12-05","Published","2015-01-14",14,"Preparation for Life and Work",112,"Foundation English",2]
["Report","New College Swindon",130851,"Swindon","South West","General Further Education/Tertiary College","FE College - full inspection",446541,"2014-12-01","2014-12-05","Published","2015-01-14",15,"Business, Administration and Law",300,"Business Management",3]
["Report","New College Swindon",130851,"Swindon","South West","General Further Education/Tertiary College","FE College - full inspection",446541,"2014-12-01","2014-12-05","Published","2015-01-14",6,"Information and Communication Technology",200,"ICT for Users",2]
["Report","New College Swindon",130851,"Swindon","South West","General Further Education/Tertiary College","FE College - full inspection",446541,"2014-12-01","2014-12-05","Published","2015-01-14",9,"Arts, Media and Publishing",300,"Media and Communication",2]
["Report","New College Swindon",130851,"Swindon","South West","General Further Education/Tertiary College","FE College - full inspection",446541,"2014-12-01","2014-12-05","Published","2015-01-14",12,"Languages, Literature and Culture",202,"Modern foreign languages",3]
["Report","New College Swindon",130851,"Swindon","South West","General Further Education/Tertiary College","FE College - full inspection",446541,"2014-12-01","2014-12-05","Published","2015-01-14",15,"Business, Administration and Law",100,"Accounting and Finance",2]
["Report","New College Swindon",130851,"Swindon","South West","General Further Education/Tertiary College","FE College - full inspection",446541,"2014-12-01","2014-12-05","Published","2015-01-14",1,"Health, Public Services and Care",300,"Health and Social Care",1]
["Report","John Laing Training Ltd",52638,"Hertfordshire","East of England","Independent Learning Provider","Work Based Learning - full (national)",452605,"2015-02-17","2015-02-20","Published","2015-03-25",15,"Business, Administration and Law",400,"Marketing and Sales",2]
["Report","John Laing Training Ltd",52638,"Hertfordshire","East of England","Independent Learning Provider","Work Based Learning - full (national)",452605,"2015-02-17","2015-02-20","Published","2015-03-25",15,"Business, Administration and Law",200,"Administration",2]
["Report","Aspiration Training Limited",57680,"Worcestershire","West Midlands","Independent Learning Provider","WBL - requires improvement",429796,"2015-01-19","2015-01-23","Published","2015-03-03",1,"Health, Public Services and Care",300,"Health and Social Care",3]
["Report","The Training & Recruitment Partnership Limited",55053,"Merton","London","Independent Learning Provider","Work Based Learning - full (national)",452983,"2015-02-23","2015-02-27","Published","2015-04-01",1,"Health, Public Services and Care",500,"Early Years and Playwork",3]
[{"$f":"IF(C649 <> \"\", HYPERLINK(CONCATENATE(\"http://reports.ofsted.gov.uk/inspection-reports/find-inspection-report/provider/ELS/\",C649),\"Report\"),\"\")","v":"Report"},"The Training & Recruitment Partnership Limited",55053,"Merton","London","Independent Learning Provider","Work Based Learning - full (national)",452983,"2015-02-23","2015-02-27","Published","2015-04-01",15,"Business, Administration and Law",600,"Business",3]
["Report","The Training & Recruitment Partnership Limited",55053,"Merton","London","Independent Learning Provider","Work Based Learning - full (national)",452983,"2015-02-23","2015-02-27","Published","2015-04-01",1,"Health, Public Services and Care",300,"Health and Social Care",3]
["Report","The Training & Recruitment Partnership Limited",55053,"Merton","London","Independent Learning Provider","Work Based Learning - full (national)",452983,"2015-02-23","2015-02-27","Published","2015-04-01",5,"Construction, Planning and the Built Environment",200,"Building and Construction",3]
["Report","Redbridge Institute of Adult Education",53141,"Redbridge","London","Community Learning and Skills","Adult and Community - full (regional)",452608,"2015-03-23","2015-03-27","Published","2015-05-08",6,"Information and Communication Technology",200,"ICT for Users",2]
["Report","Redbridge Institute of Adult Education",53141,"Redbridge","London","Community Learning and Skills","Adult and Community - full (regional)",452608,"2015-03-23","2015-03-27","Published","2015-05-08",14,"Preparation for Life and Work",103,"ESOL",2]
["Report","Redbridge Institute of Adult Education",53141,"Redbridge","London","Community Learning and Skills","Adult and Community - full (regional)",452608,"2015-03-23","2015-03-27","Published","2015-05-08",9,"Arts, Media and Publishing",200,"Visual Arts",2]
["Report","Solihull College",130481,"Solihull","West Midlands","General Further Education/Tertiary College","FE College - full inspection",452547,"2015-03-09","2015-03-13","Published","2015-04-21",6,"Information and Communication Technology",100,"ICT for practitioners",2]
["Report","Solihull College",130481,"Solihull","West Midlands","General Further Education/Tertiary College","FE College - full inspection",452547,"2015-03-09","2015-03-13","Published","2015-04-21",9,"Arts, Media and Publishing",200,"Visual Arts",3]
["Report","Solihull College",130481,"Solihull","West Midlands","General Further Education/Tertiary College","FE College - full inspection",452547,"2015-03-09","2015-03-13","Published","2015-04-21",14,"Preparation for Life and Work",112,"Foundation English",3]
["Report","BROADLAND DISTRICT COUNCIL",50098,"Norfolk","East of England","Community Learning and Skills","WBL - full (regional)",452973,"2015-03-09","2015-03-13","Published","2015-04-21",14,"Preparation for Life and Work",204,"Employability Training",3]
["Report","BROADLAND DISTRICT COUNCIL",50098,"Norfolk","East of England","Community Learning and Skills","WBL - full (regional)",452973,"2015-03-09","2015-03-13","Published","2015-04-21",15,"Business, Administration and Law",200,"Administration",2]
["Report","Gateshead College",130551,"Gateshead","North East, Yorkshire & Humber","General Further Education/Tertiary College","FE College - requires improvement",446027,"2015-06-08","2015-06-12","Published","2015-07-17",4,"Engineering and Manufacturing Technologies",100,"Engineering",1]
["Report","Gateshead College",130551,"Gateshead","North East, Yorkshire & Humber","General Further Education/Tertiary College","FE College - requires improvement",446027,"2015-06-08","2015-06-12","Published","2015-07-17",6,"Information and Communication Technology",100,"ICT for practitioners",2]
["Report","Gateshead College",130551,"Gateshead","North East, Yorkshire & Humber","General Further Education/Tertiary College","FE College - requires improvement",446027,"2015-06-08","2015-06-12","Published","2015-07-17",1,"Health, Public Services and Care",300,"Health and Social Care",1]
["Report","Gateshead College",130551,"Gateshead","North East, Yorkshire & Humber","General Further Education/Tertiary College","FE College - requires improvement",446027,"2015-06-08","2015-06-12","Published","2015-07-17",1,"Health, Public Services and Care",500,"Early Years and Playwork",1]
["Report","Gateshead College",130551,"Gateshead","North East, Yorkshire & Humber","General Further Education/Tertiary College","FE College - requires improvement",446027,"2015-06-08","2015-06-12","Published","2015-07-17",4,"Engineering and Manufacturing Technologies",200,"Manufacturing Technologies",1]
["Report","Gateshead College",130551,"Gateshead","North East, Yorkshire & Humber","General Further Education/Tertiary College","FE College - requires improvement",446027,"2015-06-08","2015-06-12","Published","2015-07-17",8,"Leisure, Travel and Tourism",0,"Leisure, Travel and Tourism",1]
["Report","Gateshead College",130551,"Gateshead","North East, Yorkshire & Humber","General Further Education/Tertiary College","FE College - requires improvement",446027,"2015-06-08","2015-06-12","Published","2015-07-17",8,"Leisure, Travel and Tourism",100,"Sport, Leisure and Recreation",1]
["Report","Gateshead College",130551,"Gateshead","North East, Yorkshire & Humber","General Further Education/Tertiary College","FE College - requires improvement",446027,"2015-06-08","2015-06-12","Published","2015-07-17",14,"Preparation for Life and Work",113,"Foundation mathematics",2]
["Report","Gateshead College",130551,"Gateshead","North East, Yorkshire & Humber","General Further Education/Tertiary College","FE College - requires improvement",446027,"2015-06-08","2015-06-12","Published","2015-07-17",6,"Information and Communication Technology",200,"ICT for Users",2]
["Report","Gateshead College",130551,"Gateshead","North East, Yorkshire & Humber","General Further Education/Tertiary College","FE College - requires improvement",446027,"2015-06-08","2015-06-12","Published","2015-07-17",7,"Retail and Commercial Enterprise",200,"Warehousing and Distribution",1]
["Report","Gateshead College",130551,"Gateshead","North East, Yorkshire & Humber","General Further Education/Tertiary College","FE College - requires improvement",446027,"2015-06-08","2015-06-12","Published","2015-07-17",5,"Construction, Planning and the Built Environment",200,"Building and Construction",2]
["Report","Gateshead College",130551,"Gateshead","North East, Yorkshire & Humber","General Further Education/Tertiary College","FE College - requires improvement",446027,"2015-06-08","2015-06-12","Published","2015-07-17",15,"Business, Administration and Law",300,"Business Management",2]
["Report","Lambeth College",130413,"Lambeth","London","General Further Education/Tertiary College","FE College - requires improvement",429287,"2014-12-08","2014-12-12","Published","2015-01-23",14,"Preparation for Life and Work",113,"Foundation mathematics",2]
["Report","Lambeth College",130413,"Lambeth","London","General Further Education/Tertiary College","FE College - requires improvement",429287,"2014-12-08","2014-12-12","Published","2015-01-23",1,"Health, Public Services and Care",300,"Health and Social Care",2]
["Report","Lambeth College",130413,"Lambeth","London","General Further Education/Tertiary College","FE College - requires improvement",429287,"2014-12-08","2014-12-12","Published","2015-01-23",14,"Preparation for Life and Work",108,"Independent living and leisure skills",2]
["Report","Lambeth College",130413,"Lambeth","London","General Further Education/Tertiary College","FE College - requires improvement",429287,"2014-12-08","2014-12-12","Published","2015-01-23",4,"Engineering and Manufacturing Technologies",100,"Engineering",3]
["Report","Lambeth College",130413,"Lambeth","London","General Further Education/Tertiary College","FE College - requires improvement",429287,"2014-12-08","2014-12-12","Published","2015-01-23",14,"Preparation for Life and Work",103,"ESOL",3]
["Report","Lambeth College",130413,"Lambeth","London","General Further Education/Tertiary College","FE College - requires improvement",429287,"2014-12-08","2014-12-12","Published","2015-01-23",15,"Business, Administration and Law",600,"Business",3]
["Report","Lambeth College",130413,"Lambeth","London","General Further Education/Tertiary College","FE College - requires improvement",429287,"2014-12-08","2014-12-12","Published","2015-01-23",4,"Engineering and Manufacturing Technologies",300,"Motor vehicle",3]
["Report","Lambeth College",130413,"Lambeth","London","General Further Education/Tertiary College","FE College - requires improvement",429287,"2014-12-08","2014-12-12","Published","2015-01-23",5,"Construction, Planning and the Built Environment",200,"Building and Construction",3]
["Report","Manor Training and Resource Centre Limited",53239,"Sheffield","North East, Yorkshire & Humber","Community Learning and Skills","Adult and Community - full (regional)",446664,"2014-10-22","2014-10-24","Published","2014-11-28",14,"Preparation for Life and Work",204,"Employability Training",3]
[{"$f":"IF(C681 <> \"\", HYPERLINK(CONCATENATE(\"http://reports.ofsted.gov.uk/inspection-reports/find-inspection-report/provider/ELS/\",C681),\"Report\"),\"\")","v":"Report"},"System Group Limited",54726,"Cumbria","North West","Independent Learning Provider","Work Based Learning - full (national)",455589,"2015-06-15","2015-06-19","Published","2015-07-22",7,"Retail and Commercial Enterprise",200,"Warehousing and Distribution",3]
["Report","System Group Limited",54726,"Cumbria","North West","Independent Learning Provider","Work Based Learning - full (national)",455589,"2015-06-15","2015-06-19","Published","2015-07-22",4,"Engineering and Manufacturing Technologies",400,"Transportation operations and maintenance",3]
["Report","Chapman Bennett Associates Limited",59181,"Peterborough","East of England","Independent Learning Provider","WBL - full (regional)",461247,"2015-05-18","2015-05-22","Published","2015-06-25",15,"Business, Administration and Law",600,"Business",2]
["Report","Stem Academy",139793,"Islington","London","Free School - 16-19","16-19 academy - full inspection",452500,"2015-01-27","2015-01-30","Published","2015-03-26",2,"Science and Mathematics",0,"Science and Mathematics",4]
["Report","Stem Academy",139793,"Islington","London","Free School - 16-19","16-19 academy - full inspection",452500,"2015-01-27","2015-01-30","Published","2015-03-26",2,"Science and Mathematics",100,"Science",4]
["Report","Stem Academy",139793,"Islington","London","Free School - 16-19","16-19 academy - full inspection",452500,"2015-01-27","2015-01-30","Published","2015-03-26",6,"Information and Communication Technology",100,"ICT for practitioners",4]
["Report","Thomas Cook Group UK Limited",58184,"Peterborough","East of England","Employer","Work Based Learning - full (national)",452987,"2015-03-23","2015-03-27","Published","2015-04-30",8,"Leisure, Travel and Tourism",200,"Travel and Tourism",1]
["Report","Meadowhall Training Limited",59216,"Sheffield","North East, Yorkshire & Humber","Independent Learning Provider","WBL - full (regional)",463248,"2015-06-29","2015-07-03","Published","2015-08-08",7,"Retail and Commercial Enterprise",100,"Retailing and Wholesaling",2]
["Report","Meadowhall Training Limited",59216,"Sheffield","North East, Yorkshire & Humber","Independent Learning Provider","WBL - full (regional)",463248,"2015-06-29","2015-07-03","Published","2015-08-08",15,"Business, Administration and Law",300,"Business Management",3]
["Report","Meadowhall Training Limited",59216,"Sheffield","North East, Yorkshire & Humber","Independent Learning Provider","WBL - full (regional)",463248,"2015-06-29","2015-07-03","Published","2015-08-08",15,"Business, Administration and Law",200,"Administration",3]
["Report","In Touch Care Limited",50138,"Sheffield","North East, Yorkshire & Humber","Independent Learning Provider","Work Based Learning - full (national)",446599,"2014-11-10","2014-11-14","Published","2014-12-19",1,"Health, Public Services and Care",300,"Health and Social Care",3]
[{"$f":"IF(C692 <> \"\", HYPERLINK(CONCATENATE(\"http://reports.ofsted.gov.uk/inspection-reports/find-inspection-report/provider/ELS/\",C692),\"Report\"),\"\")","v":"Report"},"In Touch Care Limited",50138,"Sheffield","North East, Yorkshire & Humber","Independent Learning Provider","Work Based Learning - full (national)",446599,"2014-11-10","2014-11-14","Published","2014-12-19",1,"Health, Public Services and Care",200,"Nursing and Dental Health",3]
["Report","In Touch Care Limited",50138,"Sheffield","North East, Yorkshire & Humber","Independent Learning Provider","Work Based Learning - full (national)",446599,"2014-11-10","2014-11-14","Published","2014-12-19",13,"Education and Training",100,"Teaching and Lecturing",3]
["Report","YMCA Training",57598,"Stockport","North West","Community Learning and Skills","Work Based Learning - full (national)",452735,"2015-03-23","2015-03-27","Published","2015-04-29",1,"Health, Public Services and Care",500,"Early Years and Playwork",2]
["Report","YMCA Training",57598,"Stockport","North West","Community Learning and Skills","Work Based Learning - full (national)",452735,"2015-03-23","2015-03-27","Published","2015-04-29",15,"Business, Administration and Law",200,"Administration",3]
["Report","YMCA Training",57598,"Stockport","North West","Community Learning and Skills","Work Based Learning - full (national)",452735,"2015-03-23","2015-03-27","Published","2015-04-29",14,"Preparation for Life and Work",204,"Employability Training",3]
["Report","METSKILL Limited",53330,"Sheffield","North East, Yorkshire & Humber","Community Learning and Skills","Work Based Learning - full (national)",452609,"2015-02-09","2015-02-13","Published","2015-03-24",4,"Engineering and Manufacturing Technologies",100,"Engineering",3]
["Report","Strategic Training Solutions (Mansfield) Limited",54643,"Nottinghamshire","East Midlands","Independent Learning Provider","WBL - requires improvement",430260,"2014-12-02","2014-12-04","Published","2015-01-13",14,"Preparation for Life and Work",204,"Employability Training",3]
["Report","The Communiversity",58913,"Liverpool","North West","Community Learning and Skills","Adult and Community - full (regional)",455664,"2015-03-10","2015-03-12","Published","2015-04-16",1,"Health, Public Services and Care",500,"Early Years and Playwork",3]
["Report","Staffline Recruitment Limited",59075,"Nottingham","East Midlands","Independent Learning Provider","WBL - requires improvement",433768,"2015-01-20","2015-01-23","Published","2015-03-02",4,"Engineering and Manufacturing Technologies",200,"Manufacturing Technologies",2]
["Report","The Vocational College Limited",54947,"Liverpool","North West","Independent Learning Provider","Work Based Learning - full (national)",452204,"2015-06-08","2015-06-12","Published","2015-07-15",4,"Engineering and Manufacturing Technologies",200,"Manufacturing Technologies",2]
["Report","The Vocational College Limited",54947,"Liverpool","North West","Independent Learning Provider","Work Based Learning - full (national)",452204,"2015-06-08","2015-06-12","Published","2015-07-15",5,"Construction, Planning and the Built Environment",202,"Construction Crafts",2]
["Report","The Vocational College Limited",54947,"Liverpool","North West","Independent Learning Provider","Work Based Learning - full (national)",452204,"2015-06-08","2015-06-12","Published","2015-07-15",14,"Preparation for Life and Work",204,"Employability Training",3]
["Report","The Vocational College Limited",54947,"Liverpool","North West","Independent Learning Provider","Work Based Learning - full (national)",452204,"2015-06-08","2015-06-12","Published","2015-07-15",8,"Leisure, Travel and Tourism",100,"Sport, Leisure and Recreation",2]
[{"$f":"IF(C705 <> \"\", HYPERLINK(CONCATENATE(\"http://reports.ofsted.gov.uk/inspection-reports/find-inspection-report/provider/ELS/\",C705),\"Report\"),\"\")","v":"Report"},"B L Training Limited",50584,"Newcastle Upon Tyne","North East, Yorkshire & Humber","Independent Learning Provider","WBL - full (regional)",455578,"2015-06-15","2015-06-19","Published","2015-07-21",7,"Retail and Commercial Enterprise",302,"Hairdressing",2]
["Report","Stafford College",130813,"Staffordshire","West Midlands","General Further Education/Tertiary College","FE College - requires improvement",430279,"2014-10-06","2014-10-10","Published","2014-11-18",1,"Health, Public Services and Care",300,"Health and Social Care",2]
["Report","Stafford College",130813,"Staffordshire","West Midlands","General Further Education/Tertiary College","FE College - requires improvement",430279,"2014-10-06","2014-10-10","Published","2014-11-18",6,"Information and Communication Technology",200,"ICT for Users",2]
["Report","Stafford College",130813,"Staffordshire","West Midlands","General Further Education/Tertiary College","FE College - requires improvement",430279,"2014-10-06","2014-10-10","Published","2014-11-18",14,"Preparation for Life and Work",113,"Foundation mathematics",3]
["Report","Stafford College",130813,"Staffordshire","West Midlands","General Further Education/Tertiary College","FE College - requires improvement",430279,"2014-10-06","2014-10-10","Published","2014-11-18",9,"Arts, Media and Publishing",100,"Performing Arts",1]
["Report","Stafford College",130813,"Staffordshire","West Midlands","General Further Education/Tertiary College","FE College - requires improvement",430279,"2014-10-06","2014-10-10","Published","2014-11-18",6,"Information and Communication Technology",100,"ICT for practitioners",2]
["Report","Stafford College",130813,"Staffordshire","West Midlands","General Further Education/Tertiary College","FE College - requires improvement",430279,"2014-10-06","2014-10-10","Published","2014-11-18",7,"Retail and Commercial Enterprise",200,"Warehousing and Distribution",2]
["Report","Stafford College",130813,"Staffordshire","West Midlands","General Further Education/Tertiary College","FE College - requires improvement",430279,"2014-10-06","2014-10-10","Published","2014-11-18",15,"Business, Administration and Law",100,"Accounting and Finance",3]
["Report","Stafford College",130813,"Staffordshire","West Midlands","General Further Education/Tertiary College","FE College - requires improvement",430279,"2014-10-06","2014-10-10","Published","2014-11-18",15,"Business, Administration and Law",300,"Business Management",3]
["Report","E.ON UK Plc",58731,"Nottinghamshire","East Midlands","Employer","WBL - full (regional)",452990,"2015-01-20","2015-01-23","Published","2015-03-12",4,"Engineering and Manufacturing Technologies",100,"Engineering",3]
["Report","Retail Motor Industry Training Limited",58614,"Nottingham","East Midlands","Independent Learning Provider","WBL - requires improvement",429794,"2014-11-17","2014-11-21","Published","2014-12-23",15,"Business, Administration and Law",401,"Customer service",2]
["Report","Retail Motor Industry Training Limited",58614,"Nottingham","East Midlands","Independent Learning Provider","WBL - requires improvement",429794,"2014-11-17","2014-11-21","Published","2014-12-23",1,"Health, Public Services and Care",300,"Health and Social Care",2]
["Report","Retail Motor Industry Training Limited",58614,"Nottingham","East Midlands","Independent Learning Provider","WBL - requires improvement",429794,"2014-11-17","2014-11-21","Published","2014-12-23",4,"Engineering and Manufacturing Technologies",300,"Motor vehicle",2]
["Report","Retail Motor Industry Training Limited",58614,"Nottingham","East Midlands","Independent Learning Provider","WBL - requires improvement",429794,"2014-11-17","2014-11-21","Published","2014-12-23",15,"Business, Administration and Law",300,"Business Management",2]
["Report","Haringey London Borough Council",53124,"Haringey","London","Community Learning and Skills","ACL - requires improvement",430294,"2014-11-10","2014-11-14","Published","2014-12-19",14,"Preparation for Life and Work",103,"ESOL",2]
["Report","Haringey London Borough Council",53124,"Haringey","London","Community Learning and Skills","ACL - requires improvement",430294,"2014-11-10","2014-11-14","Published","2014-12-19",6,"Information and Communication Technology",200,"ICT for Users",3]
["Report","Haringey London Borough Council",53124,"Haringey","London","Community Learning and Skills","ACL - requires improvement",430294,"2014-11-10","2014-11-14","Published","2014-12-19",14,"Preparation for Life and Work",114,"Foundation English and Mathematics",3]
["Report","Training Strategies Ltd.",59129,"Liverpool","North West","Independent Learning Provider","WBL - requires improvement",433767,"2015-03-10","2015-03-13","Published","2015-04-17",1,"Health, Public Services and Care",400,"Public Services",2]
["Report","Training Strategies Ltd.",59129,"Liverpool","North West","Independent Learning Provider","WBL - requires improvement",433767,"2015-03-10","2015-03-13","Published","2015-04-17",15,"Business, Administration and Law",300,"Business Management",3]
["Report","Training Strategies Ltd.",59129,"Liverpool","North West","Independent Learning Provider","WBL - requires improvement",433767,"2015-03-10","2015-03-13","Published","2015-04-17",1,"Health, Public Services and Care",300,"Health and Social Care",2]
["Report","Training Strategies Ltd.",59129,"Liverpool","North West","Independent Learning Provider","WBL - requires improvement",433767,"2015-03-10","2015-03-13","Published","2015-04-17",1,"Health, Public Services and Care",500,"Early Years and Playwork",2]
["Report","Nottingham City Council",53664,"Nottingham","East Midlands","Community Learning and Skills","Adult and Community - full (regional)",423419,"2015-02-04","2015-02-06","Published","2015-03-13",17,"Family Learning",0,"Family Learning",2]
["Report","Bilborough College",130787,"Nottingham","East Midlands","Sixth Form College","SFC - full inspection",452491,"2015-01-20","2015-01-23","Published","2015-03-06",2,"Science and Mathematics",100,"Science",2]
["Report","Bilborough College",130787,"Nottingham","East Midlands","Sixth Form College","SFC - full inspection",452491,"2015-01-20","2015-01-23","Published","2015-03-06",2,"Science and Mathematics",200,"Mathematics and Statistics",4]
["Report","Bilborough College",130787,"Nottingham","East Midlands","Sixth Form College","SFC - full inspection",452491,"2015-01-20","2015-01-23","Published","2015-03-06",11,"Social Sciences",0,"Social Sciences",3]
["Report","Bilborough College",130787,"Nottingham","East Midlands","Sixth Form College","SFC - full inspection",452491,"2015-01-20","2015-01-23","Published","2015-03-06",12,"Languages, Literature and Culture",100,"English",3]
["Report","Webs Training Limited",55294,"Nottinghamshire","East Midlands","Independent Learning Provider","WBL - full (regional)",452618,"2015-03-03","2015-03-06","Published","2015-04-09",4,"Engineering and Manufacturing Technologies",200,"Manufacturing Technologies",2]
["Report","Veolia Environement Development Centre Limited",58179,"Islington","London","Employer","WBL - requires improvement",440392,"2015-04-20","2015-04-24","Published","2015-06-02",15,"Business, Administration and Law",200,"Administration",3]
["Report","Veolia Environement Development Centre Limited",58179,"Islington","London","Employer","WBL - requires improvement",440392,"2015-04-20","2015-04-24","Published","2015-06-02",7,"Retail and Commercial Enterprise",200,"Warehousing and Distribution",3]
["Report","Open Door Adult Learning Centre",53746,"Sheffield","North East, Yorkshire & Humber","Community Learning and Skills","Adult and Community - full (regional)",452615,"2015-03-24","2015-03-27","Published","2015-05-01",6,"Information and Communication Technology",200,"ICT for Users",2]
["Report","Open Door Adult Learning Centre",53746,"Sheffield","North East, Yorkshire & Humber","Community Learning and Skills","Adult and Community - full (regional)",452615,"2015-03-24","2015-03-27","Published","2015-05-01",14,"Preparation for Life and Work",114,"Foundation English and Mathematics",2]
["Report","Nottinghamshire County Council",53674,"Nottinghamshire","East Midlands","Community Learning and Skills","Adult and Community - full (regional)",455583,"2015-05-11","2015-05-15","Published","2015-06-16",14,"Preparation for Life and Work",111,"Community Learning",2]
["Report","Nottinghamshire County Council",53674,"Nottinghamshire","East Midlands","Community Learning and Skills","Adult and Community - full (regional)",455583,"2015-05-11","2015-05-15","Published","2015-06-16",17,"Family Learning",0,"Family Learning",1]
["Report","Nottinghamshire County Council",53674,"Nottinghamshire","East Midlands","Community Learning and Skills","Adult and Community - full (regional)",455583,"2015-05-11","2015-05-15","Published","2015-06-16",14,"Preparation for Life and Work",204,"Employability Training",2]
["Report","ProCo NW Limited",53981,"Wigan","North West","Independent Learning Provider","WBL - requires improvement",440404,"2015-04-27","2015-05-01","Published","2015-06-03",3,"Agriculture, Horticulture and Animal Care",300,"Animal Care and Veterinary Science",2]
["Report","ProCo NW Limited",53981,"Wigan","North West","Independent Learning Provider","WBL - requires improvement",440404,"2015-04-27","2015-05-01","Published","2015-06-03",14,"Preparation for Life and Work",114,"Foundation English and Mathematics",3]
["Report","ProCo NW Limited",53981,"Wigan","North West","Independent Learning Provider","WBL - requires improvement",440404,"2015-04-27","2015-05-01","Published","2015-06-03",4,"Engineering and Manufacturing Technologies",300,"Motor vehicle",3]
["Report","ProCo NW Limited",53981,"Wigan","North West","Independent Learning Provider","WBL - requires improvement",440404,"2015-04-27","2015-05-01","Published","2015-06-03",15,"Business, Administration and Law",200,"Administration",3]
["Report","FIRST4SKILLS Limited",59142,"Liverpool","North West","Independent Learning Provider","Work Based Learning - full (national)",455600,"2015-05-18","2015-05-22","Published","2015-06-25",1,"Health, Public Services and Care",300,"Health and Social Care",3]
["Report","FIRST4SKILLS Limited",59142,"Liverpool","North West","Independent Learning Provider","Work Based Learning - full (national)",455600,"2015-05-18","2015-05-22","Published","2015-06-25",7,"Retail and Commercial Enterprise",100,"Retailing and Wholesaling",3]
["Report","FIRST4SKILLS Limited",59142,"Liverpool","North West","Independent Learning Provider","Work Based Learning - full (national)",455600,"2015-05-18","2015-05-22","Published","2015-06-25",15,"Business, Administration and Law",200,"Administration",2]
["Report","FIRST4SKILLS Limited",59142,"Liverpool","North West","Independent Learning Provider","Work Based Learning - full (national)",455600,"2015-05-18","2015-05-22","Published","2015-06-25",1,"Health, Public Services and Care",500,"Early Years and Playwork",3]
["Report","Herbert of Liverpool (Training) Ltd",50132,"Liverpool","North West","Independent Learning Provider","WBL - requires improvement",455920,"2015-02-24","2015-02-27","Published","2015-04-08",7,"Retail and Commercial Enterprise",302,"Hairdressing",4]
["Report","Community Training Services Limited",51259,"Sheffield","North East, Yorkshire & Humber","Independent Learning Provider","WBL - full (regional)",452979,"2015-01-12","2015-01-16","Published","2015-02-24",14,"Preparation for Life and Work",112,"Foundation English",2]
["Report","Community Training Services Limited",51259,"Sheffield","North East, Yorkshire & Humber","Independent Learning Provider","WBL - full (regional)",452979,"2015-01-12","2015-01-16","Published","2015-02-24",15,"Business, Administration and Law",200,"Administration",2]
["Report","Community Training Services Limited",51259,"Sheffield","North East, Yorkshire & Humber","Independent Learning Provider","WBL - full (regional)",452979,"2015-01-12","2015-01-16","Published","2015-02-24",1,"Health, Public Services and Care",300,"Health and Social Care",2]
["Report","Community Training Services Limited",51259,"Sheffield","North East, Yorkshire & Humber","Independent Learning Provider","WBL - full (regional)",452979,"2015-01-12","2015-01-16","Published","2015-02-24",15,"Business, Administration and Law",300,"Business Management",2]
["Report","Unique Training North East Limited",56817,"Durham","North East, Yorkshire & Humber","Independent Learning Provider","WBL - requires improvement",429793,"2014-09-09","2014-09-12","Published","2014-10-23",15,"Business, Administration and Law",300,"Business Management",3]
["Report","Unique Training North East Limited",56817,"Durham","North East, Yorkshire & Humber","Independent Learning Provider","WBL - requires improvement",429793,"2014-09-09","2014-09-12","Published","2014-10-23",15,"Business, Administration and Law",200,"Administration",3]
["Report","Baltic Training Services Limited",58229,"Durham","North East, Yorkshire & Humber","Independent Learning Provider","Work Based Learning - full (national)",452988,"2015-01-19","2015-01-23","Published","2015-03-02",6,"Information and Communication Technology",100,"ICT for practitioners",2]
["Report","Baltic Training Services Limited",58229,"Durham","North East, Yorkshire & Humber","Independent Learning Provider","Work Based Learning - full (national)",452988,"2015-01-19","2015-01-23","Published","2015-03-02",14,"Preparation for Life and Work",204,"Employability Training",2]
["Report","Brinsworth Training Limited",58933,"Rotherham","North East, Yorkshire & Humber","Independent Learning Provider","WBL - full (regional)",454945,"2014-11-25","2014-11-28","Published","2014-12-24",4,"Engineering and Manufacturing Technologies",100,"Engineering",3]
["Report","Brinsworth Training Limited",58933,"Rotherham","North East, Yorkshire & Humber","Independent Learning Provider","WBL - full (regional)",454945,"2014-11-25","2014-11-28","Published","2014-12-24",4,"Engineering and Manufacturing Technologies",200,"Manufacturing Technologies",3]
["Report","MI ComputSolutions Incorporated",58370,"Lambeth","London","Independent Learning Provider","WBL - full (regional)",451598,"2014-10-27","2014-10-31","Published","2014-12-05",1,"Health, Public Services and Care",300,"Health and Social Care",2]
["Report","MI ComputSolutions Incorporated",58370,"Lambeth","London","Independent Learning Provider","WBL - full (regional)",451598,"2014-10-27","2014-10-31","Published","2014-12-05",14,"Preparation for Life and Work",114,"Foundation English and Mathematics",2]
["Report","Enfield London Borough Council",53116,"Enfield","London","Community Learning and Skills","Adult and community - full (national)",452607,"2015-03-24","2015-03-27","Published","2015-05-08",14,"Preparation for Life and Work",111,"Community Learning",2]
["Report","Tameside College",130516,"Tameside","North West","General Further Education/Tertiary College","FE College - full inspection",452546,"2015-03-02","2015-03-06","Published","2015-04-10",12,"Languages, Literature and Culture",100,"English",4]
["Report","Tameside College",130516,"Tameside","North West","General Further Education/Tertiary College","FE College - full inspection",452546,"2015-03-02","2015-03-06","Published","2015-04-10",15,"Business, Administration and Law",100,"Accounting and Finance",4]
["Report","Tameside College",130516,"Tameside","North West","General Further Education/Tertiary College","FE College - full inspection",452546,"2015-03-02","2015-03-06","Published","2015-04-10",14,"Preparation for Life and Work",108,"Independent living and leisure skills",2]
["Report","Tameside College",130516,"Tameside","North West","General Further Education/Tertiary College","FE College - full inspection",452546,"2015-03-02","2015-03-06","Published","2015-04-10",15,"Business, Administration and Law",200,"Administration",2]
["Report","Tameside College",130516,"Tameside","North West","General Further Education/Tertiary College","FE College - full inspection",452546,"2015-03-02","2015-03-06","Published","2015-04-10",2,"Science and Mathematics",200,"Mathematics and Statistics",3]
["Report","Tameside College",130516,"Tameside","North West","General Further Education/Tertiary College","FE College - full inspection",452546,"2015-03-02","2015-03-06","Published","2015-04-10",4,"Engineering and Manufacturing Technologies",300,"Motor vehicle",1]
["Report","Tameside College",130516,"Tameside","North West","General Further Education/Tertiary College","FE College - full inspection",452546,"2015-03-02","2015-03-06","Published","2015-04-10",2,"Science and Mathematics",100,"Science",3]
["Report","Tameside College",130516,"Tameside","North West","General Further Education/Tertiary College","FE College - full inspection",452546,"2015-03-02","2015-03-06","Published","2015-04-10",4,"Engineering and Manufacturing Technologies",100,"Engineering",1]
[{"$f":"IF(C769 <> \"\", HYPERLINK(CONCATENATE(\"http://reports.ofsted.gov.uk/inspection-reports/find-inspection-report/provider/ELS/\",C769),\"Report\"),\"\")","v":"Report"},"Tameside College",130516,"Tameside","North West","General Further Education/Tertiary College","FE College - full inspection",452546,"2015-03-02","2015-03-06","Published","2015-04-10",7,"Retail and Commercial Enterprise",400,"Hospitality and Catering",2]
["Report","The Shropshire Council",54373,"Shropshire","West Midlands","Community Learning and Skills","ACL - requires improvement",440287,"2015-01-19","2015-01-23","Published","2015-03-03",14,"Preparation for Life and Work",204,"Employability Training",2]
["Report","The Shropshire Council",54373,"Shropshire","West Midlands","Community Learning and Skills","ACL - requires improvement",440287,"2015-01-19","2015-01-23","Published","2015-03-03",15,"Business, Administration and Law",200,"Administration",2]
["Report","The Shropshire Council",54373,"Shropshire","West Midlands","Community Learning and Skills","ACL - requires improvement",440287,"2015-01-19","2015-01-23","Published","2015-03-03",1,"Health, Public Services and Care",300,"Health and Social Care",1]
["Report","Access Training Limited",50314,"Gateshead","North East, Yorkshire & Humber","Independent Learning Provider","WBL - full (regional)",455577,"2015-06-22","2015-06-26","Published","2015-07-22",15,"Business, Administration and Law",200,"Administration",2]
["Report","SEEVIC College",130681,"Essex","East of England","Sixth Form College","FE College - requires improvement",430276,"2014-09-29","2014-10-03","Published","2014-11-04",2,"Science and Mathematics",200,"Mathematics and Statistics",3]
["Report","SEEVIC College",130681,"Essex","East of England","Sixth Form College","FE College - requires improvement",430276,"2014-09-29","2014-10-03","Published","2014-11-04",8,"Leisure, Travel and Tourism",100,"Sport, Leisure and Recreation",2]
["Report","SEEVIC College",130681,"Essex","East of England","Sixth Form College","FE College - requires improvement",430276,"2014-09-29","2014-10-03","Published","2014-11-04",11,"Social Sciences",201,"Psychology",2]
["Report","SEEVIC College",130681,"Essex","East of England","Sixth Form College","FE College - requires improvement",430276,"2014-09-29","2014-10-03","Published","2014-11-04",14,"Preparation for Life and Work",112,"Foundation English",3]
["Report","SEEVIC College",130681,"Essex","East of England","Sixth Form College","FE College - requires improvement",430276,"2014-09-29","2014-10-03","Published","2014-11-04",2,"Science and Mathematics",100,"Science",3]
["Report","SEEVIC College",130681,"Essex","East of England","Sixth Form College","FE College - requires improvement",430276,"2014-09-29","2014-10-03","Published","2014-11-04",11,"Social Sciences",200,"Sociology and Social Policy",2]
["Report","SEEVIC College",130681,"Essex","East of England","Sixth Form College","FE College - requires improvement",430276,"2014-09-29","2014-10-03","Published","2014-11-04",15,"Business, Administration and Law",600,"Business",2]
["Report","Kwik-Fit (GB) Limited",52896,"Derby","East Midlands","Employer","WBL - requires improvement",434402,"2015-04-20","2015-04-24","Published","2015-05-20",4,"Engineering and Manufacturing Technologies",400,"Transportation operations and maintenance",1]
["Report","Select Service Partner UK Limited",59042,"Camden","London","Employer","Work Based Learning - reinspection",451098,"2015-06-22","2015-06-25","Published","2015-07-30",7,"Retail and Commercial Enterprise",400,"Hospitality and Catering",2]
["Report","Select Service Partner UK Limited",59042,"Camden","London","Employer","Work Based Learning - reinspection",451098,"2015-06-22","2015-06-25","Published","2015-07-30",15,"Business, Administration and Law",300,"Business Management",2]
["Report","Eden Training Solutions Limited",59182,"Barnsley","North East, Yorkshire & Humber","Independent Learning Provider","WBL - full (regional)",455616,"2015-06-02","2015-06-05","Published","2015-07-08",15,"Business, Administration and Law",300,"Business Management",2]
["Report","Eden Training Solutions Limited",59182,"Barnsley","North East, Yorkshire & Humber","Independent Learning Provider","WBL - full (regional)",455616,"2015-06-02","2015-06-05","Published","2015-07-08",8,"Leisure, Travel and Tourism",100,"Sport, Leisure and Recreation",2]
["Report","Eden Training Solutions Limited",59182,"Barnsley","North East, Yorkshire & Humber","Independent Learning Provider","WBL - full (regional)",455616,"2015-06-02","2015-06-05","Published","2015-07-08",15,"Business, Administration and Law",200,"Administration",2]
["Report","Eden Training Solutions Limited",59182,"Barnsley","North East, Yorkshire & Humber","Independent Learning Provider","WBL - full (regional)",455616,"2015-06-02","2015-06-05","Published","2015-07-08",15,"Business, Administration and Law",401,"Customer service",2]
["Report","Eden Training Solutions Limited",59182,"Barnsley","North East, Yorkshire & Humber","Independent Learning Provider","WBL - full (regional)",455616,"2015-06-02","2015-06-05","Published","2015-07-08",1,"Health, Public Services and Care",300,"Health and Social Care",2]
["Report","Eden Training Solutions Limited",59182,"Barnsley","North East, Yorkshire & Humber","Independent Learning Provider","WBL - full (regional)",455616,"2015-06-02","2015-06-05","Published","2015-07-08",1,"Health, Public Services and Care",500,"Early Years and Playwork",2]
["Report","Worthing College",130845,"West Sussex","South East","General Further Education/Tertiary College","FE College - requires improvement",430283,"2014-10-07","2014-10-10","Published","2014-11-14",8,"Leisure, Travel and Tourism",102,"Public Services",1]
["Report","Worthing College",130845,"West Sussex","South East","General Further Education/Tertiary College","FE College - requires improvement",430283,"2014-10-07","2014-10-10","Published","2014-11-14",9,"Arts, Media and Publishing",100,"Performing Arts",2]
["Report","Worthing College",130845,"West Sussex","South East","General Further Education/Tertiary College","FE College - requires improvement",430283,"2014-10-07","2014-10-10","Published","2014-11-14",8,"Leisure, Travel and Tourism",101,"Sport",1]
["Report","Worthing College",130845,"West Sussex","South East","General Further Education/Tertiary College","FE College - requires improvement",430283,"2014-10-07","2014-10-10","Published","2014-11-14",9,"Arts, Media and Publishing",200,"Visual Arts",2]
["Report","Worthing College",130845,"West Sussex","South East","General Further Education/Tertiary College","FE College - requires improvement",430283,"2014-10-07","2014-10-10","Published","2014-11-14",11,"Social Sciences",0,"Social Sciences",3]
["Report","Worthing College",130845,"West Sussex","South East","General Further Education/Tertiary College","FE College - requires improvement",430283,"2014-10-07","2014-10-10","Published","2014-11-14",12,"Languages, Literature and Culture",100,"English",3]
["Report","Access Training Limited",50314,"Gateshead","North East, Yorkshire & Humber","Independent Learning Provider","WBL - full (regional)",455577,"2015-06-22","2015-06-26","Published","2015-07-22",1,"Health, Public Services and Care",300,"Health and Social Care",3]
["Report","Access Training Limited",50314,"Gateshead","North East, Yorkshire & Humber","Independent Learning Provider","WBL - full (regional)",455577,"2015-06-22","2015-06-26","Published","2015-07-22",1,"Health, Public Services and Care",500,"Early Years and Playwork",2]
["Report","Access Training Limited",50314,"Gateshead","North East, Yorkshire & Humber","Independent Learning Provider","WBL - full (regional)",455577,"2015-06-22","2015-06-26","Published","2015-07-22",14,"Preparation for Life and Work",204,"Employability Training",2]
["Report","Trafford College",130519,"Trafford","North West","General Further Education/Tertiary College","FE College - full inspection",452485,"2015-01-19","2015-01-23","Published","2015-03-02",15,"Business, Administration and Law",100,"Accounting and Finance",3]
["Report","Trafford College",130519,"Trafford","North West","General Further Education/Tertiary College","FE College - full inspection",452485,"2015-01-19","2015-01-23","Published","2015-03-02",14,"Preparation for Life and Work",108,"Independent living and leisure skills",2]
["Report","Trafford College",130519,"Trafford","North West","General Further Education/Tertiary College","FE College - full inspection",452485,"2015-01-19","2015-01-23","Published","2015-03-02",15,"Business, Administration and Law",200,"Administration",2]
["Report","Trafford College",130519,"Trafford","North West","General Further Education/Tertiary College","FE College - full inspection",452485,"2015-01-19","2015-01-23","Published","2015-03-02",2,"Science and Mathematics",100,"Science",3]
["Report","Trafford College",130519,"Trafford","North West","General Further Education/Tertiary College","FE College - full inspection",452485,"2015-01-19","2015-01-23","Published","2015-03-02",15,"Business, Administration and Law",300,"Business Management",3]
["Report","Safe in Tees Valley Limited",54245,"Stockton-on-Tees","North East, Yorkshire & Humber","Community Learning and Skills","WBL - full (regional)",451617,"2014-10-15","2014-10-17","Published","2014-11-19",14,"Preparation for Life and Work",204,"Employability Training",4]
["Report","All Trades Training Limited",59124,"Norfolk","East of England","Independent Learning Provider","WBL - requires improvement",440400,"2015-04-15","2015-04-17","Published","2015-05-14",1,"Health, Public Services and Care",300,"Health and Social Care",2]
["Report","Morthyng Group Limited",53422,"Rotherham","North East, Yorkshire & Humber","Community Learning and Skills","WBL - full (regional)",452205,"2014-10-13","2014-10-17","Published","2014-11-19",14,"Preparation for Life and Work",204,"Employability Training",2]
["Report","Roots and Shoots",54175,"Lambeth","London","Community Learning and Skills","WBL - full (regional)",434051,"2014-11-24","2014-11-27","Published","2015-01-15",14,"Preparation for Life and Work",204,"Employability Training",2]
["Report","Apprentice Funding Assistant Limited",59147,"Norfolk","East of England","Independent Learning Provider","Work Based Learning - full (national)",455602,"2015-06-15","2015-06-19","Published","2015-07-14",7,"Retail and Commercial Enterprise",301,"Hairdressing and beauty therapy",2]
["Report","BROADLAND DISTRICT COUNCIL",50098,"Norfolk","East of England","Community Learning and Skills","WBL - full (regional)",452973,"2015-03-09","2015-03-13","Published","2015-04-21",7,"Retail and Commercial Enterprise",302,"Hairdressing",3]
["Report","BROADLAND DISTRICT COUNCIL",50098,"Norfolk","East of England","Community Learning and Skills","WBL - full (regional)",452973,"2015-03-09","2015-03-13","Published","2015-04-21",15,"Business, Administration and Law",401,"Customer service",2]
["Report","Redcar & Cleveland Adult Learning Service",54087,"Redcar and Cleveland","North East, Yorkshire & Humber","Community Learning and Skills","Adult and Community - full (regional)",446665,"2014-09-23","2014-09-26","Published","2014-10-29",6,"Information and Communication Technology",200,"ICT for Users",2]
["Report","Redcar & Cleveland Adult Learning Service",54087,"Redcar and Cleveland","North East, Yorkshire & Humber","Community Learning and Skills","Adult and Community - full (regional)",446665,"2014-09-23","2014-09-26","Published","2014-10-29",14,"Preparation for Life and Work",114,"Foundation English and Mathematics",2]
["Report","Unique Training North East Limited",56817,"Durham","North East, Yorkshire & Humber","Independent Learning Provider","WBL - requires improvement",429793,"2014-09-09","2014-09-12","Published","2014-10-23",7,"Retail and Commercial Enterprise",400,"Hospitality and Catering",2]
["Report","Four Counties Training Limited",51893,"Ealing","London","Independent Learning Provider","Work Based Learning - full (national)",446601,"2014-12-01","2014-12-05","Published","2015-01-21",1,"Health, Public Services and Care",300,"Health and Social Care",3]
["Report","Four Counties Training Limited",51893,"Ealing","London","Independent Learning Provider","Work Based Learning - full (national)",446601,"2014-12-01","2014-12-05","Published","2015-01-21",15,"Business, Administration and Law",401,"Customer service",4]
["Report","Four Counties Training Limited",51893,"Ealing","London","Independent Learning Provider","Work Based Learning - full (national)",446601,"2014-12-01","2014-12-05","Published","2015-01-21",15,"Business, Administration and Law",300,"Business Management",3]
["Report","Four Counties Training Limited",51893,"Ealing","London","Independent Learning Provider","Work Based Learning - full (national)",446601,"2014-12-01","2014-12-05","Published","2015-01-21",4,"Engineering and Manufacturing Technologies",400,"Transportation operations and maintenance",4]
["Report","Yorkshire Training Partnership Limited",58132,"Rotherham","North East, Yorkshire & Humber","Independent Learning Provider","WBL - requires improvement",443134,"2015-06-01","2015-06-05","Published","2015-07-08",1,"Health, Public Services and Care",300,"Health and Social Care",2]
["Report","Yorkshire Training Partnership Limited",58132,"Rotherham","North East, Yorkshire & Humber","Independent Learning Provider","WBL - requires improvement",443134,"2015-06-01","2015-06-05","Published","2015-07-08",15,"Business, Administration and Law",200,"Administration",2]
["Report","Yorkshire Training Partnership Limited",58132,"Rotherham","North East, Yorkshire & Humber","Independent Learning Provider","WBL - requires improvement",443134,"2015-06-01","2015-06-05","Published","2015-07-08",15,"Business, Administration and Law",300,"Business Management",2]
["Report","Yorkshire Training Partnership Limited",58132,"Rotherham","North East, Yorkshire & Humber","Independent Learning Provider","WBL - requires improvement",443134,"2015-06-01","2015-06-05","Published","2015-07-08",1,"Health, Public Services and Care",500,"Early Years and Playwork",2]
["Report","Yorkshire Training Partnership Limited",58132,"Rotherham","North East, Yorkshire & Humber","Independent Learning Provider","WBL - requires improvement",443134,"2015-06-01","2015-06-05","Published","2015-07-08",14,"Preparation for Life and Work",112,"Foundation English",2]
["Report","Norman Mackie & Associates Limited",58507,"Tameside","North West","Independent Learning Provider","Work Based Learning - full (national)",451204,"2014-11-10","2014-11-12","Published","2014-12-15",14,"Preparation for Life and Work",204,"Employability Training",2]
["Report","Be Totally You",59122,"Lewisham","London","Independent Learning Provider","WBL - requires improvement",452784,"2015-05-05","2015-05-08","Published","2015-06-15",15,"Business, Administration and Law",401,"Customer service",3]
["Report","Be Totally You",59122,"Lewisham","London","Independent Learning Provider","WBL - requires improvement",452784,"2015-05-05","2015-05-08","Published","2015-06-15",15,"Business, Administration and Law",200,"Administration",3]
["Report","QDOS Training Limited",58397,"Leicester","East Midlands","Independent Learning Provider","WBL - full (regional)",452989,"2015-02-10","2015-02-13","Published","2015-04-09",15,"Business, Administration and Law",200,"Administration",2]
["Report","QDOS Training Limited",58397,"Leicester","East Midlands","Independent Learning Provider","WBL - full (regional)",452989,"2015-02-10","2015-02-13","Published","2015-04-09",6,"Information and Communication Technology",200,"ICT for Users",3]
["Report","QDOS Training Limited",58397,"Leicester","East Midlands","Independent Learning Provider","Work Based Learning - reinspection",465164,"2015-07-28","2015-07-31","Published","2015-08-26",6,"Information and Communication Technology",200,"ICT for Users",2]
["Report","QDOS Training Limited",58397,"Leicester","East Midlands","Independent Learning Provider","Work Based Learning - reinspection",465164,"2015-07-28","2015-07-31","Published","2015-08-26",6,"Information and Communication Technology",100,"ICT for practitioners",2]
["Report","Babington Business College Limited",50586,"Derby","East Midlands","Independent Learning Provider","Work Based Learning - full (national)",452977,"2015-03-02","2015-03-06","Published","2015-04-07",1,"Health, Public Services and Care",300,"Health and Social Care",2]
["Report","Babington Business College Limited",50586,"Derby","East Midlands","Independent Learning Provider","Work Based Learning - full (national)",452977,"2015-03-02","2015-03-06","Published","2015-04-07",15,"Business, Administration and Law",200,"Administration",2]
["Report","Babington Business College Limited",50586,"Derby","East Midlands","Independent Learning Provider","Work Based Learning - full (national)",452977,"2015-03-02","2015-03-06","Published","2015-04-07",15,"Business, Administration and Law",100,"Accounting and Finance",1]
[{"$f":"IF(C833 <> \"\", HYPERLINK(CONCATENATE(\"http://reports.ofsted.gov.uk/inspection-reports/find-inspection-report/provider/ELS/\",C833),\"Report\"),\"\")","v":"Report"},"Working Rite",59193,"East Sussex","South East","Community Learning and Skills","Adult and community - full (national)",455622,"2015-05-13","2015-05-15","Published","2015-06-22",14,"Preparation for Life and Work",204,"Employability Training",3]
["Report","Waltham Forest College",130456,"Waltham Forest","London","General Further Education/Tertiary College","FE College - requires improvement",430281,"2014-10-13","2014-10-17","Published","2014-11-21",7,"Retail and Commercial Enterprise",400,"Hospitality and Catering",2]
["Report","Waltham Forest College",130456,"Waltham Forest","London","General Further Education/Tertiary College","FE College - requires improvement",430281,"2014-10-13","2014-10-17","Published","2014-11-21",15,"Business, Administration and Law",500,"Law and Legal Services",2]
["Report","Waltham Forest College",130456,"Waltham Forest","London","General Further Education/Tertiary College","FE College - requires improvement",430281,"2014-10-13","2014-10-17","Published","2014-11-21",1,"Health, Public Services and Care",300,"Health and Social Care",3]
["Report","Waltham Forest College",130456,"Waltham Forest","London","General Further Education/Tertiary College","FE College - requires improvement",430281,"2014-10-13","2014-10-17","Published","2014-11-21",4,"Engineering and Manufacturing Technologies",300,"Motor vehicle",3]
["Report","Waltham Forest College",130456,"Waltham Forest","London","General Further Education/Tertiary College","FE College - requires improvement",430281,"2014-10-13","2014-10-17","Published","2014-11-21",7,"Retail and Commercial Enterprise",301,"Hairdressing and beauty therapy",2]
["Report","Waltham Forest College",130456,"Waltham Forest","London","General Further Education/Tertiary College","FE College - requires improvement",430281,"2014-10-13","2014-10-17","Published","2014-11-21",14,"Preparation for Life and Work",112,"Foundation English",4]
["Report","Waltham Forest College",130456,"Waltham Forest","London","General Further Education/Tertiary College","FE College - requires improvement",430281,"2014-10-13","2014-10-17","Published","2014-11-21",15,"Business, Administration and Law",300,"Business Management",2]
["Report","Waltham Forest College",130456,"Waltham Forest","London","General Further Education/Tertiary College","FE College - requires improvement",430281,"2014-10-13","2014-10-17","Published","2014-11-21",1,"Health, Public Services and Care",500,"Early Years and Playwork",3]
["Report","Barford Education and Training (North East) Limited",55459,"Essex","East of England","Independent Learning Provider","WBL - requires improvement",430250,"2014-11-24","2014-11-28","Published","2015-01-07",4,"Engineering and Manufacturing Technologies",400,"Transportation operations and maintenance",4]
["Report","Barford Education and Training (North East) Limited",55459,"Essex","East of England","Independent Learning Provider","WBL - requires improvement",430250,"2014-11-24","2014-11-28","Published","2015-01-07",15,"Business, Administration and Law",300,"Business Management",3]
["Report","Barford Education and Training (North East) Limited",55459,"Essex","East of England","Independent Learning Provider","WBL - requires improvement",430250,"2014-11-24","2014-11-28","Published","2015-01-07",15,"Business, Administration and Law",200,"Administration",3]
["Report","Barford Education and Training (North East) Limited",55459,"Essex","East of England","Independent Learning Provider","WBL - requires improvement",430250,"2014-11-24","2014-11-28","Published","2015-01-07",4,"Engineering and Manufacturing Technologies",200,"Manufacturing Technologies",3]
["Report","Barford Education and Training (North East) Limited",55459,"Essex","East of England","Independent Learning Provider","WBL - requires improvement",430250,"2014-11-24","2014-11-28","Published","2015-01-07",14,"Preparation for Life and Work",204,"Employability Training",4]
["Report","MPower Training Solutions Ltd",59187,"Essex","East of England","Independent Learning Provider","WBL - full (regional)",461249,"2015-06-16","2015-06-19","Published","2015-07-10",15,"Business, Administration and Law",200,"Administration",3]
["Report","MPower Training Solutions Ltd",59187,"Essex","East of England","Independent Learning Provider","WBL - full (regional)",461249,"2015-06-16","2015-06-19","Published","2015-07-10",5,"Construction, Planning and the Built Environment",201,"Building Services",2]
["Report","MPower Training Solutions Ltd",59187,"Essex","East of England","Independent Learning Provider","WBL - full (regional)",461249,"2015-06-16","2015-06-19","Published","2015-07-10",15,"Business, Administration and Law",300,"Business Management",3]
["Report","Bradford College",130532,"Bradford","North East, Yorkshire & Humber","General Further Education/Tertiary College","FE College - full inspection",446537,"2014-09-22","2014-09-26","Published","2014-10-29",14,"Preparation for Life and Work",113,"Foundation mathematics",2]
["Report","King Edward VI College Nuneaton",130840,"Warwickshire","West Midlands","Sixth Form College","SFC - requires improvement",443135,"2015-04-28","2015-05-01","Published","2015-06-03",2,"Science and Mathematics",100,"Science",2]
["Report","King Edward VI College Nuneaton",130840,"Warwickshire","West Midlands","Sixth Form College","SFC - requires improvement",443135,"2015-04-28","2015-05-01","Published","2015-06-03",12,"Languages, Literature and Culture",100,"English",2]
["Report","Doncaster Metropolitan Borough Council",51578,"Doncaster","North East, Yorkshire & Humber","Community Learning and Skills","Adult and Community - full (regional)",463030,"2015-05-19","2015-05-22","Published","2015-06-25",15,"Business, Administration and Law",200,"Administration",2]
["Report","Doncaster Metropolitan Borough Council",51578,"Doncaster","North East, Yorkshire & Humber","Community Learning and Skills","Adult and Community - full (regional)",463030,"2015-05-19","2015-05-22","Published","2015-06-25",14,"Preparation for Life and Work",114,"Foundation English and Mathematics",2]
["Report","Hartlepool Sixth Form College",130568,"Hartlepool","North East, Yorkshire & Humber","Sixth Form College","SFC - full inspection",446538,"2014-09-23","2014-09-26","Published","2014-11-13",12,"Languages, Literature and Culture",202,"Modern foreign languages",2]
["Report","Hartlepool Sixth Form College",130568,"Hartlepool","North East, Yorkshire & Humber","Sixth Form College","SFC - full inspection",446538,"2014-09-23","2014-09-26","Published","2014-11-13",12,"Languages, Literature and Culture",100,"English",2]
["Report","Hartlepool Sixth Form College",130568,"Hartlepool","North East, Yorkshire & Humber","Sixth Form College","SFC - full inspection",446538,"2014-09-23","2014-09-26","Published","2014-11-13",15,"Business, Administration and Law",300,"Business Management",2]
["Report","Hartlepool Sixth Form College",130568,"Hartlepool","North East, Yorkshire & Humber","Sixth Form College","SFC - full inspection",446538,"2014-09-23","2014-09-26","Published","2014-11-13",15,"Business, Administration and Law",500,"Law and Legal Services",3]
["Report","Greenwich Community College at Plumstead Centre",130405,"Greenwich","London","General Further Education/Tertiary College","FE College - requires improvement",430272,"2014-11-10","2014-11-14","Published","2014-12-19",1,"Health, Public Services and Care",500,"Early Years and Playwork",2]
["Report","Greenwich Community College at Plumstead Centre",130405,"Greenwich","London","General Further Education/Tertiary College","FE College - requires improvement",430272,"2014-11-10","2014-11-14","Published","2014-12-19",14,"Preparation for Life and Work",113,"Foundation mathematics",4]
["Report","Greenwich Community College at Plumstead Centre",130405,"Greenwich","London","General Further Education/Tertiary College","FE College - requires improvement",430272,"2014-11-10","2014-11-14","Published","2014-12-19",15,"Business, Administration and Law",300,"Business Management",3]
["Report","Greenwich Community College at Plumstead Centre",130405,"Greenwich","London","General Further Education/Tertiary College","FE College - requires improvement",430272,"2014-11-10","2014-11-14","Published","2014-12-19",14,"Preparation for Life and Work",112,"Foundation English",4]
["Report","Greenwich Community College at Plumstead Centre",130405,"Greenwich","London","General Further Education/Tertiary College","FE College - requires improvement",430272,"2014-11-10","2014-11-14","Published","2014-12-19",15,"Business, Administration and Law",100,"Accounting and Finance",3]
["Report","Greenwich Community College at Plumstead Centre",130405,"Greenwich","London","General Further Education/Tertiary College","FE College - requires improvement",430272,"2014-11-10","2014-11-14","Published","2014-12-19",1,"Health, Public Services and Care",300,"Health and Social Care",2]
["Report","Greenwich Community College at Plumstead Centre",130405,"Greenwich","London","General Further Education/Tertiary College","FE College - requires improvement",430272,"2014-11-10","2014-11-14","Published","2014-12-19",14,"Preparation for Life and Work",103,"ESOL",2]
["Report","Communication Specialist College -  Doncaster",131869,"Doncaster","North East, Yorkshire & Humber","Independent Specialist College","ISC - full inspection",429190,"2014-11-11","2014-11-13","Published","2014-12-16",14,"Preparation for Life and Work",108,"Independent living and leisure skills",2]
["Report","Bromley London Borough Council",53108,"Bromley","London","Community Learning and Skills","Adult and Community - full (regional)",452606,"2015-03-10","2015-03-13","Published","2015-04-22",9,"Arts, Media and Publishing",200,"Visual Arts",2]
["Report","Bromley London Borough Council",53108,"Bromley","London","Community Learning and Skills","Adult and Community - full (regional)",452606,"2015-03-10","2015-03-13","Published","2015-04-22",14,"Preparation for Life and Work",114,"Foundation English and Mathematics",3]
["Report","The Real Apprenticeship Company Limited",59162,"Warwickshire","West Midlands","Independent Learning Provider","Work Based Learning - full (national)",455608,"2015-02-17","2015-02-20","Published","2015-03-20",7,"Retail and Commercial Enterprise",100,"Retailing and Wholesaling",2]
["Report","lookfantastic Training Limited",53697,"Brighton and Hove","South East","Independent Learning Provider","Work Based Learning - full (national)",452613,"2015-02-02","2015-02-06","Published","2015-03-16",4,"Engineering and Manufacturing Technologies",100,"Engineering",2]
["Report","lookfantastic Training Limited",53697,"Brighton and Hove","South East","Independent Learning Provider","Work Based Learning - full (national)",452613,"2015-02-02","2015-02-06","Published","2015-03-16",4,"Engineering and Manufacturing Technologies",200,"Manufacturing Technologies",2]
["Report","lookfantastic Training Limited",53697,"Brighton and Hove","South East","Independent Learning Provider","Work Based Learning - full (national)",452613,"2015-02-02","2015-02-06","Published","2015-03-16",7,"Retail and Commercial Enterprise",302,"Hairdressing",3]
["Report","lookfantastic Training Limited",53697,"Brighton and Hove","South East","Independent Learning Provider","Work Based Learning - full (national)",452613,"2015-02-02","2015-02-06","Published","2015-03-16",8,"Leisure, Travel and Tourism",101,"Sport",2]
["Report","South Gloucestershire and Stroud College",139238,"South Gloucestershire","South West","General Further Education/Tertiary College","FE College - full inspection",452493,"2014-11-17","2014-11-21","Published","2014-12-23",5,"Construction, Planning and the Built Environment",200,"Building and Construction",2]
["Report","South Gloucestershire and Stroud College",139238,"South Gloucestershire","South West","General Further Education/Tertiary College","FE College - full inspection",452493,"2014-11-17","2014-11-21","Published","2014-12-23",15,"Business, Administration and Law",600,"Business",1]
["Report","South Gloucestershire and Stroud College",139238,"South Gloucestershire","South West","General Further Education/Tertiary College","FE College - full inspection",452493,"2014-11-17","2014-11-21","Published","2014-12-23",2,"Science and Mathematics",200,"Mathematics and Statistics",3]
["Report","South Gloucestershire and Stroud College",139238,"South Gloucestershire","South West","General Further Education/Tertiary College","FE College - full inspection",452493,"2014-11-17","2014-11-21","Published","2014-12-23",8,"Leisure, Travel and Tourism",100,"Sport, Leisure and Recreation",1]
["Report","South Gloucestershire and Stroud College",139238,"South Gloucestershire","South West","General Further Education/Tertiary College","FE College - full inspection",452493,"2014-11-17","2014-11-21","Published","2014-12-23",8,"Leisure, Travel and Tourism",102,"Public Services",2]
["Report","South Gloucestershire and Stroud College",139238,"South Gloucestershire","South West","General Further Education/Tertiary College","FE College - full inspection",452493,"2014-11-17","2014-11-21","Published","2014-12-23",9,"Arts, Media and Publishing",200,"Visual Arts",1]
["Report","South Gloucestershire and Stroud College",139238,"South Gloucestershire","South West","General Further Education/Tertiary College","FE College - full inspection",452493,"2014-11-17","2014-11-21","Published","2014-12-23",2,"Science and Mathematics",100,"Science",3]
["Report","South Gloucestershire and Stroud College",139238,"South Gloucestershire","South West","General Further Education/Tertiary College","FE College - full inspection",452493,"2014-11-17","2014-11-21","Published","2014-12-23",9,"Arts, Media and Publishing",100,"Performing Arts",1]
["Report","South Gloucestershire and Stroud College",139238,"South Gloucestershire","South West","General Further Education/Tertiary College","FE College - full inspection",452493,"2014-11-17","2014-11-21","Published","2014-12-23",14,"Preparation for Life and Work",112,"Foundation English",3]
["Report","South Gloucestershire and Stroud College",139238,"South Gloucestershire","South West","General Further Education/Tertiary College","FE College - full inspection",452493,"2014-11-17","2014-11-21","Published","2014-12-23",14,"Preparation for Life and Work",113,"Foundation mathematics",3]
["Report","DV8 TRAINING (BRIGHTON) LIMITED",59191,"Brighton and Hove","South East","Independent Learning Provider","WBL - full (regional)",455621,"2015-04-21","2015-04-24","Published","2015-06-02",14,"Preparation for Life and Work",114,"Foundation English and Mathematics",3]
["Report","DV8 TRAINING (BRIGHTON) LIMITED",59191,"Brighton and Hove","South East","Independent Learning Provider","WBL - full (regional)",455621,"2015-04-21","2015-04-24","Published","2015-06-02",9,"Arts, Media and Publishing",100,"Performing Arts",3]
["Report","DV8 TRAINING (BRIGHTON) LIMITED",59191,"Brighton and Hove","South East","Independent Learning Provider","WBL - full (regional)",455621,"2015-04-21","2015-04-24","Published","2015-06-02",9,"Arts, Media and Publishing",300,"Media and Communication",3]
["Report","Lawn Tennis Association Limited",58182,"Wandsworth","London","Independent Learning Provider","Work Based Learning - full (national)",446609,"2014-10-06","2014-10-10","Published","2014-11-17",8,"Leisure, Travel and Tourism",101,"Sport",1]
["Report","The Virtual College",54946,"Bradford","North East, Yorkshire & Humber","Independent Learning Provider","Work Based Learning - full (national)",446608,"2015-01-19","2015-01-23","Published","2015-03-03",15,"Business, Administration and Law",200,"Administration",2]
["Report","The Virtual College",54946,"Bradford","North East, Yorkshire & Humber","Independent Learning Provider","Work Based Learning - full (national)",446608,"2015-01-19","2015-01-23","Published","2015-03-03",1,"Health, Public Services and Care",300,"Health and Social Care",2]
["Report","The Virtual College",54946,"Bradford","North East, Yorkshire & Humber","Independent Learning Provider","Work Based Learning - full (national)",446608,"2015-01-19","2015-01-23","Published","2015-03-03",15,"Business, Administration and Law",401,"Customer service",2]
["Report","The Virtual College",54946,"Bradford","North East, Yorkshire & Humber","Independent Learning Provider","Work Based Learning - full (national)",446608,"2015-01-19","2015-01-23","Published","2015-03-03",4,"Engineering and Manufacturing Technologies",200,"Manufacturing Technologies",2]
["Report","The Virtual College",54946,"Bradford","North East, Yorkshire & Humber","Independent Learning Provider","Work Based Learning - full (national)",446608,"2015-01-19","2015-01-23","Published","2015-03-03",14,"Preparation for Life and Work",204,"Employability Training",2]
["Report","Professional Business & Training Solutions Limited",53982,"Bexley","London","Independent Learning Provider","WBL - requires improvement",429226,"2015-06-16","2015-06-18","Published","2015-07-23",2,"Science and Mathematics",100,"Science",2]
["Report","t2 business solutions",58820,"Devon","South West","Independent Learning Provider","Work Based Learning - full (national)",455599,"2015-06-22","2015-06-26","Published","2015-08-07",1,"Health, Public Services and Care",300,"Health and Social Care",2]
["Report","t2 business solutions",58820,"Devon","South West","Independent Learning Provider","Work Based Learning - full (national)",455599,"2015-06-22","2015-06-26","Published","2015-08-07",14,"Preparation for Life and Work",204,"Employability Training",1]
["Report","Huntingdonshire Regional College",130612,"Cambridgeshire","East of England","General Further Education/Tertiary College","FE College - requires improvement",430273,"2014-11-17","2014-11-21","Published","2014-12-17",14,"Preparation for Life and Work",113,"Foundation mathematics",3]
[{"$f":"IF(C897 <> \"\", HYPERLINK(CONCATENATE(\"http://reports.ofsted.gov.uk/inspection-reports/find-inspection-report/provider/ELS/\",C897),\"Report\"),\"\")","v":"Report"},"Huntingdonshire Regional College",130612,"Cambridgeshire","East of England","General Further Education/Tertiary College","FE College - requires improvement",430273,"2014-11-17","2014-11-21","Published","2014-12-17",1,"Health, Public Services and Care",500,"Early Years and Playwork",3]
["Report","Huntingdonshire Regional College",130612,"Cambridgeshire","East of England","General Further Education/Tertiary College","FE College - requires improvement",430273,"2014-11-17","2014-11-21","Published","2014-12-17",8,"Leisure, Travel and Tourism",102,"Public Services",2]
["Report","Huntingdonshire Regional College",130612,"Cambridgeshire","East of England","General Further Education/Tertiary College","FE College - requires improvement",430273,"2014-11-17","2014-11-21","Published","2014-12-17",1,"Health, Public Services and Care",300,"Health and Social Care",3]
["Report","Huntingdonshire Regional College",130612,"Cambridgeshire","East of England","General Further Education/Tertiary College","FE College - requires improvement",430273,"2014-11-17","2014-11-21","Published","2014-12-17",4,"Engineering and Manufacturing Technologies",300,"Motor vehicle",3]
["Report","Huntingdonshire Regional College",130612,"Cambridgeshire","East of England","General Further Education/Tertiary College","FE College - requires improvement",430273,"2014-11-17","2014-11-21","Published","2014-12-17",4,"Engineering and Manufacturing Technologies",400,"Transportation operations and maintenance",3]
["Report","Huntingdonshire Regional College",130612,"Cambridgeshire","East of England","General Further Education/Tertiary College","FE College - requires improvement",430273,"2014-11-17","2014-11-21","Published","2014-12-17",8,"Leisure, Travel and Tourism",101,"Sport",2]
["Report","North East Lincolnshire Council",53575,"North East Lincolnshire","North East, Yorkshire & Humber","Community Learning and Skills","ACL - requires improvement",446860,"2015-04-28","2015-05-01","Published","2015-06-16",14,"Preparation for Life and Work",114,"Foundation English and Mathematics",3]
["Report","North East Lincolnshire Council",53575,"North East Lincolnshire","North East, Yorkshire & Humber","Community Learning and Skills","ACL - requires improvement",446860,"2015-04-28","2015-05-01","Published","2015-06-16",14,"Preparation for Life and Work",204,"Employability Training",3]
["Report","North East Lincolnshire Council",53575,"North East Lincolnshire","North East, Yorkshire & Humber","Community Learning and Skills","ACL - requires improvement",446860,"2015-04-28","2015-05-01","Published","2015-06-16",14,"Preparation for Life and Work",111,"Community Learning",3]
["Report","Wandsworth London Borough Council",53152,"Wandsworth","London","Community Learning and Skills","Adult and Community - full (regional)",446663,"2014-12-08","2014-12-12","Published","2015-01-21",1,"Health, Public Services and Care",500,"Early Years and Playwork",3]
["Report","Wandsworth London Borough Council",53152,"Wandsworth","London","Community Learning and Skills","Adult and Community - full (regional)",446663,"2014-12-08","2014-12-12","Published","2015-01-21",14,"Preparation for Life and Work",103,"ESOL",3]
["Report","Wandsworth London Borough Council",53152,"Wandsworth","London","Community Learning and Skills","Adult and Community - full (regional)",446663,"2014-12-08","2014-12-12","Published","2015-01-21",1,"Health, Public Services and Care",300,"Health and Social Care",3]
["Report","Wandsworth London Borough Council",53152,"Wandsworth","London","Community Learning and Skills","Adult and Community - full (regional)",446663,"2014-12-08","2014-12-12","Published","2015-01-21",9,"Arts, Media and Publishing",200,"Visual Arts",2]
["Report","Midlands Training and Development",53693,"Warwickshire","West Midlands","Independent Learning Provider","WBL - full (regional)",452612,"2015-02-10","2015-02-12","Published","2015-03-06",14,"Preparation for Life and Work",204,"Employability Training",3]
["Report","In-Comm Training Services Limited",50139,"Walsall","West Midlands","Independent Learning Provider","WBL - full (regional)",455575,"2015-05-11","2015-05-14","Published","2015-06-19",15,"Business, Administration and Law",200,"Administration",3]
["Report","In-Comm Training Services Limited",50139,"Walsall","West Midlands","Independent Learning Provider","WBL - full (regional)",455575,"2015-05-11","2015-05-14","Published","2015-06-19",4,"Engineering and Manufacturing Technologies",100,"Engineering",2]
["Report","Westward Pathfinder",53565,"Devon","South West","Community Learning and Skills","WBL - requires improvement",452785,"2015-06-02","2015-06-05","Published","2015-07-10",14,"Preparation for Life and Work",204,"Employability Training",2]
["Report","The Child Care Company (Old Windsor) Limited",58467,"Slough","South East","Independent Learning Provider","WBL - full (regional)",446611,"2015-01-19","2015-01-22","Published","2015-02-26",15,"Business, Administration and Law",200,"Administration",3]
["Report","The Child Care Company (Old Windsor) Limited",58467,"Slough","South East","Independent Learning Provider","WBL - full (regional)",446611,"2015-01-19","2015-01-22","Published","2015-02-26",1,"Health, Public Services and Care",500,"Early Years and Playwork",2]
["Report","Friends Centre",51905,"Brighton and Hove","South East","Community Learning and Skills","ACL - requires improvement",444482,"2015-06-10","2015-06-12","Published","2015-07-17",14,"Preparation for Life and Work",111,"Community Learning",3]
["Report","Bradford College",130532,"Bradford","North East, Yorkshire & Humber","General Further Education/Tertiary College","FE College - full inspection",446537,"2014-09-22","2014-09-26","Published","2014-10-29",15,"Business, Administration and Law",200,"Administration",2]
["Report","Bradford College",130532,"Bradford","North East, Yorkshire & Humber","General Further Education/Tertiary College","FE College - full inspection",446537,"2014-09-22","2014-09-26","Published","2014-10-29",7,"Retail and Commercial Enterprise",301,"Hairdressing and beauty therapy",3]
["Report","Bradford College",130532,"Bradford","North East, Yorkshire & Humber","General Further Education/Tertiary College","FE College - full inspection",446537,"2014-09-22","2014-09-26","Published","2014-10-29",8,"Leisure, Travel and Tourism",101,"Sport",2]
["Report","Steps to Work (Walsall) Ltd",50202,"Walsall","West Midlands","Community Learning and Skills","Adult and Community - full (regional)",455576,"2015-04-22","2015-04-24","Published","2015-06-02",15,"Business, Administration and Law",200,"Administration",3]
["Report","Trans-plant Training Limited",59164,"Devon","South West","Independent Learning Provider","WBL - full (regional)",446619,"2014-09-30","2014-10-03","Published","2014-11-07",4,"Engineering and Manufacturing Technologies",400,"Transportation operations and maintenance",3]
["Report","Hudson & Hughes Training Limited",52396,"Somerset","South West","Independent Learning Provider","WBL - full (regional)",452604,"2015-03-24","2015-03-27","Published","2015-04-30",1,"Health, Public Services and Care",300,"Health and Social Care",2]
["Report","JBC Computer Training Limited",59153,"Coventry","West Midlands","Independent Learning Provider","WBL - full (regional)",446618,"2014-09-17","2014-09-19","Published","2014-10-23",6,"Information and Communication Technology",100,"ICT for practitioners",2]
["Report","Lowestoft Sixth Form College",136255,"Suffolk","East of England","Sixth Form College","SFC - requires improvement",444483,"2015-04-28","2015-05-01","Published","2015-06-03",8,"Leisure, Travel and Tourism",101,"Sport",2]
["Report","Lowestoft Sixth Form College",136255,"Suffolk","East of England","Sixth Form College","SFC - requires improvement",444483,"2015-04-28","2015-05-01","Published","2015-06-03",9,"Arts, Media and Publishing",100,"Performing Arts",2]
["Report","Lowestoft Sixth Form College",136255,"Suffolk","East of England","Sixth Form College","SFC - requires improvement",444483,"2015-04-28","2015-05-01","Published","2015-06-03",9,"Arts, Media and Publishing",200,"Visual Arts",2]
["Report","Lowestoft Sixth Form College",136255,"Suffolk","East of England","Sixth Form College","SFC - requires improvement",444483,"2015-04-28","2015-05-01","Published","2015-06-03",12,"Languages, Literature and Culture",202,"Modern foreign languages",2]
["Report","Lowestoft Sixth Form College",136255,"Suffolk","East of England","Sixth Form College","SFC - requires improvement",444483,"2015-04-28","2015-05-01","Published","2015-06-03",12,"Languages, Literature and Culture",100,"English",2]
["Report","Southend-on-Sea Borough Council",54519,"Southend-On-Sea","East of England","Community Learning and Skills","Adult and Community - full (regional)",446666,"2014-10-06","2014-10-10","Published","2014-11-12",14,"Preparation for Life and Work",204,"Employability Training",2]
["Report","Southend-on-Sea Borough Council",54519,"Southend-On-Sea","East of England","Community Learning and Skills","Adult and Community - full (regional)",446666,"2014-10-06","2014-10-10","Published","2014-11-12",9,"Arts, Media and Publishing",200,"Visual Arts",1]
["Report","Southend-on-Sea Borough Council",54519,"Southend-On-Sea","East of England","Community Learning and Skills","Adult and Community - full (regional)",446666,"2014-10-06","2014-10-10","Published","2014-11-12",1,"Health, Public Services and Care",500,"Early Years and Playwork",1]
["Report","Southend-on-Sea Borough Council",54519,"Southend-On-Sea","East of England","Community Learning and Skills","Adult and Community - full (regional)",446666,"2014-10-06","2014-10-10","Published","2014-11-12",14,"Preparation for Life and Work",112,"Foundation English",3]
["Report","Ministry of Defence (RAF)",54191,"Gloucestershire","South West","Employer","Work Based Learning - full (national)",446605,"2014-12-08","2014-12-12","Published","2015-01-21",6,"Information and Communication Technology",100,"ICT for practitioners",1]
["Report","Ministry of Defence (RAF)",54191,"Gloucestershire","South West","Employer","Work Based Learning - full (national)",446605,"2014-12-08","2014-12-12","Published","2015-01-21",7,"Retail and Commercial Enterprise",200,"Warehousing and Distribution",2]
["Report","Ministry of Defence (RAF)",54191,"Gloucestershire","South West","Employer","Work Based Learning - full (national)",446605,"2014-12-08","2014-12-12","Published","2015-01-21",1,"Health, Public Services and Care",400,"Public Services",2]
["Report","Ministry of Defence (RAF)",54191,"Gloucestershire","South West","Employer","Work Based Learning - full (national)",446605,"2014-12-08","2014-12-12","Published","2015-01-21",4,"Engineering and Manufacturing Technologies",100,"Engineering",1]
["Report","Skills for Health Limited",58437,"Bristol City of","South West","Community Learning and Skills","WBL - requires improvement",430257,"2014-10-20","2014-10-24","Published","2014-11-28",15,"Business, Administration and Law",200,"Administration",3]
["Report","Skills for Health Limited",58437,"Bristol City of","South West","Community Learning and Skills","WBL - requires improvement",430257,"2014-10-20","2014-10-24","Published","2014-11-28",1,"Health, Public Services and Care",300,"Health and Social Care",2]
["Report","Central Training Academy Limited",51072,"Southend-On-Sea","East of England","Independent Learning Provider","Work Based Learning - full (national)",452978,"2015-03-02","2015-03-06","Published","2015-04-14",7,"Retail and Commercial Enterprise",302,"Hairdressing",2]
["Report","Central Training Academy Limited",51072,"Southend-On-Sea","East of England","Independent Learning Provider","Work Based Learning - full (national)",452978,"2015-03-02","2015-03-06","Published","2015-04-14",14,"Preparation for Life and Work",204,"Employability Training",2]
["Report","Central Training Academy Limited",51072,"Southend-On-Sea","East of England","Independent Learning Provider","Work Based Learning - full (national)",452978,"2015-03-02","2015-03-06","Published","2015-04-14",15,"Business, Administration and Law",200,"Administration",2]
["Report","Solihull College",130481,"Solihull","West Midlands","General Further Education/Tertiary College","FE College - full inspection",452547,"2015-03-09","2015-03-13","Published","2015-04-21",1,"Health, Public Services and Care",300,"Health and Social Care",2]
["Report","Solihull College",130481,"Solihull","West Midlands","General Further Education/Tertiary College","FE College - full inspection",452547,"2015-03-09","2015-03-13","Published","2015-04-21",3,"Agriculture, Horticulture and Animal Care",300,"Animal Care and Veterinary Science",2]
["Report","Solihull College",130481,"Solihull","West Midlands","General Further Education/Tertiary College","FE College - full inspection",452547,"2015-03-09","2015-03-13","Published","2015-04-21",6,"Information and Communication Technology",200,"ICT for Users",2]
["Report","Solihull College",130481,"Solihull","West Midlands","General Further Education/Tertiary College","FE College - full inspection",452547,"2015-03-09","2015-03-13","Published","2015-04-21",15,"Business, Administration and Law",200,"Administration",2]
["Report","Solihull College",130481,"Solihull","West Midlands","General Further Education/Tertiary College","FE College - full inspection",452547,"2015-03-09","2015-03-13","Published","2015-04-21",3,"Agriculture, Horticulture and Animal Care",200,"Horticulture and Forestry",2]
["Report","Worcestershire County Council",55422,"Worcestershire","West Midlands","Community Learning and Skills","Adult and Community - full (regional)",451949,"2014-12-02","2014-12-05","Published","2015-01-07",14,"Preparation for Life and Work",112,"Foundation English",3]
["Report","Worcestershire County Council",55422,"Worcestershire","West Midlands","Community Learning and Skills","Adult and Community - full (regional)",451949,"2014-12-02","2014-12-05","Published","2015-01-07",14,"Preparation for Life and Work",113,"Foundation mathematics",2]
["Report","Ministry of Defence (Navy)",58403,"Portsmouth","South East","Employer","WBL - full (regional)",452622,"2015-03-09","2015-03-13","Published","2015-04-21",4,"Engineering and Manufacturing Technologies",100,"Engineering",2]
["Report","Ministry of Defence (Navy)",58403,"Portsmouth","South East","Employer","WBL - full (regional)",452622,"2015-03-09","2015-03-13","Published","2015-04-21",4,"Engineering and Manufacturing Technologies",200,"Manufacturing Technologies",2]
["Report","Ministry of Defence (Navy)",58403,"Portsmouth","South East","Employer","WBL - full (regional)",452622,"2015-03-09","2015-03-13","Published","2015-04-21",1,"Health, Public Services and Care",400,"Public Services",1]
["Report","Ministry of Defence (Navy)",58403,"Portsmouth","South East","Employer","WBL - full (regional)",452622,"2015-03-09","2015-03-13","Published","2015-04-21",6,"Information and Communication Technology",101,"Communications Technology",2]
["Report","Skills for Security Limited",50192,"Worcestershire","West Midlands","Independent Learning Provider","WBL - requires improvement",430258,"2014-09-22","2014-09-26","Published","2014-10-28",1,"Health, Public Services and Care",400,"Public Services",3]
["Report","Henshaw's College",121777,"North Yorkshire","North East, Yorkshire & Humber","Independent Specialist College","ISC - full inspection",455466,"2015-05-12","2015-05-14","Published","2015-06-16",14,"Preparation for Life and Work",108,"Independent living and leisure skills",3]